Workbook

Sheet Portada
B2: HOJA DE CÁLCULO DEL MODELO DE ESTIMACIÓN DEL CARGO DE INTERCONEXIÓN POR TERMINACIÓN DE LLAMADAS EN LA RED DE LA EMPRESA TELEFÓNICA MÓVILES S.A.
B4: OSIPTEL - MAYO 2010
B12: Nota:
B14: Las celdas con datos ficticios o con resultados de datos ficticios están identificadas con color amarillo

Sheet Inicio
D15: CARGO TERMINACIÓN (US$) | G15: =+'Unitisation INOUT'!AB311 -> 0.01959403052

Sheet Configuraciones de equipos
C21: Configuraciones de torres
D23: Código para el modelo | E23: Configuración
D24: TO_A | E24: Celda Urbana
D25: TO_B | E25: Celda Rural
D26: TO_R | E26: Torre Repetidor Outdoor
C28: Configuraciones de BTSs
D29: CONFIGURACIONES MODELO TMO
D30: Código para el modelo | E30: Configuración
D31: BTS_A | E31: GSM - 444 / 000
D32: BTS_B | E32: GSM - 444 / 444
D33: BTS_C | E33: GSM - 666 / 666
D34: BTS_D | E34: GSM - 888 / 888
D35: REP_A | E35: Repetidor OutDoor
D37: CONFIGURACIONES MODELO PROPUESTO OSIPTEL
D38: CONFIGURACIONES MODELO PROPUESTO OSIPTEL | E38: Configuración | G38: AUX INV1 | H38: AUX INV2
C39: UNA BANDA (850 MHz O 1900 MHz) | D39: BTS_1B_1 | E39: 040404/000000 | G39: =+E39 -> 040404/000000 | H39: =+D39 -> BTS_1B_1
D40: BTS_1B_2 | E40: 080808/000000 | G40: =+E40 -> 080808/000000 | H40: =+D40 -> BTS_1B_2
D41: BTS_1B_3 | E41: 121212/000000 | G41: 121212/000000 | H41: BTS_1B_3
D42: BTS_1B_4 | E42: 161616/000000 | G42: 161616/000000 | H42: BTS_1B_4
D43: BTS_1B_5 | E43: 202020/000000 | G43: 202020/000000 | H43: BTS_1B_5
C44: DOS BANDAS (850 MHz Y 1900 MHz) | D44: BTS_2B_1 | E44: 040404/040404 | G44: 040404/040404 | H44: BTS_2B_1
D45: BTS_2B_2 | E45: 060606/060606 | G45: 060606/060606 | H45: BTS_2B_2
D46: BTS_2B_3 | E46: 080808/080808 | G46: 080808/080808 | H46: BTS_2B_3
D47: BTS_2B_4 | E47: 101010/101010 | G47: 101010/101010 | H47: BTS_2B_4
D48: BTS_2B_5 | E48: 121212/121212 | G48: 121212/121212 | H48: BTS_2B_5
D49: BTS_2B_6 | E49: 161616/161616 | G49: 161616/161616 | H49: BTS_2B_6
D50: BTS_2B_7 | E50: 202020/202020 | G50: 202020/202020 | H50: BTS_2B_7
D51: BTS_2B_8 | E51: 242424/242424 | G51: 242424/242424 | H51: BTS_2B_8
C55: Configuraciones de BSCs
D57: Código para el modelo | E57: Configuración
D58: BSC_A | E58: BSC/TRC ERICSSON
C61: Configuraciones de Nodos B
D63: Código para el modelo | E63: Configuración
D64: NODOB_A | E64: Adecuación de Nodo B 1+1+1 sobre BTS 2G existente
C66: Configuraciones de RNCs
D68: Código para el modelo | E68: Configuración
D69: RNC_A | E69: RNC 3810
D70: RNC_B | E70: RNC 450
C72: Configuraciones de Adecuacion Red 3G
D74: Código para el modelo | E74: Configuración
D75: CORE3G | E75: Adecuaciones de red Core para red 3G
C78: Configuraciones de MSCs
D80: Código para el modelo | E80: Configuración
D81: MSC_A | E81: MSS
C83: Configuraciones de HLRs
D85: Código para el modelo | E85: Configuración
D86: HLR_A | E86: HLR
C89: Configuraciones STPs
D91: Código para el modelo | E91: Configuración
D92: STP_A | E92: STP
C95: Configuraciones de edificios
D97: Código para el modelo | E97: Configuración
D98: ED_A | E98: SW_A
D99: ED_B | E99: SW_N
D100: ED_C | E100: BSC_A
C103: Enlaces de transmisión
D105: Código para el modelo | E105: Configuración
D106: TR_A | E106: Media ponderada de enlaces

Sheet Servicios
C21: Servicios de red definidos
D23: Código para el modelo | E23: Unidades | F23: Servicio
D24: VOZ01 | E24: min | F24: Tráfico Entrante LDI
D25: VOZ02 | E25: min | F25: Tráfico Entrante LDN
D26: VOZ03 | E26: min | F26: Tráfico Entrante Local
D27: VOZ04 | E27: min | F27: Tráfico Originado LDI
D28: VOZ05 | E28: min | F28: Tráfico Originado LDN
D29: VOZ06 | E29: min | F29: Tráfico Originado Local
D30: VOZ07 | E30: min | F30: Tráfico OnNet Local
D31: VOZ08 | E31: min | F31: Tráfico OnNet LDN

Sheet Categorías de Costos
C21: Costos por elemento | I21: Costos por categorías | O21: Elementos de red
D23: Capex | J23: Código para el modelo | K23: Categoría de costo | L23: BSS | M23: NSS | P23: Código para el modelo | Q23: Elemento de Red
J24: BTS | K24: Base Station | L24: 1 | P24: BSS | Q24: Base Station Subsystem
E25: Código para el modelo | F25: Descripción | G25: Categoría de costo | J25: BSC | K25: Base Station Controller | L25: 1 | P25: NSS | Q25: Network SubSystem
E26: BTS1 | F26: BTS - Punto Cero | G26: BTS | J26: MSC | K26: Conmuntador móvil | M26: 1
E27: BTS2 | F27: BTS - Diseño | G27: BTS | J27: HLR | K27: Home Location Register | M27: 1
E28: BTS3 | F28: BTS - Obra Civil | G28: BTS | J28: STP | K28: Signal Transfer Point | M28: 1
E29: BTS4 | F29: BTS - Torre | G29: BTS | J29: TRA | K29: Transmisión | L29: 1
E30: BTS5 | F30: BTS - Acarreo | G30: BTS | J30: ED | K30: Edificios de red | M30: 1
E31: BTS6 | F31: BTS - Acometida AC | G31: BTS | J31: IT | K31: Tecnología Informática | M31: 1
E32: BTS7 | F32: BTS - UPS | G32: BTS | J32: OSS | K32: OSS | M32: 1
E33: BTS8 | F33: BTS - Rectificadores | G33: BTS | J33: AV | K33: Adecuación área virtual | M33: 1
E34: BTS9 | F34: BTS - Baterías | G34: BTS | J34: TRI | K34: Tributos | L34: 1
E35: BTS10 | F35: BTS - Aire acondicionado | G35: BTS | J35: ES | K35: Pagos Canon Espectro Año 2008 | L35: 1
E36: BTS11 | F36: BTS - Grupo electrógeno | G36: BTS | J36: CON | K36: Concesion de Espectro | L36: 1
E37: BTS12 | F37: BTS - Seguridad | G37: BTS | J37: CAC | K37: Costo adquisición clientes | M37: 1
E38: BTS13 | F38: BTS - Equipos | G38: BTS
E39: BTS14 | F39: BTS - Instalación | G39: BTS
E40: BTS15 | F40: BTS - Planeación | G40: BTS
E41: REP1 | F41: REP - Repetidor Outdoor | G41: BTS
E42: REP2 | F42: REP - Torre para Repetidor Outdoor | G42: BTS
E43: NODOB1 | F43: NODOB - Upgrade NodoB sobre BTS | G43: BTS
E44: BSC1 | F44: BSC - Equipos | G44: BSC
E45: BSC2 | F45: BSC - Software | G45: BSC
E46: BSC3 | F46: BSC - Servicios | G46: BSC
E47: BSC4 | F47: BSC - Planeación | G47: BSC
E48: RNC1 | F48: RNC - Controlador Estacion Base 3G | G48: BSC
E49: MSC1 | F49: MSC - Equipos | G49: MSC
E50: MSC2 | F50: MSC - Software | G50: MSC
E51: MSC3 | F51: MSC - Servicios | G51: MSC
E52: MSC4 | F52: MSC - Misc | G52: MSC
E53: MSC5 | F53: MSC - Planeación | G53: MSC
E54: CORE3G1 | F54: CORE3G - Adecuaciones de red Core 3G | G54: MSC
E55: HLR1 | F55: HLR - Equipos | G55: HLR
E56: HLR2 | F56: HLR - Software | G56: HLR
E57: HLR3 | F57: HLR - Servicios | G57: HLR
E58: HLR4 | F58: HLR - Misc | G58: HLR
E59: HLR5 | F59: HLR - Planeación | G59: HLR
E60: STP1 | F60: STP - Equipos | G60: STP
E61: STP2 | F61: STP - Software | G61: STP
E62: STP3 | F62: STP - Servicios | G62: STP
E63: STP4 | F63: STP - Planeación | G63: STP
E64: ED1 | F64: ED - Edificio | G64: ED
E65: ED2 | F65: ED - Suministro de electricidad DC | G65: ED
E66: ED3 | F66: ED - Suministro de electricidad AC | G66: ED
E67: ED4 | F67: ED - Rectificadores | G67: ED
E68: ED5 | F68: ED - Baterías | G68: ED
E69: ED6 | F69: ED - UPS | G69: ED
E70: ED7 | F70: ED - Inversor | G70: ED
E71: ED8 | F71: ED - Grupo electrógeno | G71: ED
E72: ED9 | F72: ED - Instalaciones | G72: ED
E73: ED10 | F73: ED - Escalerillas | G73: ED
E74: ED11 | F74: ED - Aire Acondicionado | G74: ED
E75: IT1 | F75: IT - Datawarehouse | G75: IT
E76: IT2 | F76: IT - Recolectores | G76: IT
E77: OSS1 | F77: OSS - OSS 2G | G77: OSS
E78: OSS2 | F78: OSS - Optimización de red 2G | G78: OSS
E79: OSS3 | F79: OSS - Aenor | G79: OSS
E80: OSS4 | F80: OSS - Release provincia | G80: OSS
E81: OSS5 | F81: OSS - Release Lima | G81: OSS
E82: OSS6 | F82: OSS - Planet | G82: OSS
E83: OSS7 | F83: OSS - Optimi | G83: OSS
E84: CON1 | F84: CON - Concesion de Espectro | G84: CON
E85: AV7 | F85: AV - Adecuacion | G85: AV
E86: AV1 | F86: AV - Adecuación STP - Tekelec | G86: AV
E87: AV2 | F87: AV - Adecuación Core Nokia | G87: AV
E88: AV3 | F88: AV - Adecuación Otras plataformas de red | G88: AV
E89: AV4 | F89: AV - Adecuación Datawarehouse | G89: AV
E90: AV5 | F90: AV - Adecuación Hardware | G90: AV
E91: AV6 | F91: AV - Adecuación Otras plataformas de sistemas | G91: AV
D93: Opex
E95: Código para el modelo | F95: Descripción | G95: Categoría
E96: TRA1 | F96: Enlaces alquilados | G96: TRA
E97: TRI1 | F97: MTC - Tasa Explotación | G97: TRI
E98: TRI2 | F98: FITEL | G98: TRI
E99: TRI3 | F99: OSIPTEL - Supervisión | G99: TRI
E100: TRI4 | F100: MTC+FITEL+OSIPTEL | G100: TRI
E101: ES1 | F101: CANON ESPECTRO RADIOLEC - MTC 2008 | G101: ES
E102: AV8 | F102: AV - Transmision | G102: AV
E103: CAC | F103: Costo adquisición clientes | G103: CAC

Sheet Geografía
C21: Departmentos
D23: Código del Departamento | E23: Departamento | F23: Código Área BSC | G23: Área BSC
D24: DE01 | E24: Amazonas | F24: BSC_13 | G24: =INDEX($E$54:$E$78,MATCH(F24,$D$54:$D$78,0)) -> La Libertad
D25: DE02 | E25: Ancash | F25: BSC_13 | G25: La Libertad
D26: DE03 | E26: Apurimac | F26: BSC_04 | G26: Arequipa
D27: DE04 | E27: Arequipa | F27: BSC_04 | G27: Arequipa
D28: DE05 | E28: Ayacucho | F28: BSC_15 | G28: Lima
D29: DE06 | E29: Cajamarca | F29: BSC_13 | G29: La Libertad
D30: DE07 | E30: Callao | F30: BSC_15 | G30: Lima
D31: DE08 | E31: Cusco | F31: BSC_04 | G31: Arequipa
D32: DE09 | E32: Huancavelica | F32: BSC_15 | G32: Lima
D33: DE10 | E33: Huanuco | F33: BSC_15 | G33: Lima
D34: DE11 | E34: Ica | F34: BSC_15 | G34: Lima
D35: DE12 | E35: Junin | F35: BSC_15 | G35: Lima
D36: DE13 | E36: La Libertad | F36: BSC_13 | G36: La Libertad
D37: DE14 | E37: Lambayeque | F37: BSC_13 | G37: La Libertad
D38: DE15 | E38: Lima | F38: BSC_15 | G38: Lima
D39: DE16 | E39: Loreto | F39: BSC_16 | G39: Loreto
D40: DE17 | E40: Madre de Dios | F40: BSC_15 | G40: Lima
D41: DE18 | E41: Moquegua | F41: BSC_04 | G41: Arequipa
D42: DE19 | E42: Pasco | F42: BSC_15 | G42: Lima
D43: DE20 | E43: Piura | F43: BSC_13 | G43: La Libertad
D44: DE21 | E44: Puno | F44: BSC_04 | G44: Arequipa
D45: DE22 | E45: San Martin | F45: BSC_13 | G45: La Libertad
D46: DE23 | E46: Tacna | F46: BSC_04 | G46: Arequipa
D47: DE24 | E47: Tumbes | F47: BSC_13 | G47: La Libertad
D48: DE25 | E48: Ucayali | F48: BSC_15 | G48: Lima
C51: Áreas BSC
D53: Código Área BSC | E53: Área BSC | F53: Código Área MSC | G53: Área MSC
D54: BSC_01 | E54: Amazonas | F54: MSC_01 | G54: =INDEX($E$84:$E$88,MATCH(F54,$D$84:$D$88,0)) -> Trujillo
D55: BSC_02 | E55: Ancash | F55: MSC_01 | G55: Trujillo
D56: BSC_03 | E56: Apurimac | F56: MSC_03 | G56: Arequipa
D57: BSC_04 | E57: Arequipa | F57: MSC_03 | G57: Arequipa
D58: BSC_05 | E58: Ayacucho | F58: MSC_02 | G58: Lima
D59: BSC_06 | E59: Cajamarca | F59: MSC_01 | G59: Trujillo
D60: BSC_07 | E60: Callao | F60: MSC_02 | G60: Lima
D61: BSC_08 | E61: Cusco | F61: MSC_03 | G61: Arequipa
D62: BSC_09 | E62: Huancavelica | F62: MSC_02 | G62: Lima
D63: BSC_10 | E63: Huanuco | F63: MSC_02 | G63: Lima
D64: BSC_11 | E64: Ica | F64: MSC_02 | G64: Lima
D65: BSC_12 | E65: Junin | F65: MSC_02 | G65: Lima
D66: BSC_13 | E66: La Libertad | F66: MSC_01 | G66: Trujillo
D67: BSC_14 | E67: Lambayeque | F67: MSC_01 | G67: Trujillo
D68: BSC_15 | E68: Lima | F68: MSC_02 | G68: Lima
D69: BSC_16 | E69: Loreto | F69: MSC_02 | G69: Lima
D70: BSC_17 | E70: Madre de Dios | F70: MSC_02 | G70: Lima
D71: BSC_18 | E71: Moquegua | F71: MSC_03 | G71: Arequipa
D72: BSC_19 | E72: Pasco | F72: MSC_02 | G72: Lima
D73: BSC_20 | E73: Piura | F73: MSC_01 | G73: Trujillo
D74: BSC_21 | E74: Puno | F74: MSC_03 | G74: Arequipa
D75: BSC_22 | E75: San Martin | F75: MSC_01 | G75: Trujillo
D76: BSC_23 | E76: Tacna | F76: MSC_03 | G76: Arequipa
D77: BSC_24 | E77: Tumbes | F77: MSC_01 | G77: Trujillo
D78: BSC_25 | E78: Ucayali | F78: MSC_02 | G78: Lima
C81: Áreas MSC
D83: Código Área MSC | E83: Área MSC | F83: Área BSC
D84: MSC_01 | E84: Trujillo | F84: La Libertad
D85: MSC_02 | E85: Lima | F85: Arequipa
D86: MSC_03 | E86: Arequipa | F86: Lima
D87: MSC_04 | E87: Iquitos | F87: Loreto
D88: MSC_05 | E88: Spare | F88: Spare

Sheet Costos Unitarios de Equipos
C31: Costo unitario torres
F33: Costo (US$)
F34: BTS1 | G34: BTS2 | H34: BTS3 | I34: BTS4 | J34: BTS5 | K34: BTS6 | L34: BTS7 | M34: BTS8 | N34: BTS9 | O34: BTS10 | P34: BTS11 | Q34: BTS12 | R34: Total
D35: Código para el modelo | E35: Configuración | F35: =INDEX('Categorías de Costos'!$F$26:$F$66,MATCH('Costos Unitarios de Equipos'!F34,'Categorías de Costos'!$E$26:$E$67,0)) -> BTS - Punto Cero | G35: =INDEX('Categorías de Costos'!$F$26:$F$66,MATCH('Costos Unitarios de Equipos'!G34,'Categorías de Costos'!$E$26:$E$67,0)) -> BTS - Diseño | H35: =INDEX('Categorías de Costos'!$F$26:$F$66,MATCH('Costos Unitarios de Equipos'!H34,'Categorías de Costos'!$E$26:$E$67,0)) -> BTS - Obra Civil | I35: =INDEX('Categorías de Costos'!$F$26:$F$66,MATCH('Costos Unitarios de Equipos'!I34,'Categorías de Costos'!$E$26:$E$67,0)) -> BTS - Torre | J35: =INDEX('Categorías de Costos'!$F$26:$F$66,MATCH('Costos Unitarios de Equipos'!J34,'Categorías de Costos'!$E$26:$E$67,0)) -> BTS - Acarreo | K35: =INDEX('Categorías de Costos'!$F$26:$F$66,MATCH('Costos Unitarios de Equipos'!K34,'Categorías de Costos'!$E$26:$E$67,0)) -> BTS - Acometida AC | L35: =INDEX('Categorías de Costos'!$F$26:$F$66,MATCH('Costos Unitarios de Equipos'!L34,'Categorías de Costos'!$E$26:$E$67,0)) -> BTS - UPS | M35: =INDEX('Categorías de Costos'!$F$26:$F$66,MATCH('Costos Unitarios de Equipos'!M34,'Categorías de Costos'!$E$26:$E$67,0)) -> BTS - Rectificadores | N35: =INDEX('Categorías de Costos'!$F$26:$F$66,MATCH('Costos Unitarios de Equipos'!N34,'Categorías de Costos'!$E$26:$E$67,0)) -> BTS - Baterías | O35: =INDEX('Categorías de Costos'!$F$26:$F$66,MATCH('Costos Unitarios de Equipos'!O34,'Categorías de Costos'!$E$26:$E$67,0)) -> BTS - Aire acondicionado | P35: =INDEX('Categorías de Costos'!$F$26:$F$66,MATCH('Costos Unitarios de Equipos'!P34,'Categorías de Costos'!$E$26:$E$67,0)) -> BTS - Grupo electrógeno | Q35: =INDEX('Categorías de Costos'!$F$26:$F$66,MATCH('Costos Unitarios de Equipos'!Q34,'Categorías de Costos'!$E$26:$E$67,0)) -> BTS - Seguridad
D36: ='Configuraciones de equipos'!D24 -> TO_A | E36: ='Configuraciones de equipos'!E24 -> Celda Urbana | F36: 6000 | G36: 3000 | H36: 27000 | I36: 30000 | J36: 0 | K36: 8500 | L36: 5000 | M36: 16920 | N36: 6950 | O36: 11250 | P36: 35000 | Q36: 1500 | R36: =SUM(F36:Q36) -> 151120
D37: ='Configuraciones de equipos'!D25 -> TO_B | E37: ='Configuraciones de equipos'!E25 -> Celda Rural | F37: 6000 | G37: 5000 | H37: 51000 | I37: 54000 | J37: 25000 | K37: 60000 | L37: 5000 | M37: 16920 | N37: 10100 | O37: 11250 | P37: 35000 | Q37: 1500 | R37: =SUM(F37:Q37) -> 280770
D38: ='Configuraciones de equipos'!D26 -> TO_R | E38: ='Configuraciones de equipos'!E26 -> Torre Repetidor Outdoor | R38: 88383.37004
C43: Costo unitario BTSs
F45: Costo (US$)
F46: BTS13 | G46: BTS14 | H46: BTS15 | I46: Total
D47: Código para el modelo | E47: Configuración | F47: =INDEX('Categorías de Costos'!$F$26:$F$66,MATCH('Costos Unitarios de Equipos'!F46,'Categorías de Costos'!$E$26:$E$67,0)) -> BTS - Equipos | G47: =INDEX('Categorías de Costos'!$F$26:$F$66,MATCH('Costos Unitarios de Equipos'!G46,'Categorías de Costos'!$E$26:$E$67,0)) -> BTS - Instalación | H47: =INDEX('Categorías de Costos'!$F$26:$F$66,MATCH('Costos Unitarios de Equipos'!H46,'Categorías de Costos'!$E$26:$E$67,0)) -> BTS - Planeación
D48: ='Configuraciones de equipos'!D31 -> BTS_A | E48: ='Configuraciones de equipos'!E31 -> GSM - 444 / 000 | F48: 27772.41269 | G48: 10000 | H48: =Planning*SUM(F48:G48) -> 3777.241269 | I48: =SUM(F48:H48) -> 41549.65396
D49: ='Configuraciones de equipos'!D32 -> BTS_B | E49: ='Configuraciones de equipos'!E32 -> GSM - 444 / 444 | F49: 66898.0341 | G49: 18000 | H49: =Planning*SUM(F49:G49) -> 8489.80341 | I49: =SUM(F49:H49) -> 93387.83751
D50: ='Configuraciones de equipos'!D33 -> BTS_C | E50: ='Configuraciones de equipos'!E33 -> GSM - 666 / 666 | F50: 96713.09157 | G50: 36000 | H50: =Planning*SUM(F50:G50) -> 13271.30916 | I50: =SUM(F50:H50) -> 145984.4007
D51: ='Configuraciones de equipos'!D34 -> BTS_D | E51: ='Configuraciones de equipos'!E34 -> GSM - 888 / 888 | F51: 115388.424 | G51: 36000 | H51: =Planning*SUM(F51:G51) -> 15138.8424 | I51: =SUM(F51:H51) -> 166527.2664
D52: ='Configuraciones de equipos'!D35 -> REP_A | E52: ='Configuraciones de equipos'!E35 -> Repetidor OutDoor | I52: 40736.85
D53: =+'Configuraciones de equipos'!D39 -> BTS_1B_1 | E53: =+'Configuraciones de equipos'!E39 -> 040404/000000 | F53: =+F48 -> 27772.41269 | G53: =+G48 -> 10000 | H53: =Planning*SUM(F53:G53) -> 3777.241269 | I53: =SUM(F53:H53) -> 41549.65396
D54: =+'Configuraciones de equipos'!D40 -> BTS_1B_2 | E54: =+'Configuraciones de equipos'!E40 -> 080808/000000 | F54: =+F53*2 -> 55544.82538 | G54: =+G53*2 -> 20000 | H54: 7554.482538 | I54: 83099.30792
D55: =+'Configuraciones de equipos'!D41 -> BTS_1B_3 | E55: =+'Configuraciones de equipos'!E41 -> 121212/000000 | F55: =+F53*3 -> 83317.23807 | G55: =+G53*3 -> 30000 | H55: 11331.72381 | I55: 124648.9619
D56: =+'Configuraciones de equipos'!D42 -> BTS_1B_4 | E56: =+'Configuraciones de equipos'!E42 -> 161616/000000 | F56: =+F53*4 -> 111089.6508 | G56: =+G53*4 -> 40000 | H56: 15108.96508 | I56: 166198.6158
D57: =+'Configuraciones de equipos'!D43 -> BTS_1B_5 | E57: =+'Configuraciones de equipos'!E43 -> 202020/000000 | F57: =+F53*5 -> 138862.0635 | G57: =+G53*5 -> 50000 | H57: 18886.20635 | I57: 207748.2698
D58: =+'Configuraciones de equipos'!D44 -> BTS_2B_1 | E58: =+'Configuraciones de equipos'!E44 -> 040404/040404 | F58: =+F49 -> 66898.0341 | G58: 18000 | H58: 8489.80341 | I58: 93387.83751
D59: =+'Configuraciones de equipos'!D45 -> BTS_2B_2 | E59: =+'Configuraciones de equipos'!E45 -> 060606/060606 | F59: 96713.09157 | G59: 36000 | H59: 13271.30916 | I59: 145984.4007
D60: =+'Configuraciones de equipos'!D46 -> BTS_2B_3 | E60: =+'Configuraciones de equipos'!E46 -> 080808/080808 | F60: 115388.424 | G60: 36000 | H60: 15138.8424 | I60: 166527.2664
D61: =+'Configuraciones de equipos'!D47 -> BTS_2B_4 | E61: =+'Configuraciones de equipos'!E47 -> 101010/101010 | F61: =+F58+F59 -> 163611.1257 | G61: =+G58+G59 -> 54000 | H61: 21761.11257 | I61: 239372.2382
D62: =+'Configuraciones de equipos'!D48 -> BTS_2B_5 | E62: =+'Configuraciones de equipos'!E48 -> 121212/121212 | F62: =+F59*2 -> 193426.1831 | G62: =+G59*2 -> 72000 | H62: 26542.61831 | I62: 291968.8015
D63: =+'Configuraciones de equipos'!D49 -> BTS_2B_6 | E63: =+'Configuraciones de equipos'!E49 -> 161616/161616 | F63: =+F60*2 -> 230776.848 | G63: =+G60*2 -> 72000 | H63: 30277.6848 | I63: 333054.5328
D64: =+'Configuraciones de equipos'!D50 -> BTS_2B_7 | E64: =+'Configuraciones de equipos'!E50 -> 202020/202020 | F64: =+F58*5 -> 334490.1705 | G64: =+G58*5 -> 90000 | H64: 42449.01705 | I64: 466939.1875
D65: =+'Configuraciones de equipos'!D51 -> BTS_2B_8 | E65: =+'Configuraciones de equipos'!E51 -> 242424/242424 | F65: =+F60*3 -> 346165.272 | G65: =+G60*3 -> 108000 | H65: 45416.5272 | I65: 499581.7991
C68: Costo unitario BSCs
F70: Costo (US$)
F71: BSC1 | G71: BSC2 | H71: BSC3 | I71: BSC4 | J71: Total
D72: Código para el modelo | E72: Configuración | F72: =INDEX('Categorías de Costos'!$F$26:$F$66,MATCH('Costos Unitarios de Equipos'!F71,'Categorías de Costos'!$E$26:$E$67,0)) -> BSC - Equipos | G72: =INDEX('Categorías de Costos'!$F$26:$F$66,MATCH('Costos Unitarios de Equipos'!G71,'Categorías de Costos'!$E$26:$E$67,0)) -> BSC - Software | H72: =INDEX('Categorías de Costos'!$F$26:$F$66,MATCH('Costos Unitarios de Equipos'!H71,'Categorías de Costos'!$E$26:$E$67,0)) -> BSC - Servicios | I72: =INDEX('Categorías de Costos'!$F$26:$F$66,MATCH('Costos Unitarios de Equipos'!I71,'Categorías de Costos'!$E$26:$E$67,0)) -> BSC - Planeación
D73: ='Configuraciones de equipos'!D58 -> BSC_A | E73: ='Configuraciones de equipos'!E58 -> BSC/TRC ERICSSON | F73: 1077235 | G73: 401249 | H73: 206000 | I73: =Planning*SUM(F73:H73) -> 168448.4 | J73: =SUM(F73:I73) -> 1852932.4
C76: Costo unitario Nodos B
F78: Costo (US$)
F79: BTS13 | G79: BTS14 | H79: BTS15 | I79: Total
D80: Código para el modelo | E80: Configuración | F80: =INDEX('Categorías de Costos'!$F$26:$F$66,MATCH('Costos Unitarios de Equipos'!F79,'Categorías de Costos'!$E$26:$E$67,0)) -> BTS - Equipos | G80: =INDEX('Categorías de Costos'!$F$26:$F$66,MATCH('Costos Unitarios de Equipos'!G79,'Categorías de Costos'!$E$26:$E$67,0)) -> BTS - Instalación | H80: =INDEX('Categorías de Costos'!$F$26:$F$66,MATCH('Costos Unitarios de Equipos'!H79,'Categorías de Costos'!$E$26:$E$67,0)) -> BTS - Planeación
D81: ='Configuraciones de equipos'!D64 -> NODOB_A | E81: ='Configuraciones de equipos'!E64 -> Adecuación de Nodo B 1+1+1 sobre BTS 2G existente | I81: 54448
C83: Costo unitario RNC's
F85: Costo (US$)
F86: BTS13 | G86: BTS14 | H86: BTS15 | I86: Total
D87: Código para el modelo | E87: Configuración | F87: =INDEX('Categorías de Costos'!$F$26:$F$66,MATCH('Costos Unitarios de Equipos'!F86,'Categorías de Costos'!$E$26:$E$67,0)) -> BTS - Equipos | G87: =INDEX('Categorías de Costos'!$F$26:$F$66,MATCH('Costos Unitarios de Equipos'!G86,'Categorías de Costos'!$E$26:$E$67,0)) -> BTS - Instalación | H87: =INDEX('Categorías de Costos'!$F$26:$F$66,MATCH('Costos Unitarios de Equipos'!H86,'Categorías de Costos'!$E$26:$E$67,0)) -> BTS - Planeación
D88: ='Configuraciones de equipos'!D69 -> RNC_A | E88: ='Configuraciones de equipos'!E69 -> RNC 3810 | I88: 641801.2
D89: ='Configuraciones de equipos'!D70 -> RNC_B | E89: ='Configuraciones de equipos'!E70 -> RNC 450 | I89: 427384.38
C91: Costo unitario Core 3G
F93: Costo (US$)
F94: BTS13 | G94: BTS14 | H94: BTS15 | I94: Total
D95: Código para el modelo | E95: Configuración | F95: =INDEX('Categorías de Costos'!$F$26:$F$66,MATCH('Costos Unitarios de Equipos'!F94,'Categorías de Costos'!$E$26:$E$67,0)) -> BTS - Equipos | G95: =INDEX('Categorías de Costos'!$F$26:$F$66,MATCH('Costos Unitarios de Equipos'!G94,'Categorías de Costos'!$E$26:$E$67,0)) -> BTS - Instalación | H95: =INDEX('Categorías de Costos'!$F$26:$F$66,MATCH('Costos Unitarios de Equipos'!H94,'Categorías de Costos'!$E$26:$E$67,0)) -> BTS - Planeación
D96: ='Configuraciones de equipos'!D75 -> CORE3G | E96: ='Configuraciones de equipos'!E75 -> Adecuaciones de red Core para red 3G | I96: 6707078
C98: Costo unitario MSCs
F100: Costo (US$)
F101: MSC1 | G101: MSC2 | H101: MSC3 | I101: MSC4 | J101: MSC5 | K101: Total
D102: Código para el modelo | E102: Configuración | F102: =INDEX('Categorías de Costos'!$F$26:$F$66,MATCH('Costos Unitarios de Equipos'!F101,'Categorías de Costos'!$E$26:$E$67,0)) -> MSC - Equipos | G102: =INDEX('Categorías de Costos'!$F$26:$F$66,MATCH('Costos Unitarios de Equipos'!G101,'Categorías de Costos'!$E$26:$E$67,0)) -> MSC - Software | H102: =INDEX('Categorías de Costos'!$F$26:$F$66,MATCH('Costos Unitarios de Equipos'!H101,'Categorías de Costos'!$E$26:$E$67,0)) -> MSC - Servicios | I102: =INDEX('Categorías de Costos'!$F$26:$F$66,MATCH('Costos Unitarios de Equipos'!I101,'Categorías de Costos'!$E$26:$E$67,0)) -> MSC - Misc | J102: =INDEX('Categorías de Costos'!$F$26:$F$66,MATCH('Costos Unitarios de Equipos'!J101,'Categorías de Costos'!$E$26:$E$67,0)) -> MSC - Planeación
D103: ='Configuraciones de equipos'!D81 -> MSC_A | E103: ='Configuraciones de equipos'!E81 -> MSS | F103: 1415000 | G103: 2500000 | H103: 435000 | I103: 30000 | J103: =Planning*SUM(F103:I103) -> 438000 | K103: =SUM(F103:J103) -> 4818000
C107: Costo unitario HLRs
F109: Cost (US$)
F110: HLR1 | G110: HLR2 | H110: HLR3 | I110: HLR4 | J110: HLR5 | K110: Total
D111: Código para el modelo | E111: Configuración | F111: =INDEX('Categorías de Costos'!$F$26:$F$66,MATCH('Costos Unitarios de Equipos'!F110,'Categorías de Costos'!$E$26:$E$67,0)) -> HLR - Equipos | G111: =INDEX('Categorías de Costos'!$F$26:$F$66,MATCH('Costos Unitarios de Equipos'!G110,'Categorías de Costos'!$E$26:$E$67,0)) -> HLR - Software | H111: =INDEX('Categorías de Costos'!$F$26:$F$66,MATCH('Costos Unitarios de Equipos'!H110,'Categorías de Costos'!$E$26:$E$67,0)) -> HLR - Servicios | I111: =INDEX('Categorías de Costos'!$F$26:$F$66,MATCH('Costos Unitarios de Equipos'!I110,'Categorías de Costos'!$E$26:$E$67,0)) -> HLR - Misc | J111: =INDEX('Categorías de Costos'!$F$26:$F$66,MATCH('Costos Unitarios de Equipos'!J110,'Categorías de Costos'!$E$26:$E$67,0)) -> HLR - Planeación
D112: ='Configuraciones de equipos'!D86 -> HLR_A | E112: ='Configuraciones de equipos'!E86 -> HLR | F112: 450000 | G112: 2940000 | H112: 320000 | I112: 30000 | J112: =Planning*SUM(F112:I112) -> 374000 | K112: =SUM(F112:J112) -> 4114000
C115: Costo unitario STPs
F117: Costo (US$)
F118: STP1 | G118: STP2 | H118: STP3 | I118: STP4 | J118: Total
D119: Código para el modelo | E119: Configuración | F119: =INDEX('Categorías de Costos'!$F$26:$F$66,MATCH('Costos Unitarios de Equipos'!F118,'Categorías de Costos'!$E$26:$E$67,0)) -> STP - Equipos | G119: =INDEX('Categorías de Costos'!$F$26:$F$66,MATCH('Costos Unitarios de Equipos'!G118,'Categorías de Costos'!$E$26:$E$67,0)) -> STP - Software | H119: =INDEX('Categorías de Costos'!$F$26:$F$66,MATCH('Costos Unitarios de Equipos'!H118,'Categorías de Costos'!$E$26:$E$67,0)) -> STP - Servicios | I119: =INDEX('Categorías de Costos'!$F$26:$F$66,MATCH('Costos Unitarios de Equipos'!I118,'Categorías de Costos'!$E$26:$E$67,0)) -> STP - Planeación
D120: ='Configuraciones de equipos'!D92 -> STP_A | E120: ='Configuraciones de equipos'!E92 -> STP | F120: 2927553 | G120: 2927553 | H120: 183193.8 | I120: =Planning*SUM(F120:H120) -> 603829.98 | J120: =SUM(F120:I120) -> 6642129.78
C123: Costo unitario edificios
F124: Costo (US$)
F125: ED1 | G125: ED2 | H125: ED3 | I125: ED4 | J125: ED5 | K125: ED6 | L125: ED7 | M125: ED8 | N125: ED9 | O125: ED10 | P125: ED11 | Q125: Total
D126: Código para el modelo | E126: Configuración | F126: =INDEX('Categorías de Costos'!$F$26:$F$74,MATCH('Costos Unitarios de Equipos'!F125,'Categorías de Costos'!$E$26:$E$74,0)) -> ED - Edificio | G126: =INDEX('Categorías de Costos'!$F$26:$F$74,MATCH('Costos Unitarios de Equipos'!G125,'Categorías de Costos'!$E$26:$E$74,0)) -> ED - Suministro de electricidad DC | H126: =INDEX('Categorías de Costos'!$F$26:$F$74,MATCH('Costos Unitarios de Equipos'!H125,'Categorías de Costos'!$E$26:$E$74,0)) -> ED - Suministro de electricidad AC | I126: =INDEX('Categorías de Costos'!$F$26:$F$74,MATCH('Costos Unitarios de Equipos'!I125,'Categorías de Costos'!$E$26:$E$74,0)) -> ED - Rectificadores | J126: =INDEX('Categorías de Costos'!$F$26:$F$74,MATCH('Costos Unitarios de Equipos'!J125,'Categorías de Costos'!$E$26:$E$74,0)) -> ED - Baterías | K126: =INDEX('Categorías de Costos'!$F$26:$F$74,MATCH('Costos Unitarios de Equipos'!K125,'Categorías de Costos'!$E$26:$E$74,0)) -> ED - UPS | L126: =INDEX('Categorías de Costos'!$F$26:$F$74,MATCH('Costos Unitarios de Equipos'!L125,'Categorías de Costos'!$E$26:$E$74,0)) -> ED - Inversor | M126: =INDEX('Categorías de Costos'!$F$26:$F$74,MATCH('Costos Unitarios de Equipos'!M125,'Categorías de Costos'!$E$26:$E$74,0)) -> ED - Grupo electrógeno | N126: =INDEX('Categorías de Costos'!$F$26:$F$74,MATCH('Costos Unitarios de Equipos'!N125,'Categorías de Costos'!$E$26:$E$74,0)) -> ED - Instalaciones | O126: =INDEX('Categorías de Costos'!$F$26:$F$74,MATCH('Costos Unitarios de Equipos'!O125,'Categorías de Costos'!$E$26:$E$74,0)) -> ED - Escalerillas | P126: =INDEX('Categorías de Costos'!$F$26:$F$74,MATCH('Costos Unitarios de Equipos'!P125,'Categorías de Costos'!$E$26:$E$74,0)) -> ED - Aire Acondicionado | Q126: Total
D127: ='Configuraciones de equipos'!D98 -> ED_A | E127: ='Configuraciones de equipos'!E98 -> SW_A | F127: 105000 | G127: 30000 | H127: 215000 | P127: 35000 | Q127: =SUM(F127:P127) -> 385000
D128: ='Configuraciones de equipos'!D99 -> ED_B | E128: ='Configuraciones de equipos'!E99 -> SW_N | F128: 320000 | I128: 105000 | J128: 119700 | K128: 125000 | L128: 71600 | M128: 150000 | N128: 60000 | O128: 10000 | P128: 132000 | Q128: =SUM(F128:P128) -> 1093300
D129: ='Configuraciones de equipos'!D100 -> ED_C | E129: ='Configuraciones de equipos'!E100 -> BSC_A | F129: 30000 | G129: 30000 | H129: 30000 | P129: 5000 | Q129: =SUM(F129:P129) -> 95000
C132: Costo unitario transmisión
D134: Código para el modelo | E134: Configuración | F134: OPEX anual por enlace (US$)
D135: ='Configuraciones de equipos'!D106 -> TR_A | E135: ='Configuraciones de equipos'!E106 -> Media ponderada de enlaces | F135: 0
C138: Costos de IT
D140: Código para el modelo | E140: Concepto costo | F140: CAPEX Software (US$) | G140: CAPEX Hardware (US$) | H140: CAPEX Total (US$)
D141: ='Categorías de Costos'!E75 -> IT1 | E141: ='Categorías de Costos'!F75 -> IT - Datawarehouse | F141: 0 | G141: 493485 | H141: =F141+G141 -> 493485
D142: ='Categorías de Costos'!E76 -> IT2 | E142: ='Categorías de Costos'!F76 -> IT - Recolectores | F142: 0 | G142: 240635.2157 | H142: =F142+G142 -> 240635.2157
C145: OSS
D147: Código para el modelo | E147: Concepto costo | F147: CAPEX (US$) | G147: CAPEX por emplazamiento (US$)
D148: ='Categorías de Costos'!E77 -> OSS1 | E148: ='Categorías de Costos'!F77 -> OSS - OSS 2G | F148: 3200000
D149: ='Categorías de Costos'!E78 -> OSS2 | E149: ='Categorías de Costos'!F78 -> OSS - Optimización de red 2G | G149: 5000
D150: ='Categorías de Costos'!E79 -> OSS3 | E150: ='Categorías de Costos'!F79 -> OSS - Aenor | G150: 5000
D151: ='Categorías de Costos'!E80 -> OSS4 | E151: ='Categorías de Costos'!F80 -> OSS - Release provincia | F151: 1907721
D152: ='Categorías de Costos'!E81 -> OSS5 | E152: ='Categorías de Costos'!F81 -> OSS - Release Lima | F152: 1133333
D153: ='Categorías de Costos'!E82 -> OSS6 | E153: ='Categorías de Costos'!F82 -> OSS - Planet | F153: 0
D154: ='Categorías de Costos'!E83 -> OSS7 | E154: ='Categorías de Costos'!F83 -> OSS - Optimi | F154: 400000
C157: Costos adecuación área virtual
D159: Código para el modelo | E159: Concepto costo | F159: CAPEX (US$)
D160: ='Categorías de Costos'!E86 -> AV1 | E160: ='Categorías de Costos'!F86 -> AV - Adecuación STP - Tekelec | F160: 0
D161: ='Categorías de Costos'!E87 -> AV2 | E161: ='Categorías de Costos'!F87 -> AV - Adecuación Core Nokia | F161: 0
D162: ='Categorías de Costos'!E88 -> AV3 | E162: ='Categorías de Costos'!F88 -> AV - Adecuación Otras plataformas de red | F162: 0
D163: ='Categorías de Costos'!E89 -> AV4 | E163: ='Categorías de Costos'!F89 -> AV - Adecuación Datawarehouse | F163: 0
D164: ='Categorías de Costos'!E90 -> AV5 | E164: ='Categorías de Costos'!F90 -> AV - Adecuación Hardware | F164: 0
D165: ='Categorías de Costos'!E91 -> AV6 | E165: ='Categorías de Costos'!F91 -> AV - Adecuación Otras plataformas de sistemas | F165: 0
F166: =SUM(F160:F165) -> 0
C168: Concesion de Espectro
D170: Código para el modelo | E170: Configuración | F170: Valor de Mercado del Espectro Radioeléctrico (US$)
D171: ='Categorías de Costos'!E84 -> CON1 | E171: ='Categorías de Costos'!F84 -> CON - Concesion de Espectro | F171: 489718500

Sheet ENLACES ALQUILADOS
H4: COSTO ANUAL US$ | I4: =+I5*12 -> 3000000
H5: COSTO MENSUAL US$ | I5: =SUM(I19:I268) -> 250000
C16: Operador | D16: Origen | E16: Destino | F16: Cantidad Equivalente | G16: Cantidad | H16: Velocidad | I16: Precio Total Final US$
A18: DPTO | B18: ITEM | C18: Operador | D18: Origen | E18: Destino | F18: CantEquiv | G18: Cantidad | H18: Velocidad | I18: PrecTotF | M18: DPTO | N18: NOMBRE | O18: NOMBRE | P18: TOTAL
A19: Amazonas | B19: 1 | C19: TM | D19: Amazonas | E19: Amazonas | F19: 1 | G19: 1 | H19: 2048 | I19: 1000 | M19: =+Geografía!D24 -> DE01 | N19: =+Geografía!E24 -> Amazonas | O19: Amazonas | P19: =SUMIF($A$19:$A$268,O19,$I$19:$I$268) -> 10000
A20: =+A19 -> Amazonas | B20: =+B19+1 -> 2 | C20: =+C19 -> TM | D20: Amazonas | E20: Amazonas | F20: 1 | G20: 1 | H20: 2048 | I20: 1000 | M20: =+Geografía!D25 -> DE02 | N20: =+Geografía!E25 -> Ancash | O20: Ancash | P20: =SUMIF($A$19:$A$268,O20,$I$19:$I$268) -> 10000
A21: =+A20 -> Amazonas | B21: =+B20+1 -> 3 | C21: =+C20 -> TM | D21: =+D20 -> Amazonas | E21: =+E20 -> Amazonas | F21: =+F20 -> 1 | G21: =+G20 -> 1 | H21: =+H20 -> 2048 | I21: =+I20 -> 1000 | M21: =+Geografía!D26 -> DE03 | N21: =+Geografía!E26 -> Apurimac | O21: Apurimac | P21: 10000
A22: Amazonas | B22: 4 | C22: TM | D22: Amazonas | E22: Amazonas | F22: 1 | G22: 1 | H22: 2048 | I22: 1000 | M22: =+Geografía!D27 -> DE04 | N22: =+Geografía!E27 -> Arequipa | O22: Arequipa | P22: 10000
A23: Amazonas | B23: 5 | C23: TM | D23: Amazonas | E23: Amazonas | F23: 1 | G23: 1 | H23: 2048 | I23: 1000 | M23: =+Geografía!D28 -> DE05 | N23: =+Geografía!E28 -> Ayacucho | O23: Ayacucho | P23: 10000
A24: Amazonas | B24: 6 | C24: TM | D24: Amazonas | E24: Amazonas | F24: 1 | G24: 1 | H24: 2048 | I24: 1000 | M24: =+Geografía!D29 -> DE06 | N24: =+Geografía!E29 -> Cajamarca | O24: Cajamarca | P24: 10000
A25: Amazonas | B25: 7 | C25: TM | D25: Amazonas | E25: Amazonas | F25: 1 | G25: 1 | H25: 2048 | I25: 1000 | M25: =+Geografía!D30 -> DE07 | N25: =+Geografía!E30 -> Callao | O25: Callao | P25: 10000
A26: =+A25 -> Amazonas | B26: =+B25+1 -> 8 | C26: =+C25 -> TM | D26: =+D25 -> Amazonas | E26: =+E25 -> Amazonas | F26: =+F25 -> 1 | G26: =+G25 -> 1 | H26: =+H25 -> 2048 | I26: =+I25 -> 1000 | M26: =+Geografía!D31 -> DE08 | N26: =+Geografía!E31 -> Cusco | O26: Cusco | P26: 10000
A27: Amazonas | B27: 9 | C27: TM | D27: Amazonas | E27: Amazonas | F27: 1 | G27: 1 | H27: 2048 | I27: 1000 | M27: =+Geografía!D32 -> DE09 | N27: =+Geografía!E32 -> Huancavelica | O27: Huancavelica | P27: 10000
A28: Amazonas | B28: 10 | C28: TM | D28: Amazonas | E28: Amazonas | F28: 1 | G28: 1 | H28: 2048 | I28: 1000 | M28: =+Geografía!D33 -> DE10 | N28: =+Geografía!E33 -> Huanuco | O28: Huanuco | P28: 10000
A29: Ancash | B29: 11 | C29: TM | D29: Ancash | E29: Ancash | F29: 1 | G29: 1 | H29: 2048 | I29: 1000 | M29: =+Geografía!D34 -> DE11 | N29: =+Geografía!E34 -> Ica | O29: Ica | P29: 10000
A30: =+A29 -> Ancash | B30: =+B29+1 -> 12 | C30: =+C29 -> TM | D30: =+D29 -> Ancash | E30: =+E29 -> Ancash | F30: =+F29 -> 1 | G30: =+G29 -> 1 | H30: =+H29 -> 2048 | I30: =+I29 -> 1000 | M30: =+Geografía!D35 -> DE12 | N30: =+Geografía!E35 -> Junin | O30: Junin | P30: 10000
A31: =+A30 -> Ancash | B31: =+B30+1 -> 13 | C31: TM | D31: Ancash | E31: Ancash | F31: 1 | G31: 1 | H31: 2048 | I31: 1000 | M31: =+Geografía!D36 -> DE13 | N31: =+Geografía!E36 -> La Libertad | O31: La Libertad | P31: 10000
A32: Ancash | B32: 14 | C32: TM | D32: Ancash | E32: Ancash | F32: 1 | G32: 1 | H32: 2048 | I32: 1000 | M32: =+Geografía!D37 -> DE14 | N32: =+Geografía!E37 -> Lambayeque | O32: Lambayeque | P32: 10000
A33: Ancash | B33: 15 | C33: TM | D33: Ancash | E33: Ancash | F33: 1 | G33: 1 | H33: 2048 | I33: 1000 | M33: =+Geografía!D38 -> DE15 | N33: =+Geografía!E38 -> Lima | O33: Lima | P33: 10000
A34: Ancash | B34: 16 | C34: TM | D34: Ancash | E34: Ancash | F34: 1 | G34: 1 | H34: 2048 | I34: 1000 | M34: =+Geografía!D39 -> DE16 | N34: =+Geografía!E39 -> Loreto | O34: Loreto | P34: 10000
A35: Ancash | B35: 17 | C35: TM | D35: Ancash | E35: Ancash | F35: 1 | G35: 1 | H35: 2048 | I35: 1000 | M35: =+Geografía!D40 -> DE17 | N35: =+Geografía!E40 -> Madre de Dios | O35: Madre de Dios | P35: 10000
A36: Ancash | B36: 18 | C36: TM | D36: Ancash | E36: Ancash | F36: 1 | G36: 1 | H36: 2048 | I36: 1000 | M36: =+Geografía!D41 -> DE18 | N36: =+Geografía!E41 -> Moquegua | O36: Moquegua | P36: 10000
A37: Ancash | B37: 19 | C37: TM | D37: Ancash | E37: Ancash | F37: 1 | G37: 1 | H37: 2048 | I37: 1000 | M37: =+Geografía!D42 -> DE19 | N37: =+Geografía!E42 -> Pasco | O37: Pasco | P37: 10000
A38: Ancash | B38: 20 | C38: TM | D38: Ancash | E38: Ancash | F38: 1 | G38: 1 | H38: 2048 | I38: 1000 | M38: =+Geografía!D43 -> DE20 | N38: =+Geografía!E43 -> Piura | O38: Piura | P38: 10000
A39: Apurimac | B39: 21 | C39: TM | D39: Apurimac | E39: Apurimac | F39: 1 | G39: 1 | H39: 2048 | I39: 1000 | M39: =+Geografía!D44 -> DE21 | N39: =+Geografía!E44 -> Puno | O39: Puno | P39: 10000
A40: =+A39 -> Apurimac | B40: =+B39+1 -> 22 | C40: =+C39 -> TM | D40: =+D39 -> Apurimac | E40: =+E39 -> Apurimac | F40: =+F39 -> 1 | G40: =+G39 -> 1 | H40: =+H39 -> 2048 | I40: =+I39 -> 1000 | M40: =+Geografía!D45 -> DE22 | N40: =+Geografía!E45 -> San Martin | O40: San Martin | P40: 10000
A41: =+A40 -> Apurimac | B41: =+B40+1 -> 23 | C41: TM | D41: Apurimac | E41: Apurimac | F41: 1 | G41: 1 | H41: 2048 | I41: 1000 | M41: =+Geografía!D46 -> DE23 | N41: =+Geografía!E46 -> Tacna | O41: Tacna | P41: 10000
A42: Apurimac | B42: 24 | C42: TM | D42: Apurimac | E42: Apurimac | F42: 1 | G42: 1 | H42: 2048 | I42: 1000 | M42: =+Geografía!D47 -> DE24 | N42: =+Geografía!E47 -> Tumbes | O42: Tumbes | P42: 10000
A43: Apurimac | B43: 25 | C43: TM | D43: Apurimac | E43: Apurimac | F43: 1 | G43: 1 | H43: 2048 | I43: 1000 | M43: =+Geografía!D48 -> DE25 | N43: =+Geografía!E48 -> Ucayali | O43: Ucayali | P43: 10000
A44: Apurimac | B44: 26 | C44: TM | D44: Apurimac | E44: Apurimac | F44: 1 | G44: 1 | H44: 2048 | I44: 1000 | P44: =SUM(P19:P43) -> 250000
A45: Apurimac | B45: 27 | C45: TM | D45: Apurimac | E45: Apurimac | F45: 1 | G45: 1 | H45: 2048 | I45: 1000
A46: Apurimac | B46: 28 | C46: TM | D46: Apurimac | E46: Apurimac | F46: 1 | G46: 1 | H46: 2048 | I46: 1000
A47: Apurimac | B47: 29 | C47: TM | D47: Apurimac | E47: Apurimac | F47: 1 | G47: 1 | H47: 2048 | I47: 1000
A48: Apurimac | B48: 30 | C48: TM | D48: Apurimac | E48: Apurimac | F48: 1 | G48: 1 | H48: 2048 | I48: 1000
A49: Arequipa | B49: 31 | C49: TM | D49: Arequipa | E49: Arequipa | F49: 1 | G49: 1 | H49: 2048 | I49: 1000
A50: =+A49 -> Arequipa | B50: =+B49+1 -> 32 | C50: =+C49 -> TM | D50: =+D49 -> Arequipa | E50: =+E49 -> Arequipa | F50: =+F49 -> 1 | G50: =+G49 -> 1 | H50: =+H49 -> 2048 | I50: =+I49 -> 1000
A51: =+A50 -> Arequipa | B51: =+B50+1 -> 33 | C51: TM | D51: Arequipa | E51: Arequipa | F51: 1 | G51: 1 | H51: 2048 | I51: 1000
A52: Arequipa | B52: 34 | C52: TM | D52: Arequipa | E52: Arequipa | F52: 1 | G52: 1 | H52: 2048 | I52: 1000
A53: Arequipa | B53: 35 | C53: TM | D53: Arequipa | E53: Arequipa | F53: 1 | G53: 1 | H53: 2048 | I53: 1000
A54: Arequipa | B54: 36 | C54: TM | D54: Arequipa | E54: Arequipa | F54: 1 | G54: 1 | H54: 2048 | I54: 1000
A55: Arequipa | B55: 37 | C55: TM | D55: Arequipa | E55: Arequipa | F55: 1 | G55: 1 | H55: 2048 | I55: 1000
A56: Arequipa | B56: 38 | C56: TM | D56: Arequipa | E56: Arequipa | F56: 1 | G56: 1 | H56: 2048 | I56: 1000
A57: Arequipa | B57: 39 | C57: TM | D57: Arequipa | E57: Arequipa | F57: 1 | G57: 1 | H57: 2048 | I57: 1000
A58: Arequipa | B58: 40 | C58: TM | D58: Arequipa | E58: Arequipa | F58: 1 | G58: 1 | H58: 2048 | I58: 1000
A59: Ayacucho | B59: 41 | C59: TM | D59: Ayacucho | E59: Ayacucho | F59: 1 | G59: 1 | H59: 2048 | I59: 1000
A60: =+A59 -> Ayacucho | B60: =+B59+1 -> 42 | C60: =+C59 -> TM | D60: =+D59 -> Ayacucho | E60: =+E59 -> Ayacucho | F60: =+F59 -> 1 | G60: =+G59 -> 1 | H60: =+H59 -> 2048 | I60: =+I59 -> 1000
A61: =+A60 -> Ayacucho | B61: =+B60+1 -> 43 | C61: TM | D61: Ayacucho | E61: Ayacucho | F61: 1 | G61: 1 | H61: 2048 | I61: 1000
A62: Ayacucho | B62: 44 | C62: TM | D62: Ayacucho | E62: Ayacucho | F62: 1 | G62: 1 | H62: 2048 | I62: 1000
A63: Ayacucho | B63: 45 | C63: TM | D63: Ayacucho | E63: Ayacucho | F63: 1 | G63: 1 | H63: 2048 | I63: 1000
A64: Ayacucho | B64: 46 | C64: TM | D64: Ayacucho | E64: Ayacucho | F64: 1 | G64: 1 | H64: 2048 | I64: 1000
A65: Ayacucho | B65: 47 | C65: TM | D65: Ayacucho | E65: Ayacucho | F65: 1 | G65: 1 | H65: 2048 | I65: 1000
A66: Ayacucho | B66: 48 | C66: TM | D66: Ayacucho | E66: Ayacucho | F66: 1 | G66: 1 | H66: 2048 | I66: 1000
A67: Ayacucho | B67: 49 | C67: TM | D67: Ayacucho | E67: Ayacucho | F67: 1 | G67: 1 | H67: 2048 | I67: 1000
A68: Ayacucho | B68: 50 | C68: TM | D68: Ayacucho | E68: Ayacucho | F68: 1 | G68: 1 | H68: 2048 | I68: 1000
A69: Cajamarca | B69: 51 | C69: TM | D69: Cajamarca | E69: Cajamarca | F69: 1 | G69: 1 | H69: 2048 | I69: 1000
A70: =+A69 -> Cajamarca | B70: =+B69+1 -> 52 | C70: =+C69 -> TM | D70: =+D69 -> Cajamarca | E70: =+E69 -> Cajamarca | F70: =+F69 -> 1 | G70: =+G69 -> 1 | H70: =+H69 -> 2048 | I70: =+I69 -> 1000
A71: =+A70 -> Cajamarca | B71: =+B70+1 -> 53 | C71: TM | D71: Cajamarca | E71: Cajamarca | F71: 1 | G71: 1 | H71: 2048 | I71: 1000
A72: Cajamarca | B72: 54 | C72: TM | D72: Cajamarca | E72: Cajamarca | F72: 1 | G72: 1 | H72: 2048 | I72: 1000
A73: Cajamarca | B73: 55 | C73: TM | D73: Cajamarca | E73: Cajamarca | F73: 1 | G73: 1 | H73: 2048 | I73: 1000
A74: Cajamarca | B74: 56 | C74: TM | D74: Cajamarca | E74: Cajamarca | F74: 1 | G74: 1 | H74: 2048 | I74: 1000
A75: Cajamarca | B75: 57 | C75: TM | D75: Cajamarca | E75: Cajamarca | F75: 1 | G75: 1 | H75: 2048 | I75: 1000
A76: Cajamarca | B76: 58 | C76: TM | D76: Cajamarca | E76: Cajamarca | F76: 1 | G76: 1 | H76: 2048 | I76: 1000
A77: Cajamarca | B77: 59 | C77: TM | D77: Cajamarca | E77: Cajamarca | F77: 1 | G77: 1 | H77: 2048 | I77: 1000
A78: Cajamarca | B78: 60 | C78: TM | D78: Cajamarca | E78: Cajamarca | F78: 1 | G78: 1 | H78: 2048 | I78: 1000
A79: Callao | B79: 61 | C79: TM | D79: Callao | E79: Callao | F79: 1 | G79: 1 | H79: 2048 | I79: 1000
A80: =+A79 -> Callao | B80: =+B79+1 -> 62 | C80: =+C79 -> TM | D80: =+D79 -> Callao | E80: =+E79 -> Callao | F80: =+F79 -> 1 | G80: =+G79 -> 1 | H80: =+H79 -> 2048 | I80: =+I79 -> 1000
A81: =+A80 -> Callao | B81: =+B80+1 -> 63 | C81: TM | D81: Callao | E81: Callao | F81: 1 | G81: 1 | H81: 2048 | I81: 1000
A82: Callao | B82: 64 | C82: TM | D82: Callao | E82: Callao | F82: 1 | G82: 1 | H82: 2048 | I82: 1000
A83: Callao | B83: 65 | C83: TM | D83: Callao | E83: Callao | F83: 1 | G83: 1 | H83: 2048 | I83: 1000
A84: Callao | B84: 66 | C84: TM | D84: Callao | E84: Callao | F84: 1 | G84: 1 | H84: 2048 | I84: 1000
A85: Callao | B85: 67 | C85: TM | D85: Callao | E85: Callao | F85: 1 | G85: 1 | H85: 2048 | I85: 1000
A86: Callao | B86: 68 | C86: TM | D86: Callao | E86: Callao | F86: 1 | G86: 1 | H86: 2048 | I86: 1000
A87: Callao | B87: 69 | C87: TM | D87: Callao | E87: Callao | F87: 1 | G87: 1 | H87: 2048 | I87: 1000
A88: Callao | B88: 70 | C88: TM | D88: Callao | E88: Callao | F88: 1 | G88: 1 | H88: 2048 | I88: 1000
A89: Cusco | B89: 71 | C89: TM | D89: Cusco | E89: Cusco | F89: 1 | G89: 1 | H89: 2048 | I89: 1000
A90: =+A89 -> Cusco | B90: =+B89+1 -> 72 | C90: =+C89 -> TM | D90: =+D89 -> Cusco | E90: =+E89 -> Cusco | F90: =+F89 -> 1 | G90: =+G89 -> 1 | H90: =+H89 -> 2048 | I90: =+I89 -> 1000
A91: =+A90 -> Cusco | B91: =+B90+1 -> 73 | C91: TM | D91: Cusco | E91: Cusco | F91: 1 | G91: 1 | H91: 2048 | I91: 1000
A92: Cusco | B92: 74 | C92: TM | D92: Cusco | E92: Cusco | F92: 1 | G92: 1 | H92: 2048 | I92: 1000
A93: Cusco | B93: 75 | C93: TM | D93: Cusco | E93: Cusco | F93: 1 | G93: 1 | H93: 2048 | I93: 1000
A94: Cusco | B94: 76 | C94: TM | D94: Cusco | E94: Cusco | F94: 1 | G94: 1 | H94: 2048 | I94: 1000
A95: Cusco | B95: 77 | C95: TM | D95: Cusco | E95: Cusco | F95: 1 | G95: 1 | H95: 2048 | I95: 1000
A96: Cusco | B96: 78 | C96: TM | D96: Cusco | E96: Cusco | F96: 1 | G96: 1 | H96: 2048 | I96: 1000
A97: Cusco | B97: 79 | C97: TM | D97: Cusco | E97: Cusco | F97: 1 | G97: 1 | H97: 2048 | I97: 1000
A98: Cusco | B98: 80 | C98: TM | D98: Cusco | E98: Cusco | F98: 1 | G98: 1 | H98: 2048 | I98: 1000
A99: Huancavelica | B99: 81 | C99: TM | D99: Huancavelica | E99: Huancavelica | F99: 1 | G99: 1 | H99: 2048 | I99: 1000
A100: =+A99 -> Huancavelica | B100: =+B99+1 -> 82 | C100: =+C99 -> TM | D100: =+D99 -> Huancavelica | E100: =+E99 -> Huancavelica | F100: =+F99 -> 1 | G100: =+G99 -> 1 | H100: =+H99 -> 2048 | I100: =+I99 -> 1000
A101: =+A100 -> Huancavelica | B101: =+B100+1 -> 83 | C101: TM | D101: Huancavelica | E101: Huancavelica | F101: 1 | G101: 1 | H101: 2048 | I101: 1000
A102: Huancavelica | B102: 84 | C102: TM | D102: Huancavelica | E102: Huancavelica | F102: 1 | G102: 1 | H102: 2048 | I102: 1000
A103: Huancavelica | B103: 85 | C103: TM | D103: Huancavelica | E103: Huancavelica | F103: 1 | G103: 1 | H103: 2048 | I103: 1000
A104: Huancavelica | B104: 86 | C104: TM | D104: Huancavelica | E104: Huancavelica | F104: 1 | G104: 1 | H104: 2048 | I104: 1000
A105: Huancavelica | B105: 87 | C105: TM | D105: Huancavelica | E105: Huancavelica | F105: 1 | G105: 1 | H105: 2048 | I105: 1000
A106: Huancavelica | B106: 88 | C106: TM | D106: Huancavelica | E106: Huancavelica | F106: 1 | G106: 1 | H106: 2048 | I106: 1000
A107: Huancavelica | B107: 89 | C107: TM | D107: Huancavelica | E107: Huancavelica | F107: 1 | G107: 1 | H107: 2048 | I107: 1000
A108: Huancavelica | B108: 90 | C108: TM | D108: Huancavelica | E108: Huancavelica | F108: 1 | G108: 1 | H108: 2048 | I108: 1000
A109: Huanuco | B109: 91 | C109: TM | D109: Huanuco | E109: Huanuco | F109: 1 | G109: 1 | H109: 2048 | I109: 1000
A110: =+A109 -> Huanuco | B110: =+B109+1 -> 92 | C110: =+C109 -> TM | D110: =+D109 -> Huanuco | E110: =+E109 -> Huanuco | F110: =+F109 -> 1 | G110: =+G109 -> 1 | H110: =+H109 -> 2048 | I110: =+I109 -> 1000
A111: =+A110 -> Huanuco | B111: =+B110+1 -> 93 | C111: TM | D111: Huanuco | E111: Huanuco | F111: 1 | G111: 1 | H111: 2048 | I111: 1000
A112: Huanuco | B112: 94 | C112: TM | D112: Huanuco | E112: Huanuco | F112: 1 | G112: 1 | H112: 2048 | I112: 1000
A113: Huanuco | B113: 95 | C113: TM | D113: Huanuco | E113: Huanuco | F113: 1 | G113: 1 | H113: 2048 | I113: 1000
A114: Huanuco | B114: 96 | C114: TM | D114: Huanuco | E114: Huanuco | F114: 1 | G114: 1 | H114: 2048 | I114: 1000
A115: Huanuco | B115: 97 | C115: TM | D115: Huanuco | E115: Huanuco | F115: 1 | G115: 1 | H115: 2048 | I115: 1000
A116: Huanuco | B116: 98 | C116: TM | D116: Huanuco | E116: Huanuco | F116: 1 | G116: 1 | H116: 2048 | I116: 1000
A117: Huanuco | B117: 99 | C117: TM | D117: Huanuco | E117: Huanuco | F117: 1 | G117: 1 | H117: 2048 | I117: 1000
A118: Huanuco | B118: 100 | C118: TM | D118: Huanuco | E118: Huanuco | F118: 1 | G118: 1 | H118: 2048 | I118: 1000
A119: Ica | B119: 101 | C119: TM | D119: Ica | E119: Ica | F119: 1 | G119: 1 | H119: 2048 | I119: 1000
A120: =+A119 -> Ica | B120: =+B119+1 -> 102 | C120: =+C119 -> TM | D120: =+D119 -> Ica | E120: =+E119 -> Ica | F120: =+F119 -> 1 | G120: =+G119 -> 1 | H120: =+H119 -> 2048 | I120: =+I119 -> 1000
A121: =+A120 -> Ica | B121: =+B120+1 -> 103 | C121: TM | D121: Ica | E121: Ica | F121: 1 | G121: 1 | H121: 2048 | I121: 1000
A122: Ica | B122: 104 | C122: TM | D122: Ica | E122: Ica | F122: 1 | G122: 1 | H122: 2048 | I122: 1000
A123: Ica | B123: 105 | C123: TM | D123: Ica | E123: Ica | F123: 1 | G123: 1 | H123: 2048 | I123: 1000
A124: Ica | B124: 106 | C124: TM | D124: Ica | E124: Ica | F124: 1 | G124: 1 | H124: 2048 | I124: 1000
A125: Ica | B125: 107 | C125: TM | D125: Ica | E125: Ica | F125: 1 | G125: 1 | H125: 2048 | I125: 1000
A126: Ica | B126: 108 | C126: TM | D126: Ica | E126: Ica | F126: 1 | G126: 1 | H126: 2048 | I126: 1000
A127: Ica | B127: 109 | C127: TM | D127: Ica | E127: Ica | F127: 1 | G127: 1 | H127: 2048 | I127: 1000
A128: Ica | B128: 110 | C128: TM | D128: Ica | E128: Ica | F128: 1 | G128: 1 | H128: 2048 | I128: 1000
A129: Junin | B129: 111 | C129: TM | D129: Junin | E129: Junin | F129: 1 | G129: 1 | H129: 2048 | I129: 1000
A130: =+A129 -> Junin | B130: =+B129+1 -> 112 | C130: =+C129 -> TM | D130: =+D129 -> Junin | E130: =+E129 -> Junin | F130: =+F129 -> 1 | G130: =+G129 -> 1 | H130: =+H129 -> 2048 | I130: =+I129 -> 1000
A131: =+A130 -> Junin | B131: =+B130+1 -> 113 | C131: TM | D131: Junin | E131: Junin | F131: 1 | G131: 1 | H131: 2048 | I131: 1000
A132: Junin | B132: 114 | C132: TM | D132: Junin | E132: Junin | F132: 1 | G132: 1 | H132: 2048 | I132: 1000
A133: Junin | B133: 115 | C133: TM | D133: Junin | E133: Junin | F133: 1 | G133: 1 | H133: 2048 | I133: 1000
A134: Junin | B134: 116 | C134: TM | D134: Junin | E134: Junin | F134: 1 | G134: 1 | H134: 2048 | I134: 1000
A135: Junin | B135: 117 | C135: TM | D135: Junin | E135: Junin | F135: 1 | G135: 1 | H135: 2048 | I135: 1000
A136: Junin | B136: 118 | C136: TM | D136: Junin | E136: Junin | F136: 1 | G136: 1 | H136: 2048 | I136: 1000
A137: Junin | B137: 119 | C137: TM | D137: Junin | E137: Junin | F137: 1 | G137: 1 | H137: 2048 | I137: 1000
A138: Junin | B138: 120 | C138: TM | D138: Junin | E138: Junin | F138: 1 | G138: 1 | H138: 2048 | I138: 1000
A139: La Libertad | B139: 121 | C139: TM | D139: La Libertad | E139: La Libertad | F139: 1 | G139: 1 | H139: 2048 | I139: 1000
A140: =+A139 -> La Libertad | B140: =+B139+1 -> 122 | C140: =+C139 -> TM | D140: =+D139 -> La Libertad | E140: =+E139 -> La Libertad | F140: =+F139 -> 1 | G140: =+G139 -> 1 | H140: =+H139 -> 2048 | I140: =+I139 -> 1000
A141: =+A140 -> La Libertad | B141: =+B140+1 -> 123 | C141: TM | D141: La Libertad | E141: La Libertad | F141: 1 | G141: 1 | H141: 2048 | I141: 1000
A142: La Libertad | B142: 124 | C142: TM | D142: La Libertad | E142: La Libertad | F142: 1 | G142: 1 | H142: 2048 | I142: 1000
A143: La Libertad | B143: 125 | C143: TM | D143: La Libertad | E143: La Libertad | F143: 1 | G143: 1 | H143: 2048 | I143: 1000
A144: La Libertad | B144: 126 | C144: TM | D144: La Libertad | E144: La Libertad | F144: 1 | G144: 1 | H144: 2048 | I144: 1000
A145: La Libertad | B145: 127 | C145: TM | D145: La Libertad | E145: La Libertad | F145: 1 | G145: 1 | H145: 2048 | I145: 1000
A146: La Libertad | B146: 128 | C146: TM | D146: La Libertad | E146: La Libertad | F146: 1 | G146: 1 | H146: 2048 | I146: 1000
A147: La Libertad | B147: 129 | C147: TM | D147: La Libertad | E147: La Libertad | F147: 1 | G147: 1 | H147: 2048 | I147: 1000
A148: La Libertad | B148: 130 | C148: TM | D148: La Libertad | E148: La Libertad | F148: 1 | G148: 1 | H148: 2048 | I148: 1000
A149: Lambayeque | B149: 131 | C149: TM | D149: Lambayeque | E149: Lambayeque | F149: 1 | G149: 1 | H149: 2048 | I149: 1000
A150: =+A149 -> Lambayeque | B150: =+B149+1 -> 132 | C150: =+C149 -> TM | D150: =+D149 -> Lambayeque | E150: =+E149 -> Lambayeque | F150: =+F149 -> 1 | G150: =+G149 -> 1 | H150: =+H149 -> 2048 | I150: =+I149 -> 1000
A151: =+A150 -> Lambayeque | B151: =+B150+1 -> 133 | C151: TM | D151: Lambayeque | E151: Lambayeque | F151: 1 | G151: 1 | H151: 2048 | I151: 1000
A152: Lambayeque | B152: 134 | C152: TM | D152: Lambayeque | E152: Lambayeque | F152: 1 | G152: 1 | H152: 2048 | I152: 1000
A153: Lambayeque | B153: 135 | C153: TM | D153: Lambayeque | E153: Lambayeque | F153: 1 | G153: 1 | H153: 2048 | I153: 1000
A154: Lambayeque | B154: 136 | C154: TM | D154: Lambayeque | E154: Lambayeque | F154: 1 | G154: 1 | H154: 2048 | I154: 1000
A155: Lambayeque | B155: 137 | C155: TM | D155: Lambayeque | E155: Lambayeque | F155: 1 | G155: 1 | H155: 2048 | I155: 1000
A156: Lambayeque | B156: 138 | C156: TM | D156: Lambayeque | E156: Lambayeque | F156: 1 | G156: 1 | H156: 2048 | I156: 1000
A157: Lambayeque | B157: 139 | C157: TM | D157: Lambayeque | E157: Lambayeque | F157: 1 | G157: 1 | H157: 2048 | I157: 1000
A158: Lambayeque | B158: 140 | C158: TM | D158: Lambayeque | E158: Lambayeque | F158: 1 | G158: 1 | H158: 2048 | I158: 1000
A159: Lima | B159: 141 | C159: TM | D159: Lima | E159: Lima | F159: 1 | G159: 1 | H159: 2048 | I159: 1000
A160: =+A159 -> Lima | B160: =+B159+1 -> 142 | C160: =+C159 -> TM | D160: =+D159 -> Lima | E160: =+E159 -> Lima | F160: =+F159 -> 1 | G160: =+G159 -> 1 | H160: =+H159 -> 2048 | I160: =+I159 -> 1000
A161: =+A160 -> Lima | B161: =+B160+1 -> 143 | C161: TM | D161: Lima | E161: Lima | F161: 1 | G161: 1 | H161: 2048 | I161: 1000
A162: Lima | B162: 144 | C162: TM | D162: Lima | E162: Lima | F162: 1 | G162: 1 | H162: 2048 | I162: 1000
A163: Lima | B163: 145 | C163: TM | D163: Lima | E163: Lima | F163: 1 | G163: 1 | H163: 2048 | I163: 1000
A164: Lima | B164: 146 | C164: TM | D164: Lima | E164: Lima | F164: 1 | G164: 1 | H164: 2048 | I164: 1000
A165: Lima | B165: 147 | C165: TM | D165: Lima | E165: Lima | F165: 1 | G165: 1 | H165: 2048 | I165: 1000
A166: Lima | B166: 148 | C166: TM | D166: Lima | E166: Lima | F166: 1 | G166: 1 | H166: 2048 | I166: 1000
A167: Lima | B167: 149 | C167: TM | D167: Lima | E167: Lima | F167: 1 | G167: 1 | H167: 2048 | I167: 1000
A168: Lima | B168: 150 | C168: TM | D168: Lima | E168: Lima | F168: 1 | G168: 1 | H168: 2048 | I168: 1000
A169: Loreto | B169: 151 | C169: TM | D169: Loreto | E169: Loreto | F169: 1 | G169: 1 | H169: 2048 | I169: 1000
A170: =+A169 -> Loreto | B170: =+B169+1 -> 152 | C170: =+C169 -> TM | D170: =+D169 -> Loreto | E170: =+E169 -> Loreto | F170: =+F169 -> 1 | G170: =+G169 -> 1 | H170: =+H169 -> 2048 | I170: =+I169 -> 1000
A171: =+A170 -> Loreto | B171: =+B170+1 -> 153 | C171: TM | D171: Loreto | E171: Loreto | F171: 1 | G171: 1 | H171: 2048 | I171: 1000
A172: Loreto | B172: 154 | C172: TM | D172: Loreto | E172: Loreto | F172: 1 | G172: 1 | H172: 2048 | I172: 1000
A173: Loreto | B173: 155 | C173: TM | D173: Loreto | E173: Loreto | F173: 1 | G173: 1 | H173: 2048 | I173: 1000
A174: Loreto | B174: 156 | C174: TM | D174: Loreto | E174: Loreto | F174: 1 | G174: 1 | H174: 2048 | I174: 1000
A175: Loreto | B175: 157 | C175: TM | D175: Loreto | E175: Loreto | F175: 1 | G175: 1 | H175: 2048 | I175: 1000
A176: Loreto | B176: 158 | C176: TM | D176: Loreto | E176: Loreto | F176: 1 | G176: 1 | H176: 2048 | I176: 1000
A177: Loreto | B177: 159 | C177: TM | D177: Loreto | E177: Loreto | F177: 1 | G177: 1 | H177: 2048 | I177: 1000
A178: Loreto | B178: 160 | C178: TM | D178: Loreto | E178: Loreto | F178: 1 | G178: 1 | H178: 2048 | I178: 1000
A179: Madre de Dios | B179: 161 | C179: TM | D179: Madre de Dios | E179: Madre de Dios | F179: 1 | G179: 1 | H179: 2048 | I179: 1000
A180: =+A179 -> Madre de Dios | B180: =+B179+1 -> 162 | C180: =+C179 -> TM | D180: =+D179 -> Madre de Dios | E180: =+E179 -> Madre de Dios | F180: =+F179 -> 1 | G180: =+G179 -> 1 | H180: =+H179 -> 2048 | I180: =+I179 -> 1000
A181: =+A180 -> Madre de Dios | B181: =+B180+1 -> 163 | C181: TM | D181: Madre de Dios | E181: Madre de Dios | F181: 1 | G181: 1 | H181: 2048 | I181: 1000
A182: Madre de Dios | B182: 164 | C182: TM | D182: Madre de Dios | E182: Madre de Dios | F182: 1 | G182: 1 | H182: 2048 | I182: 1000
A183: Madre de Dios | B183: 165 | C183: TM | D183: Madre de Dios | E183: Madre de Dios | F183: 1 | G183: 1 | H183: 2048 | I183: 1000
A184: Madre de Dios | B184: 166 | C184: TM | D184: Madre de Dios | E184: Madre de Dios | F184: 1 | G184: 1 | H184: 2048 | I184: 1000
A185: Madre de Dios | B185: 167 | C185: TM | D185: Madre de Dios | E185: Madre de Dios | F185: 1 | G185: 1 | H185: 2048 | I185: 1000
A186: Madre de Dios | B186: 168 | C186: TM | D186: Madre de Dios | E186: Madre de Dios | F186: 1 | G186: 1 | H186: 2048 | I186: 1000
A187: Madre de Dios | B187: 169 | C187: TM | D187: Madre de Dios | E187: Madre de Dios | F187: 1 | G187: 1 | H187: 2048 | I187: 1000
A188: Madre de Dios | B188: 170 | C188: TM | D188: Madre de Dios | E188: Madre de Dios | F188: 1 | G188: 1 | H188: 2048 | I188: 1000
A189: Moquegua | B189: 171 | C189: TM | D189: Moquegua | E189: Moquegua | F189: 1 | G189: 1 | H189: 2048 | I189: 1000
A190: =+A189 -> Moquegua | B190: =+B189+1 -> 172 | C190: =+C189 -> TM | D190: =+D189 -> Moquegua | E190: =+E189 -> Moquegua | F190: =+F189 -> 1 | G190: =+G189 -> 1 | H190: =+H189 -> 2048 | I190: =+I189 -> 1000
A191: =+A190 -> Moquegua | B191: =+B190+1 -> 173 | C191: TM | D191: Moquegua | E191: Moquegua | F191: 1 | G191: 1 | H191: 2048 | I191: 1000
A192: Moquegua | B192: 174 | C192: TM | D192: Moquegua | E192: Moquegua | F192: 1 | G192: 1 | H192: 2048 | I192: 1000
A193: Moquegua | B193: 175 | C193: TM | D193: Moquegua | E193: Moquegua | F193: 1 | G193: 1 | H193: 2048 | I193: 1000
A194: Moquegua | B194: 176 | C194: TM | D194: Moquegua | E194: Moquegua | F194: 1 | G194: 1 | H194: 2048 | I194: 1000
A195: Moquegua | B195: 177 | C195: TM | D195: Moquegua | E195: Moquegua | F195: 1 | G195: 1 | H195: 2048 | I195: 1000
A196: Moquegua | B196: 178 | C196: TM | D196: Moquegua | E196: Moquegua | F196: 1 | G196: 1 | H196: 2048 | I196: 1000
A197: Moquegua | B197: 179 | C197: TM | D197: Moquegua | E197: Moquegua | F197: 1 | G197: 1 | H197: 2048 | I197: 1000
A198: Moquegua | B198: 180 | C198: TM | D198: Moquegua | E198: Moquegua | F198: 1 | G198: 1 | H198: 2048 | I198: 1000
A199: Pasco | B199: 181 | C199: TM | D199: Pasco | E199: Pasco | F199: 1 | G199: 1 | H199: 2048 | I199: 1000
A200: =+A199 -> Pasco | B200: =+B199+1 -> 182 | C200: =+C199 -> TM | D200: =+D199 -> Pasco | E200: =+E199 -> Pasco | F200: =+F199 -> 1 | G200: =+G199 -> 1 | H200: =+H199 -> 2048 | I200: =+I199 -> 1000
A201: =+A200 -> Pasco | B201: =+B200+1 -> 183 | C201: TM | D201: Pasco | E201: Pasco | F201: 1 | G201: 1 | H201: 2048 | I201: 1000
A202: Pasco | B202: 184 | C202: TM | D202: Pasco | E202: Pasco | F202: 1 | G202: 1 | H202: 2048 | I202: 1000
A203: Pasco | B203: 185 | C203: TM | D203: Pasco | E203: Pasco | F203: 1 | G203: 1 | H203: 2048 | I203: 1000
A204: Pasco | B204: 186 | C204: TM | D204: Pasco | E204: Pasco | F204: 1 | G204: 1 | H204: 2048 | I204: 1000
A205: Pasco | B205: 187 | C205: TM | D205: Pasco | E205: Pasco | F205: 1 | G205: 1 | H205: 2048 | I205: 1000
A206: Pasco | B206: 188 | C206: TM | D206: Pasco | E206: Pasco | F206: 1 | G206: 1 | H206: 2048 | I206: 1000
A207: Pasco | B207: 189 | C207: TM | D207: Pasco | E207: Pasco | F207: 1 | G207: 1 | H207: 2048 | I207: 1000
A208: Pasco | B208: 190 | C208: TM | D208: Pasco | E208: Pasco | F208: 1 | G208: 1 | H208: 2048 | I208: 1000
A209: Piura | B209: 191 | C209: TM | D209: Piura | E209: Piura | F209: 1 | G209: 1 | H209: 2048 | I209: 1000
A210: =+A209 -> Piura | B210: =+B209+1 -> 192 | C210: =+C209 -> TM | D210: =+D209 -> Piura | E210: =+E209 -> Piura | F210: =+F209 -> 1 | G210: =+G209 -> 1 | H210: =+H209 -> 2048 | I210: =+I209 -> 1000
A211: =+A210 -> Piura | B211: =+B210+1 -> 193 | C211: TM | D211: Piura | E211: Piura | F211: 1 | G211: 1 | H211: 2048 | I211: 1000
A212: Piura | B212: 194 | C212: TM | D212: Piura | E212: Piura | F212: 1 | G212: 1 | H212: 2048 | I212: 1000
A213: Piura | B213: 195 | C213: TM | D213: Piura | E213: Piura | F213: 1 | G213: 1 | H213: 2048 | I213: 1000
A214: Piura | B214: 196 | C214: TM | D214: Piura | E214: Piura | F214: 1 | G214: 1 | H214: 2048 | I214: 1000
... 54 more rows

Sheet Inputs de Capex y Opex
C23: WACC
D25: WACC | E25: 0.1321
C28: Tipos de Cambio
D30: Euro / Dólar | E30: 1.468957945 | F30: cuTCED
D31: Sol / Dólar | E31: 2.924906555 | F31: cuTCSD
C33: Inputs de Capex
D36: Código del Activo | E36: Descripción | F36: Categoría | G36: Vida útil (años) | H36: Variación anual de precios | I36: Utiliza Depreciacion Tecnologica
D37: ='Categorías de Costos'!E26 -> BTS1 | E37: ='Categorías de Costos'!F26 -> BTS - Punto Cero | F37: ='Categorías de Costos'!G26 -> BTS | G37: 15 | H37: 0 | I37: NO
D38: ='Categorías de Costos'!E27 -> BTS2 | E38: ='Categorías de Costos'!F27 -> BTS - Diseño | F38: ='Categorías de Costos'!G27 -> BTS | G38: 15 | H38: 0 | I38: NO
D39: ='Categorías de Costos'!E28 -> BTS3 | E39: ='Categorías de Costos'!F28 -> BTS - Obra Civil | F39: ='Categorías de Costos'!G28 -> BTS | G39: 15 | H39: 0 | I39: NO
D40: ='Categorías de Costos'!E29 -> BTS4 | E40: ='Categorías de Costos'!F29 -> BTS - Torre | F40: ='Categorías de Costos'!G29 -> BTS | G40: 15 | H40: 0 | I40: NO
D41: ='Categorías de Costos'!E30 -> BTS5 | E41: ='Categorías de Costos'!F30 -> BTS - Acarreo | F41: ='Categorías de Costos'!G30 -> BTS | G41: 15 | H41: 0 | I41: NO
D42: ='Categorías de Costos'!E31 -> BTS6 | E42: ='Categorías de Costos'!F31 -> BTS - Acometida AC | F42: ='Categorías de Costos'!G31 -> BTS | G42: 5 | H42: 0 | I42: NO
D43: ='Categorías de Costos'!E32 -> BTS7 | E43: ='Categorías de Costos'!F32 -> BTS - UPS | F43: ='Categorías de Costos'!G32 -> BTS | G43: 5 | H43: 0 | I43: NO
D44: ='Categorías de Costos'!E33 -> BTS8 | E44: ='Categorías de Costos'!F33 -> BTS - Rectificadores | F44: ='Categorías de Costos'!G33 -> BTS | G44: 5 | H44: 0 | I44: NO
D45: ='Categorías de Costos'!E34 -> BTS9 | E45: ='Categorías de Costos'!F34 -> BTS - Baterías | F45: ='Categorías de Costos'!G34 -> BTS | G45: 5 | H45: 0 | I45: NO
D46: ='Categorías de Costos'!E35 -> BTS10 | E46: ='Categorías de Costos'!F35 -> BTS - Aire acondicionado | F46: ='Categorías de Costos'!G35 -> BTS | G46: 5 | H46: 0 | I46: NO
D47: ='Categorías de Costos'!E36 -> BTS11 | E47: ='Categorías de Costos'!F36 -> BTS - Grupo electrógeno | F47: ='Categorías de Costos'!G36 -> BTS | G47: 5 | H47: 0 | I47: NO
D48: ='Categorías de Costos'!E37 -> BTS12 | E48: ='Categorías de Costos'!F37 -> BTS - Seguridad | F48: ='Categorías de Costos'!G37 -> BTS | G48: 5 | H48: 0 | I48: NO
D49: ='Categorías de Costos'!E38 -> BTS13 | E49: ='Categorías de Costos'!F38 -> BTS - Equipos | F49: ='Categorías de Costos'!G38 -> BTS | G49: 5 | H49: 0 | I49: SI
D50: ='Categorías de Costos'!E39 -> BTS14 | E50: ='Categorías de Costos'!F39 -> BTS - Instalación | F50: ='Categorías de Costos'!G39 -> BTS | G50: 5 | H50: 0 | I50: SI
D51: ='Categorías de Costos'!E40 -> BTS15 | E51: ='Categorías de Costos'!F40 -> BTS - Planeación | F51: ='Categorías de Costos'!G40 -> BTS | G51: 5 | H51: 0 | I51: SI
D52: ='Categorías de Costos'!E41 -> REP1 | E52: ='Categorías de Costos'!F41 -> REP - Repetidor Outdoor | F52: ='Categorías de Costos'!G41 -> BTS | G52: 5 | H52: 0 | I52: SI
D53: ='Categorías de Costos'!E42 -> REP2 | E53: ='Categorías de Costos'!F42 -> REP - Torre para Repetidor Outdoor | F53: ='Categorías de Costos'!G42 -> BTS | G53: 15 | H53: 0 | I53: NO
D54: ='Categorías de Costos'!E43 -> NODOB1 | E54: ='Categorías de Costos'!F43 -> NODOB - Upgrade NodoB sobre BTS | F54: ='Categorías de Costos'!G43 -> BTS | G54: 5 | H54: 0 | I54: SI
D55: ='Categorías de Costos'!E44 -> BSC1 | E55: ='Categorías de Costos'!F44 -> BSC - Equipos | F55: ='Categorías de Costos'!G44 -> BSC | G55: 7 | H55: 0 | I55: SI
D56: ='Categorías de Costos'!E45 -> BSC2 | E56: ='Categorías de Costos'!F45 -> BSC - Software | F56: ='Categorías de Costos'!G45 -> BSC | G56: 5 | H56: 0 | I56: SI
D57: ='Categorías de Costos'!E46 -> BSC3 | E57: ='Categorías de Costos'!F46 -> BSC - Servicios | F57: ='Categorías de Costos'!G46 -> BSC | G57: 10 | H57: 0 | I57: SI
D58: ='Categorías de Costos'!E47 -> BSC4 | E58: ='Categorías de Costos'!F47 -> BSC - Planeación | F58: ='Categorías de Costos'!G47 -> BSC | G58: 7 | H58: 0 | I58: SI
D59: ='Categorías de Costos'!E48 -> RNC1 | E59: ='Categorías de Costos'!F48 -> RNC - Controlador Estacion Base 3G | F59: ='Categorías de Costos'!G48 -> BSC | G59: 7 | H59: 0 | I59: SI
D60: ='Categorías de Costos'!E49 -> MSC1 | E60: ='Categorías de Costos'!F49 -> MSC - Equipos | F60: ='Categorías de Costos'!G49 -> MSC | G60: 10 | H60: 0 | I60: SI
D61: ='Categorías de Costos'!E50 -> MSC2 | E61: ='Categorías de Costos'!F50 -> MSC - Software | F61: ='Categorías de Costos'!G50 -> MSC | G61: 5 | H61: 0 | I61: SI
D62: ='Categorías de Costos'!E51 -> MSC3 | E62: ='Categorías de Costos'!F51 -> MSC - Servicios | F62: ='Categorías de Costos'!G51 -> MSC | G62: 10 | H62: 0 | I62: SI
D63: ='Categorías de Costos'!E52 -> MSC4 | E63: ='Categorías de Costos'!F52 -> MSC - Misc | F63: ='Categorías de Costos'!G52 -> MSC | G63: 10 | H63: 0 | I63: SI
D64: ='Categorías de Costos'!E53 -> MSC5 | E64: ='Categorías de Costos'!F53 -> MSC - Planeación | F64: ='Categorías de Costos'!G53 -> MSC | G64: 10 | H64: 0 | I64: SI
D65: ='Categorías de Costos'!E54 -> CORE3G1 | E65: ='Categorías de Costos'!F54 -> CORE3G - Adecuaciones de red Core 3G | F65: ='Categorías de Costos'!G54 -> MSC | G65: 10 | H65: 0 | I65: SI
D66: ='Categorías de Costos'!E55 -> HLR1 | E66: ='Categorías de Costos'!F55 -> HLR - Equipos | F66: ='Categorías de Costos'!G55 -> HLR | G66: 10 | H66: 0 | I66: SI
D67: ='Categorías de Costos'!E56 -> HLR2 | E67: ='Categorías de Costos'!F56 -> HLR - Software | F67: ='Categorías de Costos'!G56 -> HLR | G67: 5 | H67: 0 | I67: SI
D68: ='Categorías de Costos'!E57 -> HLR3 | E68: ='Categorías de Costos'!F57 -> HLR - Servicios | F68: ='Categorías de Costos'!G57 -> HLR | G68: 10 | H68: 0 | I68: SI
D69: ='Categorías de Costos'!E58 -> HLR4 | E69: ='Categorías de Costos'!F58 -> HLR - Misc | F69: ='Categorías de Costos'!G58 -> HLR | G69: 10 | H69: 0 | I69: SI
D70: ='Categorías de Costos'!E59 -> HLR5 | E70: ='Categorías de Costos'!F59 -> HLR - Planeación | F70: ='Categorías de Costos'!G59 -> HLR | G70: 10 | H70: 0 | I70: SI
D71: ='Categorías de Costos'!E60 -> STP1 | E71: ='Categorías de Costos'!F60 -> STP - Equipos | F71: ='Categorías de Costos'!G60 -> STP | G71: 10 | H71: 0 | I71: SI
D72: ='Categorías de Costos'!E61 -> STP2 | E72: ='Categorías de Costos'!F61 -> STP - Software | F72: ='Categorías de Costos'!G61 -> STP | G72: 5 | H72: 0 | I72: SI
D73: ='Categorías de Costos'!E62 -> STP3 | E73: ='Categorías de Costos'!F62 -> STP - Servicios | F73: ='Categorías de Costos'!G62 -> STP | G73: 10 | H73: 0 | I73: SI
D74: ='Categorías de Costos'!E63 -> STP4 | E74: ='Categorías de Costos'!F63 -> STP - Planeación | F74: ='Categorías de Costos'!G63 -> STP | G74: 10 | H74: 0 | I74: SI
D75: ='Categorías de Costos'!E64 -> ED1 | E75: ='Categorías de Costos'!F64 -> ED - Edificio | F75: ='Categorías de Costos'!G64 -> ED | G75: 20 | H75: 0 | I75: NO
D76: ='Categorías de Costos'!E65 -> ED2 | E76: ='Categorías de Costos'!F65 -> ED - Suministro de electricidad DC | F76: ='Categorías de Costos'!G65 -> ED | G76: 10 | H76: 0 | I76: NO
D77: ='Categorías de Costos'!E66 -> ED3 | E77: ='Categorías de Costos'!F66 -> ED - Suministro de electricidad AC | F77: ='Categorías de Costos'!G66 -> ED | G77: 10 | H77: 0 | I77: NO
D78: ='Categorías de Costos'!E67 -> ED4 | E78: ='Categorías de Costos'!F67 -> ED - Rectificadores | F78: ='Categorías de Costos'!G67 -> ED | G78: 10 | H78: 0 | I78: NO
D79: ='Categorías de Costos'!E68 -> ED5 | E79: ='Categorías de Costos'!F68 -> ED - Baterías | F79: ='Categorías de Costos'!G68 -> ED | G79: 10 | H79: 0 | I79: NO
D80: ='Categorías de Costos'!E69 -> ED6 | E80: ='Categorías de Costos'!F69 -> ED - UPS | F80: ='Categorías de Costos'!G69 -> ED | G80: 10 | H80: 0 | I80: NO
D81: ='Categorías de Costos'!E70 -> ED7 | E81: ='Categorías de Costos'!F70 -> ED - Inversor | F81: ='Categorías de Costos'!G70 -> ED | G81: 10 | H81: 0 | I81: NO
D82: ='Categorías de Costos'!E71 -> ED8 | E82: ='Categorías de Costos'!F71 -> ED - Grupo electrógeno | F82: ='Categorías de Costos'!G71 -> ED | G82: 10 | H82: 0 | I82: NO
D83: ='Categorías de Costos'!E72 -> ED9 | E83: ='Categorías de Costos'!F72 -> ED - Instalaciones | F83: ='Categorías de Costos'!G72 -> ED | G83: 10 | H83: 0 | I83: NO
D84: ='Categorías de Costos'!E73 -> ED10 | E84: ='Categorías de Costos'!F73 -> ED - Escalerillas | F84: ='Categorías de Costos'!G73 -> ED | G84: 10 | H84: 0 | I84: NO
D85: ='Categorías de Costos'!E74 -> ED11 | E85: ='Categorías de Costos'!F74 -> ED - Aire Acondicionado | F85: ='Categorías de Costos'!G74 -> ED | G85: 10 | H85: 0 | I85: NO
D86: ='Categorías de Costos'!E75 -> IT1 | E86: ='Categorías de Costos'!F75 -> IT - Datawarehouse | F86: ='Categorías de Costos'!G75 -> IT | G86: 5 | H86: 0 | I86: SI
D87: ='Categorías de Costos'!E76 -> IT2 | E87: ='Categorías de Costos'!F76 -> IT - Recolectores | F87: ='Categorías de Costos'!G76 -> IT | G87: 5 | H87: 0 | I87: SI
D88: ='Categorías de Costos'!E77 -> OSS1 | E88: ='Categorías de Costos'!F77 -> OSS - OSS 2G | F88: ='Categorías de Costos'!G77 -> OSS | G88: 5 | H88: 0 | I88: SI
D89: ='Categorías de Costos'!E78 -> OSS2 | E89: ='Categorías de Costos'!F78 -> OSS - Optimización de red 2G | F89: ='Categorías de Costos'!G78 -> OSS | G89: 5 | H89: 0 | I89: SI
D90: ='Categorías de Costos'!E79 -> OSS3 | E90: ='Categorías de Costos'!F79 -> OSS - Aenor | F90: ='Categorías de Costos'!G79 -> OSS | G90: 5 | H90: 0 | I90: SI
D91: ='Categorías de Costos'!E80 -> OSS4 | E91: ='Categorías de Costos'!F80 -> OSS - Release provincia | F91: ='Categorías de Costos'!G80 -> OSS | G91: 5 | H91: 0 | I91: SI
D92: ='Categorías de Costos'!E81 -> OSS5 | E92: ='Categorías de Costos'!F81 -> OSS - Release Lima | F92: ='Categorías de Costos'!G81 -> OSS | G92: 5 | H92: 0 | I92: SI
D93: ='Categorías de Costos'!E82 -> OSS6 | E93: ='Categorías de Costos'!F82 -> OSS - Planet | F93: ='Categorías de Costos'!G82 -> OSS | G93: 5 | H93: 0 | I93: SI
D94: ='Categorías de Costos'!E83 -> OSS7 | E94: ='Categorías de Costos'!F83 -> OSS - Optimi | F94: ='Categorías de Costos'!G83 -> OSS | G94: 5 | H94: 0 | I94: SI
D95: ='Categorías de Costos'!E84 -> CON1 | E95: ='Categorías de Costos'!F84 -> CON - Concesion de Espectro | F95: ='Categorías de Costos'!G84 -> CON | G95: 20 | H95: 0 | I95: NO
D96: ='Categorías de Costos'!E85 -> AV7 | E96: ='Categorías de Costos'!F85 -> AV - Adecuacion | F96: ='Categorías de Costos'!G85 -> AV | G96: 10 | H96: 0 | I96: NO
D97: ='Categorías de Costos'!E86 -> AV1 | E97: ='Categorías de Costos'!F86 -> AV - Adecuación STP - Tekelec | F97: ='Categorías de Costos'!G86 -> AV | G97: 10 | H97: 0 | I97: NO
D98: ='Categorías de Costos'!E87 -> AV2 | E98: ='Categorías de Costos'!F87 -> AV - Adecuación Core Nokia | F98: ='Categorías de Costos'!G87 -> AV | G98: 10 | H98: 0 | I98: NO
D99: ='Categorías de Costos'!E88 -> AV3 | E99: ='Categorías de Costos'!F88 -> AV - Adecuación Otras plataformas de red | F99: ='Categorías de Costos'!G88 -> AV | G99: 5 | H99: 0 | I99: NO
D100: ='Categorías de Costos'!E89 -> AV4 | E100: ='Categorías de Costos'!F89 -> AV - Adecuación Datawarehouse | F100: ='Categorías de Costos'!G89 -> AV | G100: 5 | H100: 0 | I100: NO
D101: ='Categorías de Costos'!E90 -> AV5 | E101: ='Categorías de Costos'!F90 -> AV - Adecuación Hardware | F101: ='Categorías de Costos'!G90 -> AV | G101: 5 | H101: 0 | I101: NO
D102: ='Categorías de Costos'!E91 -> AV6 | E102: ='Categorías de Costos'!F91 -> AV - Adecuación Otras plataformas de sistemas | F102: ='Categorías de Costos'!G91 -> AV | G102: 5 | H102: 0 | I102: NO
C105: Inputs de Opex
D107: Código OPEX | E107: Descripción | F107: Categoría | G107: Costo anual (miles US$) | H107: % de ingresos | I107: Costo por cliente nuevo (US$)
D108: ='Categorías de Costos'!E97 -> TRI1 | E108: ='Categorías de Costos'!F97 -> MTC - Tasa Explotación | F108: ='Categorías de Costos'!G97 -> TRI | H108: 0.005
D109: ='Categorías de Costos'!E98 -> TRI2 | E109: ='Categorías de Costos'!F98 -> FITEL | F109: ='Categorías de Costos'!G98 -> TRI | H109: 0.01
D110: ='Categorías de Costos'!E99 -> TRI3 | E110: ='Categorías de Costos'!F99 -> OSIPTEL - Supervisión | F110: ='Categorías de Costos'!G99 -> TRI | H110: 0.005
D111: ='Categorías de Costos'!E100 -> TRI4 | E111: ='Categorías de Costos'!F100 -> MTC+FITEL+OSIPTEL | F111: ='Categorías de Costos'!G100 -> TRI | G111: 16299.78097
D112: ='Categorías de Costos'!E101 -> ES1 | E112: ='Categorías de Costos'!F101 -> CANON ESPECTRO RADIOLEC - MTC 2008 | F112: ='Categorías de Costos'!G101 -> ES | G112: 10092.17328
D113: ='Categorías de Costos'!E103 -> CAC | E113: ='Categorías de Costos'!F103 -> Costo adquisición clientes | F113: ='Categorías de Costos'!G103 -> CAC | I113: 0
C116: Mark ups
E118: %
D119: Planificación de red | E119: 0.1
D120: O&M de red | E120: 0.15
D121: Overheads | E121: 0.1
D122: Concesion | E122: 0
D123: Porcentaje asignacion red 3G a voz | E123: 0.8 | F123: mk_p3Gv

Sheet Inputs de Tráfico
C21: Cuota de mercado operador
D25: Cuota de mercado | E25: 1
C28: Input de tráfico
D30: Código para el modelo | E30: Servicio | F30: Unidades | G30: 2007 | H30: 2008
D31: =Servicios!D24 -> VOZ01 | E31: =Servicios!F24 -> Tráfico Entrante LDI | F31: =Servicios!E24&" (thousands)" -> min (thousands) | G31: 0 | H31: 87277.03145
D32: =Servicios!D25 -> VOZ02 | E32: =Servicios!F25 -> Tráfico Entrante LDN | F32: =Servicios!E25&" (thousands)" -> min (thousands) | G32: 0 | H32: 174638.9777
D33: =Servicios!D26 -> VOZ03 | E33: =Servicios!F26 -> Tráfico Entrante Local | F33: =Servicios!E26&" (thousands)" -> min (thousands) | G33: 0 | H33: 839802.8858
D34: =Servicios!D27 -> VOZ04 | E34: =Servicios!F27 -> Tráfico Originado LDI | F34: =Servicios!E27&" (thousands)" -> min (thousands) | G34: 0 | H34: 58162.02515
D35: =Servicios!D28 -> VOZ05 | E35: =Servicios!F28 -> Tráfico Originado LDN | F35: =Servicios!E28&" (thousands)" -> min (thousands) | G35: 0 | H35: 176538.7323
D36: =Servicios!D29 -> VOZ06 | E36: =Servicios!F29 -> Tráfico Originado Local | F36: =Servicios!E29&" (thousands)" -> min (thousands) | G36: 0 | H36: 1009907.083
D37: =Servicios!D30 -> VOZ07 | E37: =Servicios!F30 -> Tráfico OnNet Local | F37: =Servicios!E30&" (thousands)" -> min (thousands) | G37: 0 | H37: 6287410.403
D38: =Servicios!D31 -> VOZ08 | E38: =Servicios!F31 -> Tráfico OnNet LDN | F38: =Servicios!E31&" (thousands)" -> min (thousands) | G38: 0 | H38: 1413668.79
E39: Total | G39: =SUM(G31:G38) -> 0 | H39: =SUM(H31:H38) -> 10047405.93
D40: Fuente: Osiptel
C44: Líneas en servicio
E46: 2007 | F46: 2008
D47: Líneas móviles en servicio | E47: 9436371 | F47: 13114150
D48: Fuente: Osiptel
C52: Factores de enrutamiento
D54: Código de Servicio | E54: Servicio | F54: BSS | G54: NSS
D55: =Servicios!D24 -> VOZ01 | E55: =Servicios!F24 -> Tráfico Entrante LDI | F55: 1 | G55: 1
D56: =Servicios!D25 -> VOZ02 | E56: =Servicios!F25 -> Tráfico Entrante LDN | F56: 1 | G56: 1
D57: =Servicios!D26 -> VOZ03 | E57: =Servicios!F26 -> Tráfico Entrante Local | F57: 1 | G57: 1
D58: =Servicios!D27 -> VOZ04 | E58: =Servicios!F27 -> Tráfico Originado LDI | F58: 1 | G58: 1
D59: =Servicios!D28 -> VOZ05 | E59: =Servicios!F28 -> Tráfico Originado LDN | F59: 1 | G59: 1
D60: =Servicios!D29 -> VOZ06 | E60: =Servicios!F29 -> Tráfico Originado Local | F60: 1 | G60: 1
D61: =Servicios!D30 -> VOZ07 | E61: =Servicios!F30 -> Tráfico OnNet Local | F61: 1 | G61: 1
D62: =Servicios!D31 -> VOZ08 | E62: =Servicios!F31 -> Tráfico OnNet LDN | F62: 1 | G62: 1

Sheet Poblacion y superficie
C21: Población y superficie por provincia
C23: CODPROV | D23: Código para el modelo | E23: Departamento | F23: Provincia | G23: Superficie (Kilómetros cuadrados) | H23: Densidad poblacional (Habitantes por kilómetro cuadrado) | I23: Poblacion | J23: Incluido? (Capital de Departmento)
C24: 0101 | D24: DE01 | E24: Amazonas | F24: Chachapoyas | G24: 3312.37 | H24: 17.24 | I24: =G24*H24 -> 57105.2588 | J24: Si
C25: 0102 | D25: DE01 | E25: Amazonas | F25: Bagua | G25: 5745.72 | H25: 18.21 | I25: 104629.5612
C26: 0103 | D26: DE01 | E26: Amazonas | F26: Bongará | G26: 2869.65 | H26: 9.84 | I26: 28237.356
C27: 0104 | D27: DE01 | E27: Amazonas | F27: Condorcanqui | G27: 17865.39 | H27: 2.49 | I27: 44484.8211
C28: 0105 | D28: DE01 | E28: Amazonas | F28: Luya | G28: 3236.68 | H28: 17.32 | I28: 56059.2976
C29: 0106 | D29: DE01 | E29: Amazonas | F29: Rodríguez de Mendoza | G29: 2359.39 | H29: 10.9 | I29: 25717.351
C30: 0107 | D30: DE01 | E30: Amazonas | F30: Utcubamba | G30: 3859.93 | H30: 36.74 | I30: 141813.8282
C31: 0201 | D31: DE02 | E31: Ancash | F31: Huaraz | G31: 2492.91 | H31: 61.98 | I31: 154510.5618 | J31: Si
C32: 0202 | D32: DE02 | E32: Ancash | F32: Aija | G32: 696.72 | H32: 13.67 | I32: 9524.1624
C33: 0203 | D33: DE02 | E33: Ancash | F33: Antonio Raimondi | G33: 561.61 | H33: 38.39 | I33: 21560.2079
C34: 0204 | D34: DE02 | E34: Ancash | F34: Asunción | G34: 528.66 | H34: 21.39 | I34: 11308.0374
C35: 0205 | D35: DE02 | E35: Ancash | F35: Bolognesi | G35: 3154.8 | H35: 9.61 | I35: 30317.628
C36: 0206 | D36: DE02 | E36: Ancash | F36: Carhuaz | G36: 803.95 | H36: 61.06 | I36: 49089.187
C37: 0207 | D37: DE02 | E37: Ancash | F37: Carlos Fermín Fitzcarrald | G37: 624.25 | H37: 37.29 | I37: 23278.2825
C38: 0208 | D38: DE02 | E38: Ancash | F38: Casma | G38: 2261.03 | H38: 19.8 | I38: 44768.394
C39: 0209 | D39: DE02 | E39: Ancash | F39: Corongo | G39: 988.01 | H39: 10.16 | I39: 10038.1816
C40: 0210 | D40: DE02 | E40: Ancash | F40: Huari | G40: 2771.9 | H40: 25.75 | I40: 71376.425
C41: 0211 | D41: DE02 | E41: Ancash | F41: Huarmey | G41: 3908.42 | H41: 7.27 | I41: 28414.2134
C42: 0212 | D42: DE02 | E42: Ancash | F42: Huaylas | G42: 2292.78 | H42: 29.45 | I42: 67522.371
C43: 0213 | D43: DE02 | E43: Ancash | F43: Mariscal Luzuriaga | G43: 730.58 | H43: 40.3 | I43: 29442.374
C44: 0214 | D44: DE02 | E44: Ancash | F44: Ocros | G44: 1945.07 | H44: 3.88 | I44: 7546.8716
C45: 0215 | D45: DE02 | E45: Ancash | F45: Pallasca | G45: 2101.21 | H45: 15.62 | I45: 32820.9002
C46: 0216 | D46: DE02 | E46: Ancash | F46: Pomabamba | G46: 914.05 | H46: 31.75 | I46: 29021.0875
C47: 0217 | D47: DE02 | E47: Ancash | F47: Recuay | G47: 2304.19 | H47: 9 | I47: 20737.71
C48: 0218 | D48: DE02 | E48: Ancash | F48: Santa | G48: 4004.99 | H48: 106.76 | I48: 427572.7324
C49: 0219 | D49: DE02 | E49: Ancash | F49: Sihuas | G49: 1455.97 | H49: 25.92 | I49: 37738.7424
C50: 0220 | D50: DE02 | E50: Ancash | F50: Yungay | G50: 1361.48 | H50: 46.37 | I50: 63131.8276
C51: 0301 | D51: DE03 | E51: Apurimac | F51: Abancay | G51: 3447.13 | H51: 38.37 | I51: 132266.3781 | J51: Si
C52: 0302 | D52: DE03 | E52: Apurimac | F52: Andahuaylas | G52: 3987 | H52: 40.75 | I52: 162470.25
C53: 0303 | D53: DE03 | E53: Apurimac | F53: Antabamba | G53: 3219.01 | H53: 4.62 | I53: 14871.8262
C54: 0304 | D54: DE03 | E54: Apurimac | F54: Aymaraes | G54: 4213.07 | H54: 7.9 | I54: 33283.253
C55: 0305 | D55: DE03 | E55: Apurimac | F55: Cotabambas | G55: 2612.73 | H55: 21.47 | I55: 56095.3131
C56: 0306 | D56: DE03 | E56: Apurimac | F56: Chincheros | G56: 1242.33 | H56: 51.89 | I56: 64464.5037
C57: 0307 | D57: DE03 | E57: Apurimac | F57: Grau | G57: 2174.52 | H57: 13.84 | I57: 30095.3568
C58: 0401 | D58: DE04 | E58: Arequipa | F58: Arequipa | G58: 9682.02 | H58: 90.27 | I58: 873995.9454 | J58: Si
C59: 0402 | D59: DE04 | E59: Arequipa | F59: Camaná | G59: 3997.73 | H59: 13.17 | I59: 52650.1041
C60: 0403 | D60: DE04 | E60: Arequipa | F60: Caravelí | G60: 13139.41 | H60: 2.36 | I60: 31009.0076
C61: 0404 | D61: DE04 | E61: Arequipa | F61: Castilla | G61: 6914.48 | H61: 6.1 | I61: 42178.328
C62: 0405 | D62: DE04 | E62: Arequipa | F62: Caylloma | G62: 14019.46 | H62: 3.67 | I62: 51451.4182
C63: 0406 | D63: DE04 | E63: Arequipa | F63: Condesuyos | G63: 6958.4 | H63: 3.31 | I63: 23032.304
C64: 0407 | D64: DE04 | E64: Arequipa | F64: Islay | G64: 3886.03 | H64: 15.18 | I64: 58989.9354
C65: 0408 | D65: DE04 | E65: Arequipa | F65: La Unión | G65: 4746.4 | H65: 4.1 | I65: 19460.24
C66: 0501 | D66: DE05 | E66: Ayacucho | F66: Huamanga | G66: 2981.37 | H66: 70.31 | I66: 209620.1247 | J66: Si
C67: 0502 | D67: DE05 | E67: Ayacucho | F67: Cangallo | G67: 1916.17 | H67: 20.57 | I67: 39415.6169
C68: 0503 | D68: DE05 | E68: Ayacucho | F68: Huanca Sancos | G68: 2862.33 | H68: 4.29 | I68: 12279.3957
C69: 0504 | D69: DE05 | E69: Ayacucho | F69: Huanta | G69: 3878.91 | H69: 19.02 | I69: 73776.8682
C70: 0505 | D70: DE05 | E70: Ayacucho | F70: La Mar | G70: 4392.15 | H70: 18.53 | I70: 81386.5395
C71: 0506 | D71: DE05 | E71: Ayacucho | F71: Lucanas | G71: 14494.64 | H71: 4.43 | I71: 64211.2552
C72: 0507 | D72: DE05 | E72: Ayacucho | F72: Parinacochas | G72: 5968.32 | H72: 4.57 | I72: 27275.2224
C73: 0508 | D73: DE05 | E73: Ayacucho | F73: Páucar del Sara Sara | G73: 2096.92 | H73: 5.93 | I73: 12434.7356
C74: 0509 | D74: DE05 | E74: Ayacucho | F74: Sucre | G74: 1785.64 | H74: 8.54 | I74: 15249.3656
C75: 0510 | D75: DE05 | E75: Ayacucho | F75: Víctor Fajardo | G75: 2260.19 | H75: 13.45 | I75: 30399.5555
C76: 0511 | D76: DE05 | E76: Ayacucho | F76: Vilcas Huamán | G76: 1178.16 | H76: 21.51 | I76: 25342.2216
C77: 0601 | D77: DE06 | E77: Cajamarca | F77: Cajamarca | G77: 2979.78 | H77: 100.36 | I77: 299050.7208 | J77: Si
C78: 0602 | D78: DE06 | E78: Cajamarca | F78: Cajabamba | G78: 1807.64 | H78: 44.29 | I78: 80060.3756
C79: 0603 | D79: DE06 | E79: Cajamarca | F79: Celendín | G79: 2641.59 | H79: 36.39 | I79: 96127.4601
C80: 0604 | D80: DE06 | E80: Cajamarca | F80: Chota | G80: 3795.1 | H80: 55.05 | I80: 208920.255
C81: 0605 | D81: DE06 | E81: Cajamarca | F81: Contumazá | G81: 2070.33 | H81: 17.26 | I81: 35733.8958
C82: 0606 | D82: DE06 | E82: Cajamarca | F82: Cutervo | G82: 3028.46 | H82: 55.01 | I82: =G82*H82 -> 166595.5846
C83: 0607 | D83: DE06 | E83: Cajamarca | F83: Hualgayoc | G83: 777.15 | H83: 110.7 | I83: 86030.505
C84: 0608 | D84: DE06 | E84: Cajamarca | F84: Jaén | G84: 5232.57 | H84: 42.83 | I84: 224110.9731
C85: 0609 | D85: DE06 | E85: Cajamarca | F85: San Ignacio | G85: 4990.3 | H85: 30.21 | I85: 150756.963
C86: 0610 | D86: DE06 | E86: Cajamarca | F86: San Marcos | G86: 1362.32 | H86: 47.41 | I86: 64587.5912
C87: 0611 | D87: DE06 | E87: Cajamarca | F87: San Miguel | G87: 2542.08 | H87: 27.91 | I87: 70949.4528
C88: 0612 | D88: DE06 | E88: Cajamarca | F88: San Pablo | G88: 672.29 | H88: 50.36 | I88: 33856.5244
C89: 0613 | D89: DE06 | E89: Cajamarca | F89: Santa Cruz | G89: 1417.93 | H89: 35.82 | I89: 50790.2526
C90: 0701 | D90: DE07 | E90: Callao | F90: Callao | G90: 146.98 | H90: 5693.94 | I90: 836895.3012 | J90: Si
C91: 0801 | D91: DE08 | E91: Cusco | F91: Cusco | G91: 617 | H91: 544.99 | I91: 336258.83 | J91: Si
C92: 0802 | D92: DE08 | E92: Cusco | F92: Acomayo | G92: 948.22 | H92: 38.08 | I92: 36108.2176
C93: 0803 | D93: DE08 | E93: Cusco | F93: Anta | G93: 1876.12 | H93: 35.95 | I93: 67446.514
C94: 0804 | D94: DE08 | E94: Cusco | F94: Calca | G94: 4414.49 | H94: 15.3 | I94: 67541.697
C95: 0805 | D95: DE08 | E95: Cusco | F95: Canas | G95: 2103.76 | H95: 22.04 | I95: 46366.8704
C96: 0806 | D96: DE08 | E96: Cusco | F96: Canchis | G96: 3999.27 | H96: 27.77 | I96: 111059.7279
C97: 0807 | D97: DE08 | E97: Cusco | F97: Chumbivilcas | G97: 5371.08 | H97: 15.03 | I97: 80727.3324
C98: 0808 | D98: DE08 | E98: Cusco | F98: Espinar | G98: 5311.09 | H98: 13.27 | I98: 70478.1643
C99: 0809 | D99: DE08 | E99: Cusco | F99: La Convención | G99: 30061.82 | H99: 6.86 | I99: 206224.0852
C100: 0810 | D100: DE08 | E100: Cusco | F100: Paruro | G100: 1984.42 | H100: 20.73 | I100: 41137.0266
C101: 0811 | D101: DE08 | E101: Cusco | F101: Paucartambo | G101: 6295.01 | H101: 7.99 | I101: 50297.1299
C102: 0812 | D102: DE08 | E102: Cusco | F102: Quispicanchi | G102: 7564.79 | H102: 12.39 | I102: 93727.7481
C103: 0813 | D103: DE08 | E103: Cusco | F103: Urubamba | G103: 1439.43 | H103: 41.07 | I103: 59117.3901
C104: 0901 | D104: DE09 | E104: Huancavelica | F104: Huancavelica | G104: 4215.56 | H104: 34.53 | I104: 145563.2868 | J104: Si
C105: 0902 | D105: DE09 | E105: Huancavelica | F105: Acobamba | G105: 910.82 | H105: 55.82 | I105: 50841.9724
C106: 0903 | D106: DE09 | E106: Huancavelica | F106: Angaraes | G106: 1959.03 | H106: 24.88 | I106: 48740.6664
C107: 0904 | D107: DE09 | E107: Huancavelica | F107: Castrovirreyna | G107: 3984.62 | H107: 5.25 | I107: 20919.255
C108: 0905 | D108: DE09 | E108: Huancavelica | F108: Churcampa | G108: 1232.45 | H108: 43.13 | I108: 53155.5685
C109: 0906 | D109: DE09 | E109: Huancavelica | F109: Huaytará | G109: 6458.39 | H109: 4.03 | I109: 26027.3117
C110: 0907 | D110: DE09 | E110: Huancavelica | F110: Tayacaja | G110: 3370.6 | H110: 38.79 | I110: 130745.574
C111: 1001 | D111: DE10 | E111: Huanuco | F111: Huánuco | G111: 4022.54 | H111: 73.27 | I111: 294731.5058 | J111: Si
C112: 1002 | D112: DE10 | E112: Huanuco | F112: Ambo | G112: 1581 | H112: 47.39 | I112: 74923.59
C113: 1003 | D113: DE10 | E113: Huanuco | F113: Dos de Mayo | G113: 1438.88 | H113: 34.31 | I113: 49367.9728
C114: 1004 | D114: DE10 | E114: Huanuco | F114: Huacaybamba | G114: 1743.7 | H114: 12.68 | I114: 22110.116
C115: 1005 | D115: DE10 | E115: Huanuco | F115: Huamalíes | G115: 3144.5 | H115: 23.12 | I115: 72700.84
C116: 1006 | D116: DE10 | E116: Huanuco | F116: Leoncio Prado | G116: 4952.99 | H116: 24.22 | I116: 119961.4178
C117: 1007 | D117: DE10 | E117: Huanuco | F117: Marañón | G117: 4801.5 | H117: 5.42 | I117: 26024.13
C118: 1008 | D118: DE10 | E118: Huanuco | F118: Pachitea | G118: 2629.96 | H118: 24.67 | I118: 64881.1132
C119: 1009 | D119: DE10 | E119: Huanuco | F119: Puerto Inca | G119: 9913.94 | H119: 5.07 | I119: 50263.6758
C120: 1010 | D120: DE10 | E120: Huanuco | F120: Lauricocha | G120: 1860.13 | H120: 21.14 | I120: 39323.1482
C121: 1011 | D121: DE10 | E121: Huanuco | F121: Yarowilca | G121: 759.71 | H121: 54.57 | I121: 41457.3747
C122: 1101 | D122: DE11 | E122: Ica | F122: Ica | G122: 7894.05 | H122: 41.14 | I122: 324761.217 | J122: Si
C123: 1102 | D123: DE11 | E123: Ica | F123: Chincha | G123: 2987.35 | H123: 62.56 | I123: 186888.616
C124: 1103 | D124: DE11 | E124: Ica | F124: Nazca | G124: 5234.08 | H124: 12.47 | I124: 65268.9776
C125: 1104 | D125: DE11 | E125: Ica | F125: Palpa | G125: 1232.88 | H125: 16.56 | I125: 20416.4928
C126: 1105 | D126: DE11 | E126: Ica | F126: Pisco | G126: 3957.15 | H126: 33.98 | I126: 134463.957
C127: 1201 | D127: DE12 | E127: Junin | F127: Huancayo | G127: 3558.1 | H127: 138.45 | I127: 492618.945 | J127: Si
C128: 1202 | D128: DE12 | E128: Junin | F128: Concepción | G128: 3067.52 | H128: 24.04 | I128: 73743.1808
C129: 1203 | D129: DE12 | E129: Junin | F129: Chanchamayo | G129: 4723.4 | H129: 31.88 | I129: 150581.992
C130: 1204 | D130: DE12 | E130: Junin | F130: Jauja | G130: 3749.1 | H130: 31.7 | I130: 118846.47
C131: 1205 | D131: DE12 | E131: Junin | F131: Junín | G131: 2360.07 | H131: 22.02 | I131: 51968.7414
C132: 1206 | D132: DE12 | E132: Junin | F132: Satipo | G132: 19219.48 | H132: 8.32 | I132: 159906.0736
C133: 1207 | D133: DE12 | E133: Junin | F133: Tarma | G133: 2749.16 | H133: 47.55 | I133: 130722.558
C134: 1208 | D134: DE12 | E134: Junin | F134: Yauli | G134: 3617.35 | H134: 18.73 | I134: 67752.9655
C135: 1209 | D135: DE12 | E135: Junin | F135: Chupaca | G135: 1153.05 | H135: 49.11 | I135: 56626.2855
C136: 1301 | D136: DE13 | E136: La Libertad | F136: Trujillo | G136: 1768.65 | H136: 443.87 | I136: 785050.6755 | J136: Si
C137: 1302 | D137: DE13 | E137: La Libertad | F137: Ascope | G137: 2655.47 | H137: 44.47 | I137: 118088.7509
C138: 1303 | D138: DE13 | E138: La Libertad | F138: Bolívar | G138: 1718.86 | H138: 12.48 | I138: 21451.3728
C139: 1304 | D139: DE13 | E139: La Libertad | F139: Chepén | G139: 1142.43 | H139: 62.94 | I139: =G139*H139 -> 71904.5442
C140: 1305 | D140: DE13 | E140: La Libertad | F140: Julcán | G140: 1101.39 | H140: 40.52 | I140: 44628.3228
C141: 1306 | D141: DE13 | E141: La Libertad | F141: Otuzco | G141: 2110.77 | H141: 46.56 | I141: 98277.4512
C142: 1307 | D142: DE13 | E142: La Libertad | F142: Pacasmayo | G142: 1126.67 | H142: 92 | I142: 103653.64
C143: 1308 | D143: DE13 | E143: La Libertad | F143: Pataz | G143: 4226.53 | H143: 18.11 | I143: 76542.4583
C144: 1309 | D144: DE13 | E144: La Libertad | F144: Sánchez Carrión | G144: 2486.38 | H144: 52.42 | I144: 130336.0396
C145: 1310 | D145: DE13 | E145: La Libertad | F145: Santiago de Chuco | G145: 2658.96 | H145: 23.79 | I145: 63256.6584
C146: 1311 | D146: DE13 | E146: La Libertad | F146: Gran Chimú | G146: 1284.77 | H146: 25.35 | I146: 32568.9195
C147: 1312 | D147: DE13 | E147: La Libertad | F147: Virú | G147: 3214.54 | H147: 15.44 | I147: 49632.4976
C148: 1401 | D148: DE14 | E148: Lambayeque | F148: Chiclayo | G148: 3288.07 | H148: 239.54 | I148: 787624.2878 | J148: Si
C149: 1402 | D149: DE14 | E149: Lambayeque | F149: Ferreñafe | G149: 1578.6 | H149: 65.58 | I149: 103524.588
C150: 1403 | D150: DE14 | E150: Lambayeque | F150: Lambayeque | G150: 9346.63 | H150: 28.98 | I150: 270865.3374
C151: 1501 | D151: DE15 | E151: Lima | F151: Lima | G151: 2670.4 | H151: 2804.34 | I151: 7488709.536 | J151: Si
C152: 1502 | D152: DE15 | E152: Lima | F152: Barranca | G152: 1355.87 | H152: 91.98 | I152: 124712.9226
C153: 1503 | D153: DE15 | E153: Lima | F153: Cajatambo | G153: 1515.21 | H153: 6.98 | I153: 10576.1658
C154: 1504 | D154: DE15 | E154: Lima | F154: Canta | G154: 1687.29 | H154: 7.48 | I154: 12620.9292
C155: 1505 | D155: DE15 | E155: Lima | F155: Cañete | G155: 4574.91 | H155: 39.2 | I155: 179336.472
C156: 1506 | D156: DE15 | E156: Lima | F156: Huaral | G156: 3655.7 | H156: 43.29 | I156: 158255.253
C157: 1507 | D157: DE15 | E157: Lima | F157: Huarochirí | G157: 5657.93 | H157: 11.1 | I157: 62803.023
C158: 1508 | D158: DE15 | E158: Lima | F158: Huaura | G158: 4891.92 | H158: 39.11 | I158: 191322.9912
C159: 1509 | D159: DE15 | E159: Lima | F159: Oyón | G159: 1886.05 | H159: 9.67 | I159: 18238.1035
C160: 1510 | D160: DE15 | E160: Lima | F160: Yauyos | G160: 6901.58 | H160: 4.33 | I160: 29883.8414
C161: 1601 | D161: DE16 | E161: Loreto | F161: Maynas | G161: 119859.4 | H161: 4.53 | I161: 542963.082 | J161: Si
C162: 1602 | D162: DE16 | E162: Loreto | F162: Alto Amazonas | G162: 18764.32 | H162: 5.98 | I162: 112210.6336
C163: 1603 | D163: DE16 | E163: Loreto | F163: Loreto | G163: 67434.12 | H163: 1.05 | I163: 70805.826
C164: 1604 | D164: DE16 | E164: Loreto | F164: Mariscal Ramón Castilla | G164: 37412.94 | H164: 1.28 | I164: 47888.5632
C165: 1605 | D165: DE16 | E165: Loreto | F165: Requena | G165: 49477.8 | H165: 1.31 | I165: 64815.918
C166: 1606 | D166: DE16 | E166: Loreto | F166: Ucayali | G166: 29293.47 | H166: 2.23 | I166: 65324.4381
C167: 1607 | D167: DE16 | E167: Loreto | F167: Datem del Marañón | G167: 46609.9 | H167: 1.12 | I167: 52203.088
C168: 1701 | D168: DE17 | E168: Madre de Dios | F168: Tambopata | G168: 36268.49 | H168: 2.07 | I168: 75075.7743 | J168: Si
C169: 1702 | D169: DE17 | E169: Madre de Dios | F169: Manu | G169: 27835.17 | H169: 0.95 | I169: 26443.4115
C170: 1703 | D170: DE17 | E170: Madre de Dios | F170: Tahuamanu | G170: 21196.88 | H170: 0.43 | I170: 9114.6584
C171: 1801 | D171: DE18 | E171: Moquegua | F171: Mariscal Nieto | G171: 8671.58 | H171: 8.87 | I171: 76916.9146 | J171: Si
C172: 1802 | D172: DE18 | E172: Moquegua | F172: General Sánchez Cerro | G172: 5681.71 | H172: 4.24 | I172: 24090.4504
C173: 1803 | D173: DE18 | E173: Moquegua | F173: Ilo | G173: 1380.59 | H173: 50.49 | I173: 69705.9891
C174: 1901 | D174: DE19 | E174: Pasco | F174: Pasco | G174: 4758.57 | H174: 32.11 | I174: 152797.6827 | J174: Si
C175: 1902 | D175: DE19 | E175: Pasco | F175: Daniel Alcides Carrión | G175: 1887.23 | H175: 26.28 | I175: 49596.4044
C176: 1903 | D176: DE19 | E176: Pasco | F176: Oxapampa | G176: 18673.79 | H176: 4.66 | I176: 87019.8614
C177: 2001 | D177: DE20 | E177: Piura | F177: Piura | G177: 6211.16 | H177: 106.39 | I177: 660805.3124 | J177: Si
C178: 2002 | D178: DE20 | E178: Piura | F178: Ayabaca | G178: 5230.68 | H178: 27.65 | I178: 144628.302
C179: 2003 | D179: DE20 | E179: Piura | F179: Huancabamba | G179: 4254.14 | H179: 32.02 | I179: 136217.5628
C180: 2004 | D180: DE20 | E180: Piura | F180: Morropón | G180: 3817.92 | H180: 52.1 | I180: 198913.632
C181: 2005 | D181: DE20 | E181: Piura | F181: Paita | G181: 1784.24 | H181: 58.56 | I181: 104485.0944
C182: 2006 | D182: DE20 | E182: Piura | F182: Sullana | G182: 5423.61 | H182: 51.27 | I182: 278068.4847
C183: 2007 | D183: DE20 | E183: Piura | F183: Talara | G183: 2799.49 | H183: 55.93 | I183: 156575.4757
C184: 2008 | D184: DE20 | E184: Piura | F184: Sechura | G184: 6369.93 | H184: 8.75 | I184: 55736.8875
C185: 2101 | D185: DE21 | E185: Puno | F185: Puno | G185: 6492.6 | H185: 35.44 | I185: 230097.744 | J185: Si
C186: 2102 | D186: DE21 | E186: Puno | F186: Azángaro | G186: 4970.01 | H186: 33.45 | I186: 166246.8345
C187: 2103 | D187: DE21 | E187: Puno | F187: Carabaya | G187: 12266.4 | H187: 5.18 | I187: 63539.952
C188: 2104 | D188: DE21 | E188: Puno | F188: Chucuito | G188: 3978.13 | H188: 26.94 | I188: 107170.8222
C189: 2105 | D189: DE21 | E189: Puno | F189: El Collao | G189: 5600.51 | H189: 17.32 | I189: 97000.8332
C190: 2106 | D190: DE21 | E190: Puno | F190: Huancané | G190: 2805.85 | H190: 34.01 | I190: 95426.9585
C191: 2107 | D191: DE21 | E191: Puno | F191: Lampa | G191: 5791.73 | H191: 8.9 | I191: 51546.397
C192: 2108 | D192: DE21 | E192: Puno | F192: Melgar | G192: 6446.85 | H192: 13.95 | I192: 89933.5575
C193: 2109 | D193: DE21 | E193: Puno | F193: Moho | G193: 1000.41 | H193: 40.9 | I193: 40916.769
C194: 2110 | D194: DE21 | E194: Puno | F194: San Antonio de Putina | G194: 3207.38 | H194: 12.29 | I194: 39418.7002
C195: 2111 | D195: DE21 | E195: Puno | F195: San Román | G195: 2277.63 | H195: 101.82 | I195: =G195*H195 -> 231908.2866
C196: 2112 | D196: DE21 | E196: Puno | F196: Sandia | G196: 11862.41 | H196: 4.97 | I196: 58956.1777
C197: 2113 | D197: DE21 | E197: Puno | F197: Yunguyo | G197: 288.31 | H197: 200.64 | I197: 57846.5184
C198: 2201 | D198: DE22 | E198: San Martin | F198: Moyobamba | G198: 3772.31 | H198: 30.4 | I198: 114678.224 | J198: Si
C199: 2202 | D199: DE22 | E199: San Martin | F199: Bellavista | G199: 8050.9 | H199: 6.67 | I199: 53699.503
C200: 2203 | D200: DE22 | E200: San Martin | F200: El Dorado | G200: 1298.14 | H200: 25.21 | I200: 32726.1094
C201: 2204 | D201: DE22 | E201: San Martin | F201: Huallaga | G201: 2380.85 | H201: 12.45 | I201: 29641.5825
C202: 2205 | D202: DE22 | E202: San Martin | F202: Lamas | G202: 5040.67 | H202: 17.37 | I202: 87556.4379
C203: 2206 | D203: DE22 | E203: San Martin | F203: Mariscal Cáceres | G203: 14498.73 | H203: 5.42 | I203: 78583.1166
C204: 2207 | D204: DE22 | E204: San Martin | F204: Picota | G204: 2171.41 | H204: 15.5 | I204: 33656.855
C205: 2208 | D205: DE22 | E205: San Martin | F205: Rioja | G205: 2535.04 | H205: 38.57 | I205: 97776.4928
C206: 2209 | D206: DE22 | E206: San Martin | F206: San Martín | G206: 5639.82 | H206: 29.85 | I206: 168348.627
C207: 2210 | D207: DE22 | E207: San Martin | F207: Tocache | G207: 5865.44 | H207: 17.51 | I207: 102703.8544
C208: 2301 | D208: DE23 | E208: Tacna | F208: Tacna | G208: 8066.11 | H208: 36.27 | I208: 292557.8097 | J208: Si
C209: 2302 | D209: DE23 | E209: Tacna | F209: Candarave | G209: 2261.1 | H209: 4.61 | I209: 10423.671
C210: 2303 | D210: DE23 | E210: Tacna | F210: Jorge Basadre | G210: 2928.56 | H210: 4.57 | I210: 13383.5192
C211: 2304 | D211: DE23 | E211: Tacna | F211: Tarata | G211: 2819.96 | H211: 3.24 | I211: 9136.6704
C212: 2401 | D212: DE24 | E212: Tumbes | F212: Tumbes | G212: 1800.15 | H212: 88.48 | I212: 159277.272 | J212: Si
C213: 2402 | D213: DE24 | E213: Tumbes | F213: Contralmirante Villar | G213: 2123.22 | H213: 9.03 | I213: 19172.6766
C214: 2403 | D214: DE24 | E214: Tumbes | F214: Zarumilla | G214: 733.89 | H214: 56.92 | I214: 41773.0188
C215: 2501 | D215: DE25 | E215: Ucayali | F215: Coronel Portillo | G215: 36815.86 | H215: 9.56 | I215: 351959.6216 | J215: Si
C216: 2502 | D216: DE25 | E216: Ucayali | F216: Atalaya | G216: 38924.43 | H216: 1.32 | I216: 51380.2476
C217: 2503 | D217: DE25 | E217: Ucayali | F217: Padre Abad | G217: 8822.5 | H217: 7.55 | I217: 66609.875
C218: 2504 | D218: DE25 | E218: Ucayali | F218: Purús | G218: 17847.76 | H218: 0.23 | I218: 4104.9848
D219: Fuente: Instituo Nacional de Estadística e Informática

Sheet Inputs Dimensionamiento Red
G14: º
C26: Tasas de bloqueo y factores de conversión para desarrollo de la red
D28: Dimensionamiento de interfaz aérea
E30: Tasa de bloqueo de la interfaz aérea GSM | F30: 0.02
D33: BHCA de red troncal
E35: Semanas por año | F35: =365.25/7 -> 52.17857143
E36: Número de horas punta por semana | F36: 7
E37: Horas punta por año | F37: =F35*F36 -> 365.25
E38: % de tráfico en hora punta | F38: 0.07369094446
E39: Duración media de llamadas (minutos) | F39: 1.5
E40: % de llamadas incompletas sobre llamadas completadas | F40: 0.5
E41: Factor Mmitts->BHCA | F41: =1000000*(1+F40)*F38/(F39*F37) -> 201.7548103
C45: Definición de geotipos
D47: Densidad poblacional por geotipos
E49: Geotipo | F49: pob/km2
E50: Rural4 | F50: 0
E51: Rural3 | F51: 10
E52: Rural2 | F52: 100
E53: Rural1 | F53: 300
E54: Suburbano | F54: 1000
E55: Urbano | F55: 2000
C58: Características de BTS
C59: Capacidades solo para costeo de red
D61: Erlangs
E63: ='Configuraciones de equipos'!D30 -> Código para el modelo | F63: Descipción
E64: ='Configuraciones de equipos'!D31 -> BTS_A | F64: ='Configuraciones de equipos'!E31 -> GSM - 444 / 000
E65: ='Configuraciones de equipos'!D32 -> BTS_B | F65: ='Configuraciones de equipos'!E32 -> GSM - 444 / 444
E66: ='Configuraciones de equipos'!D33 -> BTS_C | F66: ='Configuraciones de equipos'!E33 -> GSM - 666 / 666
E67: ='Configuraciones de equipos'!D34 -> BTS_D | F67: ='Configuraciones de equipos'!E34 -> GSM - 888 / 888
E68: Overflow
E71: ='Configuraciones de equipos'!D38 -> CONFIGURACIONES MODELO PROPUESTO OSIPTEL | F71: Descipción
E72: ='Configuraciones de equipos'!D39 -> BTS_1B_1 | F72: ='Configuraciones de equipos'!E39 -> 040404/000000
E73: ='Configuraciones de equipos'!D40 -> BTS_1B_2 | F73: ='Configuraciones de equipos'!E40 -> 080808/000000
E74: ='Configuraciones de equipos'!D41 -> BTS_1B_3 | F74: ='Configuraciones de equipos'!E41 -> 121212/000000
E75: ='Configuraciones de equipos'!D42 -> BTS_1B_4 | F75: ='Configuraciones de equipos'!E42 -> 161616/000000
E76: ='Configuraciones de equipos'!D43 -> BTS_1B_5 | F76: ='Configuraciones de equipos'!E43 -> 202020/000000
E77: ='Configuraciones de equipos'!D44 -> BTS_2B_1 | F77: ='Configuraciones de equipos'!E44 -> 040404/040404
E78: ='Configuraciones de equipos'!D45 -> BTS_2B_2 | F78: ='Configuraciones de equipos'!E45 -> 060606/060606
E79: ='Configuraciones de equipos'!D46 -> BTS_2B_3 | F79: ='Configuraciones de equipos'!E46 -> 080808/080808
E80: ='Configuraciones de equipos'!D47 -> BTS_2B_4 | F80: ='Configuraciones de equipos'!E47 -> 101010/101010
E81: ='Configuraciones de equipos'!D48 -> BTS_2B_5 | F81: ='Configuraciones de equipos'!E48 -> 121212/121212
E82: ='Configuraciones de equipos'!D49 -> BTS_2B_6 | F82: ='Configuraciones de equipos'!E49 -> 161616/161616
E83: ='Configuraciones de equipos'!D50 -> BTS_2B_7 | F83: ='Configuraciones de equipos'!E50 -> 202020/202020
E84: ='Configuraciones de equipos'!D51 -> BTS_2B_8 | F84: ='Configuraciones de equipos'!E51 -> 242424/242424
C93: Características de Red 3G
E97: Número de RNC_A | F97: 10
E98: Número de RNC_B | F98: 10
E99: Número de Nodos B | F99: 10
C101: Características de MSC
D103: Capacidad de MSC
E105: Capacidad nominal de MSC (MBHCA) | F105: 1.2
E106: Utilización máxima | F106: 0.8
E107: MBHCA por MSC | F107: =F105*F106 -> 0.96
C109: Características de STP
E113: Número de STP | F113: 1
C115: Características de HLR
D117: Capacidad de HLR
E119: Capacidad nominal de MSC (suscriptores) | F119: 5000000
E120: Utilización máxima | F120: 0.8
E121: Suscriptores por HLR | F121: =F119*F120 -> 4000000
C124: Características de enlaces de transmisión
D126: Número de enlaces por BTS
E128: Número de enlaces por BTS | F128: 2
C131: Erlang-B lookup
D133: Tráfico en hora punta con número de canales dados para una tasa de bloqueo prefijada
D135: Canales | E135: 0.001 | F135: 0.002 | G135: 0.005 | H135: 0.01 | I135: 0.02 | J135: 0.05 | K135: 0.1
D136: 1
D137: 2
D138: 3 | K138: 1.2
D139: 4 | I139: 1 | J139: 1.5 | K139: 2
D140: 5 | G140: 1.1 | H140: 1.3 | I140: 1.6 | J140: 2.2 | K140: 2.8
D141: 6 | E141: 1.1 | F141: 1.3 | G141: 1.6 | H141: 1.9 | I141: 2.2 | J141: 2.9 | K141: 3.7
D142: 7 | E142: 1.5 | F142: 1.7 | G142: 2.1 | H142: 2.5 | I142: 2.9 | J142: 3.7 | K142: 4.6
D143: 8 | E143: 2 | F143: 2.3 | G143: 2.7 | H143: 3.1 | I143: 3.6 | J143: 4.5 | K143: 5.5
D144: 9 | E144: 2.5 | F144: 2.8 | G144: 3.3 | H144: 3.7 | I144: 4.3 | J144: 5.3 | K144: 6.5
D145: 10 | E145: 3 | F145: 3.4 | G145: 3.9 | H145: 4.4 | I145: 5 | J145: 6.2 | K145: 7.5
D146: 11 | E146: 3.6 | F146: 4 | G146: 4.6 | H146: 5.1 | I146: 5.8 | J146: 7 | K146: 8.4
D147: 12 | E147: 4.2 | F147: 4.6 | G147: 5.2 | H147: 5.8 | I147: 6.6 | J147: 7.9 | K147: 9.4
D148: 13 | E148: 4.8 | F148: 5.2 | G148: 5.9 | H148: 6.6 | I148: 7.4 | J148: 8.8 | K148: 10.4
D149: 14 | E149: 5.4 | F149: 5.9 | G149: 6.6 | H149: 7.3 | I149: 8.2 | J149: 9.7 | K149: 11.4
D150: 15 | E150: 6 | F150: 6.5 | G150: 7.3 | H150: 8.1 | I150: 9 | J150: 10.6 | K150: 12.4
D151: 16 | E151: 6.7 | F151: 7.2 | G151: 8 | H151: 8.8 | I151: 9.8 | J151: 11.5 | K151: 13.5
D152: 17 | E152: 7.3 | F152: 7.9 | G152: 8.8 | H152: 9.6 | I152: 10.6 | J152: 12.4 | K152: 14.5
D153: 18 | E153: 8 | F153: 8.6 | G153: 9.5 | H153: 10.4 | I153: 11.4 | J153: 13.3 | K153: 15.5
D154: 19 | E154: 8.7 | F154: 9.3 | G154: 10.3 | H154: 11.2 | I154: 12.3 | J154: 14.3 | K154: 16.5
D155: 20 | E155: 9.4 | F155: 10 | G155: 11 | H155: 12 | I155: 13.1 | J155: 15.2 | K155: 17.6
D156: 21 | E156: 10.1 | F156: 10.7 | G156: 11.8 | H156: 12.8 | I156: 14 | J156: 16.1 | K156: 18.6
D157: 22 | E157: 10.8 | F157: 11.5 | G157: 12.6 | H157: 13.6 | I157: 14.8 | J157: 17.1 | K157: 19.6
D158: 23 | E158: 11.5 | F158: 12.2 | G158: 13.4 | H158: 14.4 | I158: 15.7 | J158: 18 | K158: 20.7
D159: 24 | E159: 12.2 | F159: 13 | G159: 14.2 | H159: 15.2 | I159: 16.6 | J159: 19 | K159: 21.7
D160: 25 | E160: 12.9 | F160: 13.7 | G160: 14.9 | H160: 16.1 | I160: 17.5 | J160: 19.9 | K160: 22.8
D161: 26 | E161: 13.7 | F161: 14.5 | G161: 15.7 | H161: 16.9 | I161: 18.3 | J161: 20.9 | K161: 23.8
D162: 27 | E162: 14.4 | F162: 15.2 | G162: 16.5 | H162: 17.7 | I162: 19.2 | J162: 21.9 | K162: 24.9
D163: 28 | E163: 15.1 | F163: 16 | G163: 17.4 | H163: 18.6 | I163: 20.1 | J163: 22.8 | K163: 25.9
D164: 29 | E164: 15.9 | F164: 16.8 | G164: 18.2 | H164: 19.4 | I164: 21 | J164: 23.8 | K164: 27
D165: 30 | E165: 16.6 | F165: 17.6 | G165: 19 | H165: 20.3 | I165: 21.9 | J165: 24.8 | K165: 28.1
D166: 31 | E166: 17.4 | F166: 18.3 | G166: 19.8 | H166: 21.1 | I166: 22.8 | J166: 25.7 | K166: 29.1
D167: 32 | E167: 18.2 | F167: 19.1 | G167: 20.6 | H167: 22 | I167: 23.7 | J167: 26.7 | K167: 30.2
D168: 33 | E168: 18.9 | F168: 19.9 | G168: 21.5 | H168: 22.9 | I168: 24.6 | J168: 27.7 | K168: 31.3
D169: 34 | E169: 19.7 | F169: 20.7 | G169: 22.3 | H169: 23.7 | I169: 25.5 | J169: 28.6 | K169: 32.3
D170: 35 | E170: 20.5 | F170: 21.5 | G170: 23.1 | H170: 24.6 | I170: 26.4 | J170: 29.6 | K170: 33.4
D171: 36 | E171: 21.2 | F171: 22.3 | G171: 24 | H171: 25.5 | I171: 27.3 | J171: 30.6 | K171: 34.5
D172: 37 | E172: 22 | F172: 23.1 | G172: 24.8 | H172: 26.3 | I172: 28.2 | J172: 31.6 | K172: 35.5
D173: 38 | E173: 22.8 | F173: 23.9 | G173: 25.6 | H173: 27.2 | I173: 29.1 | J173: 32.6 | K173: 36.6
D174: 39 | E174: 23.6 | F174: 24.7 | G174: 26.5 | H174: 28.1 | I174: 30 | J174: 33.6 | K174: 37.7
D175: 40 | E175: 24.4 | F175: 25.5 | G175: 27.3 | H175: 29 | I175: 30.9 | J175: 34.5 | K175: 38.7
D176: 41 | E176: 25.2 | F176: 26.4 | G176: 28.2 | H176: 29.8 | I176: 31.9 | J176: 35.5 | K176: 39.8
D177: 42 | E177: 26 | F177: 27.2 | G177: 29 | H177: 30.7 | I177: 32.8 | J177: 36.5 | K177: 40.9
D178: 43 | E178: 26.8 | F178: 28 | G178: 29.9 | H178: 31.6 | I178: 33.7 | J178: 37.5 | K178: 42
D179: 44 | E179: 27.6 | F179: 28.8 | G179: 30.7 | H179: 32.5 | I179: 34.6 | J179: 38.5 | K179: 43
D180: 45 | E180: 28.4 | F180: 29.7 | G180: 31.6 | H180: 33.4 | I180: 35.6 | J180: 39.5 | K180: 44.1
D181: 46 | E181: 29.2 | F181: 30.5 | G181: 32.5 | H181: 34.3 | I181: 36.5 | J181: 40.5 | K181: 45.2
D182: 47 | E182: 30 | F182: 31.3 | G182: 33.3 | H182: 35.2 | I182: 37.4 | J182: 41.5 | K182: 46.3
D183: 48 | E183: 30.8 | F183: 32.2 | G183: 34.2 | H183: 36.1 | I183: 38.3 | J183: 42.5 | K183: 47.4
D184: 49 | E184: 31.6 | F184: 33 | G184: 35.1 | H184: 37 | I184: 39.3 | J184: 43.5 | K184: 48.4
D185: 50 | E185: 32.5 | F185: 33.8 | G185: 35.9 | H185: 37.9 | I185: 40.2 | J185: 44.5 | K185: 49.5
D186: 51 | E186: 33.3 | F186: 34.7 | G186: 36.8 | H186: 38.8 | I186: 41.1 | J186: 45.5 | K186: 50.6
D187: 52 | E187: 34.1 | F187: 35.5 | G187: 37.7 | H187: 39.7 | I187: 42.1 | J187: 46.5 | K187: 51.7
D188: 53 | E188: 34.9 | F188: 36.4 | G188: 38.5 | H188: 40.6 | I188: 43 | J188: 47.5 | K188: 52.8
D189: 54 | E189: 35.8 | F189: 37.2 | G189: 39.4 | H189: 41.5 | I189: 43.9 | J189: 48.5 | K189: 53.8
D190: 55 | E190: 36.6 | F190: 38 | G190: 40.3 | H190: 42.4 | I190: 44.9 | J190: 49.5 | K190: 54.9
D191: 56 | E191: 37.4 | F191: 38.9 | G191: 41.2 | H191: 43.3 | I191: 45.8 | J191: 50.5 | K191: 56
D192: 57 | E192: 38.2 | F192: 39.7 | G192: 42.1 | H192: 44.2 | I192: 46.8 | J192: 51.5 | K192: 57.1
D193: 58 | E193: 39.1 | F193: 40.6 | G193: 42.9 | H193: 45.1 | I193: 47.7 | J193: 52.5 | K193: 58.2
D194: 59 | E194: 39.9 | F194: 41.4 | G194: 43.8 | H194: 46 | I194: 48.7 | J194: 53.5 | K194: 59.3
D195: 60 | E195: 40.7 | F195: 42.3 | G195: 44.7 | H195: 46.9 | I195: 49.6 | J195: 54.5 | K195: 60.4
D196: 61 | E196: 41.6 | F196: 43.2 | G196: 45.6 | H196: 47.8 | I196: 50.5 | J196: 55.5 | K196: 61.4
D197: 62 | E197: 42.4 | F197: 44 | G197: 46.5 | H197: 48.7 | I197: 51.5 | J197: 56.5 | K197: 62.5
D198: 63 | E198: 43.3 | F198: 44.9 | G198: 47.4 | H198: 49.6 | I198: 52.4 | J198: 57.5 | K198: 63.6
D199: 64 | E199: 44.1 | F199: 45.7 | G199: 48.3 | H199: 50.6 | I199: 53.4 | J199: 58.5 | K199: 64.7
D200: 65 | E200: 44.9 | F200: 46.6 | G200: 49.1 | H200: 51.5 | I200: 54.3 | J200: 59.6 | K200: 65.8
D201: 66 | E201: 45.8 | F201: 47.5 | G201: 50 | H201: 52.4 | I201: 55.3 | J201: 60.6 | K201: 66.9
D202: 67 | E202: 46.6 | F202: 48.3 | G202: 50.9 | H202: 53.3 | I202: 56.2 | J202: 61.6 | K202: 68
D203: 68 | E203: 47.5 | F203: 49.2 | G203: 51.8 | H203: 54.2 | I203: 57.2 | J203: 62.6 | K203: 69
D204: 69 | E204: 48.3 | F204: 50.1 | G204: 52.7 | H204: 55.1 | I204: 58.1 | J204: 63.6 | K204: 70
D205: 70 | E205: 49.2 | F205: 50.9 | G205: 53.6 | H205: 56.1 | I205: 59.1 | J205: 64.6 | K205: 71
D206: 71 | E206: 50 | F206: 51.8 | G206: 54.5 | H206: 57 | I206: 60 | J206: 65.6 | K206: 72
D207: 72 | E207: 50.9 | F207: 52.7 | G207: 55.4 | H207: 57.9 | I207: 61 | J207: 66.6 | K207: 73
D208: 73 | E208: 51.7 | F208: 53.5 | G208: 56.3 | H208: 58.8 | I208: 61.9 | J208: 67.7 | K208: 74
D209: 74 | E209: 52.6 | F209: 54.4 | G209: 57.2 | H209: 59.8 | I209: 62.9 | J209: 68.7 | K209: 75
D210: 75 | E210: 53.5 | F210: 55.3 | G210: 58.1 | H210: 60.7 | I210: 63.9 | J210: 69.7 | K210: 76
D211: 76 | E211: 54.3 | F211: 56.2 | G211: 59 | H211: 61.6 | I211: 64.8 | J211: 70.7 | K211: 77
D212: 77 | E212: 55.2 | F212: 57 | G212: 59.9 | H212: 62.5 | I212: 65.8 | J212: 71.7 | K212: 78
D213: 78 | E213: 56 | F213: 57.9 | G213: 60.8 | H213: 63.5 | I213: 66.7 | J213: 72.7 | K213: 79
D214: 79 | E214: 56.9 | F214: 58.8 | G214: 61.7 | H214: 64.4 | I214: 67.7 | J214: 73.8 | K214: 80
D215: 80 | E215: 57.8 | F215: 59.7 | G215: 62.6 | H215: 65.3 | I215: 68.6 | J215: 74.8 | K215: 81
D216: 81 | E216: 58.6 | F216: 60.5 | G216: 63.5 | H216: 66.2 | I216: 69.6 | J216: 75.8 | K216: 82
D217: 82 | E217: 59.5 | F217: 61.4 | G217: 64.4 | H217: 67.2 | I217: 70.6 | J217: 76.8 | K217: 83
D218: 83 | E218: 60.4 | F218: 62.3 | G218: 65.3 | H218: 68.1 | I218: 71.5 | J218: 77.8 | K218: 84
D219: 84 | E219: 61.2 | F219: 63.2 | G219: 66.2 | H219: 69 | I219: 72.5 | J219: 78.8 | K219: 85
D220: 85 | E220: 62.1 | F220: 64.1 | G220: 67.2 | H220: 70 | I220: 73.4 | J220: 79.9 | K220: 86
D221: 86 | E221: 63 | F221: 65 | G221: 68.1 | H221: 70.9 | I221: 74.4 | J221: 80.9 | K221: 87
D222: 87 | E222: 63.8 | F222: 65.8 | G222: 69 | H222: 71.8 | I222: 75.4 | J222: 81.9 | K222: 88
D223: 88 | E223: 64.7 | F223: 66.7 | G223: 69.9 | H223: 72.8 | I223: 76.3 | J223: 82.9 | K223: 89
D224: 89 | E224: 65.6 | F224: 67.6 | G224: 70.8 | H224: 73.7 | I224: 77.3 | J224: 83.9 | K224: 90
D225: 90 | E225: 66.4 | F225: 68.5 | G225: 71.7 | H225: 74.6 | I225: 78.3 | J225: 85 | K225: 91
D226: 91 | E226: 67.3 | F226: 69.4 | G226: 72.6 | H226: 75.6 | I226: 79.2 | J226: 86 | K226: 92
D227: 92 | E227: 68.2 | F227: 70.3 | G227: 73.5 | H227: 76.5 | I227: 80.2 | J227: 87 | K227: 93
D228: 93 | E228: 69.1 | F228: 71.2 | G228: 74.4 | H228: 77.4 | I228: 81.2 | J228: 88 | K228: 94
D229: 94 | E229: 69.9 | F229: 72.1 | G229: 75.4 | H229: 78.4 | I229: 82.1 | J229: 89.1 | K229: 95
D230: 95 | E230: 70.8 | F230: 73 | G230: 76.3 | H230: 79.3 | I230: 83.1 | J230: 90.1 | K230: 96
D231: 96 | E231: 71.7 | F231: 73.8 | G231: 77.2 | H231: 80.3 | I231: 84.1 | J231: 91.1 | K231: 97
D232: 97 | E232: 72.6 | F232: 74.7 | G232: 78.1 | H232: 81.2 | I232: 85 | J232: 92.1 | K232: 98
D233: 98 | E233: 73.4 | F233: 75.6 | G233: 79 | H233: 82.1 | I233: 86 | J233: 93.1 | K233: 99
D234: 99 | E234: 74.3 | F234: 76.5 | G234: 79.9 | H234: 83.1 | I234: 87 | J234: 94.2 | K234: 100
D235: 100 | E235: 75.2 | F235: 77.4 | G235: 80.9 | H235: 84 | I235: 87.9 | J235: 95.2 | K235: 101
D236: 101 | E236: 76.1 | F236: 78.3 | G236: 81.8 | H236: 85 | I236: 88.9 | J236: 96.2 | K236: 102
D237: 102 | E237: 77 | F237: 79.2 | G237: 82.7 | H237: 85.9 | I237: 89.9 | J237: 97.2 | K237: 103
D238: 103 | E238: 77.8 | F238: 80.1 | G238: 83.6 | H238: 86.8 | I238: 90.8 | J238: 98.3 | K238: 104
D239: 104 | E239: 78.7 | F239: 81 | G239: 84.5 | H239: 87.8 | I239: 91.8 | J239: 99.3 | K239: 105
D240: 105 | E240: 79.6 | F240: 81.9 | G240: 85.5 | H240: 88.7 | I240: 92.8 | J240: 100.3 | K240: 106
D241: 106 | E241: 80.5 | F241: 82.8 | G241: 86.4 | H241: 89.7 | I241: 93.7 | J241: 101.3 | K241: 107
D242: 107 | E242: 81.4 | F242: 83.7 | G242: 87.3 | H242: 90.6 | I242: 94.7 | J242: 102.4 | K242: 108
D243: 108 | E243: 82.3 | F243: 84.6 | G243: 88.2 | H243: 91.6 | I243: 95.7 | J243: 103.4 | K243: 109
D244: 109 | E244: 83.1 | F244: 85.5 | G244: 89.1 | H244: 92.5 | I244: 96.7 | J244: 104.4 | K244: 110
D245: 110 | E245: 84 | F245: 86.4 | G245: 90.1 | H245: 93.4 | I245: 97.6 | J245: 105.4 | K245: 111
D246: 111 | E246: 84.9 | F246: 87.3 | G246: 91 | H246: 94.4 | I246: 98.6 | J246: 106.5 | K246: 112
D247: 112 | E247: 85.8 | F247: 88.2 | G247: 91.9 | H247: 95.3 | I247: 99.6 | J247: 107.5 | K247: 113
D248: 113 | E248: 86.7 | F248: 89.1 | G248: 92.8 | H248: 96.3 | I248: 100.5 | J248: 108.5 | K248: 114
D249: 114 | E249: 87.6 | F249: 90 | G249: 93.8 | H249: 97.2 | I249: 101.5 | J249: 109.6 | K249: 115
D250: 115 | E250: 88.5 | F250: 90.9 | G250: 94.7 | H250: 98.2 | I250: 102.5 | J250: 110.6 | K250: 116
D251: 116 | E251: 89.4 | F251: 91.8 | G251: 95.6 | H251: 99.1 | I251: 103.5 | J251: 111.6 | K251: 117
D252: 117 | E252: 90.2 | F252: 92.7 | G252: 96.5 | H252: 100.1 | I252: 104.4 | J252: 112.6 | K252: 118
D253: 118 | E253: 91.1 | F253: 93.6 | G253: 97.5 | H253: 101 | I253: 105.4 | J253: 113.7 | K253: 119
D254: 119 | E254: 92 | F254: 94.5 | G254: 98.4 | H254: 102 | I254: 106.4 | J254: 114.7 | K254: 120
D255: 120 | E255: 92.9 | F255: 95.4 | G255: 99.3 | H255: 102.9 | I255: 107.4 | J255: 115.7 | K255: 121
D256: 121 | E256: 93.8 | F256: 96.3 | G256: 100.3 | H256: 103.9 | I256: 108.3 | J256: 116.7 | K256: 122
D257: 122 | E257: 94.7 | F257: 97.2 | G257: 101.2 | H257: 104.8 | I257: 109.3 | J257: 117.8 | K257: 123
D258: 123 | E258: 95.6 | F258: 98.2 | G258: 102.1 | H258: 105.8 | I258: 110.3 | J258: 118.8 | K258: 124
D259: 124 | E259: 96.5 | F259: 99.1 | G259: 103 | H259: 106.7 | I259: 111.3 | J259: 119.8 | K259: 125
D260: 125 | E260: 97.4 | F260: 100 | G260: 104 | H260: 107.7 | I260: 112.3 | J260: 120.9 | K260: 126
D261: 126 | E261: 98.3 | F261: 100.9 | G261: 104.9 | H261: 108.6 | I261: 113.2 | J261: 121.9 | K261: 127
D262: 127 | E262: 99.2 | F262: 101.8 | G262: 105.8 | H262: 109.6 | I262: 114.2 | J262: 122.9 | K262: 128
D263: 128 | E263: 100.1 | F263: 102.7 | G263: 106.8 | H263: 110.5 | I263: 115.2 | J263: 124 | K263: =Erlangs($D263,K$135) -> 

Sheet Factores Tráfico y Enrutamiento
C32: Tráfico total
D34: Código para el modelo | E34: Servicio | F34: Tráfico | G34: Cuota de mercado | H34: Tráfico del operador
D35: =Servicios!D24 -> VOZ01 | E35: =Servicios!F24 -> Tráfico Entrante LDI | F35: ='Inputs de Tráfico'!H31 -> 87277.03145 | G35: ='Inputs de Tráfico'!$E$25 -> 1 | H35: =F35*G35 -> 87277.03145
D36: =Servicios!D25 -> VOZ02 | E36: =Servicios!F25 -> Tráfico Entrante LDN | F36: ='Inputs de Tráfico'!H32 -> 174638.9777 | G36: ='Inputs de Tráfico'!$E$25 -> 1 | H36: 174638.9777
D37: =Servicios!D26 -> VOZ03 | E37: =Servicios!F26 -> Tráfico Entrante Local | F37: ='Inputs de Tráfico'!H33 -> 839802.8858 | G37: ='Inputs de Tráfico'!$E$25 -> 1 | H37: 839802.8858
D38: =Servicios!D27 -> VOZ04 | E38: =Servicios!F27 -> Tráfico Originado LDI | F38: ='Inputs de Tráfico'!H34 -> 58162.02515 | G38: ='Inputs de Tráfico'!$E$25 -> 1 | H38: 58162.02515
D39: =Servicios!D28 -> VOZ05 | E39: =Servicios!F28 -> Tráfico Originado LDN | F39: ='Inputs de Tráfico'!H35 -> 176538.7323 | G39: ='Inputs de Tráfico'!$E$25 -> 1 | H39: 176538.7323
D40: =Servicios!D29 -> VOZ06 | E40: =Servicios!F29 -> Tráfico Originado Local | F40: ='Inputs de Tráfico'!H36 -> 1009907.083 | G40: ='Inputs de Tráfico'!$E$25 -> 1 | H40: 1009907.083
D41: =Servicios!D30 -> VOZ07 | E41: =Servicios!F30 -> Tráfico OnNet Local | F41: ='Inputs de Tráfico'!H37 -> 6287410.403 | G41: ='Inputs de Tráfico'!$E$25 -> 1 | H41: =F41*G41 -> 6287410.403
D42: =Servicios!D31 -> VOZ08 | E42: =Servicios!F31 -> Tráfico OnNet LDN | F42: ='Inputs de Tráfico'!H38 -> 1413668.79 | G42: ='Inputs de Tráfico'!$E$25 -> 1 | H42: =F42*G42 -> 1413668.79
D43: Total | F43: =SUM(F35:F42) -> 10047405.93 | H43: =SUM(H35:H42) -> 10047405.93
C45: Factores de enrutamiento
D47: Código para el modelo | E47: Servicio | F47: Unidades | G47: ='Categorías de Costos'!$P$24 -> BSS | H47: ='Categorías de Costos'!$P$25 -> NSS
D48: =Servicios!D24 -> VOZ01 | E48: =Servicios!F24 -> Tráfico Entrante LDI | F48: ="min (thousands)" -> min (thousands) | G48: ='Inputs de Tráfico'!F55 -> 1 | H48: ='Inputs de Tráfico'!G55 -> 1
D49: =Servicios!D25 -> VOZ02 | E49: =Servicios!F25 -> Tráfico Entrante LDN | F49: min (thousands) | G49: ='Inputs de Tráfico'!F56 -> 1 | H49: ='Inputs de Tráfico'!G56 -> 1
D50: =Servicios!D26 -> VOZ03 | E50: =Servicios!F26 -> Tráfico Entrante Local | F50: min (thousands) | G50: ='Inputs de Tráfico'!F57 -> 1 | H50: ='Inputs de Tráfico'!G57 -> 1
D51: =Servicios!D27 -> VOZ04 | E51: =Servicios!F27 -> Tráfico Originado LDI | F51: min (thousands) | G51: ='Inputs de Tráfico'!F58 -> 1 | H51: ='Inputs de Tráfico'!G58 -> 1
D52: =Servicios!D28 -> VOZ05 | E52: =Servicios!F28 -> Tráfico Originado LDN | F52: min (thousands) | G52: ='Inputs de Tráfico'!F59 -> 1 | H52: ='Inputs de Tráfico'!G59 -> 1
D53: =Servicios!D29 -> VOZ06 | E53: =Servicios!F29 -> Tráfico Originado Local | F53: min (thousands) | G53: ='Inputs de Tráfico'!F60 -> 1 | H53: ='Inputs de Tráfico'!G60 -> 1
D54: =Servicios!D30 -> VOZ07 | E54: =Servicios!F30 -> Tráfico OnNet Local | F54: min (thousands) | G54: ='Inputs de Tráfico'!F61 -> 1 | H54: ='Inputs de Tráfico'!G61 -> 1
D55: =Servicios!D31 -> VOZ08 | E55: =Servicios!F31 -> Tráfico OnNet LDN | F55: min (thousands) | G55: ='Inputs de Tráfico'!F62 -> 1 | H55: ='Inputs de Tráfico'!G62 -> 1
C58: Uso total
D60: Código para el modelo | E60: Servicio | F60: Unidades | G60: ='Categorías de Costos'!$P$24 -> BSS | H60: ='Categorías de Costos'!$P$25 -> NSS
D61: =Servicios!D24 -> VOZ01 | E61: =Servicios!F24 -> Tráfico Entrante LDI | F61: ="min (thousands)" -> min (thousands) | G61: ='Factores Tráfico y Enrutamiento'!G48*$H35 -> 87277.03145 | H61: ='Factores Tráfico y Enrutamiento'!H48*$H35 -> 87277.03145
D62: =Servicios!D25 -> VOZ02 | E62: =Servicios!F25 -> Tráfico Entrante LDN | F62: ="min (thousands)" -> min (thousands) | G62: ='Factores Tráfico y Enrutamiento'!G49*$H36 -> 174638.9777 | H62: ='Factores Tráfico y Enrutamiento'!H49*$H36 -> 174638.9777
D63: =Servicios!D26 -> VOZ03 | E63: =Servicios!F26 -> Tráfico Entrante Local | F63: min (thousands) | G63: ='Factores Tráfico y Enrutamiento'!G50*$H37 -> 839802.8858 | H63: ='Factores Tráfico y Enrutamiento'!H50*$H37 -> 839802.8858
D64: =Servicios!D27 -> VOZ04 | E64: =Servicios!F27 -> Tráfico Originado LDI | F64: min (thousands) | G64: ='Factores Tráfico y Enrutamiento'!G51*$H38 -> 58162.02515 | H64: ='Factores Tráfico y Enrutamiento'!H51*$H38 -> 58162.02515
D65: =Servicios!D28 -> VOZ05 | E65: =Servicios!F28 -> Tráfico Originado LDN | F65: min (thousands) | G65: ='Factores Tráfico y Enrutamiento'!G52*$H39 -> 176538.7323 | H65: ='Factores Tráfico y Enrutamiento'!H52*$H39 -> 176538.7323
D66: =Servicios!D29 -> VOZ06 | E66: =Servicios!F29 -> Tráfico Originado Local | F66: min (thousands) | G66: ='Factores Tráfico y Enrutamiento'!G53*$H40 -> 1009907.083 | H66: ='Factores Tráfico y Enrutamiento'!H53*$H40 -> 1009907.083
D67: =Servicios!D30 -> VOZ07 | E67: =Servicios!F30 -> Tráfico OnNet Local | F67: min (thousands) | G67: ='Factores Tráfico y Enrutamiento'!G54*$H41 -> 6287410.403 | H67: ='Factores Tráfico y Enrutamiento'!H54*$H41 -> 6287410.403
D68: =Servicios!D31 -> VOZ08 | E68: =Servicios!F31 -> Tráfico OnNet LDN | F68: min (thousands) | G68: ='Factores Tráfico y Enrutamiento'!G55*$H42 -> 1413668.79 | H68: ='Factores Tráfico y Enrutamiento'!H55*$H42 -> 1413668.79
D69: Total | F69: min (thousands) | G69: =SUM(G61:G68) -> 10047405.93 | H69: =SUM(H61:H68) -> 10047405.93
C72: Tráfico de red
E74: ='Categorías de Costos'!$P$24 -> BSS | F74: ='Categorías de Costos'!$P$25 -> NSS
E75: Erlangs | F75: BHCA
D76: Factor de conversión de Mmitts a volumen | E76: 0 | F76: ='Inputs Dimensionamiento Red'!F41 -> 201.7548103
D77: Run rate del tráfico total de red | E77: 0 | F77: =H69*F76/1000 -> 2027112.477
D78: Crecimiento anual | E78: 0 | F78: 0
D79: Construcción anticipada (años) | E79: 0 | F79: 0
D80: Factor de construcción anticipada | E80: 0 | F80: =(1+F78)^F79 -> 1
D81: Input de dimensionamiento de red | E81: 0 | F81: =F77*F80 -> 2027112.477
C84: Suscriptores
E86: HLR
E87: Suscriptores
D88: Número total suscriptores | E88: ='Inputs de Tráfico'!$F$47 -> 13114150
D89: Cuota de mercado | E89: ='Inputs de Tráfico'!$E$25 -> 1
D90: Run rate del total de suscriptores | E90: =E88*E89 -> 13114150
D91: Crecimiento anual | E91: =(+'Inputs de Tráfico'!F47-'Inputs de Tráfico'!E47)/'Inputs de Tráfico'!E47 -> 0.389745062
D92: Construcción anticipada (años) | E92: 0
D93: Factor de construcción anticipada | E93: =(1+E91)^E92 -> 1
D94: Input de dimensionamiento de red | E94: =E90*E93 -> 13114150

Sheet Traffic
I10: Auxiliar trafico ficticio
A11: city | B11: geo | C11: sens | D11: type | E11: Complete | F11: min | I11: trafico | J11: min
A12: Amazonas | B12: Incoming | C12: LDI | E12: =B12&" "&" "&C12&" "&D12 -> Incoming LDI | F12: =+J12/24 -> 3636542.977 | I12: Tráfico Entrante LDI | J12: =+'Inputs de Tráfico'!H31*1000 -> 87277031.45
A13: Amazonas | B13: Incoming | C13: LDN | D13: Fixed - Mobile | E13: Incoming LDN Fixed - Mobile | F13: =+J13/24/2 -> 3638312.035 | I13: Tráfico Entrante LDN | J13: =+'Inputs de Tráfico'!H32*1000 -> 174638977.7
A14: Amazonas | B14: Incoming | C14: LDN | D14: Mobile - Mobile | E14: Incoming LDN Mobile - Mobile | F14: =+F13 -> 3638312.035 | I14: Tráfico Entrante Local | J14: =+'Inputs de Tráfico'!H33*1000 -> 839802885.8
A15: Amazonas | B15: Incoming | C15: Local | D15: Fixed - Mobile | E15: Incoming Local Fixed - Mobile | F15: =+J14/24/2 -> 17495893.46 | I15: Tráfico Originado LDI | J15: =+'Inputs de Tráfico'!H34*1000 -> 58162025.15
A16: Amazonas | B16: Incoming | C16: Local | D16: Mobile - Mobile | E16: Incoming Local Mobile - Mobile | F16: =+F15 -> 17495893.46 | I16: Tráfico Originado LDN | J16: =+'Inputs de Tráfico'!H35*1000 -> 176538732.3
A17: Amazonas | B17: On-net | C17: LDN | D17: Mobile - Mobile | E17: On-net LDN Mobile - Mobile | F17: =+J19/24 -> 58902866.25 | I17: Tráfico Originado Local | J17: =+'Inputs de Tráfico'!H36*1000 -> 1009907083
A18: Amazonas | B18: On-net | C18: Local | D18: Mobile - Mobile | E18: On-net Local Mobile - Mobile | F18: =+J18/24 -> 261975433.5 | I18: Tráfico OnNet Local | J18: =+'Inputs de Tráfico'!H37*1000 -> 6287410403
A19: Amazonas | B19: Outgoing | C19: LDI | E19: Outgoing LDI | F19: =+J15/24 -> 2423417.715 | I19: Tráfico OnNet LDN | J19: =+'Inputs de Tráfico'!H38*1000 -> 1413668790
A20: Amazonas | B20: Outgoing | C20: LDN | D20: Mobile - Fixed | E20: Outgoing LDN Mobile - Fixed | F20: =+J16/24/2 -> 3677890.256 | J20: =SUM(J12:J19) -> 1.004740593e+10
A21: Amazonas | B21: Outgoing | C21: LDN | D21: Mobile - Mobile | E21: Outgoing LDN Mobile - Mobile | F21: =+F20 -> 3677890.256
A22: Amazonas | B22: Outgoing | C22: Local | D22: Mobile - Fixed | E22: Outgoing Local Mobile - Fixed | F22: =+J17/24/2 -> 21039730.9 | I22: LOS DATOS LA COLUMNA "MIN" SON FICTICIOS. EN ESTE EJEMPLO SE OBTIENEN DISTRIBUYENDO HOMOGENEAMENTE EL TRAFICO POR DEPARTAMENTO
A23: Amazonas | B23: Outgoing | C23: Local | D23: Mobile - Mobile | E23: Outgoing Local Mobile - Mobile | F23: =+F22 -> 21039730.9
A24: Ancash | B24: Incoming | C24: LDI | E24: Incoming LDI | F24: =+F12 -> 3636542.977
A25: Ancash | B25: Incoming | C25: LDN | D25: Fixed - Mobile | E25: Incoming LDN Fixed - Mobile | F25: =+F13 -> 3638312.035
A26: Ancash | B26: Incoming | C26: LDN | D26: Mobile - Mobile | E26: Incoming LDN Mobile - Mobile | F26: 3638312.035
A27: Ancash | B27: Incoming | C27: Local | D27: Fixed - Mobile | E27: Incoming Local Fixed - Mobile | F27: 17495893.46
A28: Ancash | B28: Incoming | C28: Local | D28: Mobile - Mobile | E28: Incoming Local Mobile - Mobile | F28: 17495893.46
A29: Ancash | B29: On-net | C29: LDN | D29: Mobile - Mobile | E29: On-net LDN Mobile - Mobile | F29: 58902866.25
A30: Ancash | B30: On-net | C30: Local | D30: Mobile - Mobile | E30: On-net Local Mobile - Mobile | F30: 261975433.5
A31: Ancash | B31: Outgoing | C31: LDI | E31: Outgoing LDI | F31: 2423417.715
A32: Ancash | B32: Outgoing | C32: LDN | D32: Mobile - Fixed | E32: Outgoing LDN Mobile - Fixed | F32: 3677890.256
A33: Ancash | B33: Outgoing | C33: LDN | D33: Mobile - Mobile | E33: Outgoing LDN Mobile - Mobile | F33: 3677890.256
A34: Ancash | B34: Outgoing | C34: Local | D34: Mobile - Fixed | E34: Outgoing Local Mobile - Fixed | F34: 21039730.9
A35: Ancash | B35: Outgoing | C35: Local | D35: Mobile - Mobile | E35: Outgoing Local Mobile - Mobile | F35: 21039730.9
A36: Apurimac | B36: Incoming | C36: LDI | E36: Incoming LDI | F36: 3636542.977
A37: Apurimac | B37: Incoming | C37: LDN | D37: Fixed - Mobile | E37: Incoming LDN Fixed - Mobile | F37: 3638312.035
A38: Apurimac | B38: Incoming | C38: LDN | D38: Mobile - Mobile | E38: Incoming LDN Mobile - Mobile | F38: 3638312.035
A39: Apurimac | B39: Incoming | C39: Local | D39: Fixed - Mobile | E39: Incoming Local Fixed - Mobile | F39: 17495893.46
A40: Apurimac | B40: Incoming | C40: Local | D40: Mobile - Mobile | E40: Incoming Local Mobile - Mobile | F40: 17495893.46
A41: Apurimac | B41: On-net | C41: LDN | D41: Mobile - Mobile | E41: On-net LDN Mobile - Mobile | F41: 58902866.25
A42: Apurimac | B42: On-net | C42: Local | D42: Mobile - Mobile | E42: On-net Local Mobile - Mobile | F42: 261975433.5
A43: Apurimac | B43: Outgoing | C43: LDI | E43: Outgoing LDI | F43: 2423417.715
A44: Apurimac | B44: Outgoing | C44: LDN | D44: Mobile - Fixed | E44: Outgoing LDN Mobile - Fixed | F44: 3677890.256
A45: Apurimac | B45: Outgoing | C45: LDN | D45: Mobile - Mobile | E45: Outgoing LDN Mobile - Mobile | F45: 3677890.256
A46: Apurimac | B46: Outgoing | C46: Local | D46: Mobile - Fixed | E46: Outgoing Local Mobile - Fixed | F46: 21039730.9
A47: Apurimac | B47: Outgoing | C47: Local | D47: Mobile - Mobile | E47: Outgoing Local Mobile - Mobile | F47: 21039730.9
A48: Arequipa | B48: Incoming | C48: LDI | E48: Incoming LDI | F48: 3636542.977
A49: Arequipa | B49: Incoming | C49: LDN | D49: Fixed - Mobile | E49: Incoming LDN Fixed - Mobile | F49: 3638312.035
A50: Arequipa | B50: Incoming | C50: LDN | D50: Mobile - Mobile | E50: Incoming LDN Mobile - Mobile | F50: 3638312.035
A51: Arequipa | B51: Incoming | C51: Local | D51: Fixed - Mobile | E51: Incoming Local Fixed - Mobile | F51: 17495893.46
A52: Arequipa | B52: Incoming | C52: Local | D52: Mobile - Mobile | E52: Incoming Local Mobile - Mobile | F52: 17495893.46
A53: Arequipa | B53: On-net | C53: LDN | D53: Mobile - Mobile | E53: On-net LDN Mobile - Mobile | F53: 58902866.25
A54: Arequipa | B54: On-net | C54: Local | D54: Mobile - Mobile | E54: On-net Local Mobile - Mobile | F54: 261975433.5
A55: Arequipa | B55: Outgoing | C55: LDI | E55: Outgoing LDI | F55: 2423417.715
A56: Arequipa | B56: Outgoing | C56: LDN | D56: Mobile - Fixed | E56: Outgoing LDN Mobile - Fixed | F56: 3677890.256
A57: Arequipa | B57: Outgoing | C57: LDN | D57: Mobile - Mobile | E57: Outgoing LDN Mobile - Mobile | F57: 3677890.256
A58: Arequipa | B58: Outgoing | C58: Local | D58: Mobile - Fixed | E58: Outgoing Local Mobile - Fixed | F58: 21039730.9
A59: Arequipa | B59: Outgoing | C59: Local | D59: Mobile - Mobile | E59: Outgoing Local Mobile - Mobile | F59: 21039730.9
A60: Ayacucho | B60: Incoming | C60: LDI | E60: Incoming LDI | F60: 3636542.977
A61: Ayacucho | B61: Incoming | C61: LDN | D61: Fixed - Mobile | E61: Incoming LDN Fixed - Mobile | F61: 3638312.035
A62: Ayacucho | B62: Incoming | C62: LDN | D62: Mobile - Mobile | E62: Incoming LDN Mobile - Mobile | F62: 3638312.035
A63: Ayacucho | B63: Incoming | C63: Local | D63: Fixed - Mobile | E63: Incoming Local Fixed - Mobile | F63: 17495893.46
A64: Ayacucho | B64: Incoming | C64: Local | D64: Mobile - Mobile | E64: Incoming Local Mobile - Mobile | F64: 17495893.46
A65: Ayacucho | B65: On-net | C65: LDN | D65: Mobile - Mobile | E65: On-net LDN Mobile - Mobile | F65: 58902866.25
A66: Ayacucho | B66: On-net | C66: Local | D66: Mobile - Mobile | E66: On-net Local Mobile - Mobile | F66: 261975433.5
A67: Ayacucho | B67: Outgoing | C67: LDI | E67: Outgoing LDI | F67: 2423417.715
A68: Ayacucho | B68: Outgoing | C68: LDN | D68: Mobile - Fixed | E68: Outgoing LDN Mobile - Fixed | F68: 3677890.256
A69: Ayacucho | B69: Outgoing | C69: LDN | D69: Mobile - Mobile | E69: Outgoing LDN Mobile - Mobile | F69: 3677890.256
A70: Ayacucho | B70: Outgoing | C70: Local | D70: Mobile - Fixed | E70: Outgoing Local Mobile - Fixed | F70: 21039730.9
A71: Ayacucho | B71: Outgoing | C71: Local | D71: Mobile - Mobile | E71: Outgoing Local Mobile - Mobile | F71: 21039730.9
A72: Cajamarca | B72: Incoming | C72: LDI | E72: Incoming LDI | F72: 3636542.977
A73: Cajamarca | B73: Incoming | C73: LDN | D73: Fixed - Mobile | E73: Incoming LDN Fixed - Mobile | F73: 3638312.035
A74: Cajamarca | B74: Incoming | C74: LDN | D74: Mobile - Mobile | E74: Incoming LDN Mobile - Mobile | F74: 3638312.035
A75: Cajamarca | B75: Incoming | C75: Local | D75: Fixed - Mobile | E75: Incoming Local Fixed - Mobile | F75: 17495893.46
A76: Cajamarca | B76: Incoming | C76: Local | D76: Mobile - Mobile | E76: =B76&" "&" "&C76&" "&D76 -> Incoming Local Mobile - Mobile | F76: 17495893.46
A77: Cajamarca | B77: On-net | C77: LDN | D77: Mobile - Mobile | E77: On-net LDN Mobile - Mobile | F77: 58902866.25
A78: Cajamarca | B78: On-net | C78: Local | D78: Mobile - Mobile | E78: On-net Local Mobile - Mobile | F78: 261975433.5
A79: Cajamarca | B79: Outgoing | C79: LDI | E79: Outgoing LDI | F79: 2423417.715
A80: Cajamarca | B80: Outgoing | C80: LDN | D80: Mobile - Fixed | E80: Outgoing LDN Mobile - Fixed | F80: 3677890.256
A81: Cajamarca | B81: Outgoing | C81: LDN | D81: Mobile - Mobile | E81: Outgoing LDN Mobile - Mobile | F81: 3677890.256
A82: Cajamarca | B82: Outgoing | C82: Local | D82: Mobile - Fixed | E82: Outgoing Local Mobile - Fixed | F82: 21039730.9
A83: Cajamarca | B83: Outgoing | C83: Local | D83: Mobile - Mobile | E83: Outgoing Local Mobile - Mobile | F83: 21039730.9
A84: Cusco | B84: Incoming | C84: LDI | E84: Incoming LDI | F84: 3636542.977
A85: Cusco | B85: Incoming | C85: LDN | D85: Fixed - Mobile | E85: Incoming LDN Fixed - Mobile | F85: 3638312.035
A86: Cusco | B86: Incoming | C86: LDN | D86: Mobile - Mobile | E86: Incoming LDN Mobile - Mobile | F86: 3638312.035
A87: Cusco | B87: Incoming | C87: Local | D87: Fixed - Mobile | E87: Incoming Local Fixed - Mobile | F87: 17495893.46
A88: Cusco | B88: Incoming | C88: Local | D88: Mobile - Mobile | E88: Incoming Local Mobile - Mobile | F88: 17495893.46
A89: Cusco | B89: On-net | C89: LDN | D89: Mobile - Mobile | E89: On-net LDN Mobile - Mobile | F89: =+F77 -> 58902866.25
A90: Cusco | B90: On-net | C90: Local | D90: Mobile - Mobile | E90: On-net Local Mobile - Mobile | F90: 261975433.5
A91: Cusco | B91: Outgoing | C91: LDI | E91: Outgoing LDI | F91: 2423417.715
A92: Cusco | B92: Outgoing | C92: LDN | D92: Mobile - Fixed | E92: Outgoing LDN Mobile - Fixed | F92: 3677890.256
A93: Cusco | B93: Outgoing | C93: LDN | D93: Mobile - Mobile | E93: Outgoing LDN Mobile - Mobile | F93: 3677890.256
A94: Cusco | B94: Outgoing | C94: Local | D94: Mobile - Fixed | E94: Outgoing Local Mobile - Fixed | F94: 21039730.9
A95: Cusco | B95: Outgoing | C95: Local | D95: Mobile - Mobile | E95: Outgoing Local Mobile - Mobile | F95: 21039730.9
A96: Huancavelica | B96: Incoming | C96: LDI | E96: Incoming LDI | F96: 3636542.977
A97: Huancavelica | B97: Incoming | C97: LDN | D97: Fixed - Mobile | E97: Incoming LDN Fixed - Mobile | F97: 3638312.035
A98: Huancavelica | B98: Incoming | C98: LDN | D98: Mobile - Mobile | E98: Incoming LDN Mobile - Mobile | F98: 3638312.035
A99: Huancavelica | B99: Incoming | C99: Local | D99: Fixed - Mobile | E99: Incoming Local Fixed - Mobile | F99: 17495893.46
A100: Huancavelica | B100: Incoming | C100: Local | D100: Mobile - Mobile | E100: Incoming Local Mobile - Mobile | F100: 17495893.46
A101: Huancavelica | B101: On-net | C101: LDN | D101: Mobile - Mobile | E101: On-net LDN Mobile - Mobile | F101: 58902866.25
A102: Huancavelica | B102: On-net | C102: Local | D102: Mobile - Mobile | E102: On-net Local Mobile - Mobile | F102: 261975433.5
A103: Huancavelica | B103: Outgoing | C103: LDI | E103: Outgoing LDI | F103: 2423417.715
A104: Huancavelica | B104: Outgoing | C104: LDN | D104: Mobile - Fixed | E104: Outgoing LDN Mobile - Fixed | F104: 3677890.256
A105: Huancavelica | B105: Outgoing | C105: LDN | D105: Mobile - Mobile | E105: Outgoing LDN Mobile - Mobile | F105: 3677890.256
A106: Huancavelica | B106: Outgoing | C106: Local | D106: Mobile - Fixed | E106: Outgoing Local Mobile - Fixed | F106: 21039730.9
A107: Huancavelica | B107: Outgoing | C107: Local | D107: Mobile - Mobile | E107: Outgoing Local Mobile - Mobile | F107: 21039730.9
A108: Huanuco | B108: Incoming | C108: LDI | E108: Incoming LDI | F108: 3636542.977
A109: Huanuco | B109: Incoming | C109: LDN | D109: Fixed - Mobile | E109: Incoming LDN Fixed - Mobile | F109: 3638312.035
A110: Huanuco | B110: Incoming | C110: LDN | D110: Mobile - Mobile | E110: Incoming LDN Mobile - Mobile | F110: 3638312.035
A111: Huanuco | B111: Incoming | C111: Local | D111: Fixed - Mobile | E111: Incoming Local Fixed - Mobile | F111: 17495893.46
A112: Huanuco | B112: Incoming | C112: Local | D112: Mobile - Mobile | E112: Incoming Local Mobile - Mobile | F112: 17495893.46
A113: Huanuco | B113: On-net | C113: LDN | D113: Mobile - Mobile | E113: On-net LDN Mobile - Mobile | F113: 58902866.25
A114: Huanuco | B114: On-net | C114: Local | D114: Mobile - Mobile | E114: On-net Local Mobile - Mobile | F114: 261975433.5
A115: Huanuco | B115: Outgoing | C115: LDI | E115: Outgoing LDI | F115: 2423417.715
A116: Huanuco | B116: Outgoing | C116: LDN | D116: Mobile - Fixed | E116: Outgoing LDN Mobile - Fixed | F116: 3677890.256
A117: Huanuco | B117: Outgoing | C117: LDN | D117: Mobile - Mobile | E117: Outgoing LDN Mobile - Mobile | F117: 3677890.256
A118: Huanuco | B118: Outgoing | C118: Local | D118: Mobile - Fixed | E118: Outgoing Local Mobile - Fixed | F118: 21039730.9
A119: Huanuco | B119: Outgoing | C119: Local | D119: Mobile - Mobile | E119: Outgoing Local Mobile - Mobile | F119: 21039730.9
A120: Ica | B120: Incoming | C120: LDI | E120: Incoming LDI | F120: 3636542.977
A121: Ica | B121: Incoming | C121: LDN | D121: Fixed - Mobile | E121: Incoming LDN Fixed - Mobile | F121: 3638312.035
A122: Ica | B122: Incoming | C122: LDN | D122: Mobile - Mobile | E122: Incoming LDN Mobile - Mobile | F122: 3638312.035
A123: Ica | B123: Incoming | C123: Local | D123: Fixed - Mobile | E123: Incoming Local Fixed - Mobile | F123: 17495893.46
A124: Ica | B124: Incoming | C124: Local | D124: Mobile - Mobile | E124: Incoming Local Mobile - Mobile | F124: 17495893.46
A125: Ica | B125: On-net | C125: LDN | D125: Mobile - Mobile | E125: On-net LDN Mobile - Mobile | F125: 58902866.25
A126: Ica | B126: On-net | C126: Local | D126: Mobile - Mobile | E126: On-net Local Mobile - Mobile | F126: 261975433.5
A127: Ica | B127: Outgoing | C127: LDI | E127: Outgoing LDI | F127: 2423417.715
A128: Ica | B128: Outgoing | C128: LDN | D128: Mobile - Fixed | E128: Outgoing LDN Mobile - Fixed | F128: 3677890.256
A129: Ica | B129: Outgoing | C129: LDN | D129: Mobile - Mobile | E129: Outgoing LDN Mobile - Mobile | F129: 3677890.256
A130: Ica | B130: Outgoing | C130: Local | D130: Mobile - Fixed | E130: Outgoing Local Mobile - Fixed | F130: 21039730.9
A131: Ica | B131: Outgoing | C131: Local | D131: Mobile - Mobile | E131: Outgoing Local Mobile - Mobile | F131: 21039730.9
A132: Junin | B132: Incoming | C132: LDI | E132: Incoming LDI | F132: 3636542.977
A133: Junin | B133: Incoming | C133: LDN | D133: Fixed - Mobile | E133: Incoming LDN Fixed - Mobile | F133: 3638312.035
A134: Junin | B134: Incoming | C134: LDN | D134: Mobile - Mobile | E134: Incoming LDN Mobile - Mobile | F134: 3638312.035
A135: Junin | B135: Incoming | C135: Local | D135: Fixed - Mobile | E135: Incoming Local Fixed - Mobile | F135: 17495893.46
A136: Junin | B136: Incoming | C136: Local | D136: Mobile - Mobile | E136: Incoming Local Mobile - Mobile | F136: 17495893.46
A137: Junin | B137: On-net | C137: LDN | D137: Mobile - Mobile | E137: On-net LDN Mobile - Mobile | F137: 58902866.25
A138: Junin | B138: On-net | C138: Local | D138: Mobile - Mobile | E138: On-net Local Mobile - Mobile | F138: 261975433.5
A139: Junin | B139: Outgoing | C139: LDI | E139: Outgoing LDI | F139: 2423417.715
A140: Junin | B140: Outgoing | C140: LDN | D140: Mobile - Fixed | E140: =B140&" "&" "&C140&" "&D140 -> Outgoing LDN Mobile - Fixed | F140: 3677890.256
A141: Junin | B141: Outgoing | C141: LDN | D141: Mobile - Mobile | E141: Outgoing LDN Mobile - Mobile | F141: 3677890.256
A142: Junin | B142: Outgoing | C142: Local | D142: Mobile - Fixed | E142: Outgoing Local Mobile - Fixed | F142: 21039730.9
A143: Junin | B143: Outgoing | C143: Local | D143: Mobile - Mobile | E143: Outgoing Local Mobile - Mobile | F143: 21039730.9
A144: Lambayeque | B144: Incoming | C144: LDI | E144: Incoming LDI | F144: 3636542.977
A145: Lambayeque | B145: Incoming | C145: LDN | D145: Fixed - Mobile | E145: Incoming LDN Fixed - Mobile | F145: 3638312.035
A146: Lambayeque | B146: Incoming | C146: LDN | D146: Mobile - Mobile | E146: Incoming LDN Mobile - Mobile | F146: 3638312.035
A147: Lambayeque | B147: Incoming | C147: Local | D147: Fixed - Mobile | E147: Incoming Local Fixed - Mobile | F147: 17495893.46
A148: Lambayeque | B148: Incoming | C148: Local | D148: Mobile - Mobile | E148: Incoming Local Mobile - Mobile | F148: 17495893.46
A149: Lambayeque | B149: On-net | C149: LDN | D149: Mobile - Mobile | E149: On-net LDN Mobile - Mobile | F149: 58902866.25
A150: Lambayeque | B150: On-net | C150: Local | D150: Mobile - Mobile | E150: On-net Local Mobile - Mobile | F150: 261975433.5
A151: Lambayeque | B151: Outgoing | C151: LDI | E151: Outgoing LDI | F151: 2423417.715
A152: Lambayeque | B152: Outgoing | C152: LDN | D152: Mobile - Fixed | E152: Outgoing LDN Mobile - Fixed | F152: 3677890.256
A153: Lambayeque | B153: Outgoing | C153: LDN | D153: Mobile - Mobile | E153: Outgoing LDN Mobile - Mobile | F153: =+F141 -> 3677890.256
A154: Lambayeque | B154: Outgoing | C154: Local | D154: Mobile - Fixed | E154: Outgoing Local Mobile - Fixed | F154: 21039730.9
A155: Lambayeque | B155: Outgoing | C155: Local | D155: Mobile - Mobile | E155: Outgoing Local Mobile - Mobile | F155: 21039730.9
A156: Libertad | B156: Incoming | C156: LDI | E156: Incoming LDI | F156: 3636542.977
A157: Libertad | B157: Incoming | C157: LDN | D157: Fixed - Mobile | E157: Incoming LDN Fixed - Mobile | F157: 3638312.035
A158: Libertad | B158: Incoming | C158: LDN | D158: Mobile - Mobile | E158: Incoming LDN Mobile - Mobile | F158: 3638312.035
A159: Libertad | B159: Incoming | C159: Local | D159: Fixed - Mobile | E159: Incoming Local Fixed - Mobile | F159: 17495893.46
A160: Libertad | B160: Incoming | C160: Local | D160: Mobile - Mobile | E160: Incoming Local Mobile - Mobile | F160: 17495893.46
A161: Libertad | B161: On-net | C161: LDN | D161: Mobile - Mobile | E161: On-net LDN Mobile - Mobile | F161: 58902866.25
A162: Libertad | B162: On-net | C162: Local | D162: Mobile - Mobile | E162: On-net Local Mobile - Mobile | F162: 261975433.5
A163: Libertad | B163: Outgoing | C163: LDI | E163: Outgoing LDI | F163: 2423417.715
A164: Libertad | B164: Outgoing | C164: LDN | D164: Mobile - Fixed | E164: Outgoing LDN Mobile - Fixed | F164: 3677890.256
A165: Libertad | B165: Outgoing | C165: LDN | D165: Mobile - Mobile | E165: Outgoing LDN Mobile - Mobile | F165: 3677890.256
A166: Libertad | B166: Outgoing | C166: Local | D166: Mobile - Fixed | E166: Outgoing Local Mobile - Fixed | F166: 21039730.9
A167: Libertad | B167: Outgoing | C167: Local | D167: Mobile - Mobile | E167: Outgoing Local Mobile - Mobile | F167: 21039730.9
A168: Lima | B168: Incoming | C168: LDI | E168: Incoming LDI | F168: 3636542.977
A169: Lima | B169: Incoming | C169: LDN | D169: Fixed - Mobile | E169: Incoming LDN Fixed - Mobile | F169: 3638312.035
A170: Lima | B170: Incoming | C170: LDN | D170: Mobile - Mobile | E170: Incoming LDN Mobile - Mobile | F170: 3638312.035
A171: Lima | B171: Incoming | C171: Local | D171: Fixed - Mobile | E171: Incoming Local Fixed - Mobile | F171: 17495893.46
A172: Lima | B172: Incoming | C172: Local | D172: Mobile - Mobile | E172: Incoming Local Mobile - Mobile | F172: 17495893.46
A173: Lima | B173: On-net | C173: LDN | D173: Mobile - Mobile | E173: On-net LDN Mobile - Mobile | F173: 58902866.25
A174: Lima | B174: On-net | C174: Local | D174: Mobile - Mobile | E174: On-net Local Mobile - Mobile | F174: 261975433.5
A175: Lima | B175: Outgoing | C175: LDI | E175: Outgoing LDI | F175: 2423417.715
A176: Lima | B176: Outgoing | C176: LDN | D176: Mobile - Fixed | E176: Outgoing LDN Mobile - Fixed | F176: 3677890.256
A177: Lima | B177: Outgoing | C177: LDN | D177: Mobile - Mobile | E177: Outgoing LDN Mobile - Mobile | F177: 3677890.256
A178: Lima | B178: Outgoing | C178: Local | D178: Mobile - Fixed | E178: Outgoing Local Mobile - Fixed | F178: 21039730.9
A179: Lima | B179: Outgoing | C179: Local | D179: Mobile - Mobile | E179: Outgoing Local Mobile - Mobile | F179: 21039730.9
A180: Loreto | B180: Incoming | C180: LDI | E180: Incoming LDI | F180: 3636542.977
A181: Loreto | B181: Incoming | C181: LDN | D181: Fixed - Mobile | E181: Incoming LDN Fixed - Mobile | F181: 3638312.035
A182: Loreto | B182: Incoming | C182: LDN | D182: Mobile - Mobile | E182: Incoming LDN Mobile - Mobile | F182: 3638312.035
A183: Loreto | B183: Incoming | C183: Local | D183: Fixed - Mobile | E183: Incoming Local Fixed - Mobile | F183: 17495893.46
A184: Loreto | B184: Incoming | C184: Local | D184: Mobile - Mobile | E184: Incoming Local Mobile - Mobile | F184: 17495893.46
A185: Loreto | B185: On-net | C185: LDN | D185: Mobile - Mobile | E185: On-net LDN Mobile - Mobile | F185: 58902866.25
A186: Loreto | B186: On-net | C186: Local | D186: Mobile - Mobile | E186: On-net Local Mobile - Mobile | F186: 261975433.5
A187: Loreto | B187: Outgoing | C187: LDI | E187: Outgoing LDI | F187: 2423417.715
A188: Loreto | B188: Outgoing | C188: LDN | D188: Mobile - Fixed | E188: Outgoing LDN Mobile - Fixed | F188: 3677890.256
A189: Loreto | B189: Outgoing | C189: LDN | D189: Mobile - Mobile | E189: Outgoing LDN Mobile - Mobile | F189: 3677890.256
A190: Loreto | B190: Outgoing | C190: Local | D190: Mobile - Fixed | E190: Outgoing Local Mobile - Fixed | F190: 21039730.9
A191: Loreto | B191: Outgoing | C191: Local | D191: Mobile - Mobile | E191: Outgoing Local Mobile - Mobile | F191: 21039730.9
A192: Madre De Dios | B192: Incoming | C192: LDI | E192: Incoming LDI | F192: 3636542.977
A193: Madre De Dios | B193: Incoming | C193: LDN | D193: Fixed - Mobile | E193: Incoming LDN Fixed - Mobile | F193: 3638312.035
A194: Madre De Dios | B194: Incoming | C194: LDN | D194: Mobile - Mobile | E194: Incoming LDN Mobile - Mobile | F194: 3638312.035
A195: Madre De Dios | B195: Incoming | C195: Local | D195: Fixed - Mobile | E195: Incoming Local Fixed - Mobile | F195: 17495893.46
A196: Madre De Dios | B196: Incoming | C196: Local | D196: Mobile - Mobile | E196: Incoming Local Mobile - Mobile | F196: 17495893.46
A197: Madre De Dios | B197: On-net | C197: LDN | D197: Mobile - Mobile | E197: On-net LDN Mobile - Mobile | F197: 58902866.25
A198: Madre De Dios | B198: On-net | C198: Local | D198: Mobile - Mobile | E198: On-net Local Mobile - Mobile | F198: 261975433.5
A199: Madre De Dios | B199: Outgoing | C199: LDI | E199: Outgoing LDI | F199: 2423417.715
A200: Madre De Dios | B200: Outgoing | C200: LDN | D200: Mobile - Fixed | E200: Outgoing LDN Mobile - Fixed | F200: 3677890.256
A201: Madre De Dios | B201: Outgoing | C201: LDN | D201: Mobile - Mobile | E201: Outgoing LDN Mobile - Mobile | F201: 3677890.256
A202: Madre De Dios | B202: Outgoing | C202: Local | D202: Mobile - Fixed | E202: Outgoing Local Mobile - Fixed | F202: 21039730.9
A203: Madre De Dios | B203: Outgoing | C203: Local | D203: Mobile - Mobile | E203: Outgoing Local Mobile - Mobile | F203: 21039730.9
A204: Moquegua | B204: Incoming | C204: LDI | E204: =B204&" "&" "&C204&" "&D204 -> Incoming LDI | F204: 3636542.977
A205: Moquegua | B205: Incoming | C205: LDN | D205: Fixed - Mobile | E205: Incoming LDN Fixed - Mobile | F205: 3638312.035
A206: Moquegua | B206: Incoming | C206: LDN | D206: Mobile - Mobile | E206: Incoming LDN Mobile - Mobile | F206: 3638312.035
A207: Moquegua | B207: Incoming | C207: Local | D207: Fixed - Mobile | E207: Incoming Local Fixed - Mobile | F207: 17495893.46
A208: Moquegua | B208: Incoming | C208: Local | D208: Mobile - Mobile | E208: Incoming Local Mobile - Mobile | F208: 17495893.46
A209: Moquegua | B209: On-net | C209: LDN | D209: Mobile - Mobile | E209: On-net LDN Mobile - Mobile | F209: 58902866.25
... 91 more rows

Sheet AVM Traffic Net
J6: Net
K8: Fixed - Mobile
G9: Fixed - Mobile | H9: Mobile - Mobile | J9: =+G9 -> Fixed - Mobile | K9: Mobile - Mobile
G10: LDN | H10: LDN | I10: LDI | J10: LDN | K10: LDN | L10: LDI | M10: LDN
A11: city | B11: geo | C11: sens | D11: type | E11: Complete | F11: min | G11: Incoming | H11: Incoming | I11: Incoming | J11: Incoming | K11: Incoming | L11: Incoming | M11: ON-NET
A12: Amazonas | B12: Incoming | C12: LDI | E12: =B12&" "&" "&C12&" "&D12 -> Incoming LDI | F12: =+Traffic!F12 -> 3636542.977 | G12: =IF(AND(D12=G$9,C12=G$10,B12=G$11),F12,0) -> 0 | H12: =IF(AND(D12=H$9,C12=H$10,B12=H$11),$F12,0) -> 0 | I12: =IF(AND(D12=I$9,C12=I$10,B12=I$11),$F12,0) -> 3636542.977 | J12: =SUM(G12:G23) -> 3638312.035 | K12: =SUM(G12:H23) -> 7276624.069 | L12: =SUM(I12:I23) -> 3636542.977 | M12: =+F17 -> 58902866.25 | O12: =+A12&E12 -> AmazonasIncoming LDI | P12: =+F12 -> 3636542.977
A13: Amazonas | B13: Incoming | C13: LDN | D13: Fixed - Mobile | E13: Incoming LDN Fixed - Mobile | F13: =+Traffic!F13 -> 3638312.035 | G13: 3638312.035 | H13: =IF(AND(D13=H$9,C13=H$10,B13=H$11),F13,0) -> 0 | I13: 0 | O13: =+A13&E13 -> AmazonasIncoming LDN Fixed - Mobile | P13: 3638312.035
A14: Amazonas | B14: Incoming | C14: LDN | D14: Mobile - Mobile | E14: Incoming LDN Mobile - Mobile | F14: =+Traffic!F14 -> 3638312.035 | G14: 0 | H14: 3638312.035 | I14: 0 | O14: AmazonasIncoming LDN Mobile - Mobile | P14: 3638312.035
A15: Amazonas | B15: Incoming | C15: Local | D15: Fixed - Mobile | E15: Incoming Local Fixed - Mobile | F15: =+Traffic!F15 -> 17495893.46 | G15: 0 | H15: 0 | I15: 0 | O15: AmazonasIncoming Local Fixed - Mobile | P15: 17495893.46
A16: Amazonas | B16: Incoming | C16: Local | D16: Mobile - Mobile | E16: Incoming Local Mobile - Mobile | F16: =+Traffic!F16 -> 17495893.46 | G16: 0 | H16: 0 | I16: 0 | O16: AmazonasIncoming Local Mobile - Mobile | P16: 17495893.46
A17: Amazonas | B17: On-net | C17: LDN | D17: Mobile - Mobile | E17: On-net LDN Mobile - Mobile | F17: =+Traffic!F17 -> 58902866.25 | G17: 0 | H17: 0 | I17: 0 | N17: =+F17 -> 58902866.25 | O17: AmazonasOn-net LDN Mobile - Mobile | P17: 58902866.25
A18: Amazonas | B18: On-net | C18: Local | D18: Mobile - Mobile | E18: On-net Local Mobile - Mobile | F18: =+Traffic!F18 -> 261975433.5 | G18: 0 | H18: 0 | I18: 0 | O18: AmazonasOn-net Local Mobile - Mobile | P18: 261975433.5
A19: Amazonas | B19: Outgoing | C19: LDI | E19: Outgoing LDI | F19: =+Traffic!F19 -> 2423417.715 | G19: 0 | H19: 0 | I19: 0 | N19: =+F19 -> 2423417.715 | O19: AmazonasOutgoing LDI | P19: 2423417.715
A20: Amazonas | B20: Outgoing | C20: LDN | D20: Mobile - Fixed | E20: Outgoing LDN Mobile - Fixed | F20: =+Traffic!F20 -> 3677890.256 | G20: 0 | H20: 0 | I20: 0 | N20: 3677890.256 | O20: AmazonasOutgoing LDN Mobile - Fixed | P20: 3677890.256
A21: Amazonas | B21: Outgoing | C21: LDN | D21: Mobile - Mobile | E21: Outgoing LDN Mobile - Mobile | F21: =+Traffic!F21 -> 3677890.256 | G21: 0 | H21: 0 | I21: 0 | N21: 3677890.256 | O21: AmazonasOutgoing LDN Mobile - Mobile | P21: 3677890.256
A22: Amazonas | B22: Outgoing | C22: Local | D22: Mobile - Fixed | E22: Outgoing Local Mobile - Fixed | F22: =+Traffic!F22 -> 21039730.9 | G22: 0 | H22: 0 | I22: 0 | O22: AmazonasOutgoing Local Mobile - Fixed | P22: 21039730.9
A23: Amazonas | B23: Outgoing | C23: Local | D23: Mobile - Mobile | E23: Outgoing Local Mobile - Mobile | F23: =+Traffic!F23 -> 21039730.9 | G23: 0 | H23: 0 | I23: 0 | O23: AmazonasOutgoing Local Mobile - Mobile | P23: 21039730.9
A24: Ancash | B24: Incoming | C24: LDI | E24: Incoming LDI | F24: =+Traffic!F24 -> 3636542.977 | G24: 0 | H24: 0 | I24: 3636542.977 | J24: =SUM(G24:G35) -> 3638312.035 | K24: =SUM(G24:H35) -> 7276624.069 | L24: =SUM(I24:I35) -> 3636542.977 | M24: =+F29 -> 58902866.25 | O24: AncashIncoming LDI | P24: 3636542.977
A25: Ancash | B25: Incoming | C25: LDN | D25: Fixed - Mobile | E25: Incoming LDN Fixed - Mobile | F25: =+Traffic!F25 -> 3638312.035 | G25: 3638312.035 | H25: 0 | I25: 0 | O25: AncashIncoming LDN Fixed - Mobile | P25: 3638312.035
A26: Ancash | B26: Incoming | C26: LDN | D26: Mobile - Mobile | E26: Incoming LDN Mobile - Mobile | F26: =+Traffic!F26 -> 3638312.035 | G26: 0 | H26: 3638312.035 | I26: 0 | O26: AncashIncoming LDN Mobile - Mobile | P26: 3638312.035
A27: Ancash | B27: Incoming | C27: Local | D27: Fixed - Mobile | E27: Incoming Local Fixed - Mobile | F27: =+Traffic!F27 -> 17495893.46 | G27: 0 | H27: 0 | I27: 0 | O27: AncashIncoming Local Fixed - Mobile | P27: 17495893.46
A28: Ancash | B28: Incoming | C28: Local | D28: Mobile - Mobile | E28: Incoming Local Mobile - Mobile | F28: =+Traffic!F28 -> 17495893.46 | G28: 0 | H28: 0 | I28: 0 | O28: AncashIncoming Local Mobile - Mobile | P28: 17495893.46
A29: Ancash | B29: On-net | C29: LDN | D29: Mobile - Mobile | E29: On-net LDN Mobile - Mobile | F29: =+Traffic!F29 -> 58902866.25 | G29: 0 | H29: 0 | I29: 0 | N29: =+F29 -> 58902866.25 | O29: AncashOn-net LDN Mobile - Mobile | P29: 58902866.25
A30: Ancash | B30: On-net | C30: Local | D30: Mobile - Mobile | E30: On-net Local Mobile - Mobile | F30: =+Traffic!F30 -> 261975433.5 | G30: 0 | H30: 0 | I30: 0 | O30: AncashOn-net Local Mobile - Mobile | P30: 261975433.5
A31: Ancash | B31: Outgoing | C31: LDI | E31: Outgoing LDI | F31: =+Traffic!F31 -> 2423417.715 | G31: 0 | H31: 0 | I31: 0 | N31: =+F31 -> 2423417.715 | O31: AncashOutgoing LDI | P31: 2423417.715
A32: Ancash | B32: Outgoing | C32: LDN | D32: Mobile - Fixed | E32: Outgoing LDN Mobile - Fixed | F32: =+Traffic!F32 -> 3677890.256 | G32: 0 | H32: 0 | I32: 0 | N32: 3677890.256 | O32: AncashOutgoing LDN Mobile - Fixed | P32: 3677890.256
A33: Ancash | B33: Outgoing | C33: LDN | D33: Mobile - Mobile | E33: Outgoing LDN Mobile - Mobile | F33: =+Traffic!F33 -> 3677890.256 | G33: 0 | H33: 0 | I33: 0 | N33: 3677890.256 | O33: AncashOutgoing LDN Mobile - Mobile | P33: 3677890.256
A34: Ancash | B34: Outgoing | C34: Local | D34: Mobile - Fixed | E34: Outgoing Local Mobile - Fixed | F34: =+Traffic!F34 -> 21039730.9 | G34: 0 | H34: 0 | I34: 0 | O34: AncashOutgoing Local Mobile - Fixed | P34: 21039730.9
A35: Ancash | B35: Outgoing | C35: Local | D35: Mobile - Mobile | E35: Outgoing Local Mobile - Mobile | F35: =+Traffic!F35 -> 21039730.9 | G35: 0 | H35: 0 | I35: 0 | O35: AncashOutgoing Local Mobile - Mobile | P35: 21039730.9
A36: Apurimac | B36: Incoming | C36: LDI | E36: Incoming LDI | F36: =+Traffic!F36 -> 3636542.977 | G36: 0 | H36: 0 | I36: 3636542.977 | J36: =SUM(G36:G47) -> 3638312.035 | K36: =SUM(G36:H47) -> 7276624.069 | L36: =SUM(I36:I47) -> 3636542.977 | M36: =+F41 -> 58902866.25 | O36: ApurimacIncoming LDI | P36: 3636542.977
A37: Apurimac | B37: Incoming | C37: LDN | D37: Fixed - Mobile | E37: Incoming LDN Fixed - Mobile | F37: =+Traffic!F37 -> 3638312.035 | G37: 3638312.035 | H37: 0 | I37: 0 | O37: ApurimacIncoming LDN Fixed - Mobile | P37: 3638312.035
A38: Apurimac | B38: Incoming | C38: LDN | D38: Mobile - Mobile | E38: Incoming LDN Mobile - Mobile | F38: =+Traffic!F38 -> 3638312.035 | G38: 0 | H38: 3638312.035 | I38: 0 | O38: ApurimacIncoming LDN Mobile - Mobile | P38: 3638312.035
A39: Apurimac | B39: Incoming | C39: Local | D39: Fixed - Mobile | E39: Incoming Local Fixed - Mobile | F39: =+Traffic!F39 -> 17495893.46 | G39: 0 | H39: 0 | I39: 0 | O39: ApurimacIncoming Local Fixed - Mobile | P39: 17495893.46
A40: Apurimac | B40: Incoming | C40: Local | D40: Mobile - Mobile | E40: Incoming Local Mobile - Mobile | F40: =+Traffic!F40 -> 17495893.46 | G40: 0 | H40: 0 | I40: 0 | O40: ApurimacIncoming Local Mobile - Mobile | P40: 17495893.46
A41: Apurimac | B41: On-net | C41: LDN | D41: Mobile - Mobile | E41: On-net LDN Mobile - Mobile | F41: =+Traffic!F41 -> 58902866.25 | G41: 0 | H41: 0 | I41: 0 | N41: =+F41 -> 58902866.25 | O41: ApurimacOn-net LDN Mobile - Mobile | P41: 58902866.25
A42: Apurimac | B42: On-net | C42: Local | D42: Mobile - Mobile | E42: On-net Local Mobile - Mobile | F42: =+Traffic!F42 -> 261975433.5 | G42: 0 | H42: 0 | I42: 0 | O42: ApurimacOn-net Local Mobile - Mobile | P42: 261975433.5
A43: Apurimac | B43: Outgoing | C43: LDI | E43: Outgoing LDI | F43: =+Traffic!F43 -> 2423417.715 | G43: 0 | H43: 0 | I43: 0 | N43: 2423417.715 | O43: ApurimacOutgoing LDI | P43: 2423417.715
A44: Apurimac | B44: Outgoing | C44: LDN | D44: Mobile - Fixed | E44: Outgoing LDN Mobile - Fixed | F44: =+Traffic!F44 -> 3677890.256 | G44: 0 | H44: 0 | I44: 0 | N44: 3677890.256 | O44: ApurimacOutgoing LDN Mobile - Fixed | P44: 3677890.256
A45: Apurimac | B45: Outgoing | C45: LDN | D45: Mobile - Mobile | E45: Outgoing LDN Mobile - Mobile | F45: =+Traffic!F45 -> 3677890.256 | G45: 0 | H45: 0 | I45: 0 | N45: 3677890.256 | O45: ApurimacOutgoing LDN Mobile - Mobile | P45: 3677890.256
A46: Apurimac | B46: Outgoing | C46: Local | D46: Mobile - Fixed | E46: Outgoing Local Mobile - Fixed | F46: =+Traffic!F46 -> 21039730.9 | G46: 0 | H46: 0 | I46: 0 | O46: ApurimacOutgoing Local Mobile - Fixed | P46: 21039730.9
A47: Apurimac | B47: Outgoing | C47: Local | D47: Mobile - Mobile | E47: Outgoing Local Mobile - Mobile | F47: =+Traffic!F47 -> 21039730.9 | G47: 0 | H47: 0 | I47: 0 | O47: ApurimacOutgoing Local Mobile - Mobile | P47: 21039730.9
A48: Arequipa | B48: Incoming | C48: LDI | E48: Incoming LDI | F48: =+Traffic!F48 -> 3636542.977 | G48: 0 | H48: 0 | I48: 3636542.977 | J48: =SUM(G48:G59) -> 3638312.035 | K48: =SUM(G48:H59) -> 7276624.069 | L48: =SUM(I48:I59) -> 3636542.977 | M48: =+F53 -> 58902866.25 | O48: ArequipaIncoming LDI | P48: 3636542.977
A49: Arequipa | B49: Incoming | C49: LDN | D49: Fixed - Mobile | E49: Incoming LDN Fixed - Mobile | F49: =+Traffic!F49 -> 3638312.035 | G49: 3638312.035 | H49: 0 | I49: 0 | O49: ArequipaIncoming LDN Fixed - Mobile | P49: 3638312.035
A50: Arequipa | B50: Incoming | C50: LDN | D50: Mobile - Mobile | E50: Incoming LDN Mobile - Mobile | F50: =+Traffic!F50 -> 3638312.035 | G50: 0 | H50: 3638312.035 | I50: 0 | O50: ArequipaIncoming LDN Mobile - Mobile | P50: 3638312.035
A51: Arequipa | B51: Incoming | C51: Local | D51: Fixed - Mobile | E51: Incoming Local Fixed - Mobile | F51: =+Traffic!F51 -> 17495893.46 | G51: 0 | H51: 0 | I51: 0 | O51: ArequipaIncoming Local Fixed - Mobile | P51: 17495893.46
A52: Arequipa | B52: Incoming | C52: Local | D52: Mobile - Mobile | E52: Incoming Local Mobile - Mobile | F52: =+Traffic!F52 -> 17495893.46 | G52: 0 | H52: 0 | I52: 0 | O52: ArequipaIncoming Local Mobile - Mobile | P52: 17495893.46
A53: Arequipa | B53: On-net | C53: LDN | D53: Mobile - Mobile | E53: On-net LDN Mobile - Mobile | F53: =+Traffic!F53 -> 58902866.25 | G53: 0 | H53: 0 | I53: 0 | N53: =+F53 -> 58902866.25 | O53: ArequipaOn-net LDN Mobile - Mobile | P53: 58902866.25
A54: Arequipa | B54: On-net | C54: Local | D54: Mobile - Mobile | E54: On-net Local Mobile - Mobile | F54: =+Traffic!F54 -> 261975433.5 | G54: 0 | H54: 0 | I54: 0 | O54: ArequipaOn-net Local Mobile - Mobile | P54: 261975433.5
A55: Arequipa | B55: Outgoing | C55: LDI | E55: Outgoing LDI | F55: =+Traffic!F55 -> 2423417.715 | G55: 0 | H55: 0 | I55: 0 | N55: 2423417.715 | O55: ArequipaOutgoing LDI | P55: 2423417.715
A56: Arequipa | B56: Outgoing | C56: LDN | D56: Mobile - Fixed | E56: Outgoing LDN Mobile - Fixed | F56: =+Traffic!F56 -> 3677890.256 | G56: 0 | H56: 0 | I56: 0 | N56: 3677890.256 | O56: ArequipaOutgoing LDN Mobile - Fixed | P56: 3677890.256
A57: Arequipa | B57: Outgoing | C57: LDN | D57: Mobile - Mobile | E57: Outgoing LDN Mobile - Mobile | F57: =+Traffic!F57 -> 3677890.256 | G57: 0 | H57: 0 | I57: 0 | N57: 3677890.256 | O57: ArequipaOutgoing LDN Mobile - Mobile | P57: 3677890.256
A58: Arequipa | B58: Outgoing | C58: Local | D58: Mobile - Fixed | E58: Outgoing Local Mobile - Fixed | F58: =+Traffic!F58 -> 21039730.9 | G58: 0 | H58: 0 | I58: 0 | O58: ArequipaOutgoing Local Mobile - Fixed | P58: 21039730.9
A59: Arequipa | B59: Outgoing | C59: Local | D59: Mobile - Mobile | E59: Outgoing Local Mobile - Mobile | F59: =+Traffic!F59 -> 21039730.9 | G59: 0 | H59: 0 | I59: 0 | O59: ArequipaOutgoing Local Mobile - Mobile | P59: 21039730.9
A60: Ayacucho | B60: Incoming | C60: LDI | E60: Incoming LDI | F60: =+Traffic!F60 -> 3636542.977 | G60: 0 | H60: 0 | I60: 3636542.977 | J60: =SUM(G60:G71) -> 3638312.035 | K60: =SUM(G60:H71) -> 7276624.069 | L60: =SUM(I60:I71) -> 3636542.977 | M60: =+F65 -> 58902866.25 | O60: AyacuchoIncoming LDI | P60: 3636542.977
A61: Ayacucho | B61: Incoming | C61: LDN | D61: Fixed - Mobile | E61: Incoming LDN Fixed - Mobile | F61: =+Traffic!F61 -> 3638312.035 | G61: 3638312.035 | H61: 0 | I61: 0 | O61: AyacuchoIncoming LDN Fixed - Mobile | P61: 3638312.035
A62: Ayacucho | B62: Incoming | C62: LDN | D62: Mobile - Mobile | E62: Incoming LDN Mobile - Mobile | F62: =+Traffic!F62 -> 3638312.035 | G62: 0 | H62: 3638312.035 | I62: 0 | O62: AyacuchoIncoming LDN Mobile - Mobile | P62: 3638312.035
A63: Ayacucho | B63: Incoming | C63: Local | D63: Fixed - Mobile | E63: Incoming Local Fixed - Mobile | F63: =+Traffic!F63 -> 17495893.46 | G63: 0 | H63: 0 | I63: 0 | O63: AyacuchoIncoming Local Fixed - Mobile | P63: 17495893.46
A64: Ayacucho | B64: Incoming | C64: Local | D64: Mobile - Mobile | E64: Incoming Local Mobile - Mobile | F64: =+Traffic!F64 -> 17495893.46 | G64: 0 | H64: 0 | I64: 0 | O64: AyacuchoIncoming Local Mobile - Mobile | P64: 17495893.46
A65: Ayacucho | B65: On-net | C65: LDN | D65: Mobile - Mobile | E65: On-net LDN Mobile - Mobile | F65: =+Traffic!F65 -> 58902866.25 | G65: 0 | H65: 0 | I65: 0 | N65: =+F65 -> 58902866.25 | O65: AyacuchoOn-net LDN Mobile - Mobile | P65: 58902866.25
A66: Ayacucho | B66: On-net | C66: Local | D66: Mobile - Mobile | E66: On-net Local Mobile - Mobile | F66: =+Traffic!F66 -> 261975433.5 | G66: 0 | H66: 0 | I66: 0 | O66: AyacuchoOn-net Local Mobile - Mobile | P66: 261975433.5
A67: Ayacucho | B67: Outgoing | C67: LDI | E67: Outgoing LDI | F67: =+Traffic!F67 -> 2423417.715 | G67: 0 | H67: 0 | I67: 0 | N67: 2423417.715 | O67: AyacuchoOutgoing LDI | P67: 2423417.715
A68: Ayacucho | B68: Outgoing | C68: LDN | D68: Mobile - Fixed | E68: Outgoing LDN Mobile - Fixed | F68: =+Traffic!F68 -> 3677890.256 | G68: 0 | H68: 0 | I68: 0 | N68: 3677890.256 | O68: AyacuchoOutgoing LDN Mobile - Fixed | P68: 3677890.256
A69: Ayacucho | B69: Outgoing | C69: LDN | D69: Mobile - Mobile | E69: Outgoing LDN Mobile - Mobile | F69: =+Traffic!F69 -> 3677890.256 | G69: 0 | H69: 0 | I69: 0 | N69: 3677890.256 | O69: AyacuchoOutgoing LDN Mobile - Mobile | P69: 3677890.256
A70: Ayacucho | B70: Outgoing | C70: Local | D70: Mobile - Fixed | E70: Outgoing Local Mobile - Fixed | F70: =+Traffic!F70 -> 21039730.9 | G70: 0 | H70: 0 | I70: 0 | O70: AyacuchoOutgoing Local Mobile - Fixed | P70: 21039730.9
A71: Ayacucho | B71: Outgoing | C71: Local | D71: Mobile - Mobile | E71: Outgoing Local Mobile - Mobile | F71: =+Traffic!F71 -> 21039730.9 | G71: 0 | H71: 0 | I71: 0 | O71: AyacuchoOutgoing Local Mobile - Mobile | P71: 21039730.9
A72: Cajamarca | B72: Incoming | C72: LDI | E72: Incoming LDI | F72: =+Traffic!F72 -> 3636542.977 | G72: 0 | H72: 0 | I72: 3636542.977 | J72: =SUM(G72:G83) -> 3638312.035 | K72: =SUM(G72:H83) -> 7276624.069 | L72: =SUM(I72:I83) -> 3636542.977 | M72: =+F77 -> 58902866.25 | O72: CajamarcaIncoming LDI | P72: 3636542.977
A73: Cajamarca | B73: Incoming | C73: LDN | D73: Fixed - Mobile | E73: Incoming LDN Fixed - Mobile | F73: =+Traffic!F73 -> 3638312.035 | G73: 3638312.035 | H73: 0 | I73: 0 | O73: CajamarcaIncoming LDN Fixed - Mobile | P73: 3638312.035
A74: Cajamarca | B74: Incoming | C74: LDN | D74: Mobile - Mobile | E74: Incoming LDN Mobile - Mobile | F74: =+Traffic!F74 -> 3638312.035 | G74: 0 | H74: 3638312.035 | I74: 0 | O74: CajamarcaIncoming LDN Mobile - Mobile | P74: 3638312.035
A75: Cajamarca | B75: Incoming | C75: Local | D75: Fixed - Mobile | E75: Incoming Local Fixed - Mobile | F75: =+Traffic!F75 -> 17495893.46 | G75: 0 | H75: 0 | I75: 0 | O75: CajamarcaIncoming Local Fixed - Mobile | P75: 17495893.46
A76: Cajamarca | B76: Incoming | C76: Local | D76: Mobile - Mobile | E76: =B76&" "&" "&C76&" "&D76 -> Incoming Local Mobile - Mobile | F76: =+Traffic!F76 -> 17495893.46 | G76: =IF(AND(D76=G$9,C76=G$10,B76=G$11),F76,0) -> 0 | H76: 0 | I76: =IF(AND(D76=I$9,C76=I$10,B76=I$11),$F76,0) -> 0 | O76: CajamarcaIncoming Local Mobile - Mobile | P76: =+F76 -> 17495893.46
A77: Cajamarca | B77: On-net | C77: LDN | D77: Mobile - Mobile | E77: On-net LDN Mobile - Mobile | F77: =+Traffic!F77 -> 58902866.25 | G77: 0 | H77: =IF(AND(D77=H$9,C77=H$10,B77=H$11),F77,0) -> 0 | I77: 0 | N77: =+F77 -> 58902866.25 | O77: =+A77&E77 -> CajamarcaOn-net LDN Mobile - Mobile | P77: 58902866.25
A78: Cajamarca | B78: On-net | C78: Local | D78: Mobile - Mobile | E78: On-net Local Mobile - Mobile | F78: =+Traffic!F78 -> 261975433.5 | G78: 0 | H78: 0 | I78: 0 | O78: CajamarcaOn-net Local Mobile - Mobile | P78: 261975433.5
A79: Cajamarca | B79: Outgoing | C79: LDI | E79: Outgoing LDI | F79: =+Traffic!F79 -> 2423417.715 | G79: 0 | H79: 0 | I79: 0 | N79: 2423417.715 | O79: CajamarcaOutgoing LDI | P79: 2423417.715
A80: Cajamarca | B80: Outgoing | C80: LDN | D80: Mobile - Fixed | E80: Outgoing LDN Mobile - Fixed | F80: =+Traffic!F80 -> 3677890.256 | G80: 0 | H80: 0 | I80: 0 | N80: 3677890.256 | O80: CajamarcaOutgoing LDN Mobile - Fixed | P80: 3677890.256
A81: Cajamarca | B81: Outgoing | C81: LDN | D81: Mobile - Mobile | E81: Outgoing LDN Mobile - Mobile | F81: =+Traffic!F81 -> 3677890.256 | G81: 0 | H81: 0 | I81: 0 | N81: 3677890.256 | O81: CajamarcaOutgoing LDN Mobile - Mobile | P81: 3677890.256
A82: Cajamarca | B82: Outgoing | C82: Local | D82: Mobile - Fixed | E82: Outgoing Local Mobile - Fixed | F82: =+Traffic!F82 -> 21039730.9 | G82: 0 | H82: 0 | I82: 0 | O82: CajamarcaOutgoing Local Mobile - Fixed | P82: 21039730.9
A83: Cajamarca | B83: Outgoing | C83: Local | D83: Mobile - Mobile | E83: Outgoing Local Mobile - Mobile | F83: =+Traffic!F83 -> 21039730.9 | G83: 0 | H83: 0 | I83: 0 | O83: CajamarcaOutgoing Local Mobile - Mobile | P83: 21039730.9
A84: Cusco | B84: Incoming | C84: LDI | E84: Incoming LDI | F84: =+Traffic!F84 -> 3636542.977 | G84: 0 | H84: 0 | I84: 3636542.977 | J84: =SUM(G84:G95) -> 3638312.035 | K84: =SUM(G84:H95) -> 7276624.069 | L84: =SUM(I84:I95) -> 3636542.977 | M84: =+F89 -> 58902866.25 | O84: CuscoIncoming LDI | P84: 3636542.977
A85: Cusco | B85: Incoming | C85: LDN | D85: Fixed - Mobile | E85: Incoming LDN Fixed - Mobile | F85: =+Traffic!F85 -> 3638312.035 | G85: 3638312.035 | H85: 0 | I85: 0 | O85: CuscoIncoming LDN Fixed - Mobile | P85: 3638312.035
A86: Cusco | B86: Incoming | C86: LDN | D86: Mobile - Mobile | E86: Incoming LDN Mobile - Mobile | F86: =+Traffic!F86 -> 3638312.035 | G86: 0 | H86: 3638312.035 | I86: 0 | O86: CuscoIncoming LDN Mobile - Mobile | P86: 3638312.035
A87: Cusco | B87: Incoming | C87: Local | D87: Fixed - Mobile | E87: Incoming Local Fixed - Mobile | F87: =+Traffic!F87 -> 17495893.46 | G87: 0 | H87: 0 | I87: 0 | O87: CuscoIncoming Local Fixed - Mobile | P87: 17495893.46
A88: Cusco | B88: Incoming | C88: Local | D88: Mobile - Mobile | E88: Incoming Local Mobile - Mobile | F88: =+Traffic!F88 -> 17495893.46 | G88: 0 | H88: 0 | I88: 0 | O88: CuscoIncoming Local Mobile - Mobile | P88: 17495893.46
A89: Cusco | B89: On-net | C89: LDN | D89: Mobile - Mobile | E89: On-net LDN Mobile - Mobile | F89: =+Traffic!F89 -> 58902866.25 | G89: 0 | H89: 0 | I89: 0 | N89: =+F89 -> 58902866.25 | O89: CuscoOn-net LDN Mobile - Mobile | P89: 58902866.25
A90: Cusco | B90: On-net | C90: Local | D90: Mobile - Mobile | E90: On-net Local Mobile - Mobile | F90: =+Traffic!F90 -> 261975433.5 | G90: 0 | H90: 0 | I90: 0 | O90: CuscoOn-net Local Mobile - Mobile | P90: 261975433.5
A91: Cusco | B91: Outgoing | C91: LDI | E91: Outgoing LDI | F91: =+Traffic!F91 -> 2423417.715 | G91: 0 | H91: 0 | I91: 0 | N91: 2423417.715 | O91: CuscoOutgoing LDI | P91: 2423417.715
A92: Cusco | B92: Outgoing | C92: LDN | D92: Mobile - Fixed | E92: Outgoing LDN Mobile - Fixed | F92: =+Traffic!F92 -> 3677890.256 | G92: 0 | H92: 0 | I92: 0 | N92: 3677890.256 | O92: CuscoOutgoing LDN Mobile - Fixed | P92: 3677890.256
A93: Cusco | B93: Outgoing | C93: LDN | D93: Mobile - Mobile | E93: Outgoing LDN Mobile - Mobile | F93: =+Traffic!F93 -> 3677890.256 | G93: 0 | H93: 0 | I93: 0 | N93: 3677890.256 | O93: CuscoOutgoing LDN Mobile - Mobile | P93: 3677890.256
A94: Cusco | B94: Outgoing | C94: Local | D94: Mobile - Fixed | E94: Outgoing Local Mobile - Fixed | F94: =+Traffic!F94 -> 21039730.9 | G94: 0 | H94: 0 | I94: 0 | O94: CuscoOutgoing Local Mobile - Fixed | P94: 21039730.9
A95: Cusco | B95: Outgoing | C95: Local | D95: Mobile - Mobile | E95: Outgoing Local Mobile - Mobile | F95: =+Traffic!F95 -> 21039730.9 | G95: 0 | H95: 0 | I95: 0 | O95: CuscoOutgoing Local Mobile - Mobile | P95: 21039730.9
A96: Huancavelica | B96: Incoming | C96: LDI | E96: Incoming LDI | F96: =+Traffic!F96 -> 3636542.977 | G96: 0 | H96: 0 | I96: 3636542.977 | J96: =SUM(G96:G107) -> 3638312.035 | K96: =SUM(G96:H107) -> 7276624.069 | L96: =SUM(I96:I107) -> 3636542.977 | M96: =+F101 -> 58902866.25 | O96: HuancavelicaIncoming LDI | P96: 3636542.977
A97: Huancavelica | B97: Incoming | C97: LDN | D97: Fixed - Mobile | E97: Incoming LDN Fixed - Mobile | F97: =+Traffic!F97 -> 3638312.035 | G97: 3638312.035 | H97: 0 | I97: 0 | O97: HuancavelicaIncoming LDN Fixed - Mobile | P97: 3638312.035
A98: Huancavelica | B98: Incoming | C98: LDN | D98: Mobile - Mobile | E98: Incoming LDN Mobile - Mobile | F98: =+Traffic!F98 -> 3638312.035 | G98: 0 | H98: 3638312.035 | I98: 0 | O98: HuancavelicaIncoming LDN Mobile - Mobile | P98: 3638312.035
A99: Huancavelica | B99: Incoming | C99: Local | D99: Fixed - Mobile | E99: Incoming Local Fixed - Mobile | F99: =+Traffic!F99 -> 17495893.46 | G99: 0 | H99: 0 | I99: 0 | O99: HuancavelicaIncoming Local Fixed - Mobile | P99: 17495893.46
A100: Huancavelica | B100: Incoming | C100: Local | D100: Mobile - Mobile | E100: Incoming Local Mobile - Mobile | F100: =+Traffic!F100 -> 17495893.46 | G100: 0 | H100: 0 | I100: 0 | O100: HuancavelicaIncoming Local Mobile - Mobile | P100: 17495893.46
A101: Huancavelica | B101: On-net | C101: LDN | D101: Mobile - Mobile | E101: On-net LDN Mobile - Mobile | F101: =+Traffic!F101 -> 58902866.25 | G101: 0 | H101: 0 | I101: 0 | N101: =+F101 -> 58902866.25 | O101: HuancavelicaOn-net LDN Mobile - Mobile | P101: 58902866.25
A102: Huancavelica | B102: On-net | C102: Local | D102: Mobile - Mobile | E102: On-net Local Mobile - Mobile | F102: =+Traffic!F102 -> 261975433.5 | G102: 0 | H102: 0 | I102: 0 | O102: HuancavelicaOn-net Local Mobile - Mobile | P102: 261975433.5
A103: Huancavelica | B103: Outgoing | C103: LDI | E103: Outgoing LDI | F103: =+Traffic!F103 -> 2423417.715 | G103: 0 | H103: 0 | I103: 0 | N103: =+F103 -> 2423417.715 | O103: HuancavelicaOutgoing LDI | P103: 2423417.715
A104: Huancavelica | B104: Outgoing | C104: LDN | D104: Mobile - Fixed | E104: Outgoing LDN Mobile - Fixed | F104: =+Traffic!F104 -> 3677890.256 | G104: 0 | H104: 0 | I104: 0 | N104: 3677890.256 | O104: HuancavelicaOutgoing LDN Mobile - Fixed | P104: 3677890.256
A105: Huancavelica | B105: Outgoing | C105: LDN | D105: Mobile - Mobile | E105: Outgoing LDN Mobile - Mobile | F105: =+Traffic!F105 -> 3677890.256 | G105: 0 | H105: 0 | I105: 0 | N105: 3677890.256 | O105: HuancavelicaOutgoing LDN Mobile - Mobile | P105: 3677890.256
A106: Huancavelica | B106: Outgoing | C106: Local | D106: Mobile - Fixed | E106: Outgoing Local Mobile - Fixed | F106: =+Traffic!F106 -> 21039730.9 | G106: 0 | H106: 0 | I106: 0 | O106: HuancavelicaOutgoing Local Mobile - Fixed | P106: 21039730.9
A107: Huancavelica | B107: Outgoing | C107: Local | D107: Mobile - Mobile | E107: Outgoing Local Mobile - Mobile | F107: =+Traffic!F107 -> 21039730.9 | G107: 0 | H107: 0 | I107: 0 | O107: HuancavelicaOutgoing Local Mobile - Mobile | P107: 21039730.9
A108: Huanuco | B108: Incoming | C108: LDI | E108: Incoming LDI | F108: =+Traffic!F108 -> 3636542.977 | G108: 0 | H108: 0 | I108: 3636542.977 | J108: =SUM(G108:G119) -> 3638312.035 | K108: =SUM(G108:H119) -> 7276624.069 | L108: =SUM(I108:I119) -> 3636542.977 | M108: =+F113 -> 58902866.25 | O108: HuanucoIncoming LDI | P108: 3636542.977
A109: Huanuco | B109: Incoming | C109: LDN | D109: Fixed - Mobile | E109: Incoming LDN Fixed - Mobile | F109: =+Traffic!F109 -> 3638312.035 | G109: 3638312.035 | H109: 0 | I109: 0 | O109: HuanucoIncoming LDN Fixed - Mobile | P109: 3638312.035
A110: Huanuco | B110: Incoming | C110: LDN | D110: Mobile - Mobile | E110: Incoming LDN Mobile - Mobile | F110: =+Traffic!F110 -> 3638312.035 | G110: 0 | H110: 3638312.035 | I110: 0 | O110: HuanucoIncoming LDN Mobile - Mobile | P110: 3638312.035
A111: Huanuco | B111: Incoming | C111: Local | D111: Fixed - Mobile | E111: Incoming Local Fixed - Mobile | F111: =+Traffic!F111 -> 17495893.46 | G111: 0 | H111: 0 | I111: 0 | O111: HuanucoIncoming Local Fixed - Mobile | P111: 17495893.46
A112: Huanuco | B112: Incoming | C112: Local | D112: Mobile - Mobile | E112: Incoming Local Mobile - Mobile | F112: =+Traffic!F112 -> 17495893.46 | G112: 0 | H112: 0 | I112: 0 | O112: HuanucoIncoming Local Mobile - Mobile | P112: 17495893.46
A113: Huanuco | B113: On-net | C113: LDN | D113: Mobile - Mobile | E113: On-net LDN Mobile - Mobile | F113: =+Traffic!F113 -> 58902866.25 | G113: 0 | H113: 0 | I113: 0 | N113: =+F113 -> 58902866.25 | O113: HuanucoOn-net LDN Mobile - Mobile | P113: 58902866.25
A114: Huanuco | B114: On-net | C114: Local | D114: Mobile - Mobile | E114: On-net Local Mobile - Mobile | F114: =+Traffic!F114 -> 261975433.5 | G114: 0 | H114: 0 | I114: 0 | O114: HuanucoOn-net Local Mobile - Mobile | P114: 261975433.5
A115: Huanuco | B115: Outgoing | C115: LDI | E115: Outgoing LDI | F115: =+Traffic!F115 -> 2423417.715 | G115: 0 | H115: 0 | I115: 0 | N115: 2423417.715 | O115: HuanucoOutgoing LDI | P115: 2423417.715
A116: Huanuco | B116: Outgoing | C116: LDN | D116: Mobile - Fixed | E116: Outgoing LDN Mobile - Fixed | F116: =+Traffic!F116 -> 3677890.256 | G116: 0 | H116: 0 | I116: 0 | N116: 3677890.256 | O116: HuanucoOutgoing LDN Mobile - Fixed | P116: 3677890.256
A117: Huanuco | B117: Outgoing | C117: LDN | D117: Mobile - Mobile | E117: Outgoing LDN Mobile - Mobile | F117: =+Traffic!F117 -> 3677890.256 | G117: 0 | H117: 0 | I117: 0 | N117: 3677890.256 | O117: HuanucoOutgoing LDN Mobile - Mobile | P117: 3677890.256
A118: Huanuco | B118: Outgoing | C118: Local | D118: Mobile - Fixed | E118: Outgoing Local Mobile - Fixed | F118: =+Traffic!F118 -> 21039730.9 | G118: 0 | H118: 0 | I118: 0 | O118: HuanucoOutgoing Local Mobile - Fixed | P118: 21039730.9
A119: Huanuco | B119: Outgoing | C119: Local | D119: Mobile - Mobile | E119: Outgoing Local Mobile - Mobile | F119: =+Traffic!F119 -> 21039730.9 | G119: 0 | H119: 0 | I119: 0 | O119: HuanucoOutgoing Local Mobile - Mobile | P119: 21039730.9
A120: Ica | B120: Incoming | C120: LDI | E120: Incoming LDI | F120: =+Traffic!F120 -> 3636542.977 | G120: 0 | H120: 0 | I120: 3636542.977 | J120: =SUM(G120:G131) -> 3638312.035 | K120: =SUM(G120:H131) -> 7276624.069 | L120: =SUM(I120:I131) -> 3636542.977 | M120: =+F125 -> 58902866.25 | O120: IcaIncoming LDI | P120: 3636542.977
A121: Ica | B121: Incoming | C121: LDN | D121: Fixed - Mobile | E121: Incoming LDN Fixed - Mobile | F121: =+Traffic!F121 -> 3638312.035 | G121: 3638312.035 | H121: 0 | I121: 0 | O121: IcaIncoming LDN Fixed - Mobile | P121: 3638312.035
A122: Ica | B122: Incoming | C122: LDN | D122: Mobile - Mobile | E122: Incoming LDN Mobile - Mobile | F122: =+Traffic!F122 -> 3638312.035 | G122: 0 | H122: 3638312.035 | I122: 0 | O122: IcaIncoming LDN Mobile - Mobile | P122: 3638312.035
A123: Ica | B123: Incoming | C123: Local | D123: Fixed - Mobile | E123: Incoming Local Fixed - Mobile | F123: =+Traffic!F123 -> 17495893.46 | G123: 0 | H123: 0 | I123: 0 | O123: IcaIncoming Local Fixed - Mobile | P123: 17495893.46
A124: Ica | B124: Incoming | C124: Local | D124: Mobile - Mobile | E124: Incoming Local Mobile - Mobile | F124: =+Traffic!F124 -> 17495893.46 | G124: 0 | H124: 0 | I124: 0 | O124: IcaIncoming Local Mobile - Mobile | P124: 17495893.46
A125: Ica | B125: On-net | C125: LDN | D125: Mobile - Mobile | E125: On-net LDN Mobile - Mobile | F125: =+Traffic!F125 -> 58902866.25 | G125: 0 | H125: 0 | I125: 0 | N125: =+F125 -> 58902866.25 | O125: IcaOn-net LDN Mobile - Mobile | P125: 58902866.25
A126: Ica | B126: On-net | C126: Local | D126: Mobile - Mobile | E126: On-net Local Mobile - Mobile | F126: =+Traffic!F126 -> 261975433.5 | G126: 0 | H126: 0 | I126: 0 | O126: IcaOn-net Local Mobile - Mobile | P126: 261975433.5
A127: Ica | B127: Outgoing | C127: LDI | E127: Outgoing LDI | F127: =+Traffic!F127 -> 2423417.715 | G127: 0 | H127: 0 | I127: 0 | N127: 2423417.715 | O127: IcaOutgoing LDI | P127: 2423417.715
A128: Ica | B128: Outgoing | C128: LDN | D128: Mobile - Fixed | E128: Outgoing LDN Mobile - Fixed | F128: =+Traffic!F128 -> 3677890.256 | G128: 0 | H128: 0 | I128: 0 | N128: 3677890.256 | O128: IcaOutgoing LDN Mobile - Fixed | P128: 3677890.256
A129: Ica | B129: Outgoing | C129: LDN | D129: Mobile - Mobile | E129: Outgoing LDN Mobile - Mobile | F129: =+Traffic!F129 -> 3677890.256 | G129: 0 | H129: 0 | I129: 0 | N129: 3677890.256 | O129: IcaOutgoing LDN Mobile - Mobile | P129: 3677890.256
A130: Ica | B130: Outgoing | C130: Local | D130: Mobile - Fixed | E130: Outgoing Local Mobile - Fixed | F130: =+Traffic!F130 -> 21039730.9 | G130: 0 | H130: 0 | I130: 0 | O130: IcaOutgoing Local Mobile - Fixed | P130: 21039730.9
A131: Ica | B131: Outgoing | C131: Local | D131: Mobile - Mobile | E131: Outgoing Local Mobile - Mobile | F131: =+Traffic!F131 -> 21039730.9 | G131: 0 | H131: 0 | I131: 0 | O131: IcaOutgoing Local Mobile - Mobile | P131: 21039730.9
A132: Junin | B132: Incoming | C132: LDI | E132: Incoming LDI | F132: =+Traffic!F132 -> 3636542.977 | G132: 0 | H132: 0 | I132: 3636542.977 | J132: =SUM(G132:G143) -> 3638312.035 | K132: =SUM(G132:H143) -> 7276624.069 | L132: =SUM(I132:I143) -> 3636542.977 | M132: =+F137 -> 58902866.25 | O132: JuninIncoming LDI | P132: 3636542.977
A133: Junin | B133: Incoming | C133: LDN | D133: Fixed - Mobile | E133: Incoming LDN Fixed - Mobile | F133: =+Traffic!F133 -> 3638312.035 | G133: 3638312.035 | H133: 0 | I133: 0 | O133: JuninIncoming LDN Fixed - Mobile | P133: 3638312.035
A134: Junin | B134: Incoming | C134: LDN | D134: Mobile - Mobile | E134: Incoming LDN Mobile - Mobile | F134: =+Traffic!F134 -> 3638312.035 | G134: 0 | H134: 3638312.035 | I134: 0 | O134: JuninIncoming LDN Mobile - Mobile | P134: 3638312.035
A135: Junin | B135: Incoming | C135: Local | D135: Fixed - Mobile | E135: Incoming Local Fixed - Mobile | F135: =+Traffic!F135 -> 17495893.46 | G135: 0 | H135: 0 | I135: 0 | O135: JuninIncoming Local Fixed - Mobile | P135: 17495893.46
A136: Junin | B136: Incoming | C136: Local | D136: Mobile - Mobile | E136: Incoming Local Mobile - Mobile | F136: =+Traffic!F136 -> 17495893.46 | G136: 0 | H136: 0 | I136: 0 | O136: JuninIncoming Local Mobile - Mobile | P136: 17495893.46
A137: Junin | B137: On-net | C137: LDN | D137: Mobile - Mobile | E137: On-net LDN Mobile - Mobile | F137: =+Traffic!F137 -> 58902866.25 | G137: 0 | H137: 0 | I137: 0 | N137: =+F137 -> 58902866.25 | O137: JuninOn-net LDN Mobile - Mobile | P137: 58902866.25
A138: Junin | B138: On-net | C138: Local | D138: Mobile - Mobile | E138: On-net Local Mobile - Mobile | F138: =+Traffic!F138 -> 261975433.5 | G138: 0 | H138: 0 | I138: 0 | O138: JuninOn-net Local Mobile - Mobile | P138: 261975433.5
A139: Junin | B139: Outgoing | C139: LDI | E139: Outgoing LDI | F139: =+Traffic!F139 -> 2423417.715 | G139: 0 | H139: 0 | I139: 0 | N139: 2423417.715 | O139: JuninOutgoing LDI | P139: 2423417.715
A140: Junin | B140: Outgoing | C140: LDN | D140: Mobile - Fixed | E140: =B140&" "&" "&C140&" "&D140 -> Outgoing LDN Mobile - Fixed | F140: =+Traffic!F140 -> 3677890.256 | G140: =IF(AND(D140=G$9,C140=G$10,B140=G$11),F140,0) -> 0 | H140: 0 | I140: =IF(AND(D140=I$9,C140=I$10,B140=I$11),$F140,0) -> 0 | N140: 3677890.256 | O140: JuninOutgoing LDN Mobile - Fixed | P140: =+F140 -> 3677890.256
A141: Junin | B141: Outgoing | C141: LDN | D141: Mobile - Mobile | E141: Outgoing LDN Mobile - Mobile | F141: =+Traffic!F141 -> 3677890.256 | G141: 0 | H141: =IF(AND(D141=H$9,C141=H$10,B141=H$11),F141,0) -> 0 | I141: 0 | N141: 3677890.256 | O141: =+A141&E141 -> JuninOutgoing LDN Mobile - Mobile | P141: 3677890.256
A142: Junin | B142: Outgoing | C142: Local | D142: Mobile - Fixed | E142: Outgoing Local Mobile - Fixed | F142: =+Traffic!F142 -> 21039730.9 | G142: 0 | H142: 0 | I142: 0 | O142: JuninOutgoing Local Mobile - Fixed | P142: 21039730.9
A143: Junin | B143: Outgoing | C143: Local | D143: Mobile - Mobile | E143: Outgoing Local Mobile - Mobile | F143: =+Traffic!F143 -> 21039730.9 | G143: 0 | H143: 0 | I143: 0 | O143: JuninOutgoing Local Mobile - Mobile | P143: 21039730.9
A144: Lambayeque | B144: Incoming | C144: LDI | E144: Incoming LDI | F144: =+Traffic!F144 -> 3636542.977 | G144: 0 | H144: 0 | I144: 3636542.977 | J144: =SUM(G144:G155) -> 3638312.035 | K144: =SUM(G144:H155) -> 7276624.069 | L144: =SUM(I144:I155) -> 3636542.977 | M144: =+F149 -> 58902866.25 | O144: LambayequeIncoming LDI | P144: 3636542.977
A145: Lambayeque | B145: Incoming | C145: LDN | D145: Fixed - Mobile | E145: Incoming LDN Fixed - Mobile | F145: =+Traffic!F145 -> 3638312.035 | G145: 3638312.035 | H145: 0 | I145: 0 | O145: LambayequeIncoming LDN Fixed - Mobile | P145: 3638312.035
A146: Lambayeque | B146: Incoming | C146: LDN | D146: Mobile - Mobile | E146: Incoming LDN Mobile - Mobile | F146: =+Traffic!F146 -> 3638312.035 | G146: 0 | H146: 3638312.035 | I146: 0 | O146: LambayequeIncoming LDN Mobile - Mobile | P146: 3638312.035
A147: Lambayeque | B147: Incoming | C147: Local | D147: Fixed - Mobile | E147: Incoming Local Fixed - Mobile | F147: =+Traffic!F147 -> 17495893.46 | G147: 0 | H147: 0 | I147: 0 | O147: LambayequeIncoming Local Fixed - Mobile | P147: 17495893.46
A148: Lambayeque | B148: Incoming | C148: Local | D148: Mobile - Mobile | E148: Incoming Local Mobile - Mobile | F148: =+Traffic!F148 -> 17495893.46 | G148: 0 | H148: 0 | I148: 0 | O148: LambayequeIncoming Local Mobile - Mobile | P148: 17495893.46
A149: Lambayeque | B149: On-net | C149: LDN | D149: Mobile - Mobile | E149: On-net LDN Mobile - Mobile | F149: =+Traffic!F149 -> 58902866.25 | G149: 0 | H149: 0 | I149: 0 | N149: =+F149 -> 58902866.25 | O149: LambayequeOn-net LDN Mobile - Mobile | P149: 58902866.25
A150: Lambayeque | B150: On-net | C150: Local | D150: Mobile - Mobile | E150: On-net Local Mobile - Mobile | F150: =+Traffic!F150 -> 261975433.5 | G150: 0 | H150: 0 | I150: 0 | O150: LambayequeOn-net Local Mobile - Mobile | P150: 261975433.5
A151: Lambayeque | B151: Outgoing | C151: LDI | E151: Outgoing LDI | F151: =+Traffic!F151 -> 2423417.715 | G151: 0 | H151: 0 | I151: 0 | N151: 2423417.715 | O151: LambayequeOutgoing LDI | P151: 2423417.715
A152: Lambayeque | B152: Outgoing | C152: LDN | D152: Mobile - Fixed | E152: Outgoing LDN Mobile - Fixed | F152: =+Traffic!F152 -> 3677890.256 | G152: 0 | H152: 0 | I152: 0 | N152: 3677890.256 | O152: LambayequeOutgoing LDN Mobile - Fixed | P152: 3677890.256
A153: Lambayeque | B153: Outgoing | C153: LDN | D153: Mobile - Mobile | E153: Outgoing LDN Mobile - Mobile | F153: =+Traffic!F153 -> 3677890.256 | G153: 0 | H153: 0 | I153: 0 | N153: 3677890.256 | O153: LambayequeOutgoing LDN Mobile - Mobile | P153: 3677890.256
A154: Lambayeque | B154: Outgoing | C154: Local | D154: Mobile - Fixed | E154: Outgoing Local Mobile - Fixed | F154: =+Traffic!F154 -> 21039730.9 | G154: 0 | H154: 0 | I154: 0 | O154: LambayequeOutgoing Local Mobile - Fixed | P154: 21039730.9
A155: Lambayeque | B155: Outgoing | C155: Local | D155: Mobile - Mobile | E155: Outgoing Local Mobile - Mobile | F155: =+Traffic!F155 -> 21039730.9 | G155: 0 | H155: 0 | I155: 0 | O155: LambayequeOutgoing Local Mobile - Mobile | P155: 21039730.9
A156: Libertad | B156: Incoming | C156: LDI | E156: Incoming LDI | F156: =+Traffic!F156 -> 3636542.977 | G156: 0 | H156: 0 | I156: 3636542.977 | J156: =SUM(G156:G167) -> 3638312.035 | K156: =SUM(G156:H167) -> 7276624.069 | L156: =SUM(I156:I167) -> 3636542.977 | M156: =+F161 -> 58902866.25 | O156: LibertadIncoming LDI | P156: 3636542.977
A157: Libertad | B157: Incoming | C157: LDN | D157: Fixed - Mobile | E157: Incoming LDN Fixed - Mobile | F157: =+Traffic!F157 -> 3638312.035 | G157: 3638312.035 | H157: 0 | I157: 0 | O157: LibertadIncoming LDN Fixed - Mobile | P157: 3638312.035
A158: Libertad | B158: Incoming | C158: LDN | D158: Mobile - Mobile | E158: Incoming LDN Mobile - Mobile | F158: =+Traffic!F158 -> 3638312.035 | G158: 0 | H158: 3638312.035 | I158: 0 | O158: LibertadIncoming LDN Mobile - Mobile | P158: 3638312.035
A159: Libertad | B159: Incoming | C159: Local | D159: Fixed - Mobile | E159: Incoming Local Fixed - Mobile | F159: =+Traffic!F159 -> 17495893.46 | G159: 0 | H159: 0 | I159: 0 | O159: LibertadIncoming Local Fixed - Mobile | P159: 17495893.46
A160: Libertad | B160: Incoming | C160: Local | D160: Mobile - Mobile | E160: Incoming Local Mobile - Mobile | F160: =+Traffic!F160 -> 17495893.46 | G160: 0 | H160: 0 | I160: 0 | O160: LibertadIncoming Local Mobile - Mobile | P160: 17495893.46
A161: Libertad | B161: On-net | C161: LDN | D161: Mobile - Mobile | E161: On-net LDN Mobile - Mobile | F161: =+Traffic!F161 -> 58902866.25 | G161: 0 | H161: 0 | I161: 0 | N161: =+F161 -> 58902866.25 | O161: LibertadOn-net LDN Mobile - Mobile | P161: 58902866.25
A162: Libertad | B162: On-net | C162: Local | D162: Mobile - Mobile | E162: On-net Local Mobile - Mobile | F162: =+Traffic!F162 -> 261975433.5 | G162: 0 | H162: 0 | I162: 0 | O162: LibertadOn-net Local Mobile - Mobile | P162: 261975433.5
A163: Libertad | B163: Outgoing | C163: LDI | E163: Outgoing LDI | F163: =+Traffic!F163 -> 2423417.715 | G163: 0 | H163: 0 | I163: 0 | N163: 2423417.715 | O163: LibertadOutgoing LDI | P163: 2423417.715
A164: Libertad | B164: Outgoing | C164: LDN | D164: Mobile - Fixed | E164: Outgoing LDN Mobile - Fixed | F164: =+Traffic!F164 -> 3677890.256 | G164: 0 | H164: 0 | I164: 0 | N164: 3677890.256 | O164: LibertadOutgoing LDN Mobile - Fixed | P164: 3677890.256
A165: Libertad | B165: Outgoing | C165: LDN | D165: Mobile - Mobile | E165: Outgoing LDN Mobile - Mobile | F165: =+Traffic!F165 -> 3677890.256 | G165: 0 | H165: 0 | I165: 0 | N165: 3677890.256 | O165: LibertadOutgoing LDN Mobile - Mobile | P165: 3677890.256
A166: Libertad | B166: Outgoing | C166: Local | D166: Mobile - Fixed | E166: Outgoing Local Mobile - Fixed | F166: =+Traffic!F166 -> 21039730.9 | G166: 0 | H166: 0 | I166: 0 | O166: LibertadOutgoing Local Mobile - Fixed | P166: 21039730.9
A167: Libertad | B167: Outgoing | C167: Local | D167: Mobile - Mobile | E167: Outgoing Local Mobile - Mobile | F167: =+Traffic!F167 -> 21039730.9 | G167: 0 | H167: 0 | I167: 0 | O167: LibertadOutgoing Local Mobile - Mobile | P167: 21039730.9
A168: Lima | B168: Incoming | C168: LDI | E168: Incoming LDI | F168: =+Traffic!F168 -> 3636542.977 | G168: 0 | H168: 0 | I168: 3636542.977 | J168: =SUM(G168:G179) -> 3638312.035 | K168: =SUM(G168:H179) -> 7276624.069 | L168: =SUM(I168:I179) -> 3636542.977 | M168: =+F173 -> 58902866.25 | O168: LimaIncoming LDI | P168: 3636542.977
A169: Lima | B169: Incoming | C169: LDN | D169: Fixed - Mobile | E169: Incoming LDN Fixed - Mobile | F169: =+Traffic!F169 -> 3638312.035 | G169: 3638312.035 | H169: 0 | I169: 0 | O169: LimaIncoming LDN Fixed - Mobile | P169: 3638312.035
A170: Lima | B170: Incoming | C170: LDN | D170: Mobile - Mobile | E170: Incoming LDN Mobile - Mobile | F170: =+Traffic!F170 -> 3638312.035 | G170: 0 | H170: 3638312.035 | I170: 0 | O170: LimaIncoming LDN Mobile - Mobile | P170: 3638312.035
A171: Lima | B171: Incoming | C171: Local | D171: Fixed - Mobile | E171: Incoming Local Fixed - Mobile | F171: =+Traffic!F171 -> 17495893.46 | G171: 0 | H171: 0 | I171: 0 | O171: LimaIncoming Local Fixed - Mobile | P171: 17495893.46
A172: Lima | B172: Incoming | C172: Local | D172: Mobile - Mobile | E172: Incoming Local Mobile - Mobile | F172: =+Traffic!F172 -> 17495893.46 | G172: 0 | H172: 0 | I172: 0 | O172: LimaIncoming Local Mobile - Mobile | P172: 17495893.46
A173: Lima | B173: On-net | C173: LDN | D173: Mobile - Mobile | E173: On-net LDN Mobile - Mobile | F173: =+Traffic!F173 -> 58902866.25 | G173: 0 | H173: 0 | I173: 0 | N173: =+F173 -> 58902866.25 | O173: LimaOn-net LDN Mobile - Mobile | P173: 58902866.25
A174: Lima | B174: On-net | C174: Local | D174: Mobile - Mobile | E174: On-net Local Mobile - Mobile | F174: =+Traffic!F174 -> 261975433.5 | G174: 0 | H174: 0 | I174: 0 | O174: LimaOn-net Local Mobile - Mobile | P174: 261975433.5
A175: Lima | B175: Outgoing | C175: LDI | E175: Outgoing LDI | F175: =+Traffic!F175 -> 2423417.715 | G175: 0 | H175: 0 | I175: 0 | N175: =+F175 -> 2423417.715 | O175: LimaOutgoing LDI | P175: 2423417.715
A176: Lima | B176: Outgoing | C176: LDN | D176: Mobile - Fixed | E176: Outgoing LDN Mobile - Fixed | F176: =+Traffic!F176 -> 3677890.256 | G176: 0 | H176: 0 | I176: 0 | N176: 3677890.256 | O176: LimaOutgoing LDN Mobile - Fixed | P176: 3677890.256
A177: Lima | B177: Outgoing | C177: LDN | D177: Mobile - Mobile | E177: Outgoing LDN Mobile - Mobile | F177: =+Traffic!F177 -> 3677890.256 | G177: 0 | H177: 0 | I177: 0 | N177: 3677890.256 | O177: LimaOutgoing LDN Mobile - Mobile | P177: 3677890.256
A178: Lima | B178: Outgoing | C178: Local | D178: Mobile - Fixed | E178: Outgoing Local Mobile - Fixed | F178: =+Traffic!F178 -> 21039730.9 | G178: 0 | H178: 0 | I178: 0 | O178: LimaOutgoing Local Mobile - Fixed | P178: 21039730.9
A179: Lima | B179: Outgoing | C179: Local | D179: Mobile - Mobile | E179: Outgoing Local Mobile - Mobile | F179: =+Traffic!F179 -> 21039730.9 | G179: 0 | H179: 0 | I179: 0 | O179: LimaOutgoing Local Mobile - Mobile | P179: 21039730.9
A180: Loreto | B180: Incoming | C180: LDI | E180: Incoming LDI | F180: =+Traffic!F180 -> 3636542.977 | G180: 0 | H180: 0 | I180: 3636542.977 | J180: =SUM(G180:G191) -> 3638312.035 | K180: =SUM(G180:H191) -> 7276624.069 | L180: =SUM(I180:I191) -> 3636542.977 | M180: =+F185 -> 58902866.25 | O180: LoretoIncoming LDI | P180: 3636542.977
A181: Loreto | B181: Incoming | C181: LDN | D181: Fixed - Mobile | E181: Incoming LDN Fixed - Mobile | F181: =+Traffic!F181 -> 3638312.035 | G181: 3638312.035 | H181: 0 | I181: 0 | O181: LoretoIncoming LDN Fixed - Mobile | P181: 3638312.035
A182: Loreto | B182: Incoming | C182: LDN | D182: Mobile - Mobile | E182: Incoming LDN Mobile - Mobile | F182: =+Traffic!F182 -> 3638312.035 | G182: 0 | H182: 3638312.035 | I182: 0 | O182: LoretoIncoming LDN Mobile - Mobile | P182: 3638312.035
A183: Loreto | B183: Incoming | C183: Local | D183: Fixed - Mobile | E183: Incoming Local Fixed - Mobile | F183: =+Traffic!F183 -> 17495893.46 | G183: 0 | H183: 0 | I183: 0 | O183: LoretoIncoming Local Fixed - Mobile | P183: 17495893.46
A184: Loreto | B184: Incoming | C184: Local | D184: Mobile - Mobile | E184: Incoming Local Mobile - Mobile | F184: =+Traffic!F184 -> 17495893.46 | G184: 0 | H184: 0 | I184: 0 | O184: LoretoIncoming Local Mobile - Mobile | P184: 17495893.46
A185: Loreto | B185: On-net | C185: LDN | D185: Mobile - Mobile | E185: On-net LDN Mobile - Mobile | F185: =+Traffic!F185 -> 58902866.25 | G185: 0 | H185: 0 | I185: 0 | N185: =+F185 -> 58902866.25 | O185: LoretoOn-net LDN Mobile - Mobile | P185: 58902866.25
A186: Loreto | B186: On-net | C186: Local | D186: Mobile - Mobile | E186: On-net Local Mobile - Mobile | F186: =+Traffic!F186 -> 261975433.5 | G186: 0 | H186: 0 | I186: 0 | O186: LoretoOn-net Local Mobile - Mobile | P186: 261975433.5
A187: Loreto | B187: Outgoing | C187: LDI | E187: Outgoing LDI | F187: =+Traffic!F187 -> 2423417.715 | G187: 0 | H187: 0 | I187: 0 | N187: 2423417.715 | O187: LoretoOutgoing LDI | P187: 2423417.715
A188: Loreto | B188: Outgoing | C188: LDN | D188: Mobile - Fixed | E188: Outgoing LDN Mobile - Fixed | F188: =+Traffic!F188 -> 3677890.256 | G188: 0 | H188: 0 | I188: 0 | N188: 3677890.256 | O188: LoretoOutgoing LDN Mobile - Fixed | P188: 3677890.256
A189: Loreto | B189: Outgoing | C189: LDN | D189: Mobile - Mobile | E189: Outgoing LDN Mobile - Mobile | F189: =+Traffic!F189 -> 3677890.256 | G189: 0 | H189: 0 | I189: 0 | N189: 3677890.256 | O189: LoretoOutgoing LDN Mobile - Mobile | P189: 3677890.256
A190: Loreto | B190: Outgoing | C190: Local | D190: Mobile - Fixed | E190: Outgoing Local Mobile - Fixed | F190: =+Traffic!F190 -> 21039730.9 | G190: 0 | H190: 0 | I190: 0 | O190: LoretoOutgoing Local Mobile - Fixed | P190: 21039730.9
A191: Loreto | B191: Outgoing | C191: Local | D191: Mobile - Mobile | E191: Outgoing Local Mobile - Mobile | F191: =+Traffic!F191 -> 21039730.9 | G191: 0 | H191: 0 | I191: 0 | O191: LoretoOutgoing Local Mobile - Mobile | P191: 21039730.9
A192: Madre De Dios | B192: Incoming | C192: LDI | E192: Incoming LDI | F192: =+Traffic!F192 -> 3636542.977 | G192: 0 | H192: 0 | I192: 3636542.977 | J192: =SUM(G192:G203) -> 3638312.035 | K192: =SUM(G192:H203) -> 7276624.069 | L192: =SUM(I192:I203) -> 3636542.977 | M192: =+F197 -> 58902866.25 | O192: Madre De DiosIncoming LDI | P192: 3636542.977
A193: Madre De Dios | B193: Incoming | C193: LDN | D193: Fixed - Mobile | E193: Incoming LDN Fixed - Mobile | F193: =+Traffic!F193 -> 3638312.035 | G193: 3638312.035 | H193: 0 | I193: 0 | O193: Madre De DiosIncoming LDN Fixed - Mobile | P193: 3638312.035
A194: Madre De Dios | B194: Incoming | C194: LDN | D194: Mobile - Mobile | E194: Incoming LDN Mobile - Mobile | F194: =+Traffic!F194 -> 3638312.035 | G194: 0 | H194: 3638312.035 | I194: 0 | O194: Madre De DiosIncoming LDN Mobile - Mobile | P194: 3638312.035
A195: Madre De Dios | B195: Incoming | C195: Local | D195: Fixed - Mobile | E195: Incoming Local Fixed - Mobile | F195: =+Traffic!F195 -> 17495893.46 | G195: 0 | H195: 0 | I195: 0 | O195: Madre De DiosIncoming Local Fixed - Mobile | P195: 17495893.46
A196: Madre De Dios | B196: Incoming | C196: Local | D196: Mobile - Mobile | E196: Incoming Local Mobile - Mobile | F196: =+Traffic!F196 -> 17495893.46 | G196: 0 | H196: 0 | I196: 0 | O196: Madre De DiosIncoming Local Mobile - Mobile | P196: 17495893.46
A197: Madre De Dios | B197: On-net | C197: LDN | D197: Mobile - Mobile | E197: On-net LDN Mobile - Mobile | F197: =+Traffic!F197 -> 58902866.25 | G197: 0 | H197: 0 | I197: 0 | N197: =+F197 -> 58902866.25 | O197: Madre De DiosOn-net LDN Mobile - Mobile | P197: 58902866.25
A198: Madre De Dios | B198: On-net | C198: Local | D198: Mobile - Mobile | E198: On-net Local Mobile - Mobile | F198: =+Traffic!F198 -> 261975433.5 | G198: 0 | H198: 0 | I198: 0 | O198: Madre De DiosOn-net Local Mobile - Mobile | P198: 261975433.5
A199: Madre De Dios | B199: Outgoing | C199: LDI | E199: Outgoing LDI | F199: =+Traffic!F199 -> 2423417.715 | G199: 0 | H199: 0 | I199: 0 | N199: 2423417.715 | O199: Madre De DiosOutgoing LDI | P199: 2423417.715
A200: Madre De Dios | B200: Outgoing | C200: LDN | D200: Mobile - Fixed | E200: Outgoing LDN Mobile - Fixed | F200: =+Traffic!F200 -> 3677890.256 | G200: 0 | H200: 0 | I200: 0 | N200: 3677890.256 | O200: Madre De DiosOutgoing LDN Mobile - Fixed | P200: 3677890.256
A201: Madre De Dios | B201: Outgoing | C201: LDN | D201: Mobile - Mobile | E201: Outgoing LDN Mobile - Mobile | F201: =+Traffic!F201 -> 3677890.256 | G201: 0 | H201: 0 | I201: 0 | N201: 3677890.256 | O201: Madre De DiosOutgoing LDN Mobile - Mobile | P201: 3677890.256
A202: Madre De Dios | B202: Outgoing | C202: Local | D202: Mobile - Fixed | E202: Outgoing Local Mobile - Fixed | F202: =+Traffic!F202 -> 21039730.9 | G202: 0 | H202: 0 | I202: 0 | O202: Madre De DiosOutgoing Local Mobile - Fixed | P202: 21039730.9
A203: Madre De Dios | B203: Outgoing | C203: Local | D203: Mobile - Mobile | E203: Outgoing Local Mobile - Mobile | F203: =+Traffic!F203 -> 21039730.9 | G203: 0 | H203: 0 | I203: 0 | O203: Madre De DiosOutgoing Local Mobile - Mobile | P203: 21039730.9
A204: Moquegua | B204: Incoming | C204: LDI | E204: =B204&" "&" "&C204&" "&D204 -> Incoming LDI | F204: =+Traffic!F204 -> 3636542.977 | G204: =IF(AND(D204=G$9,C204=G$10,B204=G$11),F204,0) -> 0 | H204: 0 | I204: =IF(AND(D204=I$9,C204=I$10,B204=I$11),$F204,0) -> 3636542.977 | J204: =SUM(G204:G215) -> 3638312.035 | K204: =SUM(G204:H215) -> 7276624.069 | L204: =SUM(I204:I215) -> 3636542.977 | M204: =+F209 -> 58902866.25 | O204: MoqueguaIncoming LDI | P204: =+F204 -> 3636542.977
A205: Moquegua | B205: Incoming | C205: LDN | D205: Fixed - Mobile | E205: Incoming LDN Fixed - Mobile | F205: =+Traffic!F205 -> 3638312.035 | G205: 3638312.035 | H205: =IF(AND(D205=H$9,C205=H$10,B205=H$11),F205,0) -> 0 | I205: 0 | O205: =+A205&E205 -> MoqueguaIncoming LDN Fixed - Mobile | P205: 3638312.035
A206: Moquegua | B206: Incoming | C206: LDN | D206: Mobile - Mobile | E206: Incoming LDN Mobile - Mobile | F206: =+Traffic!F206 -> 3638312.035 | G206: 0 | H206: 3638312.035 | I206: 0 | O206: MoqueguaIncoming LDN Mobile - Mobile | P206: 3638312.035
... 94 more rows

Sheet AVM Traffic %
D4: 1 | E4: 2 | F4: 3 | G4: 4 | H4: 5 | I4: 6 | J4: 7 | K4: 9 | L4: 8 | M4: 10 | N4: 11 | O4: 12 | P4: 13 | Q4: 14 | R4: 15 | S4: 16 | T4: 17 | U4: 18 | V4: 19 | W4: 20 | X4: 21 | Y4: 22 | Z4: 23 | AA4: 24
B5: Minutos | D5: LOC_DEST
B6: TIP_TRAFICO | C6: LOC_ORIG | D6: AMZ | E6: ANC | F6: APU | G6: ARQ | H6: AYA | I6: CAJ | J6: CUZ | K6: HUV | L6: HUA | M6: ICA | N6: JUN | O6: LAM | P6: LIB | Q6: LIM | R6: LOR | S6: MAD | T6: MOQ | U6: PAS | V6: PIU | W6: PUN | X6: SMA | Y6: TAC | Z6: TUM | AA6: UCA | AB6: Total general
C7: AMZ | D7: 0 | E7: 0.001858612678 | F7: 0.0001982946659 | G7: 0.0008811959087 | H7: 0.0007772596047 | I7: 0.034244857 | J7: 0.0006989405533 | K7: 0.0002231146809 | L7: 0.002235318025 | M7: 0.0009986130374 | N7: 0.0006910213295 | O7: 0.04922555663 | P7: 0.01124794959 | Q7: 0.01192206548 | R7: 0.008399126491 | S7: 0.001446712747 | T7: 0.001449625513 | U7: 0.001986097319 | V7: 0.006539235412 | W7: 0.0009194798371 | X7: 0.03914209115 | Y7: 0.001376204179 | Z7: 0.006242197253 | AA7: 0.004029163469 | AB7: 0.009855012443 | AC7: 1
C8: ANC | D8: 0.006944444444 | E8: 0 | F8: 0.006543723974 | G8: 0.009724626279 | H8: 0.01210304242 | I8: 0.02308078274 | J8: 0.006290464979 | K8: 0.006916555109 | L8: 0.0175777281 | M8: 0.0134257975 | N8: 0.01128668172 | O8: 0.01911907067 | P8: 0.08279740672 | Q8: 0.08969274846 | R8: 0.01041491685 | S8: 0.005947596849 | T8: 0.0166706934 | U8: 0.008341608739 | V8: 0.02321069273 | W8: 0.004531722054 | X8: 0.01126005362 | Y8: 0.005004378831 | Z8: 0.01622971286 | AA8: 0.006523407521 | AB8: 0.05217404642 | AC8: 2
C9: APU | D9: 0.0002893518519 | E9: 0.000862927315 | F9: 0 | G9: 0.008811959087 | H9: 0.03242282922 | I9: 0.0003763171099 | J9: 0.09446733373 | K9: 0.004908522981 | L9: 0.0008128429181 | M9: 0.01131761442 | N9: 0.003270834293 | O9: 0.0006292352372 | P9: 0.0005467753274 | Q9: 0.01505171269 | R9: 0.0005039475895 | S9: 0.01864651985 | T9: 0.001208021261 | U9: 0.001191658391 | V9: 0.000359298649 | W9: 0.008997766978 | X9: 0.0008936550492 | Y9: 0.002752408357 | Z9: 0.0006242197253 | AA9: 0.0009593246355 | AB9: 0.01415747313 | AC9: 3
C10: ARQ | D10: 0.004050925926 | E10: 0.01048788583 | F10: 0.04144358517 | G10: 0 | H10: 0.01621141461 | I10: 0.01091319619 | J10: 0.1707254267 | K10: 0.007362784471 | L10: 0.006299532615 | M10: 0.04371705964 | N10: 0.01082600083 | O10: 0.005033881897 | P10: 0.006561303929 | Q10: 0.04145417272 | R10: 0.008567109021 | S10: 0.1006269089 | T10: 0.2747040348 | U10: 0.007745779543 | V10: 0.008192009198 | W10: 0.287271772 | X10: 0.008221626452 | Y10: 0.1553859627 | Z10: 0.008739076155 | AA10: 0.009785111282 | AB10: 0.04657356172 | AC10: 4
C11: AYA | D11: 0.007233796296 | E11: 0.002920677066 | F11: 0.07852468769 | G11: 0.006325727773 | H11: 0 | I11: 0.002885097842 | J11: 0.01125662154 | K11: 0.03949129853 | L11: 0.006299532615 | M11: 0.0453259362 | N11: 0.02496890404 | O11: 0.001597289448 | P11: 0.001379956779 | Q11: 0.03842534636 | R11: 0.003023685537 | S11: 0.01607458608 | T11: 0.005798502054 | U11: 0.006554121152 | V11: 0.001365334866 | W11: 0.006830421647 | X11: 0.001787310098 | Y11: 0.006255473539 | Z11: 0.0006242197253 | AA11: 0.009976976209 | AB11: 0.02346221542 | AC11: 5
C12: CAJ | D12: 0.1490162037 | E12: 0.01712578825 | F12: 0.009914733294 | G12: 0.009158143194 | H12: 0.01010437486 | I12: 0 | J12: 0.006731901118 | K12: 0.007362784471 | L12: 0.01971144076 | M12: 0.008710124827 | N12: 0.01234624775 | O12: 0.133446273 | P12: 0.08256307444 | Q12: 0.0616015392 | R12: 0.0157903578 | S12: 0.0081980389 | T12: 0.006764919063 | U12: 0.01132075472 | V12: 0.02709111814 | W12: 0.0166163142 | X12: 0.0763181412 | Y12: 0.01138496184 | Z12: 0.01622971286 | AA12: 0.018419033 | AB12: 0.04626870823 | AC12: 6
C13: CUZ | D13: 0.0002893518519 | E13: 0.002854298042 | F13: 0.1509022407 | G13: 0.0728245476 | H13: 0.01654452587 | I13: 0.00150526844 | J13: 0 | K13: 0.001784917448 | L13: 0.00213371266 | M13: 0.005880721221 | N13: 0.003224766204 | O13: 0.001548886738 | P13: 0.002577655115 | Q13: 0.01951723616 | R13: 0.003695615656 | S13: 0.2600868028 | T13: 0.008214544576 | U13: 0.0009930486594 | V13: 0.001724633515 | W13: 0.08157099698 | X13: 0.0001787310098 | Y13: 0.01701488803 | Z13: 0.0006242197253 | AA13: 0.004221028396 | AB13: 0.02179414911 | AC13: 7
C14: HUV | D14: 0.0002893518519 | E14: 0.0001327580485 | F14: 0.0005948839976 | G14: 0.001101494886 | H14: 0.02209638019 | I14: 0.0002508780733 | J14: 0.0005885815185 | K14: 0 | L14: 0.001117659012 | M14: 0.008932038835 | N14: 0.06721334132 | O14: 4.840271055e-05 | P14: 0.0002864061239 | Q14: 0.007389328113 | R14: 0.0006719301193 | S14: 0.0001607458608 | T14: 0.0002416042522 | U14: 0.001390268123 | V14: 0.0001437194596 | W14: 0.001379219756 | X14: 0.0001787310098 | Y14: 0.0003753284124 | Z14: 0.001248439451 | AA14: 0.0003837298542 | AB14: 0.007101744376 | AC14: 8
C15: HUA | D15: 0.006365740741 | E15: 0.01115167607 | F15: 0.002181241325 | G15: 0.002297403619 | H15: 0.008327781479 | I15: 0.003512293026 | J15: 0.003678634491 | K15: 0.0046854083 | L15: 0 | M15: 0.005547850208 | N15: 0.02893075966 | O15: 0.004646660213 | P15: 0.003280651964 | Q15: 0.04637339002 | R15: 0.01091886444 | S15: 0.007876547179 | T15: 0.003140855279 | U15: 0.3553128103 | V15: 0.001365334866 | W15: 0.00269276238 | X15: 0.04218051832 | Y15: 0.006755911422 | Z15: 0.002496878901 | AA15: 0.115886416 | AB15: 0.02945191559 | AC15: 9
C16: ICA | D16: 0.004050925926 | E16: 0.01294390972 | F16: 0.05314297045 | G16: 0.03619197482 | H16: 0.1052631579 | I16: 0.006021073758 | J16: 0.01276486168 | K16: 0.05399375279 | L16: 0.01198943304 | M16: 0 | N16: 0.01179343069 | O16: 0.005711519845 | P16: 0.007108079256 | Q16: 0.07269183267 | R16: 0.01394254997 | S16: 0.01687831538 | T16: 0.02488523798 | U16: 0.009731876862 | V16: 0.008407588387 | W16: 0.01169052936 | X16: 0.007864164433 | Y16: 0.0132616039 | Z16: 0.008739076155 | AA16: 0.01534919417 | AB16: 0.04248775793 | AC16: 10
B17: INGRESO | C17: JUN | D17: 0.003761574074 | E17: 0.009492200465 | F17: 0.01705334127 | G17: 0.007773406766 | H17: 0.09249389296 | I17: 0.007150025088 | J17: 0.009159799882 | K17: 0.4245872378 | L17: 0.06441780126 | M17: 0.01764216366 | N17: 0 | O17: 0.004453049371 | P17: 0.00887858984 | Q17: 0.1019718878 | R17: 0.00890307408 | S17: 0.01125221026 | T17: 0.004832085045 | U17: 0.1257199603 | V17: 0.004311583788 | W17: 0.00696177591 | X17: 0.009472743521 | Y17: 0.009633429251 | Z17: 0.004993757803 | AA17: 0.07137375288 | AB17: 0.05875044578 | AC17: 11
C18: LAM | D18: 0.2693865741 | E18: 0.03498174577 | F18: 0.02082093992 | G18: 0.02514555468 | H18: 0.01743282256 | I18: 0.2042147516 | J18: 0.01850353149 | K18: 0.0339134315 | L18: 0.06929485877 | M18: 0.02879334258 | N18: 0.04809508453 | O18: 0 | P18: 0.08389095738 | Q18: 0.166324996 | R18: 0.04300352763 | S18: 0.02475486256 | T18: 0.02271079971 | U18: 0.0268123138 | V18: 0.1168439207 | W18: 0.06048863786 | X18: 0.1211796247 | Y18: 0.04616539472 | Z18: 0.0911360799 | AA18: 0.05871066769 | AB18: 0.1045839229 | AC18: 12
C19: LIB | D19: 0.05266203704 | E19: 0.09392631928 | F19: 0.002181241325 | G19: 0.01145554681 | H19: 0.008327781479 | I19: 0.1895383843 | J19: 0.01000588582 | K19: 0.008478357876 | L19: 0.02387726072 | M19: 0.01375866852 | N19: 0.0146035841 | O19: 0.1012584705 | P19: 0 | Q19: 0.07264982398 | R19: 0.02889299513 | S19: 0.01109146439 | T19: 0.0111137956 | U19: 0.01151936445 | V19: 0.08450704225 | W19: 0.01628792854 | X19: 0.0691689008 | Y19: 0.01288627549 | Z19: 0.07116104869 | AA19: 0.03127398312 | AB19: 0.05098147488 | AC19: 13
C20: LIM | D20: 0.3449074074 | E20: 0.7490872884 | F20: 0.5474915725 | G20: 0.4781746656 | H20: 0.6027093049 | I20: 0.4184646262 | J20: 0.4825632725 | K20: 0.3770638108 | L20: 0.5643161959 | M20: 0.7418030513 | N20: 0.6580365781 | O20: 0.5112778316 | P20: 0.5941625225 | Q20: 0 | R20: 0.6062489501 | S20: 0.3155441247 | T20: 0.2737376178 | U20: 0.372591857 | V20: 0.6330123599 | W20: 0.3150531985 | X20: 0.4402144772 | Y20: 0.4900537971 | Z20: 0.4188514357 | AA20: 0.5076745971 | AB20: 0.292352587 | AC20: 14
C21: LOR | D21: 0.005787037037 | E21: 0.004115499502 | F21: 0.0005948839976 | G21: 0.002832415421 | H21: 0.002998001332 | I21: 0.003637732062 | J21: 0.003016480283 | K21: 0.001115573405 | L21: 0.00640113798 | M21: 0.003606102635 | N21: 0.003685447091 | O21: 0.004840271055 | P21: 0.007160153097 | Q21: 0.02353746755 | R21: 0 | S21: 0.009162514065 | T21: 0.0007248127567 | U21: 0.001986097319 | V21: 0.007976430009 | W21: 0.001510574018 | X21: 0.08078641644 | Y21: 0.00325284624 | Z21: 0.003745318352 | AA21: 0.07194934766 | AB21: 0.01450834225 | AC21: 15
C22: MAD | D22: 0.0002893518519 | E22: 0.0005974112181 | F22: 0.005948839976 | G22: 0.00487804878 | H22: 0.001887630469 | I22: 0.0003763171099 | J22: 0.02806798117 | K22: 0.0002231146809 | L22: 0.0009144482829 | M22: 0.00105409154 | N22: 0.0006449532409 | O22: 0.0003872216844 | P22: 0.0003905538053 | Q22: 0.002222259563 | R22: 0.001511842768 | S22: 0 | T22: 0.003140855279 | U22: 0.0005958291956 | V22: 0.0002155791894 | W22: 0.005451201892 | X22: 0.001787310098 | Y22: 0.001376204179 | Z22: 0.0006242197253 | AA22: 0.004221028396 | AB22: 0.003313124806 | AC22: 16
C23: MOQ | D23: 0.0002893518519 | E23: 0.003518088284 | F23: 0.002776125322 | G23: 0.08006294256 | H23: 0.00122140795 | I23: 0.002383341696 | J23: 0.008313713949 | K23: 0.0002231146809 | L23: 0.004978662873 | M23: 0.006269070735 | N23: 0.001197770305 | O23: 0.001306873185 | P23: 0.00145806754 | Q23: 0.006473538728 | R23: 0.001847807828 | S23: 0.01044848095 | T23: 0 | U23: 0.001191658391 | V23: 0.002227651624 | W23: 0.04026008144 | X23: 0.001429848079 | Y23: 0.1104716627 | Z23: 0.0006242197253 | AA23: 0.002494244052 | AB23: 0.01210210867 | AC23: 17
C24: PAS | D24: 0.0002893518519 | E24: 0.001327580485 | F24: 0.007336902637 | G24: 0.002297403619 | H24: 0.002442815901 | I24: 0.00112895133 | J24: 0.001103590347 | K24: 0.009147701919 | L24: 0.04704328389 | M24: 0.003162274619 | N24: 0.05574238725 | O24: 0.0006776379477 | P24: 0.0009112922124 | Q24: 0.01788309822 | R24: 0.002183772888 | S24: 0.002893425494 | T24: 0.0002416042522 | U24: 0 | V24: 0.0007904570279 | W24: 0.001707605412 | X24: 0.001608579088 | Y24: 0.0007506568247 | Z24: 0.008114856429 | AA24: 0.008633921719 | AB24: 0.01229192311 | AC24: 18
C25: PIU | D25: 0.01851851852 | E25: 0.0257550614 | F25: 0.01110450129 | G25: 0.01070023603 | H25: 0.01021541195 | I25: 0.0318615153 | J25: 0.0061433196 | K25: 0.005577867024 | L25: 0.01361511888 | M25: 0.01276005548 | N25: 0.01851937163 | O25: 0.09041626331 | P25: 0.06009321217 | Q25: 0.1027112407 | R25: 0.01965395599 | S25: 0.007394309597 | T25: 0.01401304663 | U25: 0.01052631579 | V25: 0 | W25: 0.00591094181 | X25: 0.04110813226 | Y25: 0.0120105092 | Z25: 0.3220973783 | AA25: 0.01745970837 | AB25: 0.06149796189 | AC25: 19
C26: PUN | D26: 0.001446759259 | E26: 0.002854298042 | F26: 0.02934761055 | G26: 0.1400157356 | H26: 0.01698867422 | I26: 0.002383341696 | J26: 0.09590200118 | K26: 0.006247211066 | L26: 0.002844950213 | M26: 0.007877947295 | N26: 0.003915787534 | O26: 0.001936108422 | P26: 0.001952769026 | Q26: 0.01624475942 | R26: 0.001175877709 | S26: 0.1080212185 | T26: 0.0707900459 | U26: 0.00317775571 | V26: 0.001293475137 | W26: 0 | X26: 0.003217158177 | Y26: 0.07906918554 | Z26: 0.0006242197253 | AA26: 0.002686108979 | AB26: 0.02561536308 | AC26: 20
C27: SMA | D27: 0.1122685185 | E27: 0.003982741454 | F27: 0.001388062661 | G27: 0.002800944138 | H27: 0.003664223851 | I27: 0.04377822378 | J27: 0.001140376692 | K27: 0.00245426149 | L27: 0.04714488925 | M27: 0.003717059639 | N27: 0.004514672686 | O27: 0.04027105518 | P27: 0.02176686542 | Q27: 0.03097720609 | R27: 0.09087854863 | S27: 0.01060922681 | T27: 0.001449625513 | U27: 0.01072492552 | V27: 0.01027594136 | W27: 0.0008538027059 | X27: 0 | Y27: 0.006630801952 | Z27: 0.008114856429 | AA27: 0.02705295472 | AB27: 0.02237317903 | AC27: 21
C28: TAC | D28: 0.004050925926 | E28: 0.00298705609 | F28: 0.007336902637 | G28: 0.08144767899 | H28: 0.007550521874 | I28: 0.003512293026 | J28: 0.02523543261 | K28: 0.0008924587238 | L28: 0.008331639911 | M28: 0.008876560333 | N28: 0.003547242825 | O28: 0.003436592449 | P28: 0.003228578124 | Q28: 0.01663544021 | R28: 0.005711406014 | S28: 0.02668381289 | T28: 0.2457115245 | U28: 0.003773584906 | V28: 0.002802529462 | W28: 0.1200577959 | X28: 0.003932082216 | Y28: 0 | Z28: 0.004993757803 | AA28: 0.0092095165 | AB28: 0.02133015826 | AC28: 22
C29: TUM | D29: 0.00318287037 | E29: 0.00298705609 | F29: 0.0001982946659 | G29: 0.002108575924 | H29: 0.0009993337775 | I29: 0.006648268941 | J29: 0.001066804002 | K29: 0.0008924587238 | L29: 0.001422475107 | M29: 0.00160887656 | N29: 0.0009213617727 | O29: 0.01544046467 | P29: 0.01374749395 | Q29: 0.01258160188 | R29: 0.002519737947 | S29: 0.001446712747 | T29: 0.001208021261 | U29: 0.0007944389275 | V29: 0.05533199195 | W29: 0.001970313937 | X29: 0.01126005362 | Y29: 0.001751532591 | Z29: 0 | AA29: 0.001726784344 | AB29: 0.009669032637 | AC29: 23
C30: UCA | D30: 0.00462962963 | E30: 0.004049120478 | F30: 0.002974419988 | G30: 0.002989771833 | H30: 0.007217410615 | I30: 0.002132463623 | J30: 0.002575044144 | K30: 0.00245426149 | L30: 0.07722007722 | M30: 0.005214979196 | N30: 0.01202377113 | O30: 0.003291384318 | P30: 0.004009685734 | Q30: 0.025667308 | R30: 0.1115403998 | S30: 0.02475486256 | T30: 0.007248127567 | U30: 0.02601787488 | V30: 0.002012072435 | W30: 0.0009851569683 | X30: 0.02680965147 | Y30: 0.00638058301 | Z30: 0.003121098627 | AA30: 0 | AB30: 0.0173037913 | AC30: 24
B31: Total INGRESO | D31: 1 | E31: 1 | F31: 1 | G31: 1 | H31: 1 | I31: 1 | J31: 1 | K31: 1 | L31: 1 | M31: 1 | N31: 1 | O31: 1 | P31: 1 | Q31: 1 | R31: 1 | S31: 1 | T31: 1 | U31: 1 | V31: 1 | W31: 1 | X31: 1 | Y31: 1 | Z31: 1 | AA31: 1 | AB31: 1

Sheet LDN call distribution
AP4: 1 | AQ4: 2 | AR4: 3 | AS4: 4 | AT4: 5 | AU4: 6 | AV4: 7 | AW4: 9 | AX4: 8 | AY4: 10 | AZ4: 11 | BA4: 12 | BB4: 13 | BC4: 14 | BD4: 15 | BE4: 16 | BF4: 17 | BG4: 18 | BH4: 19 | BI4: 20 | BJ4: 21 | BK4: 22 | BL4: 23 | BM4: 24
D5: To | AN5: Minutos | AP5: LOC_DEST
D6: AMAZONAS | E6: SAN MARTIN | F6: ANCASH | G6: LIBERTAD | H6: PUNO | I6: TACNA | J6: MOQUEGUA | K6: AREQUIPA | L6: ICA | M6: UCAYALLI | N6: HUANUCO | O6: PASCO | P6: JUNIN | Q6: LORETO | R6: AYACUCHO | S6: HUANCAVELICA | T6: TUMBES | U6: PIURA | V6: LAMBAYEQUE | W6: CAJAMARCA | X6: MADRE DE DIOS | Y6: APURIMAC | Z6: CUSCO | AA6: LIMA | AN6: TIP_TRAFICO | AO6: LOC_ORIG | AP6: AMZ | AQ6: ANC | AR6: APU | AS6: ARQ | AT6: AYA | AU6: CAJ | AV6: CUZ | AW6: HUV | AX6: HUA | AY6: ICA | AZ6: JUN | BA6: LAM | BB6: LIB | BC6: LIM | BD6: LOR | BE6: MAD | BF6: MOQ | BG6: PAS | BH6: PIU | BI6: PUN | BJ6: SMA | BK6: TAC | BL6: TUM | BM6: UCA | BN6: Total general
B7: From | C7: AMAZONAS | D7: =+AP43 -> 0 | E7: =+AQ43 -> 0.009953330907 | F7: 0.001061917015 | G7: 0.004719022191 | H7: 0.004162417558 | I7: 0.183389685 | J7: 0.003742999653 | K7: 0.001194834338 | L7: 0.01197068127 | M7: 0.005347819976 | N7: 0.00370059025 | O7: 0.2636150393 | P7: 0.06023555398 | Q7: 0.06384561142 | R7: 0.04497940118 | S7: 0.007747504828 | T7: 0.007763103413 | U7: =+BG43 -> 0.01063604271 | V7: 0.03501922412 | W7: 0.004924042103 | X7: 0.209615586 | Y7: 0.007369913993 | Z7: 0.03342851126 | AA7: 0.02157716761 | AD7: 2 | AO7: AMZ | AP7: =+AP$31*'AVM Traffic %'!D7 -> 0 | AQ7: =+AQ$31*'AVM Traffic %'!E7 -> 109477.614 | AR7: =+AR$31*'AVM Traffic %'!F7 -> 11680.12418 | AS7: =+AS$31*'AVM Traffic %'!G7 -> 51904.96475 | AT7: =+AT$31*'AVM Traffic %'!H7 -> 45782.81853 | AU7: =+AU$31*'AVM Traffic %'!I7 -> 2017120.231 | AV7: =+AV$31*'AVM Traffic %'!J7 -> 41169.60192 | AW7: =+AW$31*'AVM Traffic %'!K7 -> 13142.09421 | AX7: =+AX$31*'AVM Traffic %'!L7 -> 131666.6386 | AY7: =+AY$31*'AVM Traffic %'!M7 -> 58821.17018 | AZ7: =+AZ$31*'AVM Traffic %'!N7 -> 40703.13695 | BA7: =+BA$31*'AVM Traffic %'!O7 -> 2899526.378 | BB7: =+BB$31*'AVM Traffic %'!P7 -> 662536.4704 | BC7: =+BC$31*'AVM Traffic %'!Q7 -> 702243.8285 | BD7: =+BD$31*'AVM Traffic %'!R7 -> 494732.6243 | BE7: =+BE$31*'AVM Traffic %'!S7 -> 85215.52744 | BF7: =+BF$31*'AVM Traffic %'!T7 -> 85387.09772 | BG7: =+BG$31*'AVM Traffic %'!U7 -> 116986.8247 | BH7: =+BH$31*'AVM Traffic %'!V7 -> 385179.7089 | BI7: =+BI$31*'AVM Traffic %'!W7 -> 54159.99786 | BJ7: =+BJ$31*'AVM Traffic %'!X7 -> 2305581.36 | BK7: =+BK$31*'AVM Traffic %'!Y7 -> 81062.37066 | BL7: =+BL$31*'AVM Traffic %'!Z7 -> 367683.3099 | BM7: =+BM$31*'AVM Traffic %'!AA7 -> 237329.2769 | BN7: =SUM(AP7:BM7) -> 10999093.17 | BO7: 1
C8: SAN MARTIN | D8: =+AP44 -> 0.01678870619 | E8: 0 | F8: 0.01581993493 | G8: 0.02351000065 | H8: 0.02925999694 | I8: 0.05579949314 | J8: 0.01520766264 | K8: 0.01672128167 | L8: 0.04249545303 | M8: 0.03245785484 | N8: 0.02728638478 | O8: 0.04622176226 | P8: 0.2001688322 | Q8: 0.216838829 | R8: 0.02517882898 | S8: 0.01437875367 | T8: 0.0403026298 | U8: 0.02016645383 | V8: 0.05611356011 | W8: 0.01095577202 | X8: 0.0272220094 | Y8: 0.01209845461 | Z8: 0.03923652683 | AA8: 0.0157708184 | AD8: 3 | AO8: ANC | AP8: =+AP$31*'AVM Traffic %'!D8 -> 409047.6823 | AQ8: =+AQ$31*'AVM Traffic %'!E8 -> 0 | AR8: =+AR$31*'AVM Traffic %'!F8 -> 385444.098 | AS8: =+AS$31*'AVM Traffic %'!G8 -> 572808.361 | AT8: =+AT$31*'AVM Traffic %'!H8 -> 712903.8886 | AU8: =+AU$31*'AVM Traffic %'!I8 -> 1359524.259 | AV8: =+AV$31*'AVM Traffic %'!J8 -> 370526.4173 | AW8: =+AW$31*'AVM Traffic %'!K8 -> 407404.9205 | AX8: =+AX$31*'AVM Traffic %'!L8 -> 1035378.567 | AY8: =+AY$31*'AVM Traffic %'!M8 -> 790817.9546 | AZ8: =+AZ$31*'AVM Traffic %'!N8 -> 664817.9035 | BA8: =+BA$31*'AVM Traffic %'!O8 -> 1126168.062 | BB8: =+BB$31*'AVM Traffic %'!P8 -> 4877004.574 | BC8: =+BC$31*'AVM Traffic %'!Q8 -> 5283159.966 | BD8: =+BD$31*'AVM Traffic %'!R8 -> 613468.4541 | BE8: =+BE$31*'AVM Traffic %'!S8 -> 350330.5017 | BF8: =+BF$31*'AVM Traffic %'!T8 -> 981951.6238 | BG8: =+BG$31*'AVM Traffic %'!U8 -> 491344.6638 | BH8: =+BH$31*'AVM Traffic %'!V8 -> 1367176.329 | BI8: =+BI$31*'AVM Traffic %'!W8 -> 266931.418 | BJ8: =+BJ$31*'AVM Traffic %'!X8 -> 663249.4323 | BK8: =+BK$31*'AVM Traffic %'!Y8 -> 294772.257 | BL8: =+BL$31*'AVM Traffic %'!Z8 -> 955976.6057 | BM8: =+BM$31*'AVM Traffic %'!AA8 -> 384247.4007 | BN8: 24364455.34 | BO8: 2
C9: ANCASH | D9: 0.00137848906 | E9: 0.004111035944 | F9: 0 | G9: 0.04198068587 | H9: 0.1544642452 | I9: 0.00179279661 | J9: 0.4500478751 | K9: 0.02338448912 | L9: 0.003872430962 | M9: 0.05391777371 | N9: 0.01558244491 | O9: 0.002997713286 | P9: 0.002604869478 | Q9: 0.07170723516 | R9: 0.002400835642 | S9: 0.08883310565 | T9: 0.005755083585 | U9: 0.00567712992 | V9: 0.001711719672 | W9: 0.04286588548 | X9: 0.004257424657 | Y9: 0.01311263358 | Z9: 0.002973819096 | AA9: 0.004570278388 | AD9: 4 | AO9: APU | AP9: =+AP$31*'AVM Traffic %'!D9 -> 17043.65343 | AQ9: =+AQ$31*'AVM Traffic %'!E9 -> 50828.89221 | AR9: =+AR$31*'AVM Traffic %'!F9 -> 0 | AS9: =+AS$31*'AVM Traffic %'!G9 -> 519049.6475 | AT9: =+AT$31*'AVM Traffic %'!H9 -> 1909797.573 | AU9: =+AU$31*'AVM Traffic %'!I9 -> 22166.15639 | AV9: =+AV$31*'AVM Traffic %'!J9 -> 5564396.723 | AW9: =+AW$31*'AVM Traffic %'!K9 -> 289126.0726 | AX9: =+AX$31*'AVM Traffic %'!L9 -> 47878.77768 | AY9: =+AY$31*'AVM Traffic %'!M9 -> 666639.9287 | AZ9: =+AZ$31*'AVM Traffic %'!N9 -> 192661.5149 | BA9: =+BA$31*'AVM Traffic %'!O9 -> 37063.75901 | BB9: =+BB$31*'AVM Traffic %'!P9 -> 32206.63398 | BC9: =+BC$31*'AVM Traffic %'!Q9 -> 886589.0196 | BD9: =+BD$31*'AVM Traffic %'!R9 -> 29683.95746 | BE9: =+BE$31*'AVM Traffic %'!S9 -> 1098333.465 | BF9: =+BF$31*'AVM Traffic %'!T9 -> 71155.91477 | BG9: =+BG$31*'AVM Traffic %'!U9 -> 70192.09483 | BH9: =+BH$31*'AVM Traffic %'!V9 -> 21163.72027 | BI9: =+BI$31*'AVM Traffic %'!W9 -> 529994.2648 | BJ9: =+BJ$31*'AVM Traffic %'!X9 -> 52638.84383 | BK9: =+BK$31*'AVM Traffic %'!Y9 -> 162124.7413 | BL9: =+BL$31*'AVM Traffic %'!Z9 -> 36768.33099 | BM9: =+BM$31*'AVM Traffic %'!AA9 -> 56506.97069 | BN9: 12364010.66 | BO9: 3
C10: LIBERTAD | D10: 0.003255516722 | E10: 0.00842856382 | F10: 0.03330603596 | G10: 0 | H10: 0.01302826374 | I10: 0.00877036345 | J10: 0.137203072 | K10: 0.00591708375 | L10: 0.005062603994 | M10: 0.03513310816 | N10: 0.008700289114 | O10: 0.004045466887 | P10: 0.005272975871 | Q10: 0.03331454462 | R10: 0.006884936232 | S10: 0.08086856943 | T10: 0.2207652264 | U10: 0.006224876804 | V10: 0.006583488176 | W10: 0.2308652576 | X10: 0.00660729001 | Y10: 0.1248755493 | Z10: 0.007023137199 | AA10: 0.007863780773 | AD10: 5 | AO10: ARQ | AP10: =+AP$31*'AVM Traffic %'!D10 -> 238611.148 | AQ10: =+AQ$31*'AVM Traffic %'!E10 -> 617766.5361 | AR10: =+AR$31*'AVM Traffic %'!F10 -> 2441145.954 | AS10: =+AS$31*'AVM Traffic %'!G10 -> 0 | AT10: =+AT$31*'AVM Traffic %'!H10 -> 954898.7866 | AU10: =+AU$31*'AVM Traffic %'!I10 -> 642818.5353 | AV10: =+AV$31*'AVM Traffic %'!J10 -> 10056216.98 | AW10: =+AW$31*'AVM Traffic %'!K10 -> 433689.1089 | AX10: =+AX$31*'AVM Traffic %'!L10 -> 371060.5271 | AY10: =+AY$31*'AVM Traffic %'!M10 -> 2575060.117 | AZ10: =+AZ$31*'AVM Traffic %'!N10 -> 637682.4788 | BA10: =+BA$31*'AVM Traffic %'!O10 -> 296510.0721 | BB10: =+BB$31*'AVM Traffic %'!P10 -> 386479.6077 | BC10: =+BC$31*'AVM Traffic %'!Q10 -> 2441769.591 | BD10: =+BD$31*'AVM Traffic %'!R10 -> 504627.2768 | BE10: =+BE$31*'AVM Traffic %'!S10 -> 5927213.353 | BF10: =+BF$31*'AVM Traffic %'!T10 -> 16180855.02 | BG10: =+BG$31*'AVM Traffic %'!U10 -> 456248.6164 | BH10: =+BH$31*'AVM Traffic %'!V10 -> 482532.8221 | BI10: =+BI$31*'AVM Traffic %'!W10 -> 16921130.76 | BJ10: =+BJ$31*'AVM Traffic %'!X10 -> 484277.3632 | BK10: =+BK$31*'AVM Traffic %'!Y10 -> 9152678.578 | BL10: =+BL$31*'AVM Traffic %'!Z10 -> 514756.6339 | BM10: =+BM$31*'AVM Traffic %'!AA10 -> 576371.101 | BN10: 73294400.96 | BO10: 4
C11: PUNO | D11: 0.0222629379 | E11: 0.00898875908 | F11: 0.2416698195 | G11: 0.0194682403 | H11: 0 | I11: 0.008879259446 | J11: 0.03464369966 | K11: 0.1215395472 | L11: 0.01938762133 | M11: 0.1394963946 | N11: 0.07684501156 | O11: 0.004915863584 | P11: 0.004246994359 | Q11: 0.1182589424 | R11: 0.009305780888 | S11: 0.0494716048 | T11: 0.01784563538 | U11: 0.02017115028 | V11: 0.004201993544 | W11: 0.02102150057 | X11: 0.005500676559 | Y11: 0.01925202386 | Z11: 0.001921116439 | AA11: 0.03070542667 | AD11: 6 | AO11: AYA | AP11: =+AP$31*'AVM Traffic %'!D11 -> 426091.3357 | AQ11: =+AQ$31*'AVM Traffic %'!E11 -> 172036.2506 | AR11: =+AR$31*'AVM Traffic %'!F11 -> 4625329.176 | AS11: =+AS$31*'AVM Traffic %'!G11 -> 372603.4969 | AT11: =+AT$31*'AVM Traffic %'!H11 -> 0 | AU11: =+AU$31*'AVM Traffic %'!I11 -> 169940.5323 | AV11: =+AV$31*'AVM Traffic %'!J11 -> 663047.2731 | AW11: =+AW$31*'AVM Traffic %'!K11 -> 2326150.675 | AX11: =+AX$31*'AVM Traffic %'!L11 -> 371060.5271 | AY11: =+AY$31*'AVM Traffic %'!M11 -> 2669827.557 | AZ11: =+AZ$31*'AVM Traffic %'!N11 -> 1470740.015 | BA11: =+BA$31*'AVM Traffic %'!O11 -> 94084.92672 | BB11: =+BB$31*'AVM Traffic %'!P11 -> 81283.40956 | BC11: =+BC$31*'AVM Traffic %'!Q11 -> 2263363.037 | BD11: =+BD$31*'AVM Traffic %'!R11 -> 178103.7447 | BE11: =+BE$31*'AVM Traffic %'!S11 -> 946839.1938 | BF11: =+BF$31*'AVM Traffic %'!T11 -> 341548.3909 | BG11: =+BG$31*'AVM Traffic %'!U11 -> 386056.5216 | BH11: =+BH$31*'AVM Traffic %'!V11 -> 80422.13701 | BI11: =+BI$31*'AVM Traffic %'!W11 -> 402331.4127 | BJ11: =+BJ$31*'AVM Traffic %'!X11 -> 105277.6877 | BK11: =+BK$31*'AVM Traffic %'!Y11 -> 368465.3212 | BL11: =+BL$31*'AVM Traffic %'!Z11 -> 36768.33099 | BM11: =+BM$31*'AVM Traffic %'!AA11 -> 587672.4952 | BN11: 19139043.45 | BO11: 5
C12: TACNA | D12: 0.2024880323 | E12: 0.02327107441 | F12: 0.01347245994 | G12: 0.01244438087 | H12: 0.01373015103 | I12: 0 | J12: 0.009147524746 | K12: 0.01000478943 | L12: 0.02678454258 | M12: 0.01183559904 | N12: 0.01677648035 | O12: 0.1813311074 | P12: 0.1121893731 | Q12: 0.08370616179 | R12: 0.02145644836 | S12: 0.01113976013 | T12: 0.009192390595 | U12: 0.01538300728 | V12: 0.03681228663 | W12: 0.0225787846 | X12: 0.1037035561 | Y12: 0.015470254 | Z12: 0.02205345821 | AA12: 0.02502837716 | AD12: 7 | AO12: CAJ | AP12: =+AP$31*'AVM Traffic %'!D12 -> 8777481.515 | AQ12: =+AQ$31*'AVM Traffic %'!E12 -> 1008758.015 | AR12: =+AR$31*'AVM Traffic %'!F12 -> 584006.2091 | AS12: =+AS$31*'AVM Traffic %'!G12 -> 539440.8836 | AT12: =+AT$31*'AVM Traffic %'!H12 -> 595176.641 | AU12: =+AU$31*'AVM Traffic %'!I12 -> 0 | AV12: =+AV$31*'AVM Traffic %'!J12 -> 396528.2712 | AW12: =+AW$31*'AVM Traffic %'!K12 -> 433689.1089 | AX12: =+AX$31*'AVM Traffic %'!L12 -> 1161060.359 | AY12: =+AY$31*'AVM Traffic %'!M12 -> 513051.3177 | AZ12: =+AZ$31*'AVM Traffic %'!N12 -> 727229.3801 | BA12: =+BA$31*'AVM Traffic %'!O12 -> 7860367.969 | BB12: =+BB$31*'AVM Traffic %'!P12 -> 4863201.731 | BC12: =+BC$31*'AVM Traffic %'!Q12 -> 3628507.224 | BD12: =+BD$31*'AVM Traffic %'!R12 -> 930097.3336 | BE12: =+BE$31*'AVM Traffic %'!S12 -> 482887.9888 | BF12: =+BF$31*'AVM Traffic %'!T12 -> 398473.1227 | BG12: =+BG$31*'AVM Traffic %'!U12 -> 666824.9009 | BH12: =+BH$31*'AVM Traffic %'!V12 -> 1595744.508 | BI12: =+BI$31*'AVM Traffic %'!W12 -> 978748.5328 | BJ12: =+BJ$31*'AVM Traffic %'!X12 -> 4495357.263 | BK12: =+BK$31*'AVM Traffic %'!Y12 -> 670606.8846 | BL12: =+BL$31*'AVM Traffic %'!Z12 -> 955976.6057 | BM12: =+BM$31*'AVM Traffic %'!AA12 -> 1084933.837 | BN12: 43348149.6 | BO12: 6
C13: MOQUEGUA | D13: 0.000438469936 | E13: 0.004325266528 | F13: 0.2286700272 | G13: 0.110354831 | H13: 0.025070782 | I13: 0.002281011689 | J13: 0 | K13: 0.0027047784 | L13: 0.003233325957 | M13: 0.008911363243 | N13: 0.004886656236 | O13: 0.002347108768 | P13: 0.003906055088 | Q13: 0.02957548478 | R13: 0.00560015894 | S13: 0.3941230824 | T13: 0.01244792736 | U13: 0.00150481837 | V13: 0.002613427017 | W13: 0.1236087815 | X13: 0.0002708404108 | Y13: 0.02578354628 | Z13: 0.0009459126708 | AA13: 0.006396344238 | AD13: 8 | AO13: CUZ | AP13: =+AP$31*'AVM Traffic %'!D13 -> 17043.65343 | AQ13: =+AQ$31*'AVM Traffic %'!E13 -> 168126.3358 | AR13: =+AR$31*'AVM Traffic %'!F13 -> 8888574.502 | AS13: =+AS$31*'AVM Traffic %'!G13 -> 4289574.587 | AT13: =+AT$31*'AVM Traffic %'!H13 -> 974519.9945 | AU13: =+AU$31*'AVM Traffic %'!I13 -> 88664.62556 | AV13: =+AV$31*'AVM Traffic %'!J13 -> 0 | AW13: =+AW$31*'AVM Traffic %'!K13 -> 105136.7537 | AX13: =+AX$31*'AVM Traffic %'!L13 -> 125681.7914 | AY13: =+AY$31*'AVM Traffic %'!M13 -> 346391.3355 | AZ13: =+AZ$31*'AVM Traffic %'!N13 -> 189947.9724 | BA13: =+BA$31*'AVM Traffic %'!O13 -> 91233.86834 | BB13: =+BB$31*'AVM Traffic %'!P13 -> 151831.2745 | BC13: =+BC$31*'AVM Traffic %'!Q13 -> 1149621.151 | BD13: =+BD$31*'AVM Traffic %'!R13 -> 217682.3547 | BE13: =+BE$31*'AVM Traffic %'!S13 -> 15319858.16 | BF13: =+BF$31*'AVM Traffic %'!T13 -> 483860.2204 | BG13: =+BG$31*'AVM Traffic %'!U13 -> 58493.41236 | BH13: =+BH$31*'AVM Traffic %'!V13 -> 101585.8573 | BI13: =+BI$31*'AVM Traffic %'!W13 -> 4804765.525 | BJ13: =+BJ$31*'AVM Traffic %'!X13 -> 10527.76877 | BK13: =+BK$31*'AVM Traffic %'!Y13 -> 1002225.674 | BL13: =+BL$31*'AVM Traffic %'!Z13 -> 36768.33099 | BM13: =+BM$31*'AVM Traffic %'!AA13 -> 248630.671 | BN13: 38870745.81 | BO13: 7
C14: AREQUIPA | D14: 0.00248979307 | E14: 0.001142346479 | F14: 0.005118813118 | G14: 0.009478060418 | H14: 0.1901332717 | I14: 0.002158736791 | J14: 0.005064582019 | K14: 0 | L14: 0.009617148279 | M14: 0.07685773653 | N14: 0.5783523084 | O14: 0.0004164920063 | P14: 0.002464445892 | Q14: 0.06358313525 | R14: 0.005781773795 | S14: 0.001383173903 | T14: 0.002078938113 | U14: 0.01196287467 | V14: 0.001236666406 | W14: 0.01186780651 | X14: 0.001537931162 | Y14: 0.003229597717 | Z14: 0.01074247797 | AA14: 0.003301889812 | AD14: 9 | AO14: HUV | AP14: =+AP$31*'AVM Traffic %'!D14 -> 17043.65343 | AQ14: =+AQ$31*'AVM Traffic %'!E14 -> 7819.829571 | AR14: =+AR$31*'AVM Traffic %'!F14 -> 35040.37254 | AS14: =+AS$31*'AVM Traffic %'!G14 -> 64881.20594 | AT14: =+AT$31*'AVM Traffic %'!H14 -> 1301540.127 | AU14: =+AU$31*'AVM Traffic %'!I14 -> 14777.43759 | AV14: =+AV$31*'AVM Traffic %'!J14 -> 34669.13846 | AW14: =+AW$31*'AVM Traffic %'!K14 -> 0 | AX14: =+AX$31*'AVM Traffic %'!L14 -> 65833.31932 | AY14: =+AY$31*'AVM Traffic %'!M14 -> 526122.6888 | AZ14: =+AZ$31*'AVM Traffic %'!N14 -> 3959058.454 | BA14: =+BA$31*'AVM Traffic %'!O14 -> 2851.058386 | BB14: =+BB$31*'AVM Traffic %'!P14 -> 16870.14161 | BC14: =+BC$31*'AVM Traffic %'!Q14 -> 435252.6055 | BD14: =+BD$31*'AVM Traffic %'!R14 -> 39578.60994 | BE14: =+BE$31*'AVM Traffic %'!S14 -> 9468.391938 | BF14: =+BF$31*'AVM Traffic %'!T14 -> 14231.18295 | BG14: =+BG$31*'AVM Traffic %'!U14 -> 81890.7773 | BH14: =+BH$31*'AVM Traffic %'!V14 -> 8465.488107 | BI14: =+BI$31*'AVM Traffic %'!W14 -> 81239.99679 | BJ14: =+BJ$31*'AVM Traffic %'!X14 -> 10527.76877 | BK14: =+BK$31*'AVM Traffic %'!Y14 -> 22107.91927 | BL14: =+BL$31*'AVM Traffic %'!Z14 -> 73536.66198 | BM14: =+BM$31*'AVM Traffic %'!AA14 -> 22602.78828 | BN14: 6845409.617 | BO14: 8
C15: ICA | D15: 0.009366805305 | E15: 0.0164090218 | F15: 0.003209565649 | G15: 0.003380491491 | H15: 0.01225383045 | I15: 0.005168128311 | J15: 0.00541288979 | K15: 0.006894297004 | L15: 0 | M15: 0.008163328491 | N15: 0.04256987586 | O15: 0.006837281521 | P15: 0.004827282397 | Q15: 0.06823565918 | R15: 0.01606645346 | S15: 0.01158986627 | T15: 0.004621579968 | U15: 0.5228214676 | V15: 0.002009008282 | W15: 0.003962238171 | X15: 0.06206610021 | Y15: 0.009940918037 | Z15: 0.003674007392 | AA15: 0.1705199033 | AD15: 10 | AO15: HUA | AP15: =+AP$31*'AVM Traffic %'!D15 -> 374960.3754 | AQ15: =+AQ$31*'AVM Traffic %'!E15 -> 656865.684 | AR15: =+AR$31*'AVM Traffic %'!F15 -> 128481.366 | AS15: =+AS$31*'AVM Traffic %'!G15 -> 135323.6581 | AT15: =+AT$31*'AVM Traffic %'!H15 -> 490530.1986 | AU15: =+AU$31*'AVM Traffic %'!I15 -> 206884.1263 | AV15: =+AV$31*'AVM Traffic %'!J15 -> 216682.1154 | AW15: =+AW$31*'AVM Traffic %'!K15 -> 275983.9784 | AX15: =+AX$31*'AVM Traffic %'!L15 -> 0 | AY15: =+AY$31*'AVM Traffic %'!M15 -> 326784.2788 | AZ15: =+AZ$31*'AVM Traffic %'!N15 -> 1704104.667 | BA15: =+BA$31*'AVM Traffic %'!O15 -> 273701.605 | BB15: =+BB$31*'AVM Traffic %'!P15 -> 193239.8039 | BC15: =+BC$31*'AVM Traffic %'!Q15 -> 2731525.59 | BD15: =+BD$31*'AVM Traffic %'!R15 -> 643152.4116 | BE15: =+BE$31*'AVM Traffic %'!S15 -> 463951.205 | BF15: =+BF$31*'AVM Traffic %'!T15 -> 185005.3784 | BG15: =+BG$31*'AVM Traffic %'!U15 -> 20928942.94 | BH15: =+BH$31*'AVM Traffic %'!V15 -> 80422.13701 | BI15: =+BI$31*'AVM Traffic %'!W15 -> 158611.4223 | BJ15: =+BJ$31*'AVM Traffic %'!X15 -> 2484553.429 | BK15: =+BK$31*'AVM Traffic %'!Y15 -> 397942.5469 | BL15: =+BL$31*'AVM Traffic %'!Z15 -> 147073.324 | BM15: =+BM$31*'AVM Traffic %'!AA15 -> 6826042.059 | BN15: 40030764.3 | BO15: 9
C16: UCAYALLI | D16: 0.007724626526 | E16: 0.02468247266 | F16: 0.1013372268 | G16: 0.06901372522 | H16: 0.2007241299 | I16: 0.01148146052 | J16: 0.02434104967 | K16: 0.102959566 | L16: 0.02286240089 | M16: 0 | N16: 0.02248864808 | O16: 0.01089117859 | P16: 0.01355424873 | Q16: 0.1386145462 | R16: 0.02658675901 | S16: 0.03218490911 | T16: 0.04745314353 | U16: 0.01855751389 | V16: 0.0160322557 | W16: 0.02229242767 | X16: 0.01499601185 | Y16: 0.02528827709 | Z16: 0.01666436284 | AA16: 0.02926905961 | AD16: 11 | AO16: ICA | AP16: =+AP$31*'AVM Traffic %'!D16 -> 238611.148 | AQ16: =+AQ$31*'AVM Traffic %'!E16 -> 762433.3832 | AR16: =+AR$31*'AVM Traffic %'!F16 -> 3130273.281 | AS16: =+AS$31*'AVM Traffic %'!G16 -> 2131811.052 | AT16: =+AT$31*'AVM Traffic %'!H16 -> 6200301.71 | AU16: =+AU$31*'AVM Traffic %'!I16 -> 354658.5022 | AV16: =+AV$31*'AVM Traffic %'!J16 -> 751886.9404 | AW16: =+AW$31*'AVM Traffic %'!K16 -> 3180386.799 | AX16: =+AX$31*'AVM Traffic %'!L16 -> 706211.9708 | AY16: =+AY$31*'AVM Traffic %'!M16 -> 0 | AZ16: =+AZ$31*'AVM Traffic %'!N16 -> 694666.8706 | BA16: =+BA$31*'AVM Traffic %'!O16 -> 336424.8895 | BB16: =+BB$31*'AVM Traffic %'!P16 -> 418686.2417 | BC16: =+BC$31*'AVM Traffic %'!Q16 -> 4281757.297 | BD16: =+BD$31*'AVM Traffic %'!R16 -> 821256.1563 | BE16: =+BE$31*'AVM Traffic %'!S16 -> 994181.1535 | BF16: =+BF$31*'AVM Traffic %'!T16 -> 1465811.844 | BG16: =+BG$31*'AVM Traffic %'!U16 -> 573235.4411 | BH16: =+BH$31*'AVM Traffic %'!V16 -> 495231.0542 | BI16: =+BI$31*'AVM Traffic %'!W16 -> 688605.6871 | BJ16: =+BJ$31*'AVM Traffic %'!X16 -> 463221.8257 | BK16: =+BK$31*'AVM Traffic %'!Y16 -> 781146.4809 | BL16: =+BL$31*'AVM Traffic %'!Z16 -> 514756.6339 | BM16: =+BM$31*'AVM Traffic %'!AA16 -> 904111.531 | BN16: 30889667.89 | BO16: 10
C17: HUANUCO | D17: 0.003665217903 | E17: 0.009249049041 | F17: 0.01661650428 | G17: 0.00757428382 | H17: 0.09012457704 | I17: 0.006966870636 | J17: 0.008925163205 | K17: 0.4137110462 | L17: 0.06276768018 | M17: 0.01719024345 | N17: 0 | O17: 0.004338980426 | P17: 0.008651156616 | Q17: 0.09935978433 | R17: 0.00867501367 | S17: 0.01096397457 | T17: 0.004708306753 | U17: 0.1224995282 | V17: 0.004201138614 | W17: 0.006783443633 | X17: 0.009230090505 | Y17: 0.009386660122 | Z17: 0.004865838115 | AA17: 0.06954544872 | AD17: 12 | AN17: INGRESO | AO17: JUN | AP17: =+AP$31*'AVM Traffic %'!D17 -> 221567.4946 | AQ17: =+AQ$31*'AVM Traffic %'!E17 -> 559117.8144 | AR17: =+AR$31*'AVM Traffic %'!F17 -> 1004490.68 | AS17: =+AS$31*'AVM Traffic %'!G17 -> 457875.939 | AT17: =+AT$31*'AVM Traffic %'!H17 -> 5448155.406 | AU17: =+AU$31*'AVM Traffic %'!I17 -> 421156.9714 | AV17: =+AV$31*'AVM Traffic %'!J17 -> 539538.4673 | AW17: =+AW$31*'AVM Traffic %'!K17 -> 25009405.28 | AX17: =+AX$31*'AVM Traffic %'!L17 -> 3794393.131 | AY17: =+AY$31*'AVM Traffic %'!M17 -> 1039174.006 | AZ17: =+AZ$31*'AVM Traffic %'!N17 -> 0 | BA17: =+BA$31*'AVM Traffic %'!O17 -> 262297.3715 | BB17: =+BB$31*'AVM Traffic %'!P17 -> 522974.3898 | BC17: =+BC$31*'AVM Traffic %'!Q17 -> 6006436.467 | BD17: =+BD$31*'AVM Traffic %'!R17 -> 524416.5817 | BE17: =+BE$31*'AVM Traffic %'!S17 -> 662787.4357 | BF17: =+BF$31*'AVM Traffic %'!T17 -> 284623.6591 | BG17: =+BG$31*'AVM Traffic %'!U17 -> 7405266.005 | BH17: =+BH$31*'AVM Traffic %'!V17 -> 253964.6432 | BI17: =+BI$31*'AVM Traffic %'!W17 -> 410068.5552 | BJ17: =+BJ$31*'AVM Traffic %'!X17 -> 557971.7446 | BK17: =+BK$31*'AVM Traffic %'!Y17 -> 567436.5946 | BL17: =+BL$31*'AVM Traffic %'!Z17 -> 294146.6479 | BM17: =+BM$31*'AVM Traffic %'!AA17 -> 4204118.619 | BN17: 60451383.9 | BO17: 11
C18: PASCO | D18: 0.1650041925 | E18: 0.02142695765 | F18: 0.01275320565 | G18: 0.01540211111 | H18: 0.01067792194 | I18: 0.125085262 | J18: 0.0113337507 | K18: 0.02077259567 | L18: 0.04244436553 | M18: 0.01763644777 | N18: 0.02945911694 | O18: 0 | P18: 0.05138474228 | Q18: 0.1018770952 | R18: 0.02634044543 | S18: 0.01516280506 | T18: 0.01391077926 | U18: 0.01642303149 | V18: 0.07156903364 | W18: 0.03705039452 | X18: 0.07422473146 | Y18: 0.02827714672 | Z18: 0.05582251204 | AA18: 0.03596135535 | AD18: 13 | AO18: LAM | AP18: =+AP$31*'AVM Traffic %'!D18 -> 15867641.34 | AQ18: =+AQ$31*'AVM Traffic %'!E18 -> 2060525.092 | AR18: =+AR$31*'AVM Traffic %'!F18 -> 1226413.039 | AS18: =+AS$31*'AVM Traffic %'!G18 -> 1481145.244 | AT18: =+AT$31*'AVM Traffic %'!H18 -> 1026843.216 | AU18: =+AU$31*'AVM Traffic %'!I18 -> 12028834.2 | AV18: =+AV$31*'AVM Traffic %'!J18 -> 1089911.04 | AW18: =+AW$31*'AVM Traffic %'!K18 -> 1997598.32 | AX18: =+AX$31*'AVM Traffic %'!L18 -> 4081665.798 | AY18: =+AY$31*'AVM Traffic %'!M18 -> 1696010.407 | AZ18: =+AZ$31*'AVM Traffic %'!N18 -> 2832938.331 | BA18: =+BA$31*'AVM Traffic %'!O18 -> 0 | BB18: =+BB$31*'AVM Traffic %'!P18 -> 4941417.842 | BC18: =+BC$31*'AVM Traffic %'!Q18 -> 9797018.993 | BD18: =+BD$31*'AVM Traffic %'!R18 -> 2533031.036 | BE18: =+BE$31*'AVM Traffic %'!S18 -> 1458132.358 | BF18: =+BF$31*'AVM Traffic %'!T18 -> 1337731.198 | BG18: =+BG$31*'AVM Traffic %'!U18 -> 1579322.134 | BH18: =+BH$31*'AVM Traffic %'!V18 -> 6882441.831 | BI18: =+BI$31*'AVM Traffic %'!W18 -> 3562954.145 | BJ18: =+BJ$31*'AVM Traffic %'!X18 -> 7137827.223 | BK18: =+BK$31*'AVM Traffic %'!Y18 -> 2719274.07 | BL18: =+BL$31*'AVM Traffic %'!Z18 -> 5368176.325 | BM18: =+BM$31*'AVM Traffic %'!AA18 -> 3458226.606 | BN18: 96165079.79 | BO18: 12
C19: JUNIN | D19: 0.05539721001 | E19: 0.09880468602 | F19: 0.002294531137 | G19: 0.01205052763 | H19: 0.008760311705 | I19: 0.1993826725 | J19: 0.01052557381 | K19: 0.008918708774 | L19: 0.02511740337 | M19: 0.0144732694 | N19: 0.0153620684 | O19: 0.1065176562 | P19: 0 | Q19: 0.07642312722 | R19: 0.03039364614 | S19: 0.01166753542 | T19: 0.01169102647 | U19: 0.01211765984 | V19: 0.08889618842 | W19: 0.01713389472 | X19: 0.07276141105 | Y19: 0.01355556583 | Z19: 0.07485702757 | AA19: 0.03289829843 | AD19: 14 | AO19: LIB | AP19: =+AP$31*'AVM Traffic %'!D19 -> 3101944.924 | AQ19: =+AQ$31*'AVM Traffic %'!E19 -> 5532529.422 | AR19: =+AR$31*'AVM Traffic %'!F19 -> 128481.366 | AS19: =+AS$31*'AVM Traffic %'!G19 -> 674764.5417 | AT19: =+AT$31*'AVM Traffic %'!H19 -> 490530.1986 | AU19: =+AU$31*'AVM Traffic %'!I19 -> 11164354.1 | AV19: =+AV$31*'AVM Traffic %'!J19 -> 589375.3538 | AW19: =+AW$31*'AVM Traffic %'!K19 -> 499399.58 | AX19: =+AX$31*'AVM Traffic %'!L19 -> 1406439.094 | AY19: =+AY$31*'AVM Traffic %'!M19 -> 810425.0113 | AZ19: =+AZ$31*'AVM Traffic %'!N19 -> 860192.9608 | BA19: =+BA$31*'AVM Traffic %'!O19 -> 5964414.143 | BB19: =+BB$31*'AVM Traffic %'!P19 -> 0 | BC19: =+BC$31*'AVM Traffic %'!Q19 -> 4279282.865 | BD19: =+BD$31*'AVM Traffic %'!R19 -> 1701880.228 | BE19: =+BE$31*'AVM Traffic %'!S19 -> 653319.0437 | BF19: =+BF$31*'AVM Traffic %'!T19 -> 654634.4159 | BG19: =+BG$31*'AVM Traffic %'!U19 -> 678523.5834 | BH19: =+BH$31*'AVM Traffic %'!V19 -> 4977707.007 | BI19: =+BI$31*'AVM Traffic %'!W19 -> 959405.6764 | BJ19: =+BJ$31*'AVM Traffic %'!X19 -> 4074246.512 | BK19: =+BK$31*'AVM Traffic %'!Y19 -> 759038.5617 | BL19: =+BL$31*'AVM Traffic %'!Z19 -> 4191589.733 | BM19: =+BM$31*'AVM Traffic %'!AA19 -> 1842127.244 | BN19: 55994605.57 | BO19: 13
C20: LORETO | D20: 0.03014123791 | E20: 0.06546225941 | F20: 0.04784493863 | G20: 0.04178737844 | H20: 0.05267038098 | I20: 0.03656935625 | J20: 0.04217089599 | K20: 0.03295136545 | L20: 0.04931523172 | M20: 0.06482569458 | N20: 0.05750539602 | O20: 0.04468024295 | P20: 0.05192348312 | Q20: 0 | R20: 0.05297970831 | S20: 0.0275751994 | T20: 0.02392175548 | U20: 0.03256056427 | V20: 0.05531854558 | W20: 0.02753229767 | X20: 0.03847006183 | Y20: 0.04282548814 | Z20: 0.03660315929 | AA20: 0.04436535859 | AD20: 15 | AO20: LIM | AP20: =+AP$31*'AVM Traffic %'!D20 -> 20316034.89 | AQ20: =+AQ$31*'AVM Traffic %'!E20 -> 44123388.36 | AR20: =+AR$31*'AVM Traffic %'!F20 -> 32248822.86 | AS20: =+AS$31*'AVM Traffic %'!G20 -> 28165858.37 | AT20: =+AT$31*'AVM Traffic %'!H20 -> 35501305.57 | AU20: =+AU$31*'AVM Traffic %'!I20 -> 24648765.91 | AV20: =+AV$31*'AVM Traffic %'!J20 -> 28424359.9 | AW20: =+AW$31*'AVM Traffic %'!K20 -> 22210139.21 | AX20: =+AX$31*'AVM Traffic %'!L20 -> 33239841.41 | AY20: =+AY$31*'AVM Traffic %'!M20 -> 43694325.91 | AZ20: =+AZ$31*'AVM Traffic %'!N20 -> 38760240.54 | BA20: =+BA$31*'AVM Traffic %'!O20 -> 30115729.73 | BB20: =+BB$31*'AVM Traffic %'!P20 -> 34997875.59 | BC20: =+BC$31*'AVM Traffic %'!Q20 -> 0 | BD20: =+BD$31*'AVM Traffic %'!R20 -> 35709800.82 | BE20: =+BE$31*'AVM Traffic %'!S20 -> 18586453.37 | BF20: =+BF$31*'AVM Traffic %'!T20 -> 16123930.29 | BG20: =+BG$31*'AVM Traffic %'!U20 -> 21946728.32 | BH20: =+BH$31*'AVM Traffic %'!V20 -> 37286242.37 | BI20: =+BI$31*'AVM Traffic %'!W20 -> 18557536.41 | BJ20: =+BJ$31*'AVM Traffic %'!X20 -> 25929894.47 | BK20: =+BK$31*'AVM Traffic %'!Y20 -> 28865573.26 | BL20: =+BL$31*'AVM Traffic %'!Z20 -> 24671550.09 | BM20: =+BM$31*'AVM Traffic %'!AA20 -> 29903488.89 | BN20: 674027886.5 | BO20: 14
C21: AYACUCHO | D21: 0.02274577008 | E21: 0.0161758435 | F21: 0.002338173153 | G21: 0.0111327212 | H21: 0.01178355151 | I21: 0.01429799335 | J21: 0.01185618245 | K21: 0.004384726762 | L21: 0.02515947484 | M21: 0.01417367487 | N21: 0.0144855358 | O21: 0.01902453567 | P21: 0.02814276028 | Q21: 0.09251328818 | R21: 0 | S21: 0.03601297813 | T21: 0.002848854122 | U21: 0.007806294081 | V21: 0.03135111144 | W21: 0.005937264456 | X21: 0.3175285111 | Y21: 0.01278521154 | Z21: 0.01472085794 | AA21: 0.2827946856 | AD21: 16 | AO21: LOR | AP21: =+AP$31*'AVM Traffic %'!D21 -> 340873.0686 | AQ21: =+AQ$31*'AVM Traffic %'!E21 -> 242414.7167 | AR21: =+AR$31*'AVM Traffic %'!F21 -> 35040.37254 | AS21: =+AS$31*'AVM Traffic %'!G21 -> 166837.3867 | AT21: =+AT$31*'AVM Traffic %'!H21 -> 176590.8715 | AU21: =+AU$31*'AVM Traffic %'!I21 -> 214272.8451 | AV21: =+AV$31*'AVM Traffic %'!J21 -> 177679.3346 | AW21: =+AW$31*'AVM Traffic %'!K21 -> 65710.47105 | AX21: =+AX$31*'AVM Traffic %'!L21 -> 377045.3743 | AY21: =+AY$31*'AVM Traffic %'!M21 -> 212409.7812 | AZ21: =+AZ$31*'AVM Traffic %'!N21 -> 217083.397 | BA21: =+BA$31*'AVM Traffic %'!O21 -> 285105.8386 | BB21: =+BB$31*'AVM Traffic %'!P21 -> 421753.5402 | BC21: =+BC$31*'AVM Traffic %'!Q21 -> 1386424.303 | BD21: =+BD$31*'AVM Traffic %'!R21 -> 0 | BE21: =+BE$31*'AVM Traffic %'!S21 -> 539698.3405 | BF21: =+BF$31*'AVM Traffic %'!T21 -> 42693.54886 | BG21: =+BG$31*'AVM Traffic %'!U21 -> 116986.8247 | BH21: =+BH$31*'AVM Traffic %'!V21 -> 469834.5899 | BI21: =+BI$31*'AVM Traffic %'!W21 -> 88977.13934 | BJ21: =+BJ$31*'AVM Traffic %'!X21 -> 4758551.482 | BK21: =+BK$31*'AVM Traffic %'!Y21 -> 191601.967 | BL21: =+BL$31*'AVM Traffic %'!Z21 -> 220609.9859 | BM21: =+BM$31*'AVM Traffic %'!AA21 -> 4238022.802 | BN21: 14986217.98 | BO21: 15
C22: HUANCAVELICA | D22: 0.00433120645 | E22: 0.008942439125 | F22: 0.08904610048 | G22: 0.07301780239 | H22: 0.02825527885 | I22: 0.005632958915 | J22: 0.420139772 | K22: 0.003339725455 | L22: 0.01368805582 | M22: 0.01577832679 | N22: 0.009654079001 | O22: 0.005796185669 | P22: 0.005846063019 | Q22: 0.03326422448 | R22: 0.02263024448 | S22: 0 | T22: =+BF58 -> 0.04701436177 | U22: 0.008918758386 | V22: 0.003226929324 | W22: 0.08159713042 | X22: 0.02675361839 | Y22: 0.02059991798 | Z22: 0.009343726274 | AA22: 0.06318309455 | AD22: 17 | AO22: MAD | AP22: =+AP$31*'AVM Traffic %'!D22 -> 17043.65343 | AQ22: =+AQ$31*'AVM Traffic %'!E22 -> 35189.23307 | AR22: =+AR$31*'AVM Traffic %'!F22 -> 350403.7254 | AS22: =+AS$31*'AVM Traffic %'!G22 -> 287331.0549 | AT22: =+AT$31*'AVM Traffic %'!H22 -> 111186.845 | AU22: =+AU$31*'AVM Traffic %'!I22 -> 22166.15639 | AV22: =+AV$31*'AVM Traffic %'!J22 -> 1653284.54 | AW22: =+AW$31*'AVM Traffic %'!K22 -> 13142.09421 | AX22: =+AX$31*'AVM Traffic %'!L22 -> 53863.62489 | AY22: =+AY$31*'AVM Traffic %'!M22 -> 62089.01296 | AZ22: =+AZ$31*'AVM Traffic %'!N22 -> 37989.59448 | BA22: =+BA$31*'AVM Traffic %'!O22 -> 22808.46708 | BB22: =+BB$31*'AVM Traffic %'!P22 -> 23004.73856 | BC22: =+BC$31*'AVM Traffic %'!Q22 -> 130897.4578 | BD22: =+BD$31*'AVM Traffic %'!R22 -> 89051.87237 | BE22: =+BE$31*'AVM Traffic %'!S22 -> 0 | BF22: =+BF$31*'AVM Traffic %'!T22 -> 185005.3784 | BG22: =+BG$31*'AVM Traffic %'!U22 -> 35096.04742 | BH22: =+BH$31*'AVM Traffic %'!V22 -> 12698.23216 | BI22: =+BI$31*'AVM Traffic %'!W22 -> 321091.4159 | BJ22: =+BJ$31*'AVM Traffic %'!X22 -> 105277.6877 | BK22: =+BK$31*'AVM Traffic %'!Y22 -> 81062.37066 | BL22: =+BL$31*'AVM Traffic %'!Z22 -> 36768.33099 | BM22: =+BM$31*'AVM Traffic %'!AA22 -> 248630.671 | BN22: 3935082.205 | BO22: 16
C23: TUMBES | D23: 0.0009927406281 | E23: 0.01207024994 | F23: 0.009524640601 | G23: 0.2746888792 | H23: 0.004190542718 | I23: 0.008177034697 | J23: 0.02852361772 | K23: 0.0007654867494 | L23: 0.01708135226 | M23: 0.02150862757 | N23: 0.004109444045 | O23: 0.004483766384 | P23: 0.005002500851 | Q23: 0.02221013918 | R23: 0.006339665331 | S23: 0.03584781461 | T23: 0 | U23: 0.004088474611 | V23: 0.007642875822 | W23: 0.1381287809 | X23: 0.004905682375 | Y23: 0.3790185102 | Z23: 0.002141642703 | AA23: 0.008557530879 | AD23: 18 | AO23: MOQ | AP23: =+AP$31*'AVM Traffic %'!D23 -> 17043.65343 | AQ23: =+AQ$31*'AVM Traffic %'!E23 -> 207225.4836 | AR23: =+AR$31*'AVM Traffic %'!F23 -> 163521.7385 | AS23: =+AS$31*'AVM Traffic %'!G23 -> 4715936.797 | AT23: =+AT$31*'AVM Traffic %'!H23 -> 71944.42913 | AU23: =+AU$31*'AVM Traffic %'!I23 -> 140385.6571 | AV23: =+AV$31*'AVM Traffic %'!J23 -> 489701.5808 | AW23: =+AW$31*'AVM Traffic %'!K23 -> 13142.09421 | AX23: =+AX$31*'AVM Traffic %'!L23 -> 293257.5133 | AY23: =+AY$31*'AVM Traffic %'!M23 -> 369266.235 | AZ23: =+AZ$31*'AVM Traffic %'!N23 -> 70552.10404 | BA23: =+BA$31*'AVM Traffic %'!O23 -> 76978.57641 | BB23: =+BB$31*'AVM Traffic %'!P23 -> 85884.35727 | BC23: =+BC$31*'AVM Traffic %'!Q23 -> 381309.9858 | BD23: =+BD$31*'AVM Traffic %'!R23 -> 108841.1773 | BE23: =+BE$31*'AVM Traffic %'!S23 -> 615445.476 | BF23: =+BF$31*'AVM Traffic %'!T23 -> 0 | BG23: =+BG$31*'AVM Traffic %'!U23 -> 70192.09483 | BH23: =+BH$31*'AVM Traffic %'!V23 -> 131215.0657 | BI23: =+BI$31*'AVM Traffic %'!W23 -> 2371434.192 | BJ23: =+BJ$31*'AVM Traffic %'!X23 -> 84222.15013 | BK23: =+BK$31*'AVM Traffic %'!Y23 -> 6507097.572 | BL23: =+BL$31*'AVM Traffic %'!Z23 -> 36768.33099 | BM23: =+BM$31*'AVM Traffic %'!AA23 -> 146918.1238 | BN23: 17168284.39 | BO23: 17
C24: PIURA | D24: 0.001630894126 | E24: 0.007482734949 | F24: 0.04135349866 | G24: 0.01294901707 | H24: 0.0137686145 | I24: 0.006363187519 | J24: 0.006220243637 | K24: 0.05155983358 | L24: 0.2651533587 | M24: 0.01782375011 | N24: 0.3141847248 | O24: 0.003819418268 | P24: 0.005136380179 | Q24: 0.1007957601 | R24: 0.01230855221 | S24: 0.01630841694 | T24: 0.001361770983 | U24: 0 | V24: 0.004455308358 | W24: 0.009624696087 | X24: 0.009066547079 | Y24: 0.004230979683 | Z24: 0.04573833415 | AA24: 0.04866397823 | AD24: 19 | AO24: PAS | AP24: =+AP$31*'AVM Traffic %'!D24 -> 17043.65343 | AQ24: =+AQ$31*'AVM Traffic %'!E24 -> 78198.29571 | AR24: =+AR$31*'AVM Traffic %'!F24 -> 432164.5947 | AS24: =+AS$31*'AVM Traffic %'!G24 -> 135323.6581 | AT24: =+AT$31*'AVM Traffic %'!H24 -> 143888.8583 | AU24: =+AU$31*'AVM Traffic %'!I24 -> 66498.46917 | AV24: =+AV$31*'AVM Traffic %'!J24 -> 65004.63462 | AW24: =+AW$31*'AVM Traffic %'!K24 -> 538825.8626 | AX24: =+AX$31*'AVM Traffic %'!L24 -> 2770984.258 | AY24: =+AY$31*'AVM Traffic %'!M24 -> 186267.0389 | AZ24: =+AZ$31*'AVM Traffic %'!N24 -> 3283386.38 | BA24: =+BA$31*'AVM Traffic %'!O24 -> 39914.8174 | BB24: =+BB$31*'AVM Traffic %'!P24 -> 53677.7233 | BC24: =+BC$31*'AVM Traffic %'!Q24 -> 1053365.743 | BD24: =+BD$31*'AVM Traffic %'!R24 -> 128630.4823 | BE24: =+BE$31*'AVM Traffic %'!S24 -> 170431.0549 | BF24: =+BF$31*'AVM Traffic %'!T24 -> 14231.18295 | BG24: =+BG$31*'AVM Traffic %'!U24 -> 0 | BH24: =+BH$31*'AVM Traffic %'!V24 -> 46560.18459 | BI24: =+BI$31*'AVM Traffic %'!W24 -> 100582.8532 | BJ24: =+BJ$31*'AVM Traffic %'!X24 -> 94749.91889 | BK24: =+BK$31*'AVM Traffic %'!Y24 -> 44215.83854 | BL24: =+BL$31*'AVM Traffic %'!Z24 -> 477988.3029 | BM24: =+BM$31*'AVM Traffic %'!AA24 -> 508562.7362 | BN24: 10450496.54 | BO24: 18
C25: LAMBAYEQUE | D25: 0.02133061961 | E25: 0.02966605656 | F25: 0.01279075822 | G25: 0.01232510389 | H25: 0.01176665759 | I25: 0.03669979661 | J25: 0.007076203931 | K25: 0.006424885425 | L25: 0.01568262178 | M25: 0.01469771404 | N25: 0.02133160227 | O25: 0.1041462857 | P25: 0.06921857431 | Q25: 0.1183082979 | R25: 0.02263847719 | S25: 0.008517161086 | T25: 0.01614097623 | U25: 0.01212477325 | V25: 0 | W25: 0.00680853877 | X25: 0.04735054434 | Y25: 0.01383434656 | Z25: 0.3710089793 | AA25: 0.02011102547 | AD25: 20 | AO25: PIU | AP25: =+AP$31*'AVM Traffic %'!D25 -> 1090793.819 | AQ25: =+AQ$31*'AVM Traffic %'!E25 -> 1517046.937 | AR25: =+AR$31*'AVM Traffic %'!F25 -> 654086.9542 | AS25: =+AS$31*'AVM Traffic %'!G25 -> 630274.572 | AT25: =+AT$31*'AVM Traffic %'!H25 -> 601717.0436 | AU25: =+AU$31*'AVM Traffic %'!I25 -> 1876734.574 | AV25: =+AV$31*'AVM Traffic %'!J25 -> 361859.1327 | AW25: =+AW$31*'AVM Traffic %'!K25 -> 328552.3552 | AX25: =+AX$31*'AVM Traffic %'!L25 -> 801969.5262 | AY25: =+AY$31*'AVM Traffic %'!M25 -> 751603.8411 | AZ25: =+AZ$31*'AVM Traffic %'!N25 -> 1090844.07 | BA25: =+BA$31*'AVM Traffic %'!O25 -> 5325777.064 | BB25: =+BB$31*'AVM Traffic %'!P25 -> 3539662.439 | BC25: =+BC$31*'AVM Traffic %'!Q25 -> 6049986.472 | BD25: =+BD$31*'AVM Traffic %'!R25 -> 1157674.341 | BE25: =+BE$31*'AVM Traffic %'!S25 -> 435546.0291 | BF25: =+BF$31*'AVM Traffic %'!T25 -> 825408.6113 | BG25: =+BG$31*'AVM Traffic %'!U25 -> 620030.171 | BH25: =+BH$31*'AVM Traffic %'!V25 -> 0 | BI25: =+BI$31*'AVM Traffic %'!W25 -> 348171.4148 | BJ25: =+BJ$31*'AVM Traffic %'!X25 -> 2421386.816 | BK25: =+BK$31*'AVM Traffic %'!Y25 -> 707453.4167 | BL25: =+BL$31*'AVM Traffic %'!Z25 -> 18972458.79 | BM25: =+BM$31*'AVM Traffic %'!AA25 -> 1028426.867 | BN25: 51137465.26 | BO25: 19
C26: CAJAMARCA | D26: 0.002411213194 | E26: 0.004757060342 | F26: 0.04891162459 | G26: 0.2333545038 | H26: 0.02831384361 | I26: 0.003972150104 | J26: 0.1598332059 | K26: 0.01041179287 | L26: 0.004741480966 | M26: 0.01312962771 | N26: 0.006526171168 | O26: 0.003226777463 | P26: 0.003254544535 | Q26: 0.02707401247 | R26: 0.001959753723 | S26: 0.1800314637 | T26: 0.1179808538 | U26: 0.005296144777 | V26: 0.00215574519 | W26: 0 | X26: 0.005361814132 | Y26: 0.1317791209 | Z26: 0.00104034367 | AA26: 0.004476751311 | AD26: 21 | AO26: PUN | AP26: =+AP$31*'AVM Traffic %'!D26 -> 85218.26714 | AQ26: =+AQ$31*'AVM Traffic %'!E26 -> 168126.3358 | AR26: =+AR$31*'AVM Traffic %'!F26 -> 1728658.379 | AS26: =+AS$31*'AVM Traffic %'!G26 -> 8247328.149 | AT26: =+AT$31*'AVM Traffic %'!H26 -> 1000681.605 | AU26: =+AU$31*'AVM Traffic %'!I26 -> 140385.6571 | AV26: =+AV$31*'AVM Traffic %'!J26 -> 5648902.748 | AW26: =+AW$31*'AVM Traffic %'!K26 -> 367978.6379 | AX26: =+AX$31*'AVM Traffic %'!L26 -> 167575.7219 | AY26: =+AY$31*'AVM Traffic %'!M26 -> 464033.6758 | AZ26: =+AZ$31*'AVM Traffic %'!N26 -> 230651.1094 | BA26: =+BA$31*'AVM Traffic %'!O26 -> 114042.3354 | BB26: =+BB$31*'AVM Traffic %'!P26 -> 115023.6928 | BC26: =+BC$31*'AVM Traffic %'!Q26 -> 956862.8911 | BD26: =+BD$31*'AVM Traffic %'!R26 -> 69262.5674 | BE26: =+BE$31*'AVM Traffic %'!S26 -> 6362759.382 | BF26: =+BF$31*'AVM Traffic %'!T26 -> 4169736.605 | BG26: =+BG$31*'AVM Traffic %'!U26 -> 187178.9196 | BH26: =+BH$31*'AVM Traffic %'!V26 -> 76189.39296 | BI26: =+BI$31*'AVM Traffic %'!W26 -> 0 | BJ26: =+BJ$31*'AVM Traffic %'!X26 -> 189499.8378 | BK26: =+BK$31*'AVM Traffic %'!Y26 -> 4657401.66 | BL26: =+BL$31*'AVM Traffic %'!Z26 -> 36768.33099 | BM26: =+BM$31*'AVM Traffic %'!AA26 -> 158219.5179 | BN26: 35342485.42 | BO26: 20
C27: MADRE DE DIOS | D27: 0.2307868443 | E27: 0.008187195696 | F27: 0.00285339653 | G27: 0.005757812316 | H27: 0.007532429129 | I27: 0.08999351062 | J27: 0.002344236314 | K27: 0.005045147757 | L27: 0.09691425839 | M27: 0.007641041989 | N27: 0.009280669914 | O27: 0.082783935 | P27: 0.04474545709 | Q27: 0.06367886324 | R27: 0.1868161594 | S27: 0.02180905216 | T27: 0.002979949339 | U27: 0.02204689034 | V27: 0.02112392779 | W27: 0.00175513523 | X27: 0 | Y27: 0.01363072995 | Z27: 0.01668145382 | AA27: 0.05561190376 | AD27: 22 | AO27: SMA | AP27: =+AP$31*'AVM Traffic %'!D27 -> 6612937.53 | AQ27: =+AQ$31*'AVM Traffic %'!E27 -> 234594.8871 | AR27: =+AR$31*'AVM Traffic %'!F27 -> 81760.86927 | AS27: =+AS$31*'AVM Traffic %'!G27 -> 164983.638 | AT27: =+AT$31*'AVM Traffic %'!H27 -> 215833.2874 | AU27: =+AU$31*'AVM Traffic %'!I27 -> 2578662.86 | AV27: =+AV$31*'AVM Traffic %'!J27 -> 67171.45577 | AW27: =+AW$31*'AVM Traffic %'!K27 -> 144563.0363 | AX27: =+AX$31*'AVM Traffic %'!L27 -> 2776969.106 | AY27: =+AY$31*'AVM Traffic %'!M27 -> 218945.4668 | AZ27: =+AZ$31*'AVM Traffic %'!N27 -> 265927.1614 | BA27: =+BA$31*'AVM Traffic %'!O27 -> 2372080.577 | BB27: =+BB$31*'AVM Traffic %'!P27 -> 1282130.762 | BC27: =+BC$31*'AVM Traffic %'!Q27 -> 1824646.227 | BD27: =+BD$31*'AVM Traffic %'!R27 -> 5353006.995 | BE27: =+BE$31*'AVM Traffic %'!S27 -> 624913.8679 | BF27: =+BF$31*'AVM Traffic %'!T27 -> 85387.09772 | BG27: =+BG$31*'AVM Traffic %'!U27 -> 631728.8535 | BH27: =+BH$31*'AVM Traffic %'!V27 -> 605282.3996 | BI27: =+BI$31*'AVM Traffic %'!W27 -> 50291.42659 | BJ27: =+BJ$31*'AVM Traffic %'!X27 -> 0 | BK27: =+BK$31*'AVM Traffic %'!Y27 -> 390573.2405 | BL27: =+BL$31*'AVM Traffic %'!Z27 -> 477988.3029 | BM27: =+BM$31*'AVM Traffic %'!AA27 -> 1593496.573 | BN27: 28653875.62 | BO27: 21
C28: APURIMAC | D28: 0.0067521584 | E28: 0.004978880444 | F28: 0.01222928527 | G28: 0.1357585006 | H28: 0.01258534978 | I28: 0.0058543551 | J28: 0.0420628867 | K28: 0.001487566739 | L28: 0.01388733179 | M28: 0.01479561525 | N28: 0.005912610074 | O28: 0.005728175977 | P28: 0.005381453845 | Q28: 0.02772826001 | R28: 0.00951987738 | S28: 0.0444770738 | T28: 0.4095565223 | U28: 0.006289881248 | V28: 0.004671308041 | W28: 0.2001145589 | X28: 0.006554067502 | Y28: 0 | Z28: 0.008323688044 | AA28: 0.01535059276 | AD28: 23 | AO28: TAC | AP28: =+AP$31*'AVM Traffic %'!D28 -> 238611.148 | AQ28: =+AQ$31*'AVM Traffic %'!E28 -> 175946.1654 | AR28: =+AR$31*'AVM Traffic %'!F28 -> 432164.5947 | AS28: =+AS$31*'AVM Traffic %'!G28 -> 4797501.742 | AT28: =+AT$31*'AVM Traffic %'!H28 -> 444747.3801 | AU28: =+AU$31*'AVM Traffic %'!I28 -> 206884.1263 | AV28: =+AV$31*'AVM Traffic %'!J28 -> 1486439.312 | AW28: =+AW$31*'AVM Traffic %'!K28 -> 52568.37684 | AX28: =+AX$31*'AVM Traffic %'!L28 -> 490757.4713 | AY28: =+AY$31*'AVM Traffic %'!M28 -> 522854.846 | AZ28: =+AZ$31*'AVM Traffic %'!N28 -> 208942.7697 | BA28: =+BA$31*'AVM Traffic %'!O28 -> 202425.1454 | BB28: =+BB$31*'AVM Traffic %'!P28 -> 190172.5054 | BC28: =+BC$31*'AVM Traffic %'!Q28 -> 979875.1096 | BD28: =+BD$31*'AVM Traffic %'!R28 -> 336418.1845 | BE28: =+BE$31*'AVM Traffic %'!S28 -> 1571753.062 | BF28: =+BF$31*'AVM Traffic %'!T28 -> 14473113.06 | BG28: =+BG$31*'AVM Traffic %'!U28 -> 222274.967 | BH28: =+BH$31*'AVM Traffic %'!V28 -> 165077.0181 | BI28: =+BI$31*'AVM Traffic %'!W28 -> 7071748.292 | BJ28: =+BJ$31*'AVM Traffic %'!X28 -> 231610.9129 | BK28: =+BK$31*'AVM Traffic %'!Y28 -> 0 | BL28: =+BL$31*'AVM Traffic %'!Z28 -> 294146.6479 | BM28: =+BM$31*'AVM Traffic %'!AA28 -> 542466.9186 | BN28: 35338499.76 | BO28: 22
C29: CUSCO | D29: 0.02244373737 | E29: 0.02106296977 | F29: 0.001398257826 | G29: 0.01486844225 | H29: 0.007046716404 | I29: 0.04687969811 | J29: 0.007522476906 | K29: 0.006293096131 | L29: 0.01003046119 | M29: 0.01134485505 | N29: 0.006496903501 | O29: 0.108877112 | P29: 0.09693927423 | Q29: 0.0887180863 | R29: 0.01776771598 | S29: 0.01020137083 | T29: 0.008518258292 | U29: 0.005601917946 | V29: 0.3901687946 | W29: 0.0138934997 | X29: 0.07939930215 | Y29: 0.01235078181 | Z29: 0 | AA29: 0.01217627167 | AD29: 24 | AO29: TUM | AP29: =+AP$31*'AVM Traffic %'!D29 -> 187480.1877 | AQ29: =+AQ$31*'AVM Traffic %'!E29 -> 175946.1654 | AR29: =+AR$31*'AVM Traffic %'!F29 -> 11680.12418 | AS29: =+AS$31*'AVM Traffic %'!G29 -> 124201.1656 | AT29: =+AT$31*'AVM Traffic %'!H29 -> 58863.62383 | AU29: =+AU$31*'AVM Traffic %'!I29 -> 391602.0962 | AV29: =+AV$31*'AVM Traffic %'!J29 -> 62837.81346 | AW29: =+AW$31*'AVM Traffic %'!K29 -> 52568.37684 | AX29: =+AX$31*'AVM Traffic %'!L29 -> 83787.86095 | AY29: =+AY$31*'AVM Traffic %'!M29 -> 94767.44084 | AZ29: =+AZ$31*'AVM Traffic %'!N29 -> 54270.84926 | BA29: =+BA$31*'AVM Traffic %'!O29 -> 909487.625 | BB29: =+BB$31*'AVM Traffic %'!P29 -> 809766.7971 | BC29: =+BC$31*'AVM Traffic %'!Q29 -> 741092.4124 | BD29: =+BD$31*'AVM Traffic %'!R29 -> 148419.7873 | BE29: =+BE$31*'AVM Traffic %'!S29 -> 85215.52744 | BF29: =+BF$31*'AVM Traffic %'!T29 -> 71155.91477 | BG29: =+BG$31*'AVM Traffic %'!U29 -> 46794.72989 | BH29: =+BH$31*'AVM Traffic %'!V29 -> 3259212.921 | BI29: =+BI$31*'AVM Traffic %'!W29 -> 116057.1383 | BJ29: =+BJ$31*'AVM Traffic %'!X29 -> 663249.4323 | BK29: =+BK$31*'AVM Traffic %'!Y29 -> 103170.2899 | BL29: =+BL$31*'AVM Traffic %'!Z29 -> 0 | BM29: =+BM$31*'AVM Traffic %'!AA29 -> 101712.5472 | BN29: 8353340.827 | BO29: 23
C30: LIMA | D30: 0.01267283571 | E30: 0.01108378914 | F30: 0.008141976542 | G30: 0.008183999647 | H30: 0.01975645274 | I30: 0.005837262008 | J30: 0.007048752058 | K30: 0.006718129774 | L30: 0.2113770281 | M30: 0.01427513211 | N30: 0.03291305966 | O30: 0.009009613307 | P30: 0.01097584313 | Q30: 0.07025995672 | R30: 0.3053231629 | S30: 0.06776229016 | T30: 0.01984053525 | U30: 0.07121957483 | V30: 0.005507711295 | W30: 0.0026967022 | X30: 0.07338693066 | Y30: 0.01746577733 | Z30: 0.008543484749 | AA30: 0 | AD30: 25 | AO30: UCA | AP30: =+AP$31*'AVM Traffic %'!D30 -> 272698.4548 | AQ30: =+AQ$31*'AVM Traffic %'!E30 -> 238504.8019 | AR30: =+AR$31*'AVM Traffic %'!F30 -> 175201.8627 | AS30: =+AS$31*'AVM Traffic %'!G30 -> 176106.1304 | AT30: =+AT$31*'AVM Traffic %'!H30 -> 425126.1721 | AU30: =+AU$31*'AVM Traffic %'!I30 -> 125608.2195 | AV30: =+AV$31*'AVM Traffic %'!J30 -> 151677.4808 | AW30: =+AW$31*'AVM Traffic %'!K30 -> 144563.0363 | AX30: =+AX$31*'AVM Traffic %'!L30 -> 4548483.88 | AY30: =+AY$31*'AVM Traffic %'!M30 -> 307177.222 | AZ30: =+AZ$31*'AVM Traffic %'!N30 -> 708234.5829 | BA30: =+BA$31*'AVM Traffic %'!O30 -> 193871.9702 | BB30: =+BB$31*'AVM Traffic %'!P30 -> 236181.9825 | BC30: =+BC$31*'AVM Traffic %'!Q30 -> 1511878.01 | BD30: =+BD$31*'AVM Traffic %'!R30 -> 6570049.25 | BE30: =+BE$31*'AVM Traffic %'!S30 -> 1458132.358 | BF30: =+BF$31*'AVM Traffic %'!T30 -> 426935.4886 | BG30: =+BG$31*'AVM Traffic %'!U30 -> 1532527.404 | BH30: =+BH$31*'AVM Traffic %'!V30 -> 118516.8335 | BI30: =+BI$31*'AVM Traffic %'!W30 -> 58028.56914 | BJ30: =+BJ$31*'AVM Traffic %'!X30 -> 1579165.315 | BK30: =+BK$31*'AVM Traffic %'!Y30 -> 375834.6276 | BL30: =+BL$31*'AVM Traffic %'!Z30 -> 183841.655 | BM30: =+BM$31*'AVM Traffic %'!AA30 -> 0 | BN30: 21518345.31 | BO30: 24
AN31: Total INGRESO | AP31: =+'AVM Traffic Net'!M12 -> 58902866.25 | AQ31: =+'AVM Traffic Net'!M24 -> 58902866.25 | AR31: =+'AVM Traffic Net'!M36 -> 58902866.25 | AS31: =+'AVM Traffic Net'!M48 -> 58902866.25 | AT31: =+'AVM Traffic Net'!M60 -> 58902866.25 | AU31: =+'AVM Traffic Net'!M72 -> 58902866.25 | AV31: =+'AVM Traffic Net'!M84 -> 58902866.25 | AW31: =+'AVM Traffic Net'!M96 -> 58902866.25 | AX31: =+'AVM Traffic Net'!M108 -> 58902866.25 | AY31: =+'AVM Traffic Net'!M120 -> 58902866.25 | AZ31: =+'AVM Traffic Net'!M132 -> 58902866.25 | BA31: =+'AVM Traffic Net'!M144 -> 58902866.25 | BB31: =+'AVM Traffic Net'!M156 -> 58902866.25 | BC31: =+'AVM Traffic Net'!M168 -> 58902866.25 | BD31: =+'AVM Traffic Net'!M180 -> 58902866.25 | BE31: =+'AVM Traffic Net'!M192 -> 58902866.25 | BF31: =+'AVM Traffic Net'!M204 -> 58902866.25 | BG31: =+'AVM Traffic Net'!M216 -> 58902866.25 | BH31: =+'AVM Traffic Net'!M228 -> 58902866.25 | BI31: =+'AVM Traffic Net'!M240 -> 58902866.25 | BJ31: =+'AVM Traffic Net'!M252 -> 58902866.25 | BK31: =+'AVM Traffic Net'!M264 -> 58902866.25 | BL31: =+'AVM Traffic Net'!M276 -> 58902866.25 | BM31: =+'AVM Traffic Net'!M288 -> 58902866.25 | BN31: 1413668790
AZ32: zx
D33: 2 | E33: 3 | F33: 4 | G33: 5 | H33: 6 | I33: 7 | J33: 8 | K33: 9 | L33: 10 | M33: 11 | N33: 12 | O33: 13 | P33: 14 | Q33: 15 | R33: 16 | S33: 17 | T33: 18 | U33: 19 | V33: 20 | W33: 21 | X33: 22 | Y33: 23 | Z33: 24 | AA33: 25 | AB33: 26 | AC33: 27
AN34: Operador Origen | AP34: (Todas) | AT34: LDN | AU34: On-Net
AN35: Operador Destino | AP35: (Todas)
AN36: Tipo Abonado Origen | AP36: (Todas)
AN37: Tipo Abonado Destino | AP37: (Todas)
AP42: AMZ | AQ42: ANC | AR42: APU | AS42: ARQ | AT42: AYA | AU42: CAJ | AV42: CUZ | AW42: HUV | AX42: HUA | AY42: ICA | AZ42: JUN | BA42: LAM | BB42: LIB | BC42: LIM | BD42: LOR | BE42: MAD | BF42: MOQ | BG42: PAS | BH42: PIU | BI42: PUN | BJ42: SMA | BK42: TAC | BL42: TUM | BM42: UCA
AO43: AMZ | AP43: =AP7/$BN7 -> 0 | AQ43: =AQ7/$BN7 -> 0.009953330907 | AR43: 0.001061917015 | AS43: 0.004719022191 | AT43: 0.004162417558 | AU43: 0.183389685 | AV43: 0.003742999653 | AW43: 0.001194834338 | AX43: 0.01197068127 | AY43: 0.005347819976 | AZ43: 0.00370059025 | BA43: 0.2636150393 | BB43: 0.06023555398 | BC43: 0.06384561142 | BD43: 0.04497940118 | BE43: 0.007747504828 | BF43: 0.007763103413 | BG43: 0.01063604271 | BH43: 0.03501922412 | BI43: 0.004924042103 | BJ43: 0.209615586 | BK43: 0.007369913993 | BL43: 0.03342851126 | BM43: 0.02157716761 | BN43: 1
AO44: ANC | AP44: =AP8/$BN8 -> 0.01678870619 | AQ44: 0 | AR44: 0.01581993493 | AS44: 0.02351000065 | AT44: 0.02925999694 | AU44: 0.05579949314 | AV44: 0.01520766264 | AW44: 0.01672128167 | AX44: 0.04249545303 | AY44: 0.03245785484 | AZ44: 0.02728638478 | BA44: 0.04622176226 | BB44: 0.2001688322 | BC44: 0.216838829 | BD44: 0.02517882898 | BE44: 0.01437875367 | BF44: 0.0403026298 | BG44: 0.02016645383 | BH44: 0.05611356011 | BI44: 0.01095577202 | BJ44: 0.0272220094 | BK44: 0.01209845461 | BL44: 0.03923652683 | BM44: 0.0157708184 | BN44: =BN43+1 -> 2
L45: AMAZONAS | M45: SAN MARTIN | N45: ANCASH | O45: LIBERTAD | P45: PUNO | Q45: TACNA | R45: MOQUEGUA | S45: AREQUIPA | T45: ICA | U45: UCAYALLI | V45: HUANUCO | W45: PASCO | X45: JUNIN | Y45: LORETO | Z45: AYACUCHO | AA45: HUANCAVELICA | AB45: TUMBES | AC45: PIURA | AD45: LAMBAYEQUE | AE45: CAJAMARCA | AF45: MADRE DE DIOS | AG45: APURIMAC | AH45: CUSCO | AI45: LIMA | AO45: APU | AP45: 0.00137848906 | AQ45: 0.004111035944 | AR45: 0 | AS45: 0.04198068587 | AT45: 0.1544642452 | AU45: 0.00179279661 | AV45: 0.4500478751 | AW45: 0.02338448912 | AX45: 0.003872430962 | AY45: 0.05391777371 | AZ45: 0.01558244491 | BA45: 0.002997713286 | BB45: 0.002604869478 | BC45: 0.07170723516 | BD45: 0.002400835642 | BE45: 0.08883310565 | BF45: 0.005755083585 | BG45: 0.00567712992 | BH45: 0.001711719672 | BI45: 0.04286588548 | BJ45: 0.004257424657 | BK45: 0.01311263358 | BL45: 0.002973819096 | BM45: 0.004570278388 | BN45: 3
C46: Amazonas | D46: San Martin | E46: Tumbes | F46: Cajamarca | G46: Ancash | H46: Lambayeque | I46: Piura | J46: Libertad | K46: Switching and SignallingTrujillo | L46: =HLOOKUP($C46,$C$6:$AD$33,VLOOKUP(L$45,$C$6:$AD$33,28,FALSE),FALSE) + HLOOKUP($D46,$C$6:$AD$33,VLOOKUP(L$45,$C$6:$AD$33,28,FALSE),FALSE) + HLOOKUP($E46,$C$6:$AD$33,VLOOKUP(L$45,$C$6:$AD$33,28,FALSE),FALSE) + HLOOKUP($F46,$C$6:$AD$33,VLOOKUP(L$45,$C$6:$AD$33,28,FALSE),FALSE) + HLOOKUP($G46,$C$6:$AD$33,VLOOKUP(L$45,$C$6:$AD$33,28,FALSE),FALSE) + HLOOKUP($H46,$C$6:$AD$33,VLOOKUP(L$45,$C$6:$AD$33,28,FALSE),FALSE) + HLOOKUP($I46,$C$6:$AD$33,VLOOKUP(L$45,$C$6:$AD$33,28,FALSE),FALSE) + HLOOKUP($J46,$C$6:$AD$33,VLOOKUP(L$45,$C$6:$AD$33,28,FALSE),FALSE) -> 0.07407668246 | M46: 0.1836570575 | N46: 0.1034800295 | O46: 0.5094289655 | P46: 0.3556300366 | Q46: 0.3356424166 | R46: 0.4839635489 | S46: 0.04537529878 | T46: 0.5657801783 | U46: 0.307093392 | V46: 0.1752974722 | W46: 0.3535397059 | X46: 0.2983857242 | Y46: 0.3245689774 | Z46: 0.100336032 | AA46: 0.3160947283 | AB46: 0.4471366417 | AC46: 0.07885792023 | AD46: 0.1111868265 | AE46: 0.4148671457 | AF46: 0.2954911515 | AG46: 0.7803510952 | AH46: 0.4779558777 | AI46: 0.1393471246 | AJ46: 2 | AO46: ARQ | AP46: 0.003255516722 | AQ46: 0.00842856382 | AR46: 0.03330603596 | AS46: 0 | AT46: 0.01302826374 | AU46: 0.00877036345 | AV46: 0.137203072 | AW46: 0.00591708375 | AX46: 0.005062603994 | AY46: 0.03513310816 | AZ46: 0.008700289114 | BA46: 0.004045466887 | BB46: 0.005272975871 | BC46: 0.03331454462 | BD46: 0.006884936232 | BE46: 0.08086856943 | BF46: 0.2207652264 | BG46: 0.006224876804 | BH46: 0.006583488176 | BI46: 0.2308652576 | BJ46: 0.00660729001 | BK46: 0.1248755493 | BL46: 0.007023137199 | BM46: 0.007863780773 | BN46: 4
A47: Loreto | B47: Huancavelica | C47: Madre de Dios | D47: Pasco | E47: Ayacucho | F47: Huanuco | G47: Ucayalli | H47: Ica | I47: Junin | J47: Lima | K47: Switching and Signalling Lima | L47: =HLOOKUP($A47,$C$6:$AD$33,VLOOKUP(L$45,$C$6:$AD$33,28,FALSE),FALSE)+HLOOKUP($B47,$C$6:$AD$33,VLOOKUP(L$45,$C$6:$AD$33,28,FALSE),FALSE) + HLOOKUP($C47,$C$6:$AD$33,VLOOKUP(L$45,$C$6:$AD$33,28,FALSE),FALSE) + HLOOKUP($D47,$C$6:$AD$33,VLOOKUP(L$45,$C$6:$AD$33,28,FALSE),FALSE) + HLOOKUP($E47,$C$6:$AD$33,VLOOKUP(L$45,$C$6:$AD$33,28,FALSE),FALSE) + HLOOKUP($F47,$C$6:$AD$33,VLOOKUP(L$45,$C$6:$AD$33,28,FALSE),FALSE) + HLOOKUP($G47,$C$6:$AD$33,VLOOKUP(L$45,$C$6:$AD$33,28,FALSE),FALSE) + HLOOKUP($H47,$C$6:$AD$33,VLOOKUP(L$45,$C$6:$AD$33,28,FALSE),FALSE) + HLOOKUP($I47,$C$6:$AD$33,VLOOKUP(L$45,$C$6:$AD$33,28,FALSE),FALSE) + HLOOKUP($J47,$C$6:$AD$33,VLOOKUP(L$45,$C$6:$AD$33,28,FALSE),FALSE) -> 0.6926349558 | M47: =HLOOKUP($A47,$C$6:$AD$33,VLOOKUP(M$45,$C$6:$AD$33,28,FALSE),FALSE)+HLOOKUP($B47,$C$6:$AD$33,VLOOKUP(M$45,$C$6:$AD$33,28,FALSE),FALSE) + HLOOKUP($C47,$C$6:$AD$33,VLOOKUP(M$45,$C$6:$AD$33,28,FALSE),FALSE) + HLOOKUP($D47,$C$6:$AD$33,VLOOKUP(M$45,$C$6:$AD$33,28,FALSE),FALSE) + HLOOKUP($E47,$C$6:$AD$33,VLOOKUP(M$45,$C$6:$AD$33,28,FALSE),FALSE) + HLOOKUP($F47,$C$6:$AD$33,VLOOKUP(M$45,$C$6:$AD$33,28,FALSE),FALSE) + HLOOKUP($G47,$C$6:$AD$33,VLOOKUP(M$45,$C$6:$AD$33,28,FALSE),FALSE) + HLOOKUP($H47,$C$6:$AD$33,VLOOKUP(M$45,$C$6:$AD$33,28,FALSE),FALSE) + HLOOKUP($I47,$C$6:$AD$33,VLOOKUP(M$45,$C$6:$AD$33,28,FALSE),FALSE) + HLOOKUP($J47,$C$6:$AD$33,VLOOKUP(M$45,$C$6:$AD$33,28,FALSE),FALSE) -> 0.6480195266 | N47: 0.2507441118 | O47: 0.1937535651 | P47: 0.4581343168 | Q47: 0.593951406 | R47: 0.4592504201 | S47: 0.743296035 | T47: 0.3908757507 | U47: 0.3114477621 | V47: 0.2907223725 | W47: 0.3944911051 | X47: 0.3856144156 | Y47: 0.4316403765 | Z47: 0.8298354444 | AA47: 0.1965938922 | AB47: 0.1300465235 | AC47: 0.7932608867 | AD47: 0.442002304 | AE47: 0.2497823972 | AF47: 0.5692813409 | AG47: 0.1493350584 | AH47: 0.4419513529 | AI47: 0.7952830167 | AJ47: 3 | AO47: AYA | AP47: 0.0222629379 | AQ47: 0.00898875908 | AR47: 0.2416698195 | AS47: 0.0194682403 | AT47: 0 | AU47: 0.008879259446 | AV47: 0.03464369966 | AW47: 0.1215395472 | AX47: 0.01938762133 | AY47: 0.1394963946 | AZ47: 0.07684501156 | BA47: 0.004915863584 | BB47: 0.004246994359 | BC47: 0.1182589424 | BD47: 0.009305780888 | BE47: 0.0494716048 | BF47: 0.01784563538 | BG47: 0.02017115028 | BH47: 0.004201993544 | BI47: 0.02102150057 | BJ47: 0.005500676559 | BK47: 0.01925202386 | BL47: 0.001921116439 | BM47: 0.03070542667 | BN47: 5
E48: Apurimac | F48: Moquegua | G48: Puno | H48: Tacna | I48: Cusco | J48: Arequipa | K48: Switching and Signalling Arequipa | L48: =HLOOKUP($E48,$C$6:$AD$33,VLOOKUP(L$45,$C$6:$AD$33,28,FALSE),FALSE) + HLOOKUP($F48,$C$6:$AD$33,VLOOKUP(L$45,$C$6:$AD$33,28,FALSE),FALSE) + HLOOKUP($G48,$C$6:$AD$33,VLOOKUP(L$45,$C$6:$AD$33,28,FALSE),FALSE) + HLOOKUP($H48,$C$6:$AD$33,VLOOKUP(L$45,$C$6:$AD$33,28,FALSE),FALSE) + HLOOKUP($I48,$C$6:$AD$33,VLOOKUP(L$45,$C$6:$AD$33,28,FALSE),FALSE) + HLOOKUP($J48,$C$6:$AD$33,VLOOKUP(L$45,$C$6:$AD$33,28,FALSE),FALSE) -> 0.2332883618 | M48: 0.1683234158 | N48: 0.6457758586 | O48: 0.2968174694 | P48: 0.1862356466 | Q48: 0.07040617741 | R48: 0.05678603104 | S48: 0.2113286662 | T48: 0.04334407099 | U48: 0.3814588459 | V48: 0.5339801553 | W48: 0.2519691891 | X48: 0.3159998602 | Y48: 0.2437906461 | Z48: 0.06982852355 | AA48: 0.4873113794 | AB48: 0.4228168348 | AC48: 0.1278811931 | AD48: 0.4468108694 | AE48: 0.3353504571 | AF48: 0.1352275076 | AG48: 0.07031384636 | AH48: 0.08009276936 | AI48: 0.06536985866 | AJ48: 4 | AO48: CAJ | AP48: 0.2024880323 | AQ48: 0.02327107441 | AR48: 0.01347245994 | AS48: 0.01244438087 | AT48: 0.01373015103 | AU48: 0 | AV48: 0.009147524746 | AW48: 0.01000478943 | AX48: 0.02678454258 | AY48: 0.01183559904 | AZ48: 0.01677648035 | BA48: 0.1813311074 | BB48: 0.1121893731 | BC48: 0.08370616179 | BD48: 0.02145644836 | BE48: 0.01113976013 | BF48: 0.009192390595 | BG48: 0.01538300728 | BH48: 0.03681228663 | BI48: 0.0225787846 | BJ48: 0.1037035561 | BK48: 0.015470254 | BL48: 0.02205345821 | BM48: 0.02502837716 | BN48: 6
AJ49: 5 | AO49: CUZ | AP49: 0.000438469936 | AQ49: 0.004325266528 | AR49: 0.2286700272 | AS49: 0.110354831 | AT49: 0.025070782 | AU49: 0.002281011689 | AV49: 0 | AW49: 0.0027047784 | AX49: 0.003233325957 | AY49: 0.008911363243 | AZ49: 0.004886656236 | BA49: 0.002347108768 | BB49: 0.003906055088 | BC49: 0.02957548478 | BD49: 0.00560015894 | BE49: 0.3941230824 | BF49: 0.01244792736 | BG49: 0.00150481837 | BH49: 0.002613427017 | BI49: 0.1236087815 | BJ49: 0.0002708404108 | BK49: 0.02578354628 | BL49: 0.0009459126708 | BM49: 0.006396344238 | BN49: 7
L50: 2 | M50: 3 | N50: 4 | O50: 5 | P50: 6 | Q50: 7 | R50: 8 | S50: 9 | T50: 10 | U50: 11 | V50: 12 | W50: 13 | X50: 14 | Y50: 15 | Z50: 16 | AA50: 17 | AB50: 18 | AC50: 19 | AD50: 20 | AE50: 21 | AF50: 22 | AG50: 23 | AH50: 24 | AI50: 25 | AO50: HUV | AP50: 0.00248979307 | AQ50: 0.001142346479 | AR50: 0.005118813118 | AS50: 0.009478060418 | AT50: 0.1901332717 | AU50: 0.002158736791 | AV50: 0.005064582019 | AW50: 0 | AX50: 0.009617148279 | AY50: 0.07685773653 | AZ50: 0.5783523084 | BA50: 0.0004164920063 | BB50: 0.002464445892 | BC50: 0.06358313525 | BD50: 0.005781773795 | BE50: 0.001383173903 | BF50: 0.002078938113 | BG50: 0.01196287467 | BH50: 0.001236666406 | BI50: 0.01186780651 | BJ50: 0.001537931162 | BK50: 0.003229597717 | BL50: 0.01074247797 | BM50: 0.003301889812 | BN50: 8
AO51: HUA | AP51: 0.009366805305 | AQ51: 0.0164090218 | AR51: 0.003209565649 | AS51: 0.003380491491 | AT51: 0.01225383045 | AU51: 0.005168128311 | AV51: 0.00541288979 | AW51: 0.006894297004 | AX51: 0 | AY51: 0.008163328491 | AZ51: 0.04256987586 | BA51: 0.006837281521 | BB51: 0.004827282397 | BC51: 0.06823565918 | BD51: 0.01606645346 | BE51: 0.01158986627 | BF51: 0.004621579968 | BG51: 0.5228214676 | BH51: 0.002009008282 | BI51: 0.003962238171 | BJ51: 0.06206610021 | BK51: 0.009940918037 | BL51: 0.003674007392 | BM51: 0.1705199033 | BN51: 9
AO52: ICA | AP52: 0.007724626526 | AQ52: 0.02468247266 | AR52: 0.1013372268 | AS52: 0.06901372522 | AT52: 0.2007241299 | AU52: 0.01148146052 | AV52: 0.02434104967 | AW52: 0.102959566 | AX52: 0.02286240089 | AY52: 0 | AZ52: 0.02248864808 | BA52: 0.01089117859 | BB52: 0.01355424873 | BC52: 0.1386145462 | BD52: 0.02658675901 | BE52: 0.03218490911 | BF52: 0.04745314353 | BG52: 0.01855751389 | BH52: 0.0160322557 | BI52: 0.02229242767 | BJ52: 0.01499601185 | BK52: 0.02528827709 | BL52: 0.01666436284 | BM52: 0.02926905961 | BN52: 10
AO53: JUN | AP53: 0.003665217903 | AQ53: 0.009249049041 | AR53: 0.01661650428 | AS53: 0.00757428382 | AT53: 0.09012457704 | AU53: 0.006966870636 | AV53: 0.008925163205 | AW53: 0.4137110462 | AX53: 0.06276768018 | AY53: 0.01719024345 | AZ53: 0 | BA53: 0.004338980426 | BB53: 0.008651156616 | BC53: 0.09935978433 | BD53: 0.00867501367 | BE53: 0.01096397457 | BF53: 0.004708306753 | BG53: 0.1224995282 | BH53: 0.004201138614 | BI53: 0.006783443633 | BJ53: 0.009230090505 | BK53: 0.009386660122 | BL53: 0.004865838115 | BM53: 0.06954544872 | BN53: 11
AO54: LAM | AP54: 0.1650041925 | AQ54: 0.02142695765 | AR54: 0.01275320565 | AS54: 0.01540211111 | AT54: 0.01067792194 | AU54: 0.125085262 | AV54: 0.0113337507 | AW54: 0.02077259567 | AX54: 0.04244436553 | AY54: 0.01763644777 | AZ54: 0.02945911694 | BA54: 0 | BB54: 0.05138474228 | BC54: 0.1018770952 | BD54: 0.02634044543 | BE54: =BE18/$BN18 -> 0.01516280506 | BF54: 0.01391077926 | BG54: 0.01642303149 | BH54: 0.07156903364 | BI54: 0.03705039452 | BJ54: 0.07422473146 | BK54: 0.02827714672 | BL54: 0.05582251204 | BM54: 0.03596135535 | BN54: 12
AO55: LIB | AP55: =AP19/$BN19 -> 0.05539721001 | AQ55: 0.09880468602 | AR55: 0.002294531137 | AS55: 0.01205052763 | AT55: 0.008760311705 | AU55: 0.1993826725 | AV55: 0.01052557381 | AW55: 0.008918708774 | AX55: 0.02511740337 | AY55: 0.0144732694 | AZ55: 0.0153620684 | BA55: 0.1065176562 | BB55: 0 | BC55: 0.07642312722 | BD55: 0.03039364614 | BE55: 0.01166753542 | BF55: 0.01169102647 | BG55: 0.01211765984 | BH55: 0.08889618842 | BI55: 0.01713389472 | BJ55: 0.07276141105 | BK55: 0.01355556583 | BL55: 0.07485702757 | BM55: 0.03289829843 | BN55: 13
AO56: LIM | AP56: 0.03014123791 | AQ56: 0.06546225941 | AR56: 0.04784493863 | AS56: 0.04178737844 | AT56: 0.05267038098 | AU56: 0.03656935625 | AV56: 0.04217089599 | AW56: 0.03295136545 | AX56: 0.04931523172 | AY56: 0.06482569458 | AZ56: 0.05750539602 | BA56: 0.04468024295 | BB56: 0.05192348312 | BC56: 0 | BD56: 0.05297970831 | BE56: 0.0275751994 | BF56: 0.02392175548 | BG56: 0.03256056427 | BH56: 0.05531854558 | BI56: 0.02753229767 | BJ56: 0.03847006183 | BK56: 0.04282548814 | BL56: 0.03660315929 | BM56: 0.04436535859 | BN56: 14
AO57: LOR | AP57: 0.02274577008 | AQ57: 0.0161758435 | AR57: 0.002338173153 | AS57: 0.0111327212 | AT57: 0.01178355151 | AU57: 0.01429799335 | AV57: 0.01185618245 | AW57: 0.004384726762 | AX57: 0.02515947484 | AY57: 0.01417367487 | AZ57: 0.0144855358 | BA57: 0.01902453567 | BB57: 0.02814276028 | BC57: 0.09251328818 | BD57: 0 | BE57: 0.03601297813 | BF57: 0.002848854122 | BG57: 0.007806294081 | BH57: 0.03135111144 | BI57: 0.005937264456 | BJ57: 0.3175285111 | BK57: 0.01278521154 | BL57: 0.01472085794 | BM57: 0.2827946856 | BN57: 15
AO58: MAD | AP58: 0.00433120645 | AQ58: 0.008942439125 | AR58: 0.08904610048 | AS58: 0.07301780239 | AT58: 0.02825527885 | AU58: 0.005632958915 | AV58: 0.420139772 | AW58: 0.003339725455 | AX58: 0.01368805582 | AY58: 0.01577832679 | AZ58: 0.009654079001 | BA58: 0.005796185669 | BB58: 0.005846063019 | BC58: 0.03326422448 | BD58: 0.02263024448 | BE58: 0 | BF58: 0.04701436177 | BG58: 0.008918758386 | BH58: 0.003226929324 | BI58: 0.08159713042 | BJ58: 0.02675361839 | BK58: 0.02059991798 | BL58: 0.009343726274 | BM58: 0.06318309455 | BN58: 16
AO59: MOQ | AP59: 0.0009927406281 | AQ59: 0.01207024994 | AR59: 0.009524640601 | AS59: 0.2746888792 | AT59: 0.004190542718 | AU59: 0.008177034697 | AV59: 0.02852361772 | AW59: 0.0007654867494 | AX59: 0.01708135226 | AY59: 0.02150862757 | AZ59: 0.004109444045 | BA59: 0.004483766384 | BB59: 0.005002500851 | BC59: 0.02221013918 | BD59: 0.006339665331 | BE59: 0.03584781461 | BF59: 0 | BG59: 0.004088474611 | BH59: 0.007642875822 | BI59: 0.1381287809 | BJ59: 0.004905682375 | BK59: 0.3790185102 | BL59: 0.002141642703 | BM59: 0.008557530879 | BN59: 17
AO60: PAS | AP60: 0.001630894126 | AQ60: 0.007482734949 | AR60: 0.04135349866 | AS60: 0.01294901707 | AT60: 0.0137686145 | AU60: 0.006363187519 | AV60: 0.006220243637 | AW60: 0.05155983358 | AX60: 0.2651533587 | AY60: 0.01782375011 | AZ60: 0.3141847248 | BA60: 0.003819418268 | BB60: 0.005136380179 | BC60: 0.1007957601 | BD60: 0.01230855221 | BE60: 0.01630841694 | BF60: 0.001361770983 | BG60: 0 | BH60: 0.004455308358 | BI60: 0.009624696087 | BJ60: 0.009066547079 | BK60: 0.004230979683 | BL60: 0.04573833415 | BM60: 0.04866397823 | BN60: 18
AO61: PIU | AP61: 0.02133061961 | AQ61: 0.02966605656 | AR61: 0.01279075822 | AS61: 0.01232510389 | AT61: 0.01176665759 | AU61: 0.03669979661 | AV61: 0.007076203931 | AW61: 0.006424885425 | AX61: 0.01568262178 | AY61: 0.01469771404 | AZ61: 0.02133160227 | BA61: 0.1041462857 | BB61: 0.06921857431 | BC61: 0.1183082979 | BD61: 0.02263847719 | BE61: 0.008517161086 | BF61: 0.01614097623 | BG61: 0.01212477325 | BH61: 0 | BI61: 0.00680853877 | BJ61: 0.04735054434 | BK61: 0.01383434656 | BL61: 0.3710089793 | BM61: 0.02011102547 | BN61: 19
AO62: PUN | AP62: 0.002411213194 | AQ62: 0.004757060342 | AR62: 0.04891162459 | AS62: 0.2333545038 | AT62: 0.02831384361 | AU62: 0.003972150104 | AV62: 0.1598332059 | AW62: 0.01041179287 | AX62: 0.004741480966 | AY62: 0.01312962771 | AZ62: 0.006526171168 | BA62: 0.003226777463 | BB62: 0.003254544535 | BC62: 0.02707401247 | BD62: 0.001959753723 | BE62: 0.1800314637 | BF62: 0.1179808538 | BG62: 0.005296144777 | BH62: 0.00215574519 | BI62: 0 | BJ62: 0.005361814132 | BK62: 0.1317791209 | BL62: 0.00104034367 | BM62: 0.004476751311 | BN62: 20
AO63: SMA | AP63: 0.2307868443 | AQ63: 0.008187195696 | AR63: 0.00285339653 | AS63: 0.005757812316 | AT63: 0.007532429129 | AU63: 0.08999351062 | AV63: 0.002344236314 | AW63: 0.005045147757 | AX63: 0.09691425839 | AY63: 0.007641041989 | AZ63: 0.009280669914 | BA63: 0.082783935 | BB63: 0.04474545709 | BC63: 0.06367886324 | BD63: 0.1868161594 | BE63: 0.02180905216 | BF63: 0.002979949339 | BG63: 0.02204689034 | BH63: 0.02112392779 | BI63: 0.00175513523 | BJ63: 0 | BK63: 0.01363072995 | BL63: 0.01668145382 | BM63: 0.05561190376 | BN63: 21
AO64: TAC | AP64: 0.0067521584 | AQ64: 0.004978880444 | AR64: 0.01222928527 | AS64: 0.1357585006 | AT64: 0.01258534978 | AU64: 0.0058543551 | AV64: 0.0420628867 | AW64: 0.001487566739 | AX64: 0.01388733179 | AY64: 0.01479561525 | AZ64: 0.005912610074 | BA64: 0.005728175977 | BB64: 0.005381453845 | BC64: 0.02772826001 | BD64: 0.00951987738 | BE64: 0.0444770738 | BF64: 0.4095565223 | BG64: 0.006289881248 | BH64: 0.004671308041 | BI64: 0.2001145589 | BJ64: 0.006554067502 | BK64: 0 | BL64: 0.008323688044 | BM64: 0.01535059276 | BN64: 22
AO65: TUM | AP65: 0.02244373737 | AQ65: 0.02106296977 | AR65: 0.001398257826 | AS65: 0.01486844225 | AT65: 0.007046716404 | AU65: 0.04687969811 | AV65: 0.007522476906 | AW65: 0.006293096131 | AX65: 0.01003046119 | AY65: 0.01134485505 | AZ65: 0.006496903501 | BA65: 0.108877112 | BB65: 0.09693927423 | BC65: 0.0887180863 | BD65: 0.01776771598 | BE65: =BE29/$BN29 -> 0.01020137083 | BF65: 0.008518258292 | BG65: 0.005601917946 | BH65: 0.3901687946 | BI65: 0.0138934997 | BJ65: 0.07939930215 | BK65: 0.01235078181 | BL65: 0 | BM65: 0.01217627167 | BN65: 23
AO66: UCA | AP66: =AP30/$BN30 -> 0.01267283571 | AQ66: 0.01108378914 | AR66: 0.008141976542 | AS66: 0.008183999647 | AT66: 0.01975645274 | AU66: 0.005837262008 | AV66: 0.007048752058 | AW66: 0.006718129774 | AX66: 0.2113770281 | AY66: 0.01427513211 | AZ66: 0.03291305966 | BA66: 0.009009613307 | BB66: 0.01097584313 | BC66: 0.07025995672 | BD66: 0.3053231629 | BE66: 0.06776229016 | BF66: 0.01984053525 | BG66: 0.07121957483 | BH66: 0.005507711295 | BI66: 0.0026967022 | BJ66: 0.07338693066 | BK66: 0.01746577733 | BL66: 0.008543484749 | BM66: 0 | BN66: 24
AP67: 1 | AQ67: =AP67+1 -> 2 | AR67: 3 | AS67: 4 | AT67: 5 | AU67: 6 | AV67: 7 | AW67: 8 | AX67: 9 | AY67: 10 | AZ67: 11 | BA67: 12 | BB67: 13 | BC67: 14 | BD67: 15 | BE67: 16 | BF67: 17 | BG67: 18 | BH67: 19 | BI67: 20 | BJ67: 21 | BK67: 22 | BL67: 23 | BM67: 24
BO74: =+D7-AP74 -> 0

Sheet Routing Factors
BC2: Switching and SignallingTrujillo | BD2: Switching and Signalling Lima | BE2: Switching and Signalling Arequipa
BD3: Loreto
BD4: Huancavelica
BC5: Amazonas | BD5: Madre de Dios
BC6: San Martin | BD6: Pasco
BC7: Tumbes | BD7: Ayacucho | BE7: Apurimac
BC8: Cajamarca | BD8: Huanuco | BE8: Moquegua
BC9: Ancash | BD9: Ucayalli | BE9: Puno
G10: BTS Amazonas | H10: BTS Ancash | I10: BTS Apurimac | J10: BTS Arequipa | K10: BTS Ayacucho | L10: BTS Cajamarca | M10: BTS Cusco | N10: BTS Huancavelica | O10: BTS Huanuco | P10: BTS Ica | Q10: BTS Junin | R10: BTS Lambayeque | S10: BTS Libertad | T10: BTS Lima | U10: BTS Loreto | V10: BTS Madre de Dios | W10: BTS Moquegua | X10: BTS Pasco | Y10: BTS Piura | Z10: BTS Puno | AA10: BTS San Martin | AB10: BTS Tacna | AC10: BTS Tumbes | AD10: BTS Ucayalli | AE10: =CONCATENATE(AE11," ",AE12) -> Transmission Amazonas | AF10: Transmission Ancash | AG10: Transmission Apurimac | AH10: Transmission Arequipa | AI10: Transmission Ayacucho | AJ10: Transmission Cajamarca | AK10: Transmission Cusco | AL10: Transmission Huancavelica | AM10: Transmission Huanuco | AN10: Transmission ICA | AO10: Transmission Junin | AP10: Transmission Lambayeque | AQ10: Transmission Libertad | AR10: Transmission Lima | AS10: Transmission Loreto | AT10: Transmission Madre de Dios | AU10: Transmission Moquegua | AV10: Transmission Pasco | AW10: Transmission Piura | AX10: Transmission Puno | AY10: Transmission San Martin | AZ10: Transmission Tacna | BA10: Transmission Tumbes | BB10: Transmission Ucayalli | BC10: Lambayeque | BD10: Ica | BE10: Tacna | BF10: Edificios de red | BG10: IT | BH10: OSS | BI10: AV - Adecuacion | BJ10: Tributos | BK10: Spectrum | BL10: Concesion Espectro | BM10: Costo Adquisicion Clientes
G11: BTS | H11: BTS | I11: BTS | J11: BTS | K11: BTS | L11: BTS | M11: BTS | N11: BTS | O11: BTS | P11: BTS | Q11: BTS | R11: BTS | S11: BTS | T11: BTS | U11: BTS | V11: BTS | W11: BTS | X11: BTS | Y11: BTS | Z11: BTS | AA11: BTS | AB11: BTS | AC11: BTS | AD11: BTS | AE11: Transmission | AF11: Transmission | AG11: Transmission | AH11: Transmission | AI11: Transmission | AJ11: Transmission | AK11: Transmission | AL11: Transmission | AM11: Transmission | AN11: Transmission | AO11: Transmission | AP11: Transmission | AQ11: Transmission | AR11: Transmission | AS11: Transmission | AT11: Transmission | AU11: Transmission | AV11: Transmission | AW11: Transmission | AX11: Transmission | AY11: Transmission | AZ11: Transmission | BA11: Transmission | BB11: Transmission | BC11: Piura | BD11: Junin | BE11: Cusco
C12: Cities | D12: Index | G12: Amazonas | H12: Ancash | I12: Apurimac | J12: Arequipa | K12: Ayacucho | L12: Cajamarca | M12: Cusco | N12: Huancavelica | O12: Huanuco | P12: Ica | Q12: Junin | R12: Lambayeque | S12: Libertad | T12: Lima | U12: Loreto | V12: Madre de Dios | W12: Moquegua | X12: Pasco | Y12: Piura | Z12: Puno | AA12: San Martin | AB12: Tacna | AC12: Tumbes | AD12: Ucayalli | AE12: Amazonas | AF12: Ancash | AG12: Apurimac | AH12: Arequipa | AI12: Ayacucho | AJ12: Cajamarca | AK12: Cusco | AL12: Huancavelica | AM12: Huanuco | AN12: ICA | AO12: Junin | AP12: Lambayeque | AQ12: Libertad | AR12: Lima | AS12: Loreto | AT12: Madre de Dios | AU12: Moquegua | AV12: Pasco | AW12: Piura | AX12: Puno | AY12: San Martin | AZ12: Tacna | BA12: Tumbes | BB12: Ucayalli | BC12: Libertad | BD12: Lima | BE12: Arequipa
A13: =+C13&"-"&B13 -> Amazonas-Entrante LDI | B13: Entrante LDI | C13: =Traffic!A12 -> Amazonas | D13: =Traffic!C12 -> LDI | E13: =Traffic!B12 -> Incoming | F13: =Traffic!D12 -> 0 | G13: =IF($C13=G$12,IF($E13="On-net",IF($D13="Local",2,1),1),IF(AND($D13="LDN",$E13="On-net"),INDEX('LDN call distribution'!$C$6:$AD$33,VLOOKUP($C13,'LDN call distribution'!$C$6:$AD$33,28,FALSE),HLOOKUP(G$12,'LDN call distribution'!$C$6:$AD$33,28,FALSE)),0)) -> 1 | H13: =IF($C13=H$12,IF($E13="On-net",IF($D13="Local",2,1),1),IF(AND($D13="LDN",$E13="On-net"),INDEX('LDN call distribution'!$C$6:$AD$33,VLOOKUP($C13,'LDN call distribution'!$C$6:$AD$33,28,FALSE),HLOOKUP(H$12,'LDN call distribution'!$C$6:$AD$33,28,FALSE)),0)) -> 0 | I13: =IF($C13=I$12,IF($E13="On-net",IF($D13="Local",2,1),1),IF(AND($D13="LDN",$E13="On-net"),INDEX('LDN call distribution'!$C$6:$AD$33,VLOOKUP($C13,'LDN call distribution'!$C$6:$AD$33,28,FALSE),HLOOKUP(I$12,'LDN call distribution'!$C$6:$AD$33,28,FALSE)),0)) -> 0 | J13: =IF($C13=J$12,IF($E13="On-net",IF($D13="Local",2,1),1),IF(AND($D13="LDN",$E13="On-net"),INDEX('LDN call distribution'!$C$6:$AD$33,VLOOKUP($C13,'LDN call distribution'!$C$6:$AD$33,28,FALSE),HLOOKUP(J$12,'LDN call distribution'!$C$6:$AD$33,28,FALSE)),0)) -> 0 | K13: =IF($C13=K$12,IF($E13="On-net",IF($D13="Local",2,1),1),IF(AND($D13="LDN",$E13="On-net"),INDEX('LDN call distribution'!$C$6:$AD$33,VLOOKUP($C13,'LDN call distribution'!$C$6:$AD$33,28,FALSE),HLOOKUP(K$12,'LDN call distribution'!$C$6:$AD$33,28,FALSE)),0)) -> 0 | L13: =IF($C13=L$12,IF($E13="On-net",IF($D13="Local",2,1),1),IF(AND($D13="LDN",$E13="On-net"),INDEX('LDN call distribution'!$C$6:$AD$33,VLOOKUP($C13,'LDN call distribution'!$C$6:$AD$33,28,FALSE),HLOOKUP(L$12,'LDN call distribution'!$C$6:$AD$33,28,FALSE)),0)) -> 0 | M13: =IF($C13=M$12,IF($E13="On-net",IF($D13="Local",2,1),1),IF(AND($D13="LDN",$E13="On-net"),INDEX('LDN call distribution'!$C$6:$AD$33,VLOOKUP($C13,'LDN call distribution'!$C$6:$AD$33,28,FALSE),HLOOKUP(M$12,'LDN call distribution'!$C$6:$AD$33,28,FALSE)),0)) -> 0 | N13: =IF($C13=N$12,IF($E13="On-net",IF($D13="Local",2,1),1),IF(AND($D13="LDN",$E13="On-net"),INDEX('LDN call distribution'!$C$6:$AD$33,VLOOKUP($C13,'LDN call distribution'!$C$6:$AD$33,28,FALSE),HLOOKUP(N$12,'LDN call distribution'!$C$6:$AD$33,28,FALSE)),0)) -> 0 | O13: =IF($C13=O$12,IF($E13="On-net",IF($D13="Local",2,1),1),IF(AND($D13="LDN",$E13="On-net"),INDEX('LDN call distribution'!$C$6:$AD$33,VLOOKUP($C13,'LDN call distribution'!$C$6:$AD$33,28,FALSE),HLOOKUP(O$12,'LDN call distribution'!$C$6:$AD$33,28,FALSE)),0)) -> 0 | P13: =IF($C13=P$12,IF($E13="On-net",IF($D13="Local",2,1),1),IF(AND($D13="LDN",$E13="On-net"),INDEX('LDN call distribution'!$C$6:$AD$33,VLOOKUP($C13,'LDN call distribution'!$C$6:$AD$33,28,FALSE),HLOOKUP(P$12,'LDN call distribution'!$C$6:$AD$33,28,FALSE)),0)) -> 0 | Q13: =IF($C13=Q$12,IF($E13="On-net",IF($D13="Local",2,1),1),IF(AND($D13="LDN",$E13="On-net"),INDEX('LDN call distribution'!$C$6:$AD$33,VLOOKUP($C13,'LDN call distribution'!$C$6:$AD$33,28,FALSE),HLOOKUP(Q$12,'LDN call distribution'!$C$6:$AD$33,28,FALSE)),0)) -> 0 | R13: =IF($C13=R$12,IF($E13="On-net",IF($D13="Local",2,1),1),IF(AND($D13="LDN",$E13="On-net"),INDEX('LDN call distribution'!$C$6:$AD$33,VLOOKUP($C13,'LDN call distribution'!$C$6:$AD$33,28,FALSE),HLOOKUP(R$12,'LDN call distribution'!$C$6:$AD$33,28,FALSE)),0)) -> 0 | S13: =IF($C13=S$12,IF($E13="On-net",IF($D13="Local",2,1),1),IF(AND($D13="LDN",$E13="On-net"),INDEX('LDN call distribution'!$C$6:$AD$33,VLOOKUP($C13,'LDN call distribution'!$C$6:$AD$33,28,FALSE),HLOOKUP(S$12,'LDN call distribution'!$C$6:$AD$33,28,FALSE)),0)) -> 0 | T13: =IF($C13=T$12,IF($E13="On-net",IF($D13="Local",2,1),1),IF(AND($D13="LDN",$E13="On-net"),INDEX('LDN call distribution'!$C$6:$AD$33,VLOOKUP($C13,'LDN call distribution'!$C$6:$AD$33,28,FALSE),HLOOKUP(T$12,'LDN call distribution'!$C$6:$AD$33,28,FALSE)),0)) -> 0 | U13: =IF($C13=U$12,IF($E13="On-net",IF($D13="Local",2,1),1),IF(AND($D13="LDN",$E13="On-net"),INDEX('LDN call distribution'!$C$6:$AD$33,VLOOKUP($C13,'LDN call distribution'!$C$6:$AD$33,28,FALSE),HLOOKUP(U$12,'LDN call distribution'!$C$6:$AD$33,28,FALSE)),0)) -> 0 | V13: =IF($C13=V$12,IF($E13="On-net",IF($D13="Local",2,1),1),IF(AND($D13="LDN",$E13="On-net"),INDEX('LDN call distribution'!$C$6:$AD$33,VLOOKUP($C13,'LDN call distribution'!$C$6:$AD$33,28,FALSE),HLOOKUP(V$12,'LDN call distribution'!$C$6:$AD$33,28,FALSE)),0)) -> 0 | W13: =IF($C13=W$12,IF($E13="On-net",IF($D13="Local",2,1),1),IF(AND($D13="LDN",$E13="On-net"),INDEX('LDN call distribution'!$C$6:$AD$33,VLOOKUP($C13,'LDN call distribution'!$C$6:$AD$33,28,FALSE),HLOOKUP(W$12,'LDN call distribution'!$C$6:$AD$33,28,FALSE)),0)) -> 0 | X13: =IF($C13=X$12,IF($E13="On-net",IF($D13="Local",2,1),1),IF(AND($D13="LDN",$E13="On-net"),INDEX('LDN call distribution'!$C$6:$AD$33,VLOOKUP($C13,'LDN call distribution'!$C$6:$AD$33,28,FALSE),HLOOKUP(X$12,'LDN call distribution'!$C$6:$AD$33,28,FALSE)),0)) -> 0 | Y13: =IF($C13=Y$12,IF($E13="On-net",IF($D13="Local",2,1),1),IF(AND($D13="LDN",$E13="On-net"),INDEX('LDN call distribution'!$C$6:$AD$33,VLOOKUP($C13,'LDN call distribution'!$C$6:$AD$33,28,FALSE),HLOOKUP(Y$12,'LDN call distribution'!$C$6:$AD$33,28,FALSE)),0)) -> 0 | Z13: =IF($C13=Z$12,IF($E13="On-net",IF($D13="Local",2,1),1),IF(AND($D13="LDN",$E13="On-net"),INDEX('LDN call distribution'!$C$6:$AD$33,VLOOKUP($C13,'LDN call distribution'!$C$6:$AD$33,28,FALSE),HLOOKUP(Z$12,'LDN call distribution'!$C$6:$AD$33,28,FALSE)),0)) -> 0 | AA13: =IF($C13=AA$12,IF($E13="On-net",IF($D13="Local",2,1),1),IF(AND($D13="LDN",$E13="On-net"),INDEX('LDN call distribution'!$C$6:$AD$33,VLOOKUP($C13,'LDN call distribution'!$C$6:$AD$33,28,FALSE),HLOOKUP(AA$12,'LDN call distribution'!$C$6:$AD$33,28,FALSE)),0)) -> 0 | AB13: =IF($C13=AB$12,IF($E13="On-net",IF($D13="Local",2,1),1),IF(AND($D13="LDN",$E13="On-net"),INDEX('LDN call distribution'!$C$6:$AD$33,VLOOKUP($C13,'LDN call distribution'!$C$6:$AD$33,28,FALSE),HLOOKUP(AB$12,'LDN call distribution'!$C$6:$AD$33,28,FALSE)),0)) -> 0 | AC13: =IF($C13=AC$12,IF($E13="On-net",IF($D13="Local",2,1),1),IF(AND($D13="LDN",$E13="On-net"),INDEX('LDN call distribution'!$C$6:$AD$33,VLOOKUP($C13,'LDN call distribution'!$C$6:$AD$33,28,FALSE),HLOOKUP(AC$12,'LDN call distribution'!$C$6:$AD$33,28,FALSE)),0)) -> 0 | AD13: =IF($C13=AD$12,IF($E13="On-net",IF($D13="Local",2,1),1),IF(AND($D13="LDN",$E13="On-net"),INDEX('LDN call distribution'!$C$6:$AD$33,VLOOKUP($C13,'LDN call distribution'!$C$6:$AD$33,28,FALSE),HLOOKUP(AD$12,'LDN call distribution'!$C$6:$AD$33,28,FALSE)),0)) -> 0 | AE13: 1 | AF13: 1 | AG13: 1 | AH13: 1 | AI13: 1 | AJ13: 1 | AK13: 1 | AL13: 1 | AM13: 1 | AN13: 1 | AO13: 1 | AP13: 1 | AQ13: 1 | AR13: 1 | AS13: 1 | AT13: 1 | AU13: 1 | AV13: 1 | AW13: 1 | AX13: 1 | AY13: 1 | AZ13: 1 | BA13: 1 | BB13: 1 | BC13: =IF($E13&$D13="On-netLDN",INDEX('LDN call distribution'!$K$45:$AJ$50,VLOOKUP(BC$2,'LDN call distribution'!$K$45:$AJ$50,26,FALSE),HLOOKUP($C13,'LDN call distribution'!$K$45:$AJ$50,6,FALSE)),IF(ISERROR(VLOOKUP($C13,BC$3:BC$12,1,FALSE)),0,1)) -> 1 | BD13: =IF($E13&$D13="On-netLDN",INDEX('LDN call distribution'!$K$45:$AJ$50,VLOOKUP(BD$2,'LDN call distribution'!$K$45:$AJ$50,26,FALSE),HLOOKUP($C13,'LDN call distribution'!$K$45:$AJ$50,6,FALSE)),IF(ISERROR(VLOOKUP($C13,BD$3:BD$12,1,FALSE)),0,1)) -> 0 | BE13: =IF($E13&$D13="On-netLDN",INDEX('LDN call distribution'!$K$45:$AJ$50,VLOOKUP(BE$2,'LDN call distribution'!$K$45:$AJ$50,26,FALSE),HLOOKUP($C13,'LDN call distribution'!$K$45:$AJ$50,6,FALSE)),IF(ISERROR(VLOOKUP($C13,BE$3:BE$12,1,FALSE)),0,1)) -> 0 | BF13: 1 | BG13: =IF(E13="Incoming",1,0) -> 1 | BH13: 1 | BI13: 1 | BJ13: 1 | BK13: 1 | BL13: 1 | BM13: 1
A14: Amazonas-Entrante LDN | B14: Entrante LDN | C14: =Traffic!A13 -> Amazonas | D14: =Traffic!C13 -> LDN | E14: =Traffic!B13 -> Incoming | F14: =Traffic!D13 -> Fixed - Mobile | G14: =IF($C14=G$12,IF($E14="On-net",IF($D14="Local",2,1),1),IF(AND($D14="LDN",$E14="On-net"),INDEX('LDN call distribution'!$C$6:$AD$33,VLOOKUP($C14,'LDN call distribution'!$C$6:$AD$33,28,FALSE),HLOOKUP(G$12,'LDN call distribution'!$C$6:$AD$33,28,FALSE)),0)) -> 1 | H14: =IF($C14=H$12,IF($E14="On-net",IF($D14="Local",2,1),1),IF(AND($D14="LDN",$E14="On-net"),INDEX('LDN call distribution'!$C$6:$AD$33,VLOOKUP($C14,'LDN call distribution'!$C$6:$AD$33,28,FALSE),HLOOKUP(H$12,'LDN call distribution'!$C$6:$AD$33,28,FALSE)),0)) -> 0 | I14: =IF($C14=I$12,IF($E14="On-net",IF($D14="Local",2,1),1),IF(AND($D14="LDN",$E14="On-net"),INDEX('LDN call distribution'!$C$6:$AD$33,VLOOKUP($C14,'LDN call distribution'!$C$6:$AD$33,28,FALSE),HLOOKUP(I$12,'LDN call distribution'!$C$6:$AD$33,28,FALSE)),0)) -> 0 | J14: =IF($C14=J$12,IF($E14="On-net",IF($D14="Local",2,1),1),IF(AND($D14="LDN",$E14="On-net"),INDEX('LDN call distribution'!$C$6:$AD$33,VLOOKUP($C14,'LDN call distribution'!$C$6:$AD$33,28,FALSE),HLOOKUP(J$12,'LDN call distribution'!$C$6:$AD$33,28,FALSE)),0)) -> 0 | K14: =IF($C14=K$12,IF($E14="On-net",IF($D14="Local",2,1),1),IF(AND($D14="LDN",$E14="On-net"),INDEX('LDN call distribution'!$C$6:$AD$33,VLOOKUP($C14,'LDN call distribution'!$C$6:$AD$33,28,FALSE),HLOOKUP(K$12,'LDN call distribution'!$C$6:$AD$33,28,FALSE)),0)) -> 0 | L14: =IF($C14=L$12,IF($E14="On-net",IF($D14="Local",2,1),1),IF(AND($D14="LDN",$E14="On-net"),INDEX('LDN call distribution'!$C$6:$AD$33,VLOOKUP($C14,'LDN call distribution'!$C$6:$AD$33,28,FALSE),HLOOKUP(L$12,'LDN call distribution'!$C$6:$AD$33,28,FALSE)),0)) -> 0 | M14: =IF($C14=M$12,IF($E14="On-net",IF($D14="Local",2,1),1),IF(AND($D14="LDN",$E14="On-net"),INDEX('LDN call distribution'!$C$6:$AD$33,VLOOKUP($C14,'LDN call distribution'!$C$6:$AD$33,28,FALSE),HLOOKUP(M$12,'LDN call distribution'!$C$6:$AD$33,28,FALSE)),0)) -> 0 | N14: =IF($C14=N$12,IF($E14="On-net",IF($D14="Local",2,1),1),IF(AND($D14="LDN",$E14="On-net"),INDEX('LDN call distribution'!$C$6:$AD$33,VLOOKUP($C14,'LDN call distribution'!$C$6:$AD$33,28,FALSE),HLOOKUP(N$12,'LDN call distribution'!$C$6:$AD$33,28,FALSE)),0)) -> 0 | O14: =IF($C14=O$12,IF($E14="On-net",IF($D14="Local",2,1),1),IF(AND($D14="LDN",$E14="On-net"),INDEX('LDN call distribution'!$C$6:$AD$33,VLOOKUP($C14,'LDN call distribution'!$C$6:$AD$33,28,FALSE),HLOOKUP(O$12,'LDN call distribution'!$C$6:$AD$33,28,FALSE)),0)) -> 0 | P14: =IF($C14=P$12,IF($E14="On-net",IF($D14="Local",2,1),1),IF(AND($D14="LDN",$E14="On-net"),INDEX('LDN call distribution'!$C$6:$AD$33,VLOOKUP($C14,'LDN call distribution'!$C$6:$AD$33,28,FALSE),HLOOKUP(P$12,'LDN call distribution'!$C$6:$AD$33,28,FALSE)),0)) -> 0 | Q14: =IF($C14=Q$12,IF($E14="On-net",IF($D14="Local",2,1),1),IF(AND($D14="LDN",$E14="On-net"),INDEX('LDN call distribution'!$C$6:$AD$33,VLOOKUP($C14,'LDN call distribution'!$C$6:$AD$33,28,FALSE),HLOOKUP(Q$12,'LDN call distribution'!$C$6:$AD$33,28,FALSE)),0)) -> 0 | R14: =IF($C14=R$12,IF($E14="On-net",IF($D14="Local",2,1),1),IF(AND($D14="LDN",$E14="On-net"),INDEX('LDN call distribution'!$C$6:$AD$33,VLOOKUP($C14,'LDN call distribution'!$C$6:$AD$33,28,FALSE),HLOOKUP(R$12,'LDN call distribution'!$C$6:$AD$33,28,FALSE)),0)) -> 0 | S14: =IF($C14=S$12,IF($E14="On-net",IF($D14="Local",2,1),1),IF(AND($D14="LDN",$E14="On-net"),INDEX('LDN call distribution'!$C$6:$AD$33,VLOOKUP($C14,'LDN call distribution'!$C$6:$AD$33,28,FALSE),HLOOKUP(S$12,'LDN call distribution'!$C$6:$AD$33,28,FALSE)),0)) -> 0 | T14: =IF($C14=T$12,IF($E14="On-net",IF($D14="Local",2,1),1),IF(AND($D14="LDN",$E14="On-net"),INDEX('LDN call distribution'!$C$6:$AD$33,VLOOKUP($C14,'LDN call distribution'!$C$6:$AD$33,28,FALSE),HLOOKUP(T$12,'LDN call distribution'!$C$6:$AD$33,28,FALSE)),0)) -> 0 | U14: =IF($C14=U$12,IF($E14="On-net",IF($D14="Local",2,1),1),IF(AND($D14="LDN",$E14="On-net"),INDEX('LDN call distribution'!$C$6:$AD$33,VLOOKUP($C14,'LDN call distribution'!$C$6:$AD$33,28,FALSE),HLOOKUP(U$12,'LDN call distribution'!$C$6:$AD$33,28,FALSE)),0)) -> 0 | V14: =IF($C14=V$12,IF($E14="On-net",IF($D14="Local",2,1),1),IF(AND($D14="LDN",$E14="On-net"),INDEX('LDN call distribution'!$C$6:$AD$33,VLOOKUP($C14,'LDN call distribution'!$C$6:$AD$33,28,FALSE),HLOOKUP(V$12,'LDN call distribution'!$C$6:$AD$33,28,FALSE)),0)) -> 0 | W14: =IF($C14=W$12,IF($E14="On-net",IF($D14="Local",2,1),1),IF(AND($D14="LDN",$E14="On-net"),INDEX('LDN call distribution'!$C$6:$AD$33,VLOOKUP($C14,'LDN call distribution'!$C$6:$AD$33,28,FALSE),HLOOKUP(W$12,'LDN call distribution'!$C$6:$AD$33,28,FALSE)),0)) -> 0 | X14: =IF($C14=X$12,IF($E14="On-net",IF($D14="Local",2,1),1),IF(AND($D14="LDN",$E14="On-net"),INDEX('LDN call distribution'!$C$6:$AD$33,VLOOKUP($C14,'LDN call distribution'!$C$6:$AD$33,28,FALSE),HLOOKUP(X$12,'LDN call distribution'!$C$6:$AD$33,28,FALSE)),0)) -> 0 | Y14: =IF($C14=Y$12,IF($E14="On-net",IF($D14="Local",2,1),1),IF(AND($D14="LDN",$E14="On-net"),INDEX('LDN call distribution'!$C$6:$AD$33,VLOOKUP($C14,'LDN call distribution'!$C$6:$AD$33,28,FALSE),HLOOKUP(Y$12,'LDN call distribution'!$C$6:$AD$33,28,FALSE)),0)) -> 0 | Z14: =IF($C14=Z$12,IF($E14="On-net",IF($D14="Local",2,1),1),IF(AND($D14="LDN",$E14="On-net"),INDEX('LDN call distribution'!$C$6:$AD$33,VLOOKUP($C14,'LDN call distribution'!$C$6:$AD$33,28,FALSE),HLOOKUP(Z$12,'LDN call distribution'!$C$6:$AD$33,28,FALSE)),0)) -> 0 | AA14: =IF($C14=AA$12,IF($E14="On-net",IF($D14="Local",2,1),1),IF(AND($D14="LDN",$E14="On-net"),INDEX('LDN call distribution'!$C$6:$AD$33,VLOOKUP($C14,'LDN call distribution'!$C$6:$AD$33,28,FALSE),HLOOKUP(AA$12,'LDN call distribution'!$C$6:$AD$33,28,FALSE)),0)) -> 0 | AB14: =IF($C14=AB$12,IF($E14="On-net",IF($D14="Local",2,1),1),IF(AND($D14="LDN",$E14="On-net"),INDEX('LDN call distribution'!$C$6:$AD$33,VLOOKUP($C14,'LDN call distribution'!$C$6:$AD$33,28,FALSE),HLOOKUP(AB$12,'LDN call distribution'!$C$6:$AD$33,28,FALSE)),0)) -> 0 | AC14: =IF($C14=AC$12,IF($E14="On-net",IF($D14="Local",2,1),1),IF(AND($D14="LDN",$E14="On-net"),INDEX('LDN call distribution'!$C$6:$AD$33,VLOOKUP($C14,'LDN call distribution'!$C$6:$AD$33,28,FALSE),HLOOKUP(AC$12,'LDN call distribution'!$C$6:$AD$33,28,FALSE)),0)) -> 0 | AD14: =IF($C14=AD$12,IF($E14="On-net",IF($D14="Local",2,1),1),IF(AND($D14="LDN",$E14="On-net"),INDEX('LDN call distribution'!$C$6:$AD$33,VLOOKUP($C14,'LDN call distribution'!$C$6:$AD$33,28,FALSE),HLOOKUP(AD$12,'LDN call distribution'!$C$6:$AD$33,28,FALSE)),0)) -> 0 | AE14: 1 | AF14: 1 | AG14: 1 | AH14: 1 | AI14: 1 | AJ14: 1 | AK14: 1 | AL14: 1 | AM14: 1 | AN14: 1 | AO14: 1 | AP14: 1 | AQ14: 1 | AR14: 1 | AS14: 1 | AT14: 1 | AU14: 1 | AV14: 1 | AW14: 1 | AX14: 1 | AY14: 1 | AZ14: 1 | BA14: 1 | BB14: 1 | BC14: =IF($E14&$D14="On-netLDN",INDEX('LDN call distribution'!$K$45:$AJ$50,VLOOKUP(BC$2,'LDN call distribution'!$K$45:$AJ$50,26,FALSE),HLOOKUP($C14,'LDN call distribution'!$K$45:$AJ$50,6,FALSE)),IF(ISERROR(VLOOKUP($C14,BC$3:BC$12,1,FALSE)),0,1)) -> 1 | BD14: =IF($E14&$D14="On-netLDN",INDEX('LDN call distribution'!$K$45:$AJ$50,VLOOKUP(BD$2,'LDN call distribution'!$K$45:$AJ$50,26,FALSE),HLOOKUP($C14,'LDN call distribution'!$K$45:$AJ$50,6,FALSE)),IF(ISERROR(VLOOKUP($C14,BD$3:BD$12,1,FALSE)),0,1)) -> 0 | BE14: =IF($E14&$D14="On-netLDN",INDEX('LDN call distribution'!$K$45:$AJ$50,VLOOKUP(BE$2,'LDN call distribution'!$K$45:$AJ$50,26,FALSE),HLOOKUP($C14,'LDN call distribution'!$K$45:$AJ$50,6,FALSE)),IF(ISERROR(VLOOKUP($C14,BE$3:BE$12,1,FALSE)),0,1)) -> 0 | BF14: 1 | BG14: =IF(E14="Incoming",1,0) -> 1 | BH14: 1 | BI14: 1 | BJ14: 1 | BK14: 1 | BL14: 1 | BM14: 1
A15: Amazonas- | C15: =Traffic!A14 -> Amazonas | D15: =Traffic!C14 -> LDN | E15: =Traffic!B14 -> Incoming | F15: =Traffic!D14 -> Mobile - Mobile | G15: =IF($C15=G$12,IF($E15="On-net",IF($D15="Local",2,1),1),IF(AND($D15="LDN",$E15="On-net"),INDEX('LDN call distribution'!$C$6:$AD$33,VLOOKUP($C15,'LDN call distribution'!$C$6:$AD$33,28,FALSE),HLOOKUP(G$12,'LDN call distribution'!$C$6:$AD$33,28,FALSE)),0)) -> 1 | H15: =IF($C15=H$12,IF($E15="On-net",IF($D15="Local",2,1),1),IF(AND($D15="LDN",$E15="On-net"),INDEX('LDN call distribution'!$C$6:$AD$33,VLOOKUP($C15,'LDN call distribution'!$C$6:$AD$33,28,FALSE),HLOOKUP(H$12,'LDN call distribution'!$C$6:$AD$33,28,FALSE)),0)) -> 0 | I15: =IF($C15=I$12,IF($E15="On-net",IF($D15="Local",2,1),1),IF(AND($D15="LDN",$E15="On-net"),INDEX('LDN call distribution'!$C$6:$AD$33,VLOOKUP($C15,'LDN call distribution'!$C$6:$AD$33,28,FALSE),HLOOKUP(I$12,'LDN call distribution'!$C$6:$AD$33,28,FALSE)),0)) -> 0 | J15: =IF($C15=J$12,IF($E15="On-net",IF($D15="Local",2,1),1),IF(AND($D15="LDN",$E15="On-net"),INDEX('LDN call distribution'!$C$6:$AD$33,VLOOKUP($C15,'LDN call distribution'!$C$6:$AD$33,28,FALSE),HLOOKUP(J$12,'LDN call distribution'!$C$6:$AD$33,28,FALSE)),0)) -> 0 | K15: =IF($C15=K$12,IF($E15="On-net",IF($D15="Local",2,1),1),IF(AND($D15="LDN",$E15="On-net"),INDEX('LDN call distribution'!$C$6:$AD$33,VLOOKUP($C15,'LDN call distribution'!$C$6:$AD$33,28,FALSE),HLOOKUP(K$12,'LDN call distribution'!$C$6:$AD$33,28,FALSE)),0)) -> 0 | L15: =IF($C15=L$12,IF($E15="On-net",IF($D15="Local",2,1),1),IF(AND($D15="LDN",$E15="On-net"),INDEX('LDN call distribution'!$C$6:$AD$33,VLOOKUP($C15,'LDN call distribution'!$C$6:$AD$33,28,FALSE),HLOOKUP(L$12,'LDN call distribution'!$C$6:$AD$33,28,FALSE)),0)) -> 0 | M15: =IF($C15=M$12,IF($E15="On-net",IF($D15="Local",2,1),1),IF(AND($D15="LDN",$E15="On-net"),INDEX('LDN call distribution'!$C$6:$AD$33,VLOOKUP($C15,'LDN call distribution'!$C$6:$AD$33,28,FALSE),HLOOKUP(M$12,'LDN call distribution'!$C$6:$AD$33,28,FALSE)),0)) -> 0 | N15: =IF($C15=N$12,IF($E15="On-net",IF($D15="Local",2,1),1),IF(AND($D15="LDN",$E15="On-net"),INDEX('LDN call distribution'!$C$6:$AD$33,VLOOKUP($C15,'LDN call distribution'!$C$6:$AD$33,28,FALSE),HLOOKUP(N$12,'LDN call distribution'!$C$6:$AD$33,28,FALSE)),0)) -> 0 | O15: =IF($C15=O$12,IF($E15="On-net",IF($D15="Local",2,1),1),IF(AND($D15="LDN",$E15="On-net"),INDEX('LDN call distribution'!$C$6:$AD$33,VLOOKUP($C15,'LDN call distribution'!$C$6:$AD$33,28,FALSE),HLOOKUP(O$12,'LDN call distribution'!$C$6:$AD$33,28,FALSE)),0)) -> 0 | P15: =IF($C15=P$12,IF($E15="On-net",IF($D15="Local",2,1),1),IF(AND($D15="LDN",$E15="On-net"),INDEX('LDN call distribution'!$C$6:$AD$33,VLOOKUP($C15,'LDN call distribution'!$C$6:$AD$33,28,FALSE),HLOOKUP(P$12,'LDN call distribution'!$C$6:$AD$33,28,FALSE)),0)) -> 0 | Q15: =IF($C15=Q$12,IF($E15="On-net",IF($D15="Local",2,1),1),IF(AND($D15="LDN",$E15="On-net"),INDEX('LDN call distribution'!$C$6:$AD$33,VLOOKUP($C15,'LDN call distribution'!$C$6:$AD$33,28,FALSE),HLOOKUP(Q$12,'LDN call distribution'!$C$6:$AD$33,28,FALSE)),0)) -> 0 | R15: =IF($C15=R$12,IF($E15="On-net",IF($D15="Local",2,1),1),IF(AND($D15="LDN",$E15="On-net"),INDEX('LDN call distribution'!$C$6:$AD$33,VLOOKUP($C15,'LDN call distribution'!$C$6:$AD$33,28,FALSE),HLOOKUP(R$12,'LDN call distribution'!$C$6:$AD$33,28,FALSE)),0)) -> 0 | S15: =IF($C15=S$12,IF($E15="On-net",IF($D15="Local",2,1),1),IF(AND($D15="LDN",$E15="On-net"),INDEX('LDN call distribution'!$C$6:$AD$33,VLOOKUP($C15,'LDN call distribution'!$C$6:$AD$33,28,FALSE),HLOOKUP(S$12,'LDN call distribution'!$C$6:$AD$33,28,FALSE)),0)) -> 0 | T15: =IF($C15=T$12,IF($E15="On-net",IF($D15="Local",2,1),1),IF(AND($D15="LDN",$E15="On-net"),INDEX('LDN call distribution'!$C$6:$AD$33,VLOOKUP($C15,'LDN call distribution'!$C$6:$AD$33,28,FALSE),HLOOKUP(T$12,'LDN call distribution'!$C$6:$AD$33,28,FALSE)),0)) -> 0 | U15: =IF($C15=U$12,IF($E15="On-net",IF($D15="Local",2,1),1),IF(AND($D15="LDN",$E15="On-net"),INDEX('LDN call distribution'!$C$6:$AD$33,VLOOKUP($C15,'LDN call distribution'!$C$6:$AD$33,28,FALSE),HLOOKUP(U$12,'LDN call distribution'!$C$6:$AD$33,28,FALSE)),0)) -> 0 | V15: =IF($C15=V$12,IF($E15="On-net",IF($D15="Local",2,1),1),IF(AND($D15="LDN",$E15="On-net"),INDEX('LDN call distribution'!$C$6:$AD$33,VLOOKUP($C15,'LDN call distribution'!$C$6:$AD$33,28,FALSE),HLOOKUP(V$12,'LDN call distribution'!$C$6:$AD$33,28,FALSE)),0)) -> 0 | W15: =IF($C15=W$12,IF($E15="On-net",IF($D15="Local",2,1),1),IF(AND($D15="LDN",$E15="On-net"),INDEX('LDN call distribution'!$C$6:$AD$33,VLOOKUP($C15,'LDN call distribution'!$C$6:$AD$33,28,FALSE),HLOOKUP(W$12,'LDN call distribution'!$C$6:$AD$33,28,FALSE)),0)) -> 0 | X15: =IF($C15=X$12,IF($E15="On-net",IF($D15="Local",2,1),1),IF(AND($D15="LDN",$E15="On-net"),INDEX('LDN call distribution'!$C$6:$AD$33,VLOOKUP($C15,'LDN call distribution'!$C$6:$AD$33,28,FALSE),HLOOKUP(X$12,'LDN call distribution'!$C$6:$AD$33,28,FALSE)),0)) -> 0 | Y15: =IF($C15=Y$12,IF($E15="On-net",IF($D15="Local",2,1),1),IF(AND($D15="LDN",$E15="On-net"),INDEX('LDN call distribution'!$C$6:$AD$33,VLOOKUP($C15,'LDN call distribution'!$C$6:$AD$33,28,FALSE),HLOOKUP(Y$12,'LDN call distribution'!$C$6:$AD$33,28,FALSE)),0)) -> 0 | Z15: =IF($C15=Z$12,IF($E15="On-net",IF($D15="Local",2,1),1),IF(AND($D15="LDN",$E15="On-net"),INDEX('LDN call distribution'!$C$6:$AD$33,VLOOKUP($C15,'LDN call distribution'!$C$6:$AD$33,28,FALSE),HLOOKUP(Z$12,'LDN call distribution'!$C$6:$AD$33,28,FALSE)),0)) -> 0 | AA15: =IF($C15=AA$12,IF($E15="On-net",IF($D15="Local",2,1),1),IF(AND($D15="LDN",$E15="On-net"),INDEX('LDN call distribution'!$C$6:$AD$33,VLOOKUP($C15,'LDN call distribution'!$C$6:$AD$33,28,FALSE),HLOOKUP(AA$12,'LDN call distribution'!$C$6:$AD$33,28,FALSE)),0)) -> 0 | AB15: =IF($C15=AB$12,IF($E15="On-net",IF($D15="Local",2,1),1),IF(AND($D15="LDN",$E15="On-net"),INDEX('LDN call distribution'!$C$6:$AD$33,VLOOKUP($C15,'LDN call distribution'!$C$6:$AD$33,28,FALSE),HLOOKUP(AB$12,'LDN call distribution'!$C$6:$AD$33,28,FALSE)),0)) -> 0 | AC15: =IF($C15=AC$12,IF($E15="On-net",IF($D15="Local",2,1),1),IF(AND($D15="LDN",$E15="On-net"),INDEX('LDN call distribution'!$C$6:$AD$33,VLOOKUP($C15,'LDN call distribution'!$C$6:$AD$33,28,FALSE),HLOOKUP(AC$12,'LDN call distribution'!$C$6:$AD$33,28,FALSE)),0)) -> 0 | AD15: =IF($C15=AD$12,IF($E15="On-net",IF($D15="Local",2,1),1),IF(AND($D15="LDN",$E15="On-net"),INDEX('LDN call distribution'!$C$6:$AD$33,VLOOKUP($C15,'LDN call distribution'!$C$6:$AD$33,28,FALSE),HLOOKUP(AD$12,'LDN call distribution'!$C$6:$AD$33,28,FALSE)),0)) -> 0 | AE15: 1 | AF15: 1 | AG15: 1 | AH15: 1 | AI15: 1 | AJ15: 1 | AK15: 1 | AL15: 1 | AM15: 1 | AN15: 1 | AO15: 1 | AP15: 1 | AQ15: 1 | AR15: 1 | AS15: 1 | AT15: 1 | AU15: 1 | AV15: 1 | AW15: 1 | AX15: 1 | AY15: 1 | AZ15: 1 | BA15: 1 | BB15: 1 | BC15: =IF($E15&$D15="On-netLDN",INDEX('LDN call distribution'!$K$45:$AJ$50,VLOOKUP(BC$2,'LDN call distribution'!$K$45:$AJ$50,26,FALSE),HLOOKUP($C15,'LDN call distribution'!$K$45:$AJ$50,6,FALSE)),IF(ISERROR(VLOOKUP($C15,BC$3:BC$12,1,FALSE)),0,1)) -> 1 | BD15: =IF($E15&$D15="On-netLDN",INDEX('LDN call distribution'!$K$45:$AJ$50,VLOOKUP(BD$2,'LDN call distribution'!$K$45:$AJ$50,26,FALSE),HLOOKUP($C15,'LDN call distribution'!$K$45:$AJ$50,6,FALSE)),IF(ISERROR(VLOOKUP($C15,BD$3:BD$12,1,FALSE)),0,1)) -> 0 | BE15: =IF($E15&$D15="On-netLDN",INDEX('LDN call distribution'!$K$45:$AJ$50,VLOOKUP(BE$2,'LDN call distribution'!$K$45:$AJ$50,26,FALSE),HLOOKUP($C15,'LDN call distribution'!$K$45:$AJ$50,6,FALSE)),IF(ISERROR(VLOOKUP($C15,BE$3:BE$12,1,FALSE)),0,1)) -> 0 | BF15: 1 | BG15: 1 | BH15: 1 | BI15: 1 | BJ15: 1 | BK15: 1 | BL15: 1 | BM15: 1
